Workbook

Sheet Toelichting
B1: Besluit: x-factorbesluit GTS 2017-2021; bestand: GAW-berekening GTS
B3: Toelichting
B5: Wat staat er in dit bestand?
B7: Dit bestand hoort bij het volgende besluit: x-factorbesluit GTS 2017-2021
B8: Kenmerk: ACM/DE/2016/205150
B9: Datum: 23 februari 2017
B11: Samenvatting van wat er gebeurt in dit bestand:
B12: Dit bestand bevat de berekening van de gestandaardiseerde activawaarde (GAW) van GTS. Dit bestand bevat de jaarlijkse investeringen van GTS van 1946 t/m 2015. Daarbij wordt een onderscheid gemaakt tussen vervangingsinvesteringen (VVI), reguliere uitbreidingsinvesteringen (RUI) en niet-reguliere uitbreidingsinvesteringen (NRUI). Het tabblad Inv totaal bevat de jaarlijkse investeringen per activaklasse van die typen investeringen (VVI, RUI, NRUI). Tot 2005 maakte GTS geen onderscheid tussen vervangingsinvesteringen en uitbreidingsinvesteringen. Alle investeringen tot 2005 zijn daarom geregistreerd als vervangingsinvesteringen. In de periode 2005 t/m 2012 maakte GTS wel onderscheid tussen vervangingsinvesteringen en uitbreidingsinvesteringen, maar geen onderscheid tussen reguliere en niet-reguliere uitbreidingsinvesteringen. Alle uitbreidingsinvesteringen in de periode 2005 t/m 2012 zijn daarom geregistreerd als reguliere uitbreidingsinvesteringen. Sinds 2013 is er een onderscheid tussen vervangingsinvesteringen, reguliere uitbreidingsinvesteringen en niet-reguliere uitbreidingsinvesteringen.
B14: Het tabblad Inv totaal bevat de investeringen per activaklasse die de basis zijn voor de berekening van de GAW van GTS. Op het tabblad Output kan de gebruiker van dit bestand aangegeven welke investeringen hij wil meenemen bij de berekening van de GAW. Een selectie is mogelijk op basis van (i) type (VVI/RUI/NRUI), (ii) activaklasse en (iii) jaartal. Hierdoor is het bijvoorbeeld mogelijk om alleen de GAW te berekenen van alle investeringen van het type VVI voor bepaalde activaklassen in de jaren 1995 tot 2010. Het tabblad Output laat vervolgens de GAW en afschrijvingen op basis van de geselecteerde investeringen zien.
B16: Dit bestand werkt als volgt. Het tabblad Inv totaal bevat de optelling van de investeringen van het tabblad Inv totaal per jaartal en activaklasse voor zover de activaklasse, het type investering en het jaartal op het tabblad Output zijn geselecteerd. Vervolgens bevat het tabblad Inv totaal voor elk jaar de som van de investeringen per afschrijvingstermijn. De tabbladen Afschr 5 t/m Afschr 55 berekenen vervolgens de geinfleerde afschrijvingen. Het tabblad Afschr totaal bevat de optelling van de geinfleerde afschrijvingen. Deze geinfleerde afschrijvingen per jaar komen vervolgens terug in de berekening van de GAW op het tabblad Output.
B18: Samenhang van dit bestand met andere bestanden
H20: Reguleringsdata 2013-2015
H24: Kostenbestand
H28: GAW-model
H33: X-factorberekening
B36: Schematische weergave van de werking van dit model
H38: Output
H46: Inv totaal
B51: Afschr 5 | E51: Afschr 10 | H51: Afschr 15 | K51: Afschr 30 | N51: Afschr 55
H56: Afschr totaal
B61: Gebruikte bronnen / input
B63: Input uit:
B64: Kostenbestand
B66: Overige bronnen
B67: Methodebesluit GTS 2017-2021
B68: CBS
B70: Legenda celkleuren
C72: Datawaarde / parameter
C73: Waarde die wordt opgehaald van een andere locatie (zonder berekening)
C74: Berekende waarde
C75: Celwaarde (uitkomst van een berekening) die een eindresultaat vormt
C76: Cel(waarde) niet van toepassing

Sheet Output
C1: Besluit: x-factorbesluit GTS 2017-2021; bestand: GAW-berekening GTS
C3: Output
C5: De gebruiker van dit bestand kan op dit tabblad aangeven van welke activaklassen, investeringstypen en jaren hij de input wil meenemen in de berekening van de GAW-waarde en afschrijvingen van GTS. Van de geselecteerde investeringen is vervolgens per jaar de GAW primo, totale investeringen, afschrijvingen, inflatie en GAW ultimo te zien. De gebruiker van dit bestand kan via de macroknoppen de output selecteren die ACM gebruikt in het x-factormodel. Tot en met 2004 bestaat geen onderscheid tussen VVI, RUI en NRUI en vallen alle investeringen onder VVI. Vanaf 2005 tot en met 2012 bestaat een onderscheid tussen VVI en uitbreidingsinvesteringen, maar niet tussen RUI en NRUI. Alle uitbreidingsinvesteringen in deze periode zijn daarom als RUI geregistreerd. Vanaf 2013 bestaat een afzonderlijke registratie voor VVI, RUI en NRUI.
C7: Selecteren van investeringen waarvan de GAW berekend moet worden
C9: Selecteren activaklassen | H9: Selecteren investeringstype(n)
C10: Activaklasse | D10: Afschrijvingstermijn | E10: Taak | F10: Activaklasse (1=aan, 0=uit) | H10: Type | I10: 1=aan, 0=uit
C11: 01 Regionale leidingen | D11: 55 | E11: TT-BT-BAT | F11: 1 | H11: VVI | I11: 1
C12: 01 Regionale leidingen (Waterkruisingen) | D12: 55 | E12: TT-BT-BAT | F12: 1 | H12: RUI | I12: 1
C13: 02 Gasontvangstations | D13: 30 | E13: TT-BT-BAT | F13: 1 | H13: NRUI | I13: 1
C14: 03 Verremeting | D14: 5 | E14: TT-BT-BAT | F14: 1
C15: 04 Terreinen | D15: 0 | E15: TT-BT-BAT | F15: 1
C16: 05 Wegen en terreinvoorzieningen | D16: 10 | E16: TT-BT-BAT | F16: 1 | H16: Selecteren jaar … tot jaar …
C17: 06 Utiliteitsgebouwen | D17: 30 | E17: TT-BT-BAT | F17: 1 | H17: Beschikbaar van 1946 t/m 2015
C18: 07 Dienstwoningen | D18: 55 | E18: TT-BT-BAT | F18: 1 | H18: Van: | I18: 1946
C19: 08 Inrichting gebouwen | D19: 10 | E19: TT-BT-BAT | F19: 1 | H19: T/m: | I19: 2015
C20: 09 Bedrijfsinventaris | D20: 10 | E20: TT-BT-BAT | F20: 1
C21: 10 Gereedschap | D21: 10 | E21: TT-BT-BAT | F21: 1 | H21: Selecteren van output die ACM gebruikt in het x-factormodel:
C22: 10 Gereedschap (LNG) | D22: 10 | E22: TT-BT-BAT | F22: 1 | M22: Ophalen TT-BT-BAT binnen scope (CEER en BNetzA): selecteert de activaklassen behorende bij de taken TT, BT en BAT die worden meegenomen in respectievelijk de CEER- en BNetzA-benchmark, alle investeringstypen (VVI, RUI en NRUI) en alle jaren (1946 tot en met 2015).
C23: 11 Werktuigen | D23: 10 | E23: TT-BT-BAT | F23: 1
C24: 11 Werktuigen (gaschromatografen en comptabele meters) | D24: 10 | E24: TT-BT-BAT | F24: 1
C25: 12 Motorvoertuigen | D25: 10 | E25: TT-BT-BAT | F25: 1 | M25: Ophalen TT-BT-BAT buiten scope (CEER en BNetzA): selecteert de activaklassen behorende bij de taken TT, BT en BAT die niet worden meegenomen in respectievelijk de CEER- en BNetzA-benchmark, alle investeringstypen (VVI, RUI en NRUI) en alle jaren (1946 tot en met 2015).
C26: 13 Aanhangwagens | D26: 10 | E26: TT-BT-BAT | F26: 1
C27: 14 Overig rollend materieel | D27: 10 | E27: TT-BT-BAT | F27: 1
C28: 15 Compressorstations (TT-BAT-BT) | D28: 30 | E28: TT-BT-BAT | F28: 1 | M28: Ophalen TT-BT-BAT: selecteert de activaklassen behorende bij de taken TT, BT en BAT zonder onderscheid voor de CEER- en BNetzA-benchmark, alle investeringstypen (VVI, RUI en NRUI) en alle jaren (1946 tot en met 2015).
C29: 15 Compressorstations (TT-BAT-BT) (gaschromatografen en comptabele meters) | D29: 30 | E29: TT-BT-BAT | F29: 1
C30: 15 Compressorstations (KC) | D30: 30 | E30: KC | F30: 1
C31: 15 Compressorstations extra kosten leveringszekerheid (TT-BAT-BT) | D31: 30 | E31: TT-BT-BAT | F31: 1
C32: 16 LNG installaties | D32: 30 | E32: TT-BT-BAT | F32: 1 | M32: Ophalen KC: selecteert alle activaklassen van taak KC, alle investeringstypen (VVI, RUI en NRUI) en alle jaren (1946 tot en met 2015). (Taak KC is buiten scope voor zowel de CEER- als BNetzA-benchmark).
C33: 17 Mengstations | D33: 30 | E33: KC | F33: 1
C34: 18 Ijkinstallaties | D34: 30 | E34: TT-BT-BAT | F34: 1
C35: 19 Stortgasinstallaties | D35: 30 | E35: TT-BT-BAT | F35: 1 | M35: Ophalen AT: selecteert alle activaklassen van taak AT, alle investeringstypen (VVI, RUI en NRUI) en alle jaren (1946 tot en met 2015). (Taak AT is binnen scope voor de CEER-benchmark en buiten scope voor de BNetzA-benchmark).
C36: 20 Kantoorgebouwen | D36: 30 | E36: TT-BT-BAT | F36: 1
C37: 21 Hoofdtransportleiding | D37: 55 | E37: TT-BT-BAT | F37: 1
C38: 21 Hoofdtransportleiding (waterkruisingen) | D38: 55 | E38: TT-BT-BAT | F38: 1
C39: 21 Hoofdtransportleiding (gaschromatografen en comptabele meting) | D39: 55 | E39: TT-BT-BAT | F39: 1
C40: 22 Regionaal hoofdtransportnet | D40: 55 | E40: TT-BT-BAT | F40: 1 | M40: Berekening investeringsuitgaven RUI in gebruik genomen in jaar t (t = 2013, 2014 of 2015), afschrijvingen jaar t+1 van RUI in gebruik genomen in jaar t en GAW ultimo jaar t+1 van RUI in gebruik genomen in jaar t voor taak TT-BT-BAT/AT/KC: Selecteer alle activaklassen van de taak (TT-BT-BAT, AT of KC). Selecteer alleen investeringstype RUI. Selecteer alleen jaar t.
C41: 23 Brigittaleiding | D41: 55 | E41: TT-BT-BAT | F41: 1
C42: 32 M&R stations | D42: 30 | E42: TT-BT-BAT | F42: 1
C43: 32 M&R stations (gaschromatografen en comptabele meting) | D43: 30 | E43: TT-BT-BAT | F43: 1
C44: 33 Exportstations | D44: 30 | E44: TT-BT-BAT | F44: 1
C45: 33 Exportstations (gaschromatografen en comptabele meting) | D45: 30 | E45: TT-BT-BAT | F45: 1
C46: 34 Reduceerstations | D46: 30 | E46: TT-BT-BAT | F46: 1
C47: 34 Reduceerstations (gaschromatografen en comptabele meting) | D47: 30 | E47: TT-BT-BAT | F47: 1
C48: 35 Injectiestations | D48: 30 | E48: TT-BT-BAT | F48: 1
C49: 36 Luchtscheidingsunit | D49: 30 | E49: KC | F49: 1 | M49: Reset: geeft alle activaklassen en alle investeringstypen (VVI, RUI en NRUI) waarde 1 en selecteer de jaren 1946 tot en met 2015.
C50: 37 ICT middelen 1 | D50: 5 | E50: TT-BT-BAT | F50: 1
C51: 37 ICT middelen 1 (transparency) | D51: 5 | E51: TT-BT-BAT | F51: 1
C52: 37 ICT middelen 1 (gaschromatografen en comptabele meting) | D52: 5 | E52: TT-BT-BAT | F52: 1
C53: 38 ICT middelen 2 | D53: 10 | E53: TT-BT-BAT | F53: 1 | M53: Reset: geeft alle activaklassen en alle investeringstypen (VVI, RUI en NRUI) waarde 0 en maak het selectieveld voor de jaren leeg.
C54: 39 ICT middelen 3 | D54: 15 | E54: TT-BT-BAT | F54: 1
C55: 40 Aansluitpunten | D55: 55 | E55: AT | F55: 1
C56: 41 Stikstofbuffer | D56: 30 | E56: KC | F56: 1
C57: 42 Vulgas | D57: 0 | E57: TT-BT-BAT | F57: 1
C58: 43 Stikstof | D58: 0 | E58: KC | F58: 1
C59: 44 Stikstofleiding | D59: 55 | E59: KC | F59: 1
C61: Output op basis van geselecteerde investeringen
C63: GAW en afschrijvingen van geselecteerde investeringen
D64: GAW primo | E64: Inv totaal | F64: Afschrijvingen | G64: CPI | H64: Inflatie | I64: GAW Ultimo
C65: 1946 | E65: ='Inv totaal'!J423 -> 836988.0792 | F65: ='Afschr totaal'!C13 -> 7608.982538 | G65: =CPI!C13 -> 0.09083007388 | H65: =D65*G65 -> 0 | I65: =D65+E65-F65+H65 -> 829379.0967
C66: 1947 | D66: =I65 -> 829379.0967 | E66: ='Inv totaal'!J424 -> 2145958.86 | F66: ='Afschr totaal'!C14 -> 35278.40901 | G66: =CPI!C14 -> 0.03625498008 | H66: 30069.12263 | I66: 2970128.671
C67: 1948 | D67: 2970128.671 | E67: ='Inv totaal'!J425 -> 1127514.959 | F67: ='Afschr totaal'!C15 -> 66975.13795 | G67: =CPI!C15 -> 0.03537101115 | H67: 105056.4543 | I67: 4135724.946
C68: 1949 | D68: 4135724.946 | E68: ='Inv totaal'!J426 -> 4659013.21 | F68: ='Afschr totaal'!C16 -> 124454.9104 | G68: =CPI!C16 -> 0.06312662458 | H68: 261074.356 | I68: 8931357.601
C69: 1950 | D69: 8931357.601 | E69: ='Inv totaal'!J427 -> 2501486.579 | F69: ='Afschr totaal'!C17 -> 204757.2436 | G69: =CPI!C17 -> 0.09116311561 | H69: 814210.3856 | I69: =D69+E69-F69+H69 -> 12042297.32
C70: 1951 | D70: 12042297.32 | E70: ='Inv totaal'!J428 -> 2005811.55 | F70: ='Afschr totaal'!C18 -> 267652.3058 | G70: =CPI!C18 -> 0.09635083227 | H70: 1160285.369 | I70: 14940741.94
C71: 1952 | D71: 14940741.94 | E71: ='Inv totaal'!J429 -> 183022.7208 | F71: ='Afschr totaal'!C19 -> 287550.7991 | G71: =CPI!C19 -> 0 | H71: 0 | I71: 14836213.86
C72: 1953 | D72: 14836213.86 | E72: ='Inv totaal'!J430 -> 3394596.692 | F72: ='Afschr totaal'!C20 -> 320072.3938 | G72: =CPI!C20 -> 0 | H72: 0 | I72: 17910738.16
C73: 1954 | D73: 17910738.16 | E73: ='Inv totaal'!J431 -> 8268328.86 | F73: ='Afschr totaal'!C21 -> 440258.5228 | G73: =CPI!C21 -> 0.04 | H73: 716429.5262 | I73: 26455238.02
C74: 1955 | D74: 26455238.02 | E74: ='Inv totaal'!J432 -> 5184137.659 | F74: ='Afschr totaal'!C22 -> 572520.2676 | G74: =CPI!C22 -> 0.01909039865 | H74: 505041.0402 | I74: =D74+E74-F74+H74 -> 31571896.45
C75: 1956 | D75: 31571896.45 | E75: ='Inv totaal'!J433 -> 2260377.279 | F75: ='Afschr totaal'!C23 -> 652032.2152 | G75: =CPI!C23 -> 0.01900826446 | H75: 600126.9573 | I75: 33780368.47
C76: 1957 | D76: 33780368.47 | E76: ='Inv totaal'!J434 -> 3932321.399 | F76: ='Afschr totaal'!C24 -> 752027.8825 | G76: =CPI!C24 -> 0.06488240065 | H76: 2191751.401 | I76: 39152413.39
C77: 1958 | D77: 39152413.39 | E77: ='Inv totaal'!J435 -> 11037711.4 | F77: ='Afschr totaal'!C25 -> 901718.6799 | G77: =CPI!C25 -> 0.01726326479 | H77: 675898.4794 | I77: 49964304.59
C78: 1959 | D78: 49964304.59 | E78: ='Inv totaal'!J436 -> 4029746.878 | F78: ='Afschr totaal'!C26 -> 1047260.156 | G78: =CPI!C26 -> 0.008485150986 | H78: 423954.6683 | I78: 53370745.98
C79: 1960 | D79: 53370745.98 | E79: ='Inv totaal'!J437 -> 3253946.958 | F79: ='Afschr totaal'!C27 -> 1141343.58 | G79: =CPI!C27 -> 0.02548874041 | H79: 1360353.09 | I79: 56843702.45
C80: 1961 | D80: 56843702.45 | E80: ='Inv totaal'!J438 -> 3072156.948 | F80: ='Afschr totaal'!C28 -> 1221691.951 | G80: =CPI!C28 -> 0.01665057915 | H80: 946480.5668 | I80: 59640648.01
C81: 1962 | D81: =I80 -> 59640648.01 | E81: ='Inv totaal'!J439 -> 1556403 | F81: ='Afschr totaal'!C29 -> 1290957.97 | G81: =CPI!C29 -> 0.0192262046 | H81: 1146663.301 | I81: 61052756.34
C82: 1963 | D82: 61052756.34 | E82: ='Inv totaal'!J440 -> 10592525.32 | F82: ='Afschr totaal'!C30 -> 1453363.928 | G82: =CPI!C30 -> 0.0381928272 | H82: 2331777.373 | I82: 72523695.11
C83: 1964 | D83: 72523695.11 | E83: ='Inv totaal'!J441 -> 139655399.4 | F83: ='Afschr totaal'!C31 -> 2877795.656 | G83: =CPI!C31 -> 0.019 | H83: 1377950.207 | I83: 210679249.1
C84: 1965 | D84: 210679249.1 | E84: ='Inv totaal'!J442 -> 25837833.32 | F84: ='Afschr totaal'!C32 -> 4803153.448 | G84: =CPI!C32 -> 0.084 | H84: 17697056.92 | I84: 249410985.9
C85: 1966 | D85: 249410985.9 | E85: ='Inv totaal'!J443 -> 97424347.33 | F85: ='Afschr totaal'!C33 -> 6385296.672 | G85: =CPI!C33 -> 0.043 | H85: 10724672.39 | I85: 351174708.9
C86: 1967 | D86: 351174708.9 | E86: ='Inv totaal'!J444 -> 251821173.6 | F86: ='Afschr totaal'!C34 -> 10298243.89 | G86: =CPI!C34 -> 0.058 | H86: 20368133.12 | I86: 613065771.7
C87: 1968 | D87: 613065771.7 | E87: ='Inv totaal'!J445 -> 137651195 | F87: ='Afschr totaal'!C35 -> 14562272.26 | G87: =CPI!C35 -> 0.039 | H87: 23909565.1 | I87: 760064259.5
C88: 1969 | D88: 760064259.5 | E88: ='Inv totaal'!J446 -> 69568825.78 | F88: ='Afschr totaal'!C36 -> 17350099.31 | G88: =CPI!C36 -> 0.033 | H88: 25082120.57 | I88: 837365106.6
C89: 1970 | D89: 837365106.6 | E89: ='Inv totaal'!J447 -> 120490805.8 | F89: ='Afschr totaal'!C37 -> 20950671.92 | G89: =CPI!C37 -> 0.069 | H89: 57778192.35 | I89: 994683432.9
C90: 1971 | D90: 994683432.9 | E90: ='Inv totaal'!J448 -> 230190885.1 | F90: ='Afschr totaal'!C38 -> 25972768.68 | G90: =CPI!C38 -> 0.054 | H90: 53712905.37 | I90: 1252614455
C91: 1972 | D91: 1252614455 | E91: ='Inv totaal'!J449 -> 258281050.4 | F91: ='Afschr totaal'!C39 -> 33294268.02 | G91: =CPI!C39 -> 0.076 | H91: 95198698.55 | I91: 1572799936
C92: 1973 | D92: 1572799936 | E92: ='Inv totaal'!J450 -> 142003774.3 | F92: ='Afschr totaal'!C40 -> 40277882.48 | G92: =CPI!C40 -> 0.074 | H92: 116387195.2 | I92: 1790913023
C93: 1974 | D93: 1790913023 | E93: ='Inv totaal'!J451 -> 120326995.4 | F93: ='Afschr totaal'!C41 -> 46768683.51 | G93: =CPI!C41 -> 0.081 | H93: 145063954.8 | I93: 2009535289
C94: 1975 | D94: 2009535289 | E94: ='Inv totaal'!J452 -> 228613871.4 | F94: ='Afschr totaal'!C42 -> 55207458.3 | G94: =CPI!C42 -> 0.098 | H94: 196934458.4 | I94: 2379876161
C95: 1976 | D95: 2379876161 | E95: ='Inv totaal'!J453 -> 70932323.51 | F95: ='Afschr totaal'!C43 -> 64087674.02 | G95: =CPI!C43 -> 0.107 | H95: 254646749.2 | I95: 2641367560
C96: 1977 | D96: 2641367560 | E96: ='Inv totaal'!J454 -> 134619644.1 | F96: ='Afschr totaal'!C44 -> 71620887.8 | G96: =CPI!C44 -> 0.083 | H96: 219233507.4 | I96: 2923599823
C97: 1978 | D97: 2923599823 | E97: ='Inv totaal'!J455 -> 281247543.7 | F97: ='Afschr totaal'!C45 -> 81214775.16 | G97: =CPI!C45 -> 0.068 | H97: =D97*G97 -> 198804788 | I97: =D97+E97-F97+H97 -> 3322437380
C98: 1979 | D98: =I97 -> 3322437380 | E98: ='Inv totaal'!J456 -> 58179282.45 | F98: ='Afschr totaal'!C46 -> 88589021.55 | G98: =CPI!C46 -> 0.042 | H98: 139542370 | I98: 3431570011
C99: 1980 | D99: 3431570011 | E99: ='Inv totaal'!J457 -> 65959295.93 | F99: ='Afschr totaal'!C47 -> 93666210.72 | G99: =CPI!C47 -> 0.038 | H99: 130399660.4 | I99: 3534262756
C100: 1981 | D100: 3534262756 | E100: ='Inv totaal'!J458 -> 15957262.92 | F100: ='Afschr totaal'!C48 -> 101515252.4 | G100: =CPI!C48 -> 0.071 | H100: 250932655.7 | I100: 3699637423
C101: 1982 | D101: 3699637423 | E101: ='Inv totaal'!J459 -> 33668393.97 | F101: ='Afschr totaal'!C49 -> 108747322.2 | G101: =CPI!C49 -> 0.064 | H101: 236776795 | I101: 3861335289
C102: 1983 | D102: 3861335289 | E102: ='Inv totaal'!J460 -> 84815143.49 | F102: ='Afschr totaal'!C50 -> 116207861.9 | G102: =CPI!C50 -> 0.059 | H102: 227818782.1 | I102: 4057761353
C103: 1984 | D103: 4057761353 | E103: ='Inv totaal'!J461 -> 22247279.42 | F103: ='Afschr totaal'!C51 -> 119773279.4 | G103: =CPI!C51 -> 0.026 | H103: 105501795.2 | I103: 4065737148
C104: 1985 | D104: 4065737148 | E104: ='Inv totaal'!J462 -> 81966128.81 | F104: ='Afschr totaal'!C52 -> 123879048.7 | G104: =CPI!C52 -> 0.028 | H104: 113840640.2 | I104: 4137664868
C105: 1986 | D105: 4137664868 | E105: ='Inv totaal'!J463 -> 123211955.5 | F105: ='Afschr totaal'!C53 -> 128686736.8 | G105: =CPI!C53 -> 0.023 | H105: 95166291.97 | I105: 4227356379
C106: 1987 | D106: 4227356379 | E106: ='Inv totaal'!J464 -> 71766866.26 | F106: ='Afschr totaal'!C54 -> 129779006 | G106: =CPI!C54 -> -0.005 | H106: -21136781.9 | I106: 4148207457
C107: 1988 | D107: 4148207457 | E107: ='Inv totaal'!J465 -> 130940592.9 | F107: ='Afschr totaal'!C55 -> 132355440.5 | G107: =CPI!C55 -> 0.002 | H107: 8296414.915 | I107: 4155089025
C108: 1989 | D108: 4155089025 | E108: ='Inv totaal'!J466 -> 20774439.95 | F108: ='Afschr totaal'!C56 -> 135646849.4 | G108: =CPI!C56 -> 0.009 | H108: 37395801.22 | I108: 4077612417
C109: 1990 | D109: 4077612417 | E109: ='Inv totaal'!J467 -> 106594179.2 | F109: ='Afschr totaal'!C57 -> 138952695.7 | G109: =CPI!C57 -> 0.011 | H109: 44853736.58 | I109: 4090107637
C110: 1991 | D110: 4090107637 | E110: ='Inv totaal'!J468 -> 196200202.3 | F110: ='Afschr totaal'!C58 -> 145813057.6 | G110: =CPI!C58 -> 0.024 | H110: 98162583.28 | I110: 4238657365
C111: 1992 | D111: 4238657365 | E111: ='Inv totaal'!J469 -> 120677168.5 | F111: ='Afschr totaal'!C59 -> 156007566.3 | G111: =CPI!C59 -> 0.046 | H111: 194978238.8 | I111: 4398305205
C112: 1993 | D112: 4398305205 | E112: ='Inv totaal'!J470 -> 205985275.9 | F112: ='Afschr totaal'!C60 -> 168369217.6 | G112: =CPI!C60 -> 0.035 | H112: 153940682.2 | I112: 4589861946
C113: 1994 | D113: 4589861946 | E113: ='Inv totaal'!J471 -> 135289225.6 | F113: ='Afschr totaal'!C61 -> 179239659.2 | G113: =CPI!C61 -> 0.02 | H113: 91797238.92 | I113: 4637708751
C114: 1995 | D114: 4637708751 | E114: ='Inv totaal'!J472 -> 253092275.5 | F114: ='Afschr totaal'!C62 -> 190554217.2 | G114: =CPI!C62 -> 0.026 | H114: 120580427.5 | I114: 4820827237
C115: 1996 | D115: 4820827237 | E115: ='Inv totaal'!J473 -> 169685001.7 | F115: ='Afschr totaal'!C63 -> 200183717.3 | G115: =CPI!C63 -> 0.015 | H115: 72312408.56 | I115: 4862640930
C116: 1997 | D116: 4862640930 | E116: ='Inv totaal'!J474 -> 151511248.4 | F116: ='Afschr totaal'!C64 -> 207515575.2 | G116: =CPI!C64 -> 0.019 | H116: 92390177.67 | I116: 4899026781
C117: 1998 | D117: 4899026781 | E117: ='Inv totaal'!J475 -> 96428348.29 | F117: ='Afschr totaal'!C65 -> 212479360.9 | G117: =CPI!C65 -> 0.026 | H117: 127374696.3 | I117: 4910350465
C118: 1999 | D118: 4910350465 | E118: ='Inv totaal'!J476 -> 66820984.63 | F118: ='Afschr totaal'!C66 -> 215075687.8 | G118: =CPI!C66 -> 0.017 | H118: 83475957.9 | I118: 4845571720
C119: 2000 | D119: 4845571720 | E119: ='Inv totaal'!J477 -> 79963032.32 | F119: ='Afschr totaal'!C67 -> 219298744.8 | G119: =CPI!C67 -> 0.026 | H119: 125984864.7 | I119: 4832220872
C120: 2001 | D120: 4832220872 | E120: ='Inv totaal'!J478 -> 64438810.3 | F120: ='Afschr totaal'!C68 -> 220110715.1 | G120: =CPI!C68 -> 0.025 | H120: 120805521.8 | I120: 4797354489
C121: 2002 | D121: 4797354489 | E121: ='Inv totaal'!J479 -> 110370681.1 | F121: ='Afschr totaal'!C69 -> 228746878.8 | G121: =CPI!C69 -> 0.047 | H121: 225475661 | I121: 4904453952
C122: 2003 | D122: 4904453952 | E122: ='Inv totaal'!J480 -> 117936895.6 | F122: ='Afschr totaal'!C70 -> 237263051.4 | G122: =CPI!C70 -> 0.033 | H122: 161846980.4 | I122: 4946974777
C123: 2004 | D123: 4946974777 | E123: ='Inv totaal'!J481 -> 90950024.08 | F123: ='Afschr totaal'!C71 -> 238089778.5 | G123: =CPI!C71 -> 0.021 | H123: 103886470.3 | I123: 4903721492
C124: 2005 | D124: 4903721492 | E124: ='Inv totaal'!J482 -> 119690739.9 | F124: ='Afschr totaal'!C72 -> 237757547.3 | G124: =CPI!C72 -> 0.011 | H124: 53940936.42 | I124: 4839595621
C125: 2006 | D125: 4839595621 | E125: ='Inv totaal'!J483 -> 86284773.54 | F125: ='Afschr totaal'!C73 -> 244759740.1 | G125: =CPI!C73 -> 0.018 | H125: 87112721.19 | I125: 4768233376
C126: 2007 | D126: 4768233376 | E126: ='Inv totaal'!J484 -> 450041157.1 | F126: ='Afschr totaal'!C74 -> 253542242.4 | G126: =CPI!C74 -> 0.014 | H126: 66755267.26 | I126: 5031487558
C127: 2008 | D127: 5031487558 | E127: ='Inv totaal'!J485 -> 158526693.2 | F127: ='Afschr totaal'!C75 -> 260571288.6 | G127: =CPI!C75 -> 0.011 | H127: 55346363.14 | I127: 4984789326
C128: 2009 | D128: 4984789326 | E128: ='Inv totaal'!J486 -> 161656329.5 | F128: ='Afschr totaal'!C76 -> 269211913.2 | G128: =CPI!C76 -> 0.032 | H128: 159513258.4 | I128: 5036747000
C129: 2010 | D129: 5036747000 | E129: ='Inv totaal'!J487 -> 1114826390 | F129: ='Afschr totaal'!C77 -> 280019507.4 | G129: =CPI!C77 -> 0.003 | H129: =D129*G129 -> 15110241 | I129: =D129+E129-F129+H129 -> 5886664124
C130: 2011 | D130: =I129 -> 5886664124 | E130: ='Inv totaal'!J488 -> 779254419.5 | F130: ='Afschr totaal'!C78 -> 305719376.1 | G130: =CPI!C78 -> 0.015 | H130: 88299961.86 | I130: 6448499130
C131: 2012 | D131: 6448499130 | E131: ='Inv totaal'!J489 -> 392665067.3 | F131: ='Afschr totaal'!C79 -> 328295930.4 | G131: =CPI!C79 -> 0.026 | H131: 167660977.4 | I131: 6680529244
C132: 2013 | D132: 6680529244 | E132: ='Inv totaal'!J490 -> 346457286.1 | F132: ='Afschr totaal'!C80 -> 340668383.4 | G132: =CPI!C80 -> 0.023 | H132: 153652172.6 | I132: 6839970319
C133: 2014 | D133: 6839970319 | E133: ='Inv totaal'!J491 -> 596840875.8 | F133: ='Afschr totaal'!C81 -> 359877095.4 | G133: =CPI!C81 -> 0.028 | H133: 191519168.9 | I133: 7268453269
C134: 2015 | D134: 7268453269 | E134: ='Inv totaal'!J492 -> 234071646.4 | F134: ='Afschr totaal'!C82 -> 372792594.9 | G134: =CPI!C82 -> 0.01 | H134: 72684532.69 | I134: 7202416853
C135: 2016 | D135: 7202416853 | E135: ='Inv totaal'!J493 -> 0 | F135: ='Afschr totaal'!C83 -> 372540353.4 | G135: =CPI!C83 -> 0.008 | H135: 57619334.82 | I135: 6887495834
C136: 2017
C137: 2018
C138: 2019
C139: 2020
C140: 2021
C141: 2022
C142: 2023
C143: 2024
C144: 2025
C145: 2026
C146: 2027
C147: 2028
C148: 2029
C149: 2030

Sheet Inv totaal
C1: Besluit: x-factorbesluit GTS 2017-2021; bestand: GAW-berekening GTS
C3: Investeringen totaal
C5: Dit tabblad toont de investeringen per activaklasse per jaar. Er bestaat een onderscheid tussen vervangingsinvesteringen (VVI), reguliere uitbreidingsinvesteringen (RUI) en niet-reguliere uitbreidingsinvesteringen (NRUI). Tot 2005 bestaat geen onderscheid tussen verangingsinvesteringen en uitbreidingsinvesteringen. Alle investeringen van vóór 2005 vallen daarom onder vervangingsinvesteringen. Tot 2013 bestaat geen onderscheid tussen reguliere en niet-reguliere uitbreidingsinvesteringen. Alle uitbreidingsinvesteringen vóór 2013 vallen daarom onder reguliere uitbreidingsinvesteringen. Onderaan het tabblad staat per jaar en afschrijvingstermijn de opsomming van de investeringen die moeten worden meegenomen in de berekening van de GAW. De gebruiker van dit bestand kan op het tabblad Output aangeven welke investeringen hij in de berekening van de GAW wil meenemen. De ingevulde selectie op het tabblad Output staat bovenaan dit tabblad herhaald.
C7: Ophalen selectie van output
C9: Activaklasse | D9: Afschrijvingstermijn | E9: Taak | F9: Activaklasse aan/ uit | H9: Investeringstypen
C10: 01 Regionale leidingen | D10: 55 | E10: TT-BT-BAT | F10: =Output!F11 -> 1 | H10: Type | I10: 1=aan, 0=uit
C11: 01 Regionale leidingen (Waterkruisingen) | D11: 55 | E11: TT-BT-BAT | F11: =Output!F12 -> 1 | H11: VVI | I11: =Output!I11 -> 1
C12: 02 Gasontvangstations | D12: 30 | E12: TT-BT-BAT | F12: =Output!F13 -> 1 | H12: RUI | I12: =Output!I12 -> 1
C13: 03 Verremeting | D13: 5 | E13: TT-BT-BAT | F13: =Output!F14 -> 1 | H13: NRUI | I13: =Output!I13 -> 1
C14: 04 Terreinen | D14: 0 | E14: TT-BT-BAT | F14: =Output!F15 -> 1
C15: 05 Wegen en terreinvoorzieningen | D15: 10 | E15: TT-BT-BAT | F15: =Output!F16 -> 1
C16: 06 Utiliteitsgebouwen | D16: 30 | E16: TT-BT-BAT | F16: =Output!F17 -> 1 | H16: Van jaar … tot jaar …
C17: 07 Dienstwoningen | D17: 55 | E17: TT-BT-BAT | F17: =Output!F18 -> 1 | H17: Beschikbaar van 1946 t/m 2015
C18: 08 Inrichting gebouwen | D18: 10 | E18: TT-BT-BAT | F18: =Output!F19 -> 1 | H18: Van: | I18: =Output!I18 -> 1946
C19: 09 Bedrijfsinventaris | D19: 10 | E19: TT-BT-BAT | F19: =Output!F20 -> 1 | H19: T/m: | I19: =Output!I19 -> 2015
C20: 10 Gereedschap | D20: 10 | E20: TT-BT-BAT | F20: =Output!F21 -> 1
C21: 10 Gereedschap (LNG) | D21: 10 | E21: TT-BT-BAT | F21: =Output!F22 -> 1
C22: 11 Werktuigen | D22: 10 | E22: TT-BT-BAT | F22: =Output!F23 -> 1
C23: 11 Werktuigen (gaschromatografen en comptabele meters) | D23: 10 | E23: TT-BT-BAT | F23: =Output!F24 -> 1
C24: 12 Motorvoertuigen | D24: 10 | E24: TT-BT-BAT | F24: =Output!F25 -> 1
C25: 13 Aanhangwagens | D25: 10 | E25: TT-BT-BAT | F25: =Output!F26 -> 1
C26: 14 Overig rollend materieel | D26: 10 | E26: TT-BT-BAT | F26: =Output!F27 -> 1
C27: 15 Compressorstations (TT-BAT-BT) | D27: 30 | E27: TT-BT-BAT | F27: =Output!F28 -> 1
C28: 15 Compressorstations (TT-BAT-BT) (gaschromatografen en comptabele meters) | D28: 30 | E28: TT-BT-BAT | F28: =Output!F29 -> 1
C29: 15 Compressorstations (KC) | D29: 30 | E29: KC | F29: =Output!F30 -> 1
C30: 15 Compressorstations extra kosten leveringszekerheid (TT-BAT-BT) | D30: 30 | E30: TT-BT-BAT | F30: =Output!F31 -> 1
C31: 16 LNG installaties | D31: 30 | E31: TT-BT-BAT | F31: =Output!F32 -> 1
C32: 17 Mengstations | D32: 30 | E32: KC | F32: =Output!F33 -> 1
C33: 18 Ijkinstallaties | D33: 30 | E33: TT-BT-BAT | F33: =Output!F34 -> 1
C34: 19 Stortgasinstallaties | D34: 30 | E34: TT-BT-BAT | F34: =Output!F35 -> 1
C35: 20 Kantoorgebouwen | D35: 30 | E35: TT-BT-BAT | F35: =Output!F36 -> 1
C36: 21 Hoofdtransportleiding | D36: 55 | E36: TT-BT-BAT | F36: =Output!F37 -> 1
C37: 21 Hoofdtransportleiding (waterkruisingen) | D37: 55 | E37: TT-BT-BAT | F37: =Output!F38 -> 1
C38: 21 Hoofdtransportleiding (gaschromatografen en comptabele meting) | D38: 55 | E38: TT-BT-BAT | F38: =Output!F39 -> 1
C39: 22 Regionaal hoofdtransportnet | D39: 55 | E39: TT-BT-BAT | F39: =Output!F40 -> 1
C40: 23 Brigittaleiding | D40: 55 | E40: TT-BT-BAT | F40: =Output!F41 -> 1
C41: 32 M&R stations | D41: 30 | E41: TT-BT-BAT | F41: =Output!F42 -> 1
C42: 32 M&R stations (gaschromatografen en comptabele meting) | D42: 30 | E42: TT-BT-BAT | F42: =Output!F43 -> 1
C43: 33 Exportstations | D43: 30 | E43: TT-BT-BAT | F43: =Output!F44 -> 1
C44: 33 Exportstations (gaschromatografen en comptabele meting) | D44: 30 | E44: TT-BT-BAT | F44: =Output!F45 -> 1
C45: 34 Reduceerstations | D45: 30 | E45: TT-BT-BAT | F45: =Output!F46 -> 1
C46: 34 Reduceerstations (gaschromatografen en comptabele meting) | D46: 30 | E46: TT-BT-BAT | F46: =Output!F47 -> 1
C47: 35 Injectiestations | D47: 30 | E47: TT-BT-BAT | F47: =Output!F48 -> 1
C48: 36 Luchtscheidingsunit | D48: 30 | E48: KC | F48: =Output!F49 -> 1
C49: 37 ICT middelen 1 | D49: 5 | E49: TT-BT-BAT | F49: =Output!F50 -> 1
C50: 37 ICT middelen 1 (transparency) | D50: 5 | E50: TT-BT-BAT | F50: =Output!F51 -> 1
C51: 37 ICT middelen 1 (gaschromatografen en comptabele meting) | D51: 5 | E51: TT-BT-BAT | F51: =Output!F52 -> 1
C52: 38 ICT middelen 2 | D52: 10 | E52: TT-BT-BAT | F52: =Output!F53 -> 1
C53: 39 ICT middelen 3 | D53: 15 | E53: TT-BT-BAT | F53: =Output!F54 -> 1
C54: 40 Aansluitpunten | D54: 55 | E54: AT | F54: =Output!F55 -> 1
C55: 41 Stikstofbuffer | D55: 30 | E55: KC | F55: =Output!F56 -> 1
C56: 42 Vulgas | D56: 0 | E56: TT-BT-BAT | F56: =Output!F57 -> 1
C57: 43 Stikstof | D57: 0 | E57: KC | F57: =Output!F58 -> 1
C58: 44 Stikstofleiding | D58: 55 | E58: KC | F58: =Output!F59 -> 1
C60: Vervangingsinvesteringen per jaar en activaklasse (waaronder ook uitbreidingsinvesteringen t/m 2005)
C62: Activaklasse | D62: 01 Regionale leidingen | E62: 01 Regionale leidingen (Waterkruisingen) | F62: 02 Gasontvangststations | G62: 03 Verremeting | H62: 04 Terreinen | I62: 05 Wegen en terreinvoorzieningen | J62: 06 Utiliteitsgebouwen | K62: 07 Dienstwoningen | L62: 08 Inrichting gebouwen | M62: 09 Bedrijfsinventaris | N62: 10 Gereedschap | O62: 10 Gereedschap (LNG) | P62: 11 Werktuigen | Q62: 11 Werktuigen (gaschromatografen en comptabele meters) | R62: 12 Motorvoertuigen | S62: 13 Aanhangwagens | T62: 14 Overig rollend materieel | U62: 15 Compressorstations (TT-BAT-BT) | V62: 15 Compressorstations (TT-BAT-BT) (gaschromatografen en comptabele meters) | W62: 15 Compressorstations (KC) | X62: 15 Compressorstations extra kosten leveringszekerheid (TT-BAT-BT) | Y62: 16 LNG installaties | Z62: 17 Mengstations | AA62: 18 Ijkinstallaties | AB62: 19 Stortgasinstallaties | AC62: 20 Kantoorgebouwen | AD62: 21 Hoofdtransportleiding | AE62: 21 Hoofdtransportleiding (waterkruisingen) | AF62: 21 Hoofdtransportleiding (gaschromatografen en comptabele meting) | AG62: 22 Regionaal hoofdtransportnet | AH62: 23 Brigittaleiding | AI62: 32 M&R stations | AJ62: 32 M&R stations (gaschromatografen en comptabele meting) | AK62: 33 Exportstations | AL62: 33 Exportstations (gaschromatografen en comptabele meting) | AM62: 34 Reduceerstations | AN62: 34 Reduceerstations (gaschromatografen en comptabele meting) | AO62: 35 Injectiestations | AP62: 36 Luchtscheidingsunit | AQ62: 37 ICT middelen 1 | AR62: 37 ICT middelen 1 (transparency) | AS62: 37 ICT middelen 1 (gaschromatografen en comptabele meting) | AT62: 38 ICT middelen 2 | AU62: 39 ICT middelen 3 | AV62: 40 Aansluitpunten | AW62: 41 Stikstofbuffer | AX62: 42 Vulgas | AY62: 43 Stikstof | AZ62: 44 Stikstofleiding
C63: 1946 | D63: 836988.0792 | E63: 0 | F63: 0 | G63: 0 | H63: 0 | I63: 0 | J63: 0 | K63: 0 | L63: 0 | M63: 0 | N63: 0 | O63: 0 | P63: 0 | Q63: 0 | R63: 0 | S63: 0 | T63: 0 | U63: 0 | V63: 0 | W63: 0 | X63: 0 | Y63: 0 | Z63: 0 | AA63: 0 | AB63: 0 | AC63: 0 | AD63: 0 | AE63: 0 | AF63: 0 | AG63: 0 | AH63: 0 | AI63: 0 | AJ63: 0 | AK63: 0 | AL63: 0 | AM63: 0 | AN63: 0 | AO63: 0 | AP63: 0 | AQ63: 0 | AR63: 0 | AS63: 0 | AT63: 0 | AU63: 0 | AV63: 0 | AW63: 0 | AX63: 0 | AY63: 0 | AZ63: 0
C64: 1947 | D64: 2145958.86 | E64: 0 | F64: 0 | G64: 0 | H64: 0 | I64: 0 | J64: 0 | K64: 0 | L64: 0 | M64: 0 | N64: 0 | O64: 0 | P64: 0 | Q64: 0 | R64: 0 | S64: 0 | T64: 0 | U64: 0 | V64: 0 | W64: 0 | X64: 0 | Y64: 0 | Z64: 0 | AA64: 0 | AB64: 0 | AC64: 0 | AD64: 0 | AE64: 0 | AF64: 0 | AG64: 0 | AH64: 0 | AI64: 0 | AJ64: 0 | AK64: 0 | AL64: 0 | AM64: 0 | AN64: 0 | AO64: 0 | AP64: 0 | AQ64: 0 | AR64: 0 | AS64: 0 | AT64: 0 | AU64: 0 | AV64: 0 | AW64: 0 | AX64: 0 | AY64: 0 | AZ64: 0
C65: 1948 | D65: 1127514.959 | E65: 0 | F65: 0 | G65: 0 | H65: 0 | I65: 0 | J65: 0 | K65: 0 | L65: 0 | M65: 0 | N65: 0 | O65: 0 | P65: 0 | Q65: 0 | R65: 0 | S65: 0 | T65: 0 | U65: 0 | V65: 0 | W65: 0 | X65: 0 | Y65: 0 | Z65: 0 | AA65: 0 | AB65: 0 | AC65: 0 | AD65: 0 | AE65: 0 | AF65: 0 | AG65: 0 | AH65: 0 | AI65: 0 | AJ65: 0 | AK65: 0 | AL65: 0 | AM65: 0 | AN65: 0 | AO65: 0 | AP65: 0 | AQ65: 0 | AR65: 0 | AS65: 0 | AT65: 0 | AU65: 0 | AV65: 0 | AW65: 0 | AX65: 0 | AY65: 0 | AZ65: 0
C66: 1949 | D66: 4659013.21 | E66: 0 | F66: 0 | G66: 0 | H66: 0 | I66: 0 | J66: 0 | K66: 0 | L66: 0 | M66: 0 | N66: 0 | O66: 0 | P66: 0 | Q66: 0 | R66: 0 | S66: 0 | T66: 0 | U66: 0 | V66: 0 | W66: 0 | X66: 0 | Y66: 0 | Z66: 0 | AA66: 0 | AB66: 0 | AC66: 0 | AD66: 0 | AE66: 0 | AF66: 0 | AG66: 0 | AH66: 0 | AI66: 0 | AJ66: 0 | AK66: 0 | AL66: 0 | AM66: 0 | AN66: 0 | AO66: 0 | AP66: 0 | AQ66: 0 | AR66: 0 | AS66: 0 | AT66: 0 | AU66: 0 | AV66: 0 | AW66: 0 | AX66: 0 | AY66: 0 | AZ66: 0
C67: 1950 | D67: 2501486.579 | E67: 0 | F67: 0 | G67: 0 | H67: 0 | I67: 0 | J67: 0 | K67: 0 | L67: 0 | M67: 0 | N67: 0 | O67: 0 | P67: 0 | Q67: 0 | R67: 0 | S67: 0 | T67: 0 | U67: 0 | V67: 0 | W67: 0 | X67: 0 | Y67: 0 | Z67: 0 | AA67: 0 | AB67: 0 | AC67: 0 | AD67: 0 | AE67: 0 | AF67: 0 | AG67: 0 | AH67: 0 | AI67: 0 | AJ67: 0 | AK67: 0 | AL67: 0 | AM67: 0 | AN67: 0 | AO67: 0 | AP67: 0 | AQ67: 0 | AR67: 0 | AS67: 0 | AT67: 0 | AU67: 0 | AV67: 0 | AW67: 0 | AX67: 0 | AY67: 0 | AZ67: 0
C68: 1951 | D68: 2005811.55 | E68: 0 | F68: 0 | G68: 0 | H68: 0 | I68: 0 | J68: 0 | K68: 0 | L68: 0 | M68: 0 | N68: 0 | O68: 0 | P68: 0 | Q68: 0 | R68: 0 | S68: 0 | T68: 0 | U68: 0 | V68: 0 | W68: 0 | X68: 0 | Y68: 0 | Z68: 0 | AA68: 0 | AB68: 0 | AC68: 0 | AD68: 0 | AE68: 0 | AF68: 0 | AG68: 0 | AH68: 0 | AI68: 0 | AJ68: 0 | AK68: 0 | AL68: 0 | AM68: 0 | AN68: 0 | AO68: 0 | AP68: 0 | AQ68: 0 | AR68: 0 | AS68: 0 | AT68: 0 | AU68: 0 | AV68: 0 | AW68: 0 | AX68: 0 | AY68: 0 | AZ68: 0
C69: 1952 | D69: 183022.7208 | E69: 0 | F69: 0 | G69: 0 | H69: 0 | I69: 0 | J69: 0 | K69: 0 | L69: 0 | M69: 0 | N69: 0 | O69: 0 | P69: 0 | Q69: 0 | R69: 0 | S69: 0 | T69: 0 | U69: 0 | V69: 0 | W69: 0 | X69: 0 | Y69: 0 | Z69: 0 | AA69: 0 | AB69: 0 | AC69: 0 | AD69: 0 | AE69: 0 | AF69: 0 | AG69: 0 | AH69: 0 | AI69: 0 | AJ69: 0 | AK69: 0 | AL69: 0 | AM69: 0 | AN69: 0 | AO69: 0 | AP69: 0 | AQ69: 0 | AR69: 0 | AS69: 0 | AT69: 0 | AU69: 0 | AV69: 0 | AW69: 0 | AX69: 0 | AY69: 0 | AZ69: 0
C70: 1953 | D70: 3394352.692 | E70: 0 | F70: 0 | G70: 0 | H70: 244 | I70: 0 | J70: 0 | K70: 0 | L70: 0 | M70: 0 | N70: 0 | O70: 0 | P70: 0 | Q70: 0 | R70: 0 | S70: 0 | T70: 0 | U70: 0 | V70: 0 | W70: 0 | X70: 0 | Y70: 0 | Z70: 0 | AA70: 0 | AB70: 0 | AC70: 0 | AD70: 0 | AE70: 0 | AF70: 0 | AG70: 0 | AH70: 0 | AI70: 0 | AJ70: 0 | AK70: 0 | AL70: 0 | AM70: 0 | AN70: 0 | AO70: 0 | AP70: 0 | AQ70: 0 | AR70: 0 | AS70: 0 | AT70: 0 | AU70: 0 | AV70: 0 | AW70: 0 | AX70: 0 | AY70: 0 | AZ70: 0
C71: 1954 | D71: 8251888.86 | E71: 0 | F71: 16440 | G71: 0 | H71: 0 | I71: 0 | J71: 0 | K71: 0 | L71: 0 | M71: 0 | N71: 0 | O71: 0 | P71: 0 | Q71: 0 | R71: 0 | S71: 0 | T71: 0 | U71: 0 | V71: 0 | W71: 0 | X71: 0 | Y71: 0 | Z71: 0 | AA71: 0 | AB71: 0 | AC71: 0 | AD71: 0 | AE71: 0 | AF71: 0 | AG71: 0 | AH71: 0 | AI71: 0 | AJ71: 0 | AK71: 0 | AL71: 0 | AM71: 0 | AN71: 0 | AO71: 0 | AP71: 0 | AQ71: 0 | AR71: 0 | AS71: 0 | AT71: 0 | AU71: 0 | AV71: 0 | AW71: 0 | AX71: 0 | AY71: 0 | AZ71: 0
C72: 1955 | D72: 5184137.659 | E72: 0 | F72: 0 | G72: 0 | H72: 0 | I72: 0 | J72: 0 | K72: 0 | L72: 0 | M72: 0 | N72: 0 | O72: 0 | P72: 0 | Q72: 0 | R72: 0 | S72: 0 | T72: 0 | U72: 0 | V72: 0 | W72: 0 | X72: 0 | Y72: 0 | Z72: 0 | AA72: 0 | AB72: 0 | AC72: 0 | AD72: 0 | AE72: 0 | AF72: 0 | AG72: 0 | AH72: 0 | AI72: 0 | AJ72: 0 | AK72: 0 | AL72: 0 | AM72: 0 | AN72: 0 | AO72: 0 | AP72: 0 | AQ72: 0 | AR72: 0 | AS72: 0 | AT72: 0 | AU72: 0 | AV72: 0 | AW72: 0 | AX72: 0 | AY72: 0 | AZ72: 0
C73: 1956 | D73: 2157834.279 | E73: 0 | F73: 0 | G73: 0 | H73: 43245 | I73: 0 | J73: 59298 | K73: 0 | L73: 0 | M73: 0 | N73: 0 | O73: 0 | P73: 0 | Q73: 0 | R73: 0 | S73: 0 | T73: 0 | U73: 0 | V73: 0 | W73: 0 | X73: 0 | Y73: 0 | Z73: 0 | AA73: 0 | AB73: 0 | AC73: 0 | AD73: 0 | AE73: 0 | AF73: 0 | AG73: 0 | AH73: 0 | AI73: 0 | AJ73: 0 | AK73: 0 | AL73: 0 | AM73: 0 | AN73: 0 | AO73: 0 | AP73: 0 | AQ73: 0 | AR73: 0 | AS73: 0 | AT73: 0 | AU73: 0 | AV73: 0 | AW73: 0 | AX73: 0 | AY73: 0 | AZ73: 0
C74: 1957 | D74: 3932321.399 | E74: 0 | F74: 0 | G74: 0 | H74: 0 | I74: 0 | J74: 0 | K74: 0 | L74: 0 | M74: 0 | N74: 0 | O74: 0 | P74: 0 | Q74: 0 | R74: 0 | S74: 0 | T74: 0 | U74: 0 | V74: 0 | W74: 0 | X74: 0 | Y74: 0 | Z74: 0 | AA74: 0 | AB74: 0 | AC74: 0 | AD74: 0 | AE74: 0 | AF74: 0 | AG74: 0 | AH74: 0 | AI74: 0 | AJ74: 0 | AK74: 0 | AL74: 0 | AM74: 0 | AN74: 0 | AO74: 0 | AP74: 0 | AQ74: 0 | AR74: 0 | AS74: 0 | AT74: 0 | AU74: 0 | AV74: 0 | AW74: 0 | AX74: 0 | AY74: 0 | AZ74: 0
C75: 1958 | D75: 11037711.4 | E75: 0 | F75: 0 | G75: 0 | H75: 0 | I75: 0 | J75: 0 | K75: 0 | L75: 0 | M75: 0 | N75: 0 | O75: 0 | P75: 0 | Q75: 0 | R75: 0 | S75: 0 | T75: 0 | U75: 0 | V75: 0 | W75: 0 | X75: 0 | Y75: 0 | Z75: 0 | AA75: 0 | AB75: 0 | AC75: 0 | AD75: 0 | AE75: 0 | AF75: 0 | AG75: 0 | AH75: 0 | AI75: 0 | AJ75: 0 | AK75: 0 | AL75: 0 | AM75: 0 | AN75: 0 | AO75: 0 | AP75: 0 | AQ75: 0 | AR75: 0 | AS75: 0 | AT75: 0 | AU75: 0 | AV75: 0 | AW75: 0 | AX75: 0 | AY75: 0 | AZ75: 0
C76: 1959 | D76: 4021570.878 | E76: 0 | F76: 0 | G76: 0 | H76: 0 | I76: 0 | J76: 8176 | K76: 0 | L76: 0 | M76: 0 | N76: 0 | O76: 0 | P76: 0 | Q76: 0 | R76: 0 | S76: 0 | T76: 0 | U76: 0 | V76: 0 | W76: 0 | X76: 0 | Y76: 0 | Z76: 0 | AA76: 0 | AB76: 0 | AC76: 0 | AD76: 0 | AE76: 0 | AF76: 0 | AG76: 0 | AH76: 0 | AI76: 0 | AJ76: 0 | AK76: 0 | AL76: 0 | AM76: 0 | AN76: 0 | AO76: 0 | AP76: 0 | AQ76: 0 | AR76: 0 | AS76: 0 | AT76: 0 | AU76: 0 | AV76: 0 | AW76: 0 | AX76: 0 | AY76: 0 | AZ76: 0
C77: 1960 | D77: 3230528.958 | E77: 0 | F77: 18131 | G77: 0 | H77: 0 | I77: 0 | J77: 5287 | K77: 0 | L77: 0 | M77: 0 | N77: 0 | O77: 0 | P77: 0 | Q77: 0 | R77: 0 | S77: 0 | T77: 0 | U77: 0 | V77: 0 | W77: 0 | X77: 0 | Y77: 0 | Z77: 0 | AA77: 0 | AB77: 0 | AC77: 0 | AD77: 0 | AE77: 0 | AF77: 0 | AG77: 0 | AH77: 0 | AI77: 0 | AJ77: 0 | AK77: 0 | AL77: 0 | AM77: 0 | AN77: 0 | AO77: 0 | AP77: 0 | AQ77: 0 | AR77: 0 | AS77: 0 | AT77: 0 | AU77: 0 | AV77: 0 | AW77: 0 | AX77: 0 | AY77: 0 | AZ77: 0
C78: 1961 | D78: 2654852.948 | E78: 0 | F78: 0 | G78: 0 | H78: 0 | I78: 0 | J78: 417304 | K78: 0 | L78: 0 | M78: 0 | N78: 0 | O78: 0 | P78: 0 | Q78: 0 | R78: 0 | S78: 0 | T78: 0 | U78: 0 | V78: 0 | W78: 0 | X78: 0 | Y78: 0 | Z78: 0 | AA78: 0 | AB78: 0 | AC78: 0 | AD78: 0 | AE78: 0 | AF78: 0 | AG78: 0 | AH78: 0 | AI78: 0 | AJ78: 0 | AK78: 0 | AL78: 0 | AM78: 0 | AN78: 0 | AO78: 0 | AP78: 0 | AQ78: 0 | AR78: 0 | AS78: 0 | AT78: 0 | AU78: 0 | AV78: 0 | AW78: 0 | AX78: 0 | AY78: 0 | AZ78: 0
C79: 1962 | D79: 1549865 | E79: 0 | F79: 0 | G79: 0 | H79: 6538 | I79: 0 | J79: 0 | K79: 0 | L79: 0 | M79: 0 | N79: 0 | O79: 0 | P79: 0 | Q79: 0 | R79: 0 | S79: 0 | T79: 0 | U79: 0 | V79: 0 | W79: 0 | X79: 0 | Y79: 0 | Z79: 0 | AA79: 0 | AB79: 0 | AC79: 0 | AD79: 0 | AE79: 0 | AF79: 0 | AG79: 0 | AH79: 0 | AI79: 0 | AJ79: 0 | AK79: 0 | AL79: 0 | AM79: 0 | AN79: 0 | AO79: 0 | AP79: 0 | AQ79: 0 | AR79: 0 | AS79: 0 | AT79: 0 | AU79: 0 | AV79: 0 | AW79: 0 | AX79: 0 | AY79: 0 | AZ79: 0
C80: 1963 | D80: 789155.1112 | E80: 0 | F80: 0 | G80: 0 | H80: 42315 | I80: 0 | J80: 0 | K80: 0 | L80: 0 | M80: 0 | N80: 62622.11906 | O80: 0 | P80: 0 | Q80: 0 | R80: 0 | S80: 0 | T80: 0 | U80: 0 | V80: 0 | W80: 0 | X80: 0 | Y80: 0 | Z80: 0 | AA80: 0 | AB80: 0 | AC80: 0 | AD80: 9698433.088 | AE80: 0 | AF80: 0 | AG80: 0 | AH80: 0 | AI80: 0 | AJ80: 0 | AK80: 0 | AL80: 0 | AM80: 0 | AN80: 0 | AO80: 0 | AP80: 0 | AQ80: 0 | AR80: 0 | AS80: 0 | AT80: 0 | AU80: 0 | AV80: 0 | AW80: 0 | AX80: 0 | AY80: 0 | AZ80: 0
C81: 1964 | D81: 4316930.49 | E81: 0 | F81: 46015 | G81: 0 | H81: 371469 | I81: 0 | J81: 15491 | K81: 0 | L81: 0 | M81: 0 | N81: 5246.611396 | O81: 0 | P81: 0 | Q81: 0 | R81: 0 | S81: 0 | T81: 0 | U81: 0 | V81: 0 | W81: 0 | X81: 0 | Y81: 0 | Z81: 0 | AA81: 0 | AB81: 0 | AC81: 0 | AD81: 130996231.8 | AE81: 0 | AF81: 0 | AG81: 0 | AH81: 0 | AI81: 3904015.51 | AJ81: 0 | AK81: 0 | AL81: 0 | AM81: 0 | AN81: 0 | AO81: 0 | AP81: 0 | AQ81: 0 | AR81: 0 | AS81: 0 | AT81: 0 | AU81: 0 | AV81: 0 | AW81: 0 | AX81: 0 | AY81: 0 | AZ81: 0
C82: 1965 | D82: 21113045.7 | E82: 0 | F82: 2314286 | G82: 0 | H82: 45528 | I82: 0 | J82: 0 | K82: 0 | L82: 0 | M82: 0 | N82: 47061.55075 | O82: 0 | P82: 501107.682 | Q82: 0 | R82: 0 | S82: 0 | T82: 0 | U82: 0 | V82: 0 | W82: 0 | X82: 0 | Y82: 0 | Z82: 0 | AA82: 0 | AB82: 0 | AC82: 0 | AD82: 1313613.86 | AE82: 0 | AF82: 0 | AG82: 0 | AH82: 0 | AI82: 503190.5287 | AJ82: 0 | AK82: 0 | AL82: 0 | AM82: 0 | AN82: 0 | AO82: 0 | AP82: 0 | AQ82: 0 | AR82: 0 | AS82: 0 | AT82: 0 | AU82: 0 | AV82: 0 | AW82: 0 | AX82: 0 | AY82: 0 | AZ82: 0
C83: 1966 | D83: 35755371.92 | E83: 15195.3771 | F83: 7359459 | G83: 1188180 | H83: 379442 | I83: 6327 | J83: 26711 | K83: 0 | L83: 0 | M83: 0 | N83: 0 | O83: 0 | P83: 239927.2091 | Q83: 0 | R83: 0 | S83: 0 | T83: 18065 | U83: 0 | V83: 0 | W83: 0 | X83: 0 | Y83: 0 | Z83: 0 | AA83: 0 | AB83: 0 | AC83: 0 | AD83: 41434823.53 | AE83: 0 | AF83: 0 | AG83: 0 | AH83: 7253855 | AI83: 2416067.89 | AJ83: 0 | AK83: 1330922.399 | AL83: 0 | AM83: 0 | AN83: 0 | AO83: 0 | AP83: 0 | AQ83: 0 | AR83: 0 | AS83: 0 | AT83: 0 | AU83: 0 | AV83: 0 | AW83: 0 | AX83: 0 | AY83: 0 | AZ83: 0
C84: 1967 | D84: 38400973.8 | E84: 0 | F84: 8551984 | G84: 0 | H84: 1662784 | I84: 32815 | J84: 139958 | K84: 0 | L84: 0 | M84: 0 | N84: 78807.11164 | O84: 0 | P84: 0 | Q84: 0 | R84: 0 | S84: 1288 | T84: 0 | U84: 0 | V84: 0 | W84: 0 | X84: 0 | Y84: 0 | Z84: 0 | AA84: 0 | AB84: 0 | AC84: 0 | AD84: 178453987.3 | AE84: 17949436 | AF84: 0 | AG84: 0 | AH84: 0 | AI84: 4904871.789 | AJ84: 0 | AK84: 1607827.259 | AL84: 0 | AM84: 36441.2695 | AN84: 0 | AO84: 0 | AP84: 0 | AQ84: 0 | AR84: 0 | AS84: 0 | AT84: 0 | AU84: 0 | AV84: 0 | AW84: 0 | AX84: 0 | AY84: 0 | AZ84: 0
C85: 1968 | D85: 26751890.27 | E85: 0 | F85: 6542027 | G85: 426113 | H85: 538137 | I85: 267464 | J85: 213989 | K85: 17639 | L85: 0 | M85: 0 | N85: 24702.89194 | O85: 0 | P85: 123232.1903 | Q85: 0 | R85: 0 | S85: 0 | T85: 0 | U85: 0 | V85: 0 | W85: 0 | X85: 0 | Y85: 0 | Z85: 0 | AA85: 0 | AB85: 0 | AC85: 0 | AD85: 99924270.44 | AE85: 0 | AF85: 0 | AG85: 0 | AH85: 0 | AI85: 2821730.2 | AJ85: 0 | AK85: 0 | AL85: 0 | AM85: 0 | AN85: 0 | AO85: 0 | AP85: 0 | AQ85: 0 | AR85: 0 | AS85: 0 | AT85: 0 | AU85: 0 | AV85: 0 | AW85: 0 | AX85: 0 | AY85: 0 | AZ85: 0
C86: 1969 | D86: 15506134.35 | E86: 1650502.4 | F86: 5400524 | G86: 637444 | H86: 348211 | I86: 69088 | J86: 311986 | K86: 0 | L86: 0 | M86: 0 | N86: 63710.28856 | O86: 0 | P86: 0 | Q86: 0 | R86: 0 | S86: 1257 | T86: 33169 | U86: 17801778.82 | V86: 0 | W86: 0 | X86: 0 | Y86: 0 | Z86: 0 | AA86: 0 | AB86: 0 | AC86: 0 | AD86: 18814317.7 | AE86: 0 | AF86: 0 | AG86: 0 | AH86: 6960591 | AI86: 1687824.169 | AJ86: 0 | AK86: 282288.0506 | AL86: 0 | AM86: 0 | AN86: 0 | AO86: 0 | AP86: 0 | AQ86: 0 | AR86: 0 | AS86: 0 | AT86: 0 | AU86: 0 | AV86: 0 | AW86: 0 | AX86: 0 | AY86: 0 | AZ86: 0
C87: 1970 | D87: 22954724.38 | E87: 0 | F87: 7578134 | G87: 444354 | H87: 255849 | I87: 157107 | J87: 315894 | K87: 0 | L87: 0 | M87: 0 | N87: 48800.44107 | O87: 0 | P87: 349869.0889 | Q87: 0 | R87: 0 | S87: 0 | T87: 85490 | U87: 25005797.48 | V87: 0 | W87: 1503476.486 | X87: 1077203.955 | Y87: 0 | Z87: 0 | AA87: 0 | AB87: 0 | AC87: 0 | AD87: 56895867.89 | AE87: 0 | AF87: 0 | AG87: 0 | AH87: 306379 | AI87: 3058155.129 | AJ87: 0 | AK87: 453703.981 | AL87: 0 | AM87: 0 | AN87: 0 | AO87: 0 | AP87: 0 | AQ87: 0 | AR87: 0 | AS87: 0 | AT87: 0 | AU87: 0 | AV87: 0 | AW87: 0 | AX87: 0 | AY87: 0 | AZ87: 0
C88: 1971 | D88: 20017004.78 | E88: 2589453 | F88: 8885929 | G88: 980544 | H88: 322042 | I88: 108040 | J88: 1529520 | K88: 0 | L88: 6607 | M88: 0 | N88: 0 | O88: 0 | P88: 244172.3185 | Q88: 0 | R88: 0 | S88: 0 | T88: 249419 | U88: 24191072.08 | V88: 0 | W88: 2362413.003 | X88: 0 | Y88: 0 | Z88: 0 | AA88: 0 | AB88: 0 | AC88: 0 | AD88: 136642960.6 | AE88: 28718331 | AF88: 0 | AG88: 0 | AH88: 0 | AI88: 2967007.9 | AJ88: 0 | AK88: 376369.3998 | AL88: 0 | AM88: 0 | AN88: 0 | AO88: 0 | AP88: 0 | AQ88: 0 | AR88: 0 | AS88: 0 | AT88: 0 | AU88: 0 | AV88: 0 | AW88: 0 | AX88: 0 | AY88: 0 | AZ88: 0
C89: 1972 | D89: 21267626.1 | E89: 2104050.393 | F89: 7293975 | G89: 1625125 | H89: 610031 | I89: 181957 | J89: 470683 | K89: 0 | L89: 0 | M89: 0 | N89: 0 | O89: 0 | P89: 0 | Q89: 0 | R89: 0 | S89: 2580 | T89: 366238 | U89: 19574040.28 | V89: 0 | W89: 1553095.852 | X89: 344331.8996 | Y89: 0 | Z89: 1051560 | AA89: 0 | AB89: 0 | AC89: 0 | AD89: 192711070.9 | AE89: 0 | AF89: 0 | AG89: 0 | AH89: 0 | AI89: 6497018.201 | AJ89: 0 | AK89: 2491533.809 | AL89: 0 | AM89: 0 | AN89: 0 | AO89: 136134 | AP89: 0 | AQ89: 0 | AR89: 0 | AS89: 0 | AT89: 0 | AU89: 0 | AV89: 0 | AW89: 0 | AX89: 0 | AY89: 0 | AZ89: 0
C90: 1973 | D90: 22715431.73 | E90: 1400952 | F90: 4426829 | G90: 1116647 | H90: 298679 | I90: 85983 | J90: 145971 | K90: 0 | L90: 0 | M90: 0 | N90: 0 | O90: 0 | P90: 0 | Q90: 0 | R90: 0 | S90: 1091 | T90: 4501 | U90: 5205870.485 | V90: 0 | W90: 177778.9213 | X90: 7036930.716 | Y90: 0 | Z90: 0 | AA90: 0 | AB90: 0 | AC90: 0 | AD90: 92610619.01 | AE90: 1376265.849 | AF90: 0 | AG90: 0 | AH90: 0 | AI90: 4704164.781 | AJ90: 0 | AK90: 666693.898 | AL90: 0 | AM90: 29365.92837 | AN90: 0 | AO90: 0 | AP90: 0 | AQ90: 0 | AR90: 0 | AS90: 0 | AT90: 0 | AU90: 0 | AV90: 0 | AW90: 0 | AX90: 0 | AY90: 0 | AZ90: 0
C91: 1974 | D91: 6875692.351 | E91: 0 | F91: 4000395 | G91: 1827697 | H91: 495568 | I91: 99833 | J91: 2055400 | K91: 0 | L91: 0 | M91: 0 | N91: 0 | O91: 0 | P91: 14537.29846 | Q91: 0 | R91: 0 | S91: 0 | T91: 14917 | U91: 43383990.55 | V91: 0 | W91: 2104902.803 | X91: 0 | Y91: 0 | Z91: 89234 | AA91: 0 | AB91: 0 | AC91: 0 | AD91: 53494124.89 | AE91: 0 | AF91: 0 | AG91: 0 | AH91: 0 | AI91: 3281534.798 | AJ91: 0 | AK91: 2556886.342 | AL91: 0 | AM91: 32282.37835 | AN91: 0 | AO91: 0 | AP91: 0 | AQ91: 0 | AR91: 0 | AS91: 0 | AT91: 0 | AU91: 0 | AV91: 0 | AW91: 0 | AX91: 0 | AY91: 0 | AZ91: 0
C92: 1975 | D92: 11450189.41 | E92: 5744161 | F92: 5194003 | G92: 734693 | H92: 58141 | I92: 72256 | J92: 281735 | K92: 0 | L92: 0 | M92: 0 | N92: 0 | O92: 0 | P92: 0 | Q92: 0 | R92: 0 | S92: 4016 | T92: 0 | U92: 416973.2394 | V92: 0 | W92: 43369.66253 | X92: 0 | Y92: 0 | Z92: 0 | AA92: 0 | AB92: 0 | AC92: 0 | AD92: 202830275.3 | AE92: 0 | AF92: 0 | AG92: 0 | AH92: 0 | AI92: 409945.0518 | AJ92: 0 | AK92: 1374113.658 | AL92: 0 | AM92: 0 | AN92: 0 | AO92: 0 | AP92: 0 | AQ92: 0 | AR92: 0 | AS92: 0 | AT92: 0 | AU92: 0 | AV92: 0 | AW92: 0 | AX92: 0 | AY92: 0 | AZ92: 0
C93: 1976 | D93: 21343537.01 | E93: 0 | F93: 3634784 | G93: 1380940 | H93: 0 | I93: 26455 | J93: 827961 | K93: 0 | L93: 0 | M93: 20525 | N93: 0 | O93: 0 | P93: 38284.97851 | Q93: 0 | R93: 0 | S93: 2102 | T93: 47314 | U93: 2425358.198 | V93: 0 | W93: 252262.6328 | X93: 0 | Y93: 0 | Z93: 0 | AA93: 0 | AB93: 0 | AC93: 0 | AD93: 1776410.24 | AE93: 38890638.07 | AF93: 0 | AG93: 0 | AH93: 0 | AI93: 165987.3486 | AJ93: 0 | AK93: 99764.03883 | AL93: 0 | AM93: 0 | AN93: 0 | AO93: 0 | AP93: 0 | AQ93: 0 | AR93: 0 | AS93: 0 | AT93: 0 | AU93: 0 | AV93: 0 | AW93: 0 | AX93: 0 | AY93: 0 | AZ93: 0
C94: 1977 | D94: 9194925.389 | E94: 0 | F94: 5134633 | G94: 1392166 | H94: 31636 | I94: 0 | J94: 0 | K94: 0 | L94: 0 | M94: 0 | N94: 0 | O94: 0 | P94: 39616.82799 | Q94: 0 | R94: 0 | S94: 107904 | T94: 0 | U94: 23781325.99 | V94: 0 | W94: 6649242.251 | X94: 921408.1851 | Y94: 14324941 | Z94: 478254 | AA94: 0 | AB94: 0 | AC94: 0 | AD94: 65746246.62 | AE94: 3219360.931 | AF94: 0 | AG94: 0 | AH94: 1373856 | AI94: 0 | AJ94: 0 | AK94: 2156804.198 | AL94: 0 | AM94: 67323.74042 | AN94: 0 | AO94: 0 | AP94: 0 | AQ94: 0 | AR94: 0 | AS94: 0 | AT94: 0 | AU94: 0 | AV94: 0 | AW94: 0 | AX94: 0 | AY94: 0 | AZ94: 0
C95: 1978 | D95: 12768688.69 | E95: 0 | F95: 2661181 | G95: 5242812 | H95: 414115 | I95: 0 | J95: 116625 | K95: 0 | L95: 0 | M95: 0 | N95: 0 | O95: 0 | P95: 0 | Q95: 0 | R95: 0 | S95: 3812 | T95: 0 | U95: 25573207.62 | V95: 0 | W95: 1140149.144 | X95: 1875024.243 | Y95: 0 | Z95: 6020691 | AA95: 0 | AB95: 0 | AC95: 0 | AD95: 222615128.6 | AE95: 0 | AF95: 0 | AG95: 0 | AH95: 345268 | AI95: 2180596.798 | AJ95: 0 | AK95: 290244.6284 | AL95: 0 | AM95: 0 | AN95: 0 | AO95: 0 | AP95: 0 | AQ95: 0 | AR95: 0 | AS95: 0 | AT95: 0 | AU95: 0 | AV95: 0 | AW95: 0 | AX95: 0 | AY95: 0 | AZ95: 0
C96: 1979 | D96: 9113725.962 | E96: 0 | F96: 2930957 | G96: 2442668 | H96: 253762 | I96: 80408 | J96: 474236 | K96: 0 | L96: 0 | M96: 0 | N96: 0 | O96: 0 | P96: 0 | Q96: 0 | R96: 0 | S96: 2512 | T96: 0 | U96: 14524174.26 | V96: 0 | W96: 109200.2528 | X96: 5658694.583 | Y96: 0 | Z96: 5811446 | AA96: 0 | AB96: 0 | AC96: 0 | AD96: 13874761.2 | AE96: 0 | AF96: 0 | AG96: 0 | AH96: 0 | AI96: 2242596.798 | AJ96: 0 | AK96: 63741.15015 | AL96: 0 | AM96: 596399.2494 | AN96: 0 | AO96: 0 | AP96: 0 | AQ96: 0 | AR96: 0 | AS96: 0 | AT96: 0 | AU96: 0 | AV96: 0 | AW96: 0 | AX96: 0 | AY96: 0 | AZ96: 0
C97: 1980 | D97: 8346234.292 | E97: 3845145.25 | F97: 4224984 | G97: 2389317 | H97: 411408 | I97: 17096 | J97: 9222190 | K97: 0 | L97: 0 | M97: 187967 | N97: 0 | O97: 0 | P97: 0 | Q97: 0 | R97: 0 | S97: 7248 | T97: 0 | U97: 9425383.435 | V97: 0 | W97: 1283672.597 | X97: 6744666.886 | Y97: 129334 | Z97: 4587862 | AA97: 3382681 | AB97: 0 | AC97: 0 | AD97: 9138038.58 | AE97: 0 | AF97: 0 | AG97: 0 | AH97: 0 | AI97: 1027440.081 | AJ97: 0 | AK97: 344702.3383 | AL97: 0 | AM97: 1243925.471 | AN97: 0 | AO97: 0 | AP97: 0 | AQ97: 0 | AR97: 0 | AS97: 0 | AT97: 0 | AU97: 0 | AV97: 0 | AW97: 0 | AX97: 0 | AY97: 0 | AZ97: 0
C98: 1981 | D98: 378456.3395 | E98: 0 | F98: 3751737 | G98: 2142381 | H98: 7189 | I98: 0 | J98: 1821082 | K98: 0 | L98: 292257 | M98: 0 | N98: 0 | O98: 0 | P98: 0 | Q98: 0 | R98: 0 | S98: 5099 | T98: 39461 | U98: 0 | V98: 0 | W98: 0 | X98: 0 | Y98: 0 | Z98: 0 | AA98: 0 | AB98: 0 | AC98: 0 | AD98: 6225479.759 | AE98: 0 | AF98: 0 | AG98: 0 | AH98: 0 | AI98: 614277.7407 | AJ98: 0 | AK98: 64512.7499 | AL98: 92021 | AM98: 523309.3284 | AN98: 0 | AO98: 0 | AP98: 0 | AQ98: 0 | AR98: 0 | AS98: 0 | AT98: 0 | AU98: 0 | AV98: 0 | AW98: 0 | AX98: 0 | AY98: 0 | AZ98: 0
C99: 1982 | D99: 1531485.999 | E99: 0 | F99: 1498349 | G99: 4060119 | H99: 650 | I99: 0 | J99: 1205476 | K99: 0 | L99: 0 | M99: 0 | N99: 0 | O99: 0 | P99: 0 | Q99: 0 | R99: 0 | S99: 6060 | T99: 95705 | U99: 12353728.09 | V99: 0 | W99: 168323.1615 | X99: 999854.9717 | Y99: 0 | Z99: 199649 | AA99: 0 | AB99: 0 | AC99: 0 | AD99: 11396074.8 | AE99: 0 | AF99: 0 | AG99: 0 | AH99: 0 | AI99: 16025.24833 | AJ99: 0 | AK99: 136893.702 | AL99: 0 | AM99: 0 | AN99: 0 | AO99: 0 | AP99: 0 | AQ99: 0 | AR99: 0 | AS99: 0 | AT99: 0 | AU99: 0 | AV99: 0 | AW99: 0 | AX99: 0 | AY99: 0 | AZ99: 0
C100: 1983 | D100: 2438588.562 | E100: 0 | F100: 4853145 | G100: 404967 | H100: 42090 | I100: 0 | J100: 259898 | K100: 0 | L100: 0 | M100: 0 | N100: 0 | O100: 0 | P100: 0 | Q100: 0 | R100: 0 | S100: 3954 | T100: 2722 | U100: 28668443.62 | V100: 0 | W100: 9240995.508 | X100: 0 | Y100: 0 | Z100: 0 | AA100: 490363 | AB100: 0 | AC100: 0 | AD100: 38308360.44 | AE100: 0 | AF100: 0 | AG100: 0 | AH100: 0 | AI100: 101616.3606 | AJ100: 0 | AK100: 0 | AL100: 0 | AM100: 0 | AN100: 0 | AO100: 0 | AP100: 0 | AQ100: 0 | AR100: 0 | AS100: 0 | AT100: 0 | AU100: 0 | AV100: 0 | AW100: 0 | AX100: 0 | AY100: 0 | AZ100: 0
C101: 1984 | D101: 1087149.87 | E101: 0 | F101: 5938784 | G101: 1706761 | H101: 10227 | I101: 25603 | J101: 357561 | K101: 0 | L101: 0 | M101: 0 | N101: 0 | O101: 0 | P101: 0 | Q101: 0 | R101: 0 | S101: 1543 | T101: 0 | U101: 122148.7123 | V101: 0 | W101: 37467.95004 | X101: 334556.1279 | Y101: 666843 | Z101: 0 | AA101: 0 | AB101: 0 | AC101: 0 | AD101: 11951563.95 | AE101: 0 | AF101: 0 | AG101: 0 | AH101: 0 | AI101: 7070.807865 | AJ101: 0 | AK101: 0 | AL101: 0 | AM101: 0 | AN101: 0 | AO101: 0 | AP101: 0 | AQ101: 0 | AR101: 0 | AS101: 0 | AT101: 0 | AU101: 0 | AV101: 0 | AW101: 0 | AX101: 0 | AY101: 0 | AZ101: 0
C102: 1985 | D102: 1707340.349 | E102: 0 | F102: 5362662 | G102: 1177041 | H102: 343454 | I102: 182156 | J102: 442681 | K102: 0 | L102: 0 | M102: 0 | N102: 0 | O102: 0 | P102: 0 | Q102: 0 | R102: 0 | S102: 15596 | T102: 176543 | U102: 0 | V102: 0 | W102: 0 | X102: 0 | Y102: 0 | Z102: 8107376 | AA102: 0 | AB102: 0 | AC102: 0 | AD102: 64044679.22 | AE102: 0 | AF102: 0 | AG102: 0 | AH102: 0 | AI102: 226394.1308 | AJ102: 0 | AK102: 180206.1115 | AL102: 0 | AM102: 0 | AN102: 0 | AO102: 0 | AP102: 0 | AQ102: 0 | AR102: 0 | AS102: 0 | AT102: 0 | AU102: 0 | AV102: 0 | AW102: 0 | AX102: 0 | AY102: 0 | AZ102: 0
C103: 1986 | D103: 6788497.57 | E103: 0 | F103: 19283516 | G103: 1099662 | H103: 366638 | I103: 49362 | J103: 1657808 | K103: 0 | L103: 0 | M103: 0 | N103: 0 | O103: 0 | P103: 3416687.309 | Q103: 0 | R103: 11818 | S103: 2166 | T103: 303002 | U103: 1550871.217 | V103: 0 | W103: 30555.26286 | X103: 137498.6829 | Y103: 0 | Z103: 0 | AA103: 0 | AB103: 0 | AC103: 0 | AD103: 86683303.6 | AE103: 0 | AF103: 0 | AG103: 0 | AH103: 0 | AI103: 663610.9107 | AJ103: 0 | AK103: 267134.0603 | AL103: 0 | AM103: 899824.8408 | AN103: 0 | AO103: 0 | AP103: 0 | AQ103: 0 | AR103: 0 | AS103: 0 | AT103: 0 | AU103: 0 | AV103: 0 | AW103: 0 | AX103: 0 | AY103: 0 | AZ103: 0
C104: 1987 | D104: 2162186.962 | E104: 0 | F104: 8832552 | G104: 200268 | H104: 151 | I104: 153032 | J104: 429956 | K104: 0 | L104: 0 | M104: 0 | N104: 0 | O104: 0 | P104: 0 | Q104: 0 | R104: 15090 | S104: 13185 | T104: 21342 | U104: 21249211.57 | V104: 0 | W104: 2184286.94 | X104: 0 | Y104: 547557 | Z104: 0 | AA104: 359867 | AB104: 0 | AC104: 0 | AD104: 35598180.79 | AE104: 0 | AF104: 0 | AG104: 0 | AH104: 0 | AI104: 0 | AJ104: 0 | AK104: 0 | AL104: 0 | AM104: 0 | AN104: 0 | AO104: 0 | AP104: 0 | AQ104: 0 | AR104: 0 | AS104: 0 | AT104: 0 | AU104: 0 | AV104: 0 | AW104: 0 | AX104: 0 | AY104: 0 | AZ104: 0
C105: 1988 | D105: 2012942.261 | E105: 0 | F105: 3433934 | G105: 45777 | H105: 3372 | I105: 0 | J105: 2508886 | K105: 0 | L105: 0 | M105: 87213 | N105: 0 | O105: 0 | P105: 0 | Q105: 0 | R105: 0 | S105: 3438 | T105: 79866 | U105: 0 | V105: 0 | W105: 0 | X105: 0 | Y105: 0 | Z105: 38500682 | AA105: 0 | AB105: 0 | AC105: 0 | AD105: 36642510.13 | AE105: 0 | AF105: 0 | AG105: 0 | AH105: 0 | AI105: 647916.4681 | AJ105: 0 | AK105: 0 | AL105: 0 | AM105: 0 | AN105: 0 | AO105: 0 | AP105: 46974056 | AQ105: 0 | AR105: 0 | AS105: 0 | AT105: 0 | AU105: 0 | AV105: 0 | AW105: 0 | AX105: 0 | AY105: 0 | AZ105: 0
C106: 1989 | D106: 3088807.96 | E106: 0 | F106: 2539440 | G106: 1949671 | H106: 1926722 | I106: 0 | J106: 96052 | K106: 0 | L106: 0 | M106: 0 | N106: 0 | O106: 0 | P106: 0 | Q106: 0 | R106: 12110 | S106: 2891 | T106: 377589 | U106: -259069.0301 | V106: 0 | W106: 938759.5108 | X106: 82739.6584 | Y106: 3172179 | Z106: 0 | AA106: 0 | AB106: 0 | AC106: 0 | AD106: 6838478.28 | AE106: 0 | AF106: 0 | AG106: 0 | AH106: 0 | AI106: 0 | AJ106: 0 | AK106: 0 | AL106: 0 | AM106: 0 | AN106: 0 | AO106: 0 | AP106: 0 | AQ106: 8069.569045 | AR106: 0 | AS106: 0 | AT106: 0 | AU106: 0 | AV106: 0 | AW106: 0 | AX106: 0 | AY106: 0 | AZ106: 0
C107: 1990 | D107: 6997564.099 | E107: 0 | F107: 2734292 | G107: 1863650 | H107: 5646372 | I107: 92698 | J107: 64248 | K107: 0 | L107: 77752 | M107: 0 | N107: 124009.062 | O107: 0 | P107: 0 | Q107: 0 | R107: 11179 | S107: 148164 | T107: 423820 | U107: 8845804.121 | V107: 0 | W107: 666630.2178 | X107: 791491.0687 | Y107: 0 | Z107: 7918110 | AA107: 0 | AB107: 0 | AC107: 0 | AD107: 16917083.91 | AE107: 0 | AF107: 0 | AG107: 0 | AH107: 0 | AI107: 527936.9699 | AJ107: 0 | AK107: 0 | AL107: 0 | AM107: 146117.2296 | AN107: 0 | AO107: 0 | AP107: 52176768 | AQ107: 420489.5381 | AR107: 0 | AS107: 0 | AT107: 0 | AU107: 0 | AV107: 0 | AW107: 0 | AX107: 0 | AY107: 0 | AZ107: 0
C108: 1991 | D108: 3727194.15 | E108: 0 | F108: 2747901 | G108: 652434 | H108: 70934 | I108: 0 | J108: 149377 | K108: 0 | L108: 453656 | M108: 69620 | N108: 0 | O108: 0 | P108: 1239383.58 | Q108: 0 | R108: 13598 | S108: 0 | T108: 56785 | U108: 9422005.012 | V108: 0 | W108: 58007.38306 | X108: 25758.88779 | Y108: 0 | Z108: 1375056 | AA108: 887773 | AB108: 0 | AC108: 959007 | AD108: 169959293.2 | AE108: 0 | AF108: 0 | AG108: 0 | AH108: 0 | AI108: 0 | AJ108: 0 | AK108: 2419954.082 | AL108: 0 | AM108: 0 | AN108: 0 | AO108: 1912465 | AP108: 0 | AQ108: 0 | AR108: 0 | AS108: 0 | AT108: 0 | AU108: 0 | AV108: 0 | AW108: 0 | AX108: 0 | AY108: 0 | AZ108: 0
C109: 1992 | D109: 19718225.17 | E109: 0 | F109: 3761592 | G109: 0 | H109: 0 | I109: 35102 | J109: 4931904 | K109: 0 | L109: 275609 | M109: 48683 | N109: 0 | O109: 0 | P109: 117053.9681 | Q109: 0 | R109: 14588 | S109: 29053 | T109: 0 | U109: 16099483.32 | V109: 0 | W109: 1791186.897 | X109: 789109.41 | Y109: 0 | Z109: 17699787 | AA109: 0 | AB109: 0 | AC109: 0 | AD109: 18072513.69 | AE109: 0 | AF109: 0 | AG109: 0 | AH109: 0 | AI109: 0 | AJ109: 0 | AK109: 5386469.631 | AL109: 0 | AM109: 1244470.91 | AN109: 0 | AO109: 0 | AP109: 0 | AQ109: 143193.5282 | AR109: 0 | AS109: 0 | AT109: 0 | AU109: 0 | AV109: 0 | AW109: 0 | AX109: 0 | AY109: 0 | AZ109: 30519144
C110: 1993 | D110: 5019438.61 | E110: 0 | F110: 4430242 | G110: 29738642 | H110: 74429 | I110: 174007 | J110: 5076118 | K110: 0 | L110: 52194 | M110: 0 | N110: 0 | O110: 0 | P110: 401363.1603 | Q110: 0 | R110: 41144 | S110: 7039 | T110: 81508 | U110: 5387478.648 | V110: 0 | W110: 28883.00426 | X110: 10390888.22 | Y110: 0 | Z110: 35164332 | AA110: 0 | AB110: 0 | AC110: 0 | AD110: 94597721.36 | AE110: 0 | AF110: 0 | AG110: 0 | AH110: 0 | AI110: 0 | AJ110: 0 | AK110: 13169201.94 | AL110: 0 | AM110: 0 | AN110: 0 | AO110: 0 | AP110: 0 | AQ110: 2150645.961 | AR110: 0 | AS110: 0 | AT110: 0 | AU110: 0 | AV110: 0 | AW110: 0 | AX110: 0 | AY110: 0 | AZ110: 0
C111: 1994 | D111: 10707167.49 | E111: 0 | F111: 4038300 | G111: 2450361 | H111: 0 | I111: 0 | J111: 476903 | K111: 0 | L111: 6936972 | M111: 9833619 | N111: 43357.33831 | O111: 0 | P111: 27404.24103 | Q111: 0 | R111: 41105 | S111: 6463 | T111: 143948 | U111: 36156203.5 | V111: 0 | W111: 2069577.982 | X111: 3467110.409 | Y111: 979694 | Z111: 56017 | AA111: 0 | AB111: 0 | AC111: 0 | AD111: 55419815.69 | AE111: 0 | AF111: 0 | AG111: 0 | AH111: 0 | AI111: 6909.71135 | AJ111: 0 | AK111: 0 | AL111: 0 | AM111: 0 | AN111: 0 | AO111: 2268901 | AP111: 0 | AQ111: 159396.2 | AR111: 0 | AS111: 0 | AT111: 0 | AU111: 0 | AV111: 0 | AW111: 0 | AX111: 0 | AY111: 0 | AZ111: 0
C112: 1995 | D112: 51130023.98 | E112: 0 | F112: 8394683 | G112: 5136900 | H112: 435825 | I112: 0 | J112: 701198 | K112: 0 | L112: 834279 | M112: 449579 | N112: 0 | O112: 0 | P112: 1301215.718 | Q112: 0 | R112: 0 | S112: 3655 | T112: 6716401 | U112: 5556051.032 | V112: 0 | W112: 28727.67998 | X112: 4210864.039 | Y112: 0 | Z112: 3642720 | AA112: 0 | AB112: 0 | AC112: 100524733 | AD112: 52125117.37 | AE112: 0 | AF112: 0 | AG112: 0 | AH112: 0 | AI112: 151806.2585 | AJ112: 0 | AK112: 863847.7794 | AL112: 0 | AM112: 527939.7017 | AN112: 0 | AO112: 0 | AP112: 0 | AQ112: 10356708.91 | AR112: 0 | AS112: 0 | AT112: 0 | AU112: 0 | AV112: 0 | AW112: 0 | AX112: 0 | AY112: 0 | AZ112: 0
C113: 1996 | D113: 16323743.05 | E113: 0 | F113: 4251239 | G113: 11936540 | H113: 93134 | I113: 0 | J113: 210535 | K113: 0 | L113: 0 | M113: 535926 | N113: 68818.95077 | O113: 0 | P113: 429193.029 | Q113: 0 | R113: 295 | S113: 2389 | T113: 43563 | U113: 3307161.824 | V113: 0 | W113: 298118.4419 | X113: 61608.97387 | Y113: 270785 | Z113: 0 | AA113: 19030 | AB113: 0 | AC113: 0 | AD113: 110582450 | AE113: 3058772 | AF113: 0 | AG113: 0 | AH113: 0 | AI113: 2480232.748 | AJ113: 746558 | AK113: 7632.129454 | AL113: 0 | AM113: 11652613.82 | AN113: 0 | AO113: 0 | AP113: 0 | AQ113: 3304662.8 | AR113: 0 | AS113: 0 | AT113: 0 | AU113: 0 | AV113: 0 | AW113: 0 | AX113: 0 | AY113: 0 | AZ113: 0
C114: 1997 | D114: 9715281.539 | E114: 0 | F114: 11679697 | G114: 1915322 | H114: 0 | I114: 0 | J114: 535751.9948 | K114: 0 | L114: 181994 | M114: 388558 | N114: 68124.19965 | O114: 0 | P114: 131436.0782 | Q114: 0 | R114: 0 | S114: 4909 | T114: 22664 | U114: 16334161.15 | V114: 0 | W114: 127395.8527 | X114: 15781560.96 | Y114: 112884 | Z114: 11549 | AA114: 8569 | AB114: 0 | AC114: 177071 | AD114: 75814568.82 | AE114: 5949482.332 | AF114: 0 | AG114: 0 | AH114: 0 | AI114: 3910664.62 | AJ114: 196221 | AK114: 3481548.861 | AL114: 0 | AM114: 1580943.051 | AN114: 0 | AO114: 0 | AP114: 0 | AQ114: 3380890.929 | AR114: 0 | AS114: 0 | AT114: 0 | AU114: 0 | AV114: 0 | AW114: 0 | AX114: 0 | AY114: 0 | AZ114: 0
C115: 1998 | D115: 7787246.809 | E115: 7766705 | F115: 7278943 | G115: 5440670 | H115: 158736 | I115: 906333 | J115: 5298531.76 | K115: 0 | L115: 312499 | M115: 1475464 | N115: 667034.2286 | O115: 0 | P115: 281326.032 | Q115: 0 | R115: 0 | S115: 4784 | T115: 132685 | U115: -158302.1382 | V115: 833633 | W115: 788139.2259 | X115: 134338.6367 | Y115: 156490 | Z115: 258266 | AA115: 53652 | AB115: 0 | AC115: 2290264 | AD115: 31781125.67 | AE115: 0 | AF115: 0 | AG115: 0 | AH115: 0 | AI115: 984356.3514 | AJ115: 143376 | AK115: 7587217.962 | AL115: 417821 | AM115: 7751486.121 | AN115: 0 | AO115: 0 | AP115: 0 | AQ115: 5895526.63 | AR115: 0 | AS115: 0 | AT115: 0 | AU115: 0 | AV115: 0 | AW115: 0 | AX115: 0 | AY115: 0 | AZ115: 0
C116: 1999 | D116: 11127356.4 | E116: 0 | F116: 4105015 | G116: 612784 | H116: 0 | I116: 148618 | J116: 2838420 | K116: 0 | L116: 36248 | M116: 615224 | N116: 526582.5404 | O116: 0 | P116: 692021.362 | Q116: 573109 | R116: 118725 | S116: 0 | T116: 21883 | U116: 4862331.843 | V116: 0 | W116: 94448.19728 | X116: 55162.10587 | Y116: 3502129 | Z116: 1941811 | AA116: 32073 | AB116: 0 | AC116: 34552 | AD116: 11684616.01 | AE116: 0 | AF116: 0 | AG116: 0 | AH116: 0 | AI116: 747894.6595 | AJ116: 0 | AK116: 950699.0112 | AL116: 89572 | AM116: 2641083.409 | AN116: 0 | AO116: 0 | AP116: 0 | AQ116: 18768626.09 | AR116: 0 | AS116: 0 | AT116: 0 | AU116: 0 | AV116: 0 | AW116: 0 | AX116: 0 | AY116: 0 | AZ116: 0
C117: 2000 | D117: 29913515.38 | E117: 0 | F117: 2029354 | G117: 890488 | H117: 0 | I117: 0 | J117: 2369243 | K117: 0 | L117: 443508 | M117: 499071 | N117: 92489.12062 | O117: 0 | P117: 152881.6677 | Q117: 0 | R117: 130121 | S117: 9068 | T117: 36335 | U117: 7775358.101 | V117: 0 | W117: 40999.59156 | X117: 0 | Y117: 38040 | Z117: 698654 | AA117: 0 | AB117: 0 | AC117: 0 | AD117: 17050260.36 | AE117: 0 | AF117: 0 | AG117: 0 | AH117: 0 | AI117: 3259085.02 | AJ117: 0 | AK117: 3445721.079 | AL117: 0 | AM117: 1655337.998 | AN117: 0 | AO117: 1363183 | AP117: 0 | AQ117: 7353266.928 | AR117: 0 | AS117: 717052.07 | AT117: 0 | AU117: 0 | AV117: 0 | AW117: 0 | AX117: 0 | AY117: 0 | AZ117: 0
C118: 2001 | D118: 0 | E118: 0 | F118: 14517000 | G118: 1535000 | H118: 0 | I118: 0 | J118: 266000 | K118: 0 | L118: 0 | M118: 1230000 | N118: 0 | O118: 0 | P118: 0 | Q118: 0 | R118: 0 | S118: 0 | T118: 0 | U118: 423158.6218 | V118: 0 | W118: 11530.3002 | X118: 12311.3782 | Y118: 401810 | Z118: 9263000 | AA118: 0 | AB118: 0 | AC118: 0 | AD118: 24778000 | AE118: 0 | AF118: 0 | AG118: 0 | AH118: 0 | AI118: 950000 | AJ118: 0 | AK118: 2913000 | AL118: 0 | AM118: 223000 | AN118: 0 | AO118: 0 | AP118: 0 | AQ118: 6594963 | AR118: 0 | AS118: 1320037 | AT118: 0 | AU118: 0 | AV118: 0 | AW118: 0 | AX118: 0 | AY118: 0 | AZ118: 0
C119: 2002 | D119: 0 | E119: 0 | F119: 42708000 | G119: 375000 | H119: 426000 | I119: 0 | J119: 1198000 | K119: 0 | L119: 0 | M119: 3548000 | N119: 0 | O119: 0 | P119: 0 | Q119: 0 | R119: 0 | S119: 0 | T119: 0 | U119: 2171533.863 | V119: 0 | W119: 390891.0534 | X119: 425576.1368 | Y119: 187680 | Z119: 3755000 | AA119: 1694000 | AB119: 0 | AC119: 0 | AD119: 26281000 | AE119: 0 | AF119: 0 | AG119: 0 | AH119: 0 | AI119: 190000 | AJ119: 0 | AK119: 283000 | AL119: 0 | AM119: 2875000 | AN119: 0 | AO119: 466000 | AP119: 0 | AQ119: 23304825 | AR119: 0 | AS119: 91175 | AT119: 0 | AU119: 0 | AV119: 0 | AW119: 0 | AX119: 0 | AY119: 0 | AZ119: 0
C120: 2003 | D120: 0 | E120: 0 | F120: 10502000 | G120: 12000 | H120: 906000 | I120: 0 | J120: 36000 | K120: 0 | L120: 0 | M120: 538000 | N120: 0 | O120: 0 | P120: 0 | Q120: 0 | R120: 0 | S120: 0 | T120: 0 | U120: 8263423.911 | V120: 96114 | W120: 792735.6361 | X120: 551722.0887 | Y120: 213900 | Z120: 1993000 | AA120: 161000 | AB120: 0 | AC120: 0 | AD120: 38200894 | AE120: 29227106 | AF120: 0 | AG120: 0 | AH120: 0 | AI120: 5856895 | AJ120: 167105 | AK120: 4855000 | AL120: 0 | AM120: 132000 | AN120: 0 | AO120: -6000 | AP120: 0 | AQ120: 14227331 | AR120: 0 | AS120: 1210669 | AT120: 0 | AU120: 0 | AV120: 0 | AW120: 0 | AX120: 0 | AY120: 0 | AZ120: 0
C121: 2004 | D121: 0 | E121: 0 | F121: 3386000 | G121: -21137000 | H121: 0 | I121: 0 | J121: 280000 | K121: 0 | L121: 0 | M121: 2104000 | N121: 0 | O121: 0 | P121: 0 | Q121: 0 | R121: 0 | S121: 0 | T121: 0 | U121: 15386355.04 | V121: 0 | W121: 2197324.08 | X121: 539324.964 | Y121: 247020 | Z121: 109000 | AA121: -2000 | AB121: 0 | AC121: 0 | AD121: 51529000 | AE121: 0 | AF121: 0 | AG121: 0 | AH121: 0 | AI121: 853000 | AJ121: 0 | AK121: 1402000 | AL121: 0 | AM121: 515000 | AN121: 0 | AO121: 0 | AP121: 227000 | AQ121: 33040234 | AR121: 0 | AS121: 273766 | AT121: 0 | AU121: 0 | AV121: 0 | AW121: 0 | AX121: 0 | AY121: 0 | AZ121: 0
C122: 2005 | D122: 4377657 | E122: 0 | F122: 5228030 | G122: 2115 | H122: 0 | I122: 0 | J122: 945349 | K122: 0 | L122: 275750 | M122: 161745 | N122: 64775 | O122: 0 | P122: 598919 | Q122: 0 | R122: 180316 | S122: 5691 | T122: 5105 | U122: 7436747.559 | V122: 0 | W122: 326938.0291 | X122: 1562151.412 | Y122: 99601 | Z122: 518443 | AA122: 0 | AB122: 0 | AC122: 168869 | AD122: 3659520 | AE122: 0 | AF122: 0 | AG122: 0 | AH122: 0 | AI122: 629268 | AJ122: 0 | AK122: 932732 | AL122: 0 | AM122: 39093 | AN122: 0 | AO122: 5468 | AP122: 1135644 | AQ122: 3574071 | AR122: 0 | AS122: 0 | AT122: 0 | AU122: 0 | AV122: 0 | AW122: 0 | AX122: 0 | AY122: 0 | AZ122: 0
C123: 2006 | D123: 5616666 | E123: 0 | F123: 9688868 | G123: -993 | H123: 0 | I123: 0 | J123: 1278661.949 | K123: 0 | L123: 130036 | M123: 895000 | N123: 583916 | O123: 0 | P123: 318577 | Q123: 0 | R123: 30088 | S123: 0 | T123: 0 | U123: 7336921.927 | V123: 0 | W123: 227385.8254 | X123: 794086.2474 | Y123: 175100 | Z123: 449288 | AA123: 29102 | AB123: 0 | AC123: 20127 | AD123: 6278276 | AE123: 0 | AF123: 0 | AG123: 0 | AH123: 0 | AI123: 202503 | AJ123: 0 | AK123: 233999 | AL123: 0 | AM123: 3700 | AN123: 0 | AO123: 0 | AP123: 153004 | AQ123: 11514957 | AR123: 0 | AS123: 0 | AT123: 0 | AU123: 0 | AV123: 0 | AW123: 0 | AX123: 0 | AY123: 0 | AZ123: 0
C124: 2007 | D124: 7806188 | E124: 0 | F124: 14694212 | G124: 0 | H124: 0 | I124: 79744 | J124: 116834.5516 | K124: 0 | L124: 193392 | M124: 73557 | N124: 730438 | O124: 0 | P124: 844966 | Q124: 0 | R124: 93969 | S124: 0 | T124: 696855 | U124: 18664598.2 | V124: 0 | W124: 296282.9973 | X124: 594678.8003 | Y124: 432753 | Z124: 950296 | AA124: 25837 | AB124: 0 | AC124: 25374 | AD124: 4210145 | AE124: 0 | AF124: 0 | AG124: 0 | AH124: 0 | AI124: 3562000 | AJ124: 0 | AK124: 753982 | AL124: 0 | AM124: 1099494 | AN124: 0 | AO124: 161555 | AP124: 20604 | AQ124: 21423986 | AR124: 0 | AS124: 0 | AT124: 0 | AU124: 0 | AV124: 0 | AW124: 0 | AX124: 0 | AY124: 0 | AZ124: 0
C125: 2008 | D125: 14951296.87 | E125: 0 | F125: 17791364 | G125: 0 | H125: 0 | I125: 121850 | J125: 225291.2457 | K125: 0 | L125: 1266315 | M125: 14158 | N125: 375442.32 | O125: 0 | P125: 1179545.08 | Q125: 0 | R125: 84392 | S125: 0 | T125: 1332167 | U125: 16328100.7 | V125: 0 | W125: 3111896.67 | X125: 1532970.948 | Y125: 664313 | Z125: 1683480 | AA125: 118979 | AB125: 0 | AC125: 6089638 | AD125: 13029947.26 | AE125: 0 | AF125: 0 | AG125: 0 | AH125: 0 | AI125: 394955.8 | AJ125: 0 | AK125: 285309.16 | AL125: 0 | AM125: 1241795.06 | AN125: 0 | AO125: 0 | AP125: 557 | AQ125: 12456434.66 | AR125: 0 | AS125: 8310 | AT125: 0 | AU125: 0 | AV125: 0 | AW125: 0 | AX125: 0 | AY125: 0 | AZ125: 0
C126: 2009 | D126: 9156545.78 | E126: 0 | F126: 16886955 | G126: 0 | H126: 0 | I126: 97847 | J126: 40521 | K126: 0 | L126: 255670 | M126: 709433 | N126: 350.46 | O126: 0 | P126: 232880.76 | Q126: 0 | R126: 0 | S126: 616376 | T126: 357031 | U126: 25819846.15 | V126: 0 | W126: 1910799.996 | X126: 2710150.854 | Y126: 5328039 | Z126: 910486 | AA126: 15193 | AB126: 0 | AC126: 2959834 | AD126: 3798869.4 | AE126: 0 | AF126: 0 | AG126: 0 | AH126: 0 | AI126: 5622229.67 | AJ126: 0 | AK126: 1896755.59 | AL126: 500529 | AM126: 1606430.65 | AN126: 0 | AO126: 39740 | AP126: 650897 | AQ126: 7338708.94 | AR126: 0 | AS126: 0 | AT126: 0 | AU126: 0 | AV126: 0 | AW126: 0 | AX126: 0 | AY126: 0 | AZ126: 0
C127: 2010 | D127: 26469625.85 | E127: 0 | F127: 2965029 | G127: 0 | H127: 0 | I127: 0 | J127: 0 | K127: 0 | L127: -12185 | M127: 6949 | N127: 1555942.296 | O127: 0 | P127: 485061.0646 | Q127: 0 | R127: 0 | S127: 8007 | T127: 176431 | U127: 18839345.42 | V127: 0 | W127: 447993.0304 | X127: 1736359.557 | Y127: 1201615 | Z127: 8105506 | AA127: 0 | AB127: 0 | AC127: 368645 | AD127: 3985177.557 | AE127: 0 | AF127: 0 | AG127: 0 | AH127: 0 | AI127: 12926347.12 | AJ127: 0 | AK127: 1080986.919 | AL127: 0 | AM127: 37559.43 | AN127: 0 | AO127: 1895 | AP127: 10880022 | AQ127: 7286756.516 | AR127: 0 | AS127: 0 | AT127: 0 | AU127: 0 | AV127: 0 | AW127: 0 | AX127: 0 | AY127: 0 | AZ127: 0
C128: 2011 | D128: 14026969.46 | E128: 0 | F128: 8992395 | G128: 0 | H128: 0 | I128: 76608 | J128: 868194 | K128: 0 | L128: 545148 | M128: 66168 | N128: 692565.9875 | O128: 0 | P128: 265679.2843 | Q128: 0 | R128: 293470 | S128: 42217 | T128: 156233 | U128: 29893809.47 | V128: 0 | W128: 764364.7484 | X128: 1443793.382 | Y128: 1844353 | Z128: 4765817 | AA128: 0 | AB128: 0 | AC128: 2380738 | AD128: 11429435.95 | AE128: 0 | AF128: 0 | AG128: 0 | AH128: 0 | AI128: 5964281.65 | AJ128: 0 | AK128: 4618102.43 | AL128: 0 | AM128: 1685525.102 | AN128: 0 | AO128: 30964 | AP128: 12595414 | AQ128: 4660310.264 | AR128: 0 | AS128: 0 | AT128: 24343498 | AU128: 0 | AV128: 0 | AW128: 0 | AX128: 0 | AY128: 0 | AZ128: 0
C129: 2012 | D129: 55614454.09 | E129: 0 | F129: 10181933 | G129: 0 | H129: 0 | I129: -35802 | J129: 36262 | K129: 0 | L129: 626765 | M129: 394430 | N129: 56554.78 | O129: 10903.5548 | P129: 316969.3505 | Q129: 0 | R129: 0 | S129: 20000 | T129: 192896 | U129: 27612561.36 | V129: 0 | W129: 5266690.868 | X129: 3355645.6 | Y129: 6803687 | Z129: 2949818 | AA129: 0 | AB129: 0 | AC129: 1044816 | AD129: 8167962.31 | AE129: 0 | AF129: 0 | AG129: 0 | AH129: 0 | AI129: 7159953.824 | AJ129: 0 | AK129: 2610063.611 | AL129: 0 | AM129: 1423405.048 | AN129: 0 | AO129: 161920 | AP129: 1102748 | AQ129: 7550004.924 | AR129: 0 | AS129: 0 | AT129: 0 | AU129: 0 | AV129: 0 | AW129: 0 | AX129: 0 | AY129: 0 | AZ129: 0
C130: 2013 | D130: 10694323.12 | E130: 0 | F130: 16115011.84 | G130: 0 | H130: 0 | I130: 0 | J130: 956117.8992 | K130: 0 | L130: 546065.4187 | M130: 293240.9084 | N130: 666741.2761 | O130: 0 | P130: 3644517.62 | Q130: 0 | R130: 0 | S130: 0 | T130: 0 | U130: 31644823.49 | V130: 0 | W130: 8212605.085 | X130: 693595.87 | Y130: 3896426.355 | Z130: 10751358.73 | AA130: 0 | AB130: 0 | AC130: 1352147.052 | AD130: 46989444.38 | AE130: 0 | AF130: 0 | AG130: 0 | AH130: 0 | AI130: 12506132.23 | AJ130: 0 | AK130: 1890967.024 | AL130: 0 | AM130: 374061.2963 | AN130: 0 | AO130: 18899.41664 | AP130: 573376.7568 | AQ130: 17531924.43 | AR130: 0 | AS130: 0 | AT130: 0 | AU130: 0 | AV130: 0 | AW130: 0 | AX130: 0 | AY130: 0 | AZ130: 0
C131: 2014 | D131: 68912106.65 | E131: 0 | F131: 19513480.98 | G131: 0 | H131: 0 | I131: 47911.71238 | J131: 132132.8513 | K131: 0 | L131: 908925.1597 | M131: 309216.351 | N131: 346835.3407 | O131: 0 | P131: 1179755.839 | Q131: 0 | R131: 0 | S131: 24919.26172 | T131: 1415.761748 | U131: 16218337.79 | V131: 0 | W131: 3044348.38 | X131: 1774269.293 | Y131: 505547.7159 | Z131: 4440083.233 | AA131: 119226.7695 | AB131: 0 | AC131: 2655140.066 | AD131: 8943168.801 | AE131: 0 | AF131: 0 | AG131: 0 | AH131: 0 | AI131: 14611223.84 | AJ131: 0 | AK131: 353642.4326 | AL131: 0 | AM131: 629464.4961 | AN131: 0 | AO131: 35954.60414 | AP131: 1185164.38 | AQ131: 5905262.53 | AR131: 0 | AS131: 0 | AT131: 2.85566812 | AU131: 0 | AV131: 0 | AW131: 0 | AX131: 0 | AY131: 0 | AZ131: 0
C132: 2015 | D132: 69743532.75 | E132: 0 | F132: 21318622.73 | G132: 0 | H132: 0 | I132: 31878.21992 | J132: 514530.2825 | K132: 0 | L132: 457215.786 | M132: 158432.6358 | N132: 299182.2384 | O132: 0 | P132: 923067.4532 | Q132: 0 | R132: 43877.17322 | S132: 78424.39681 | T132: 2132857.188 | U132: 22388651.02 | V132: 0 | W132: 1744687.695 | X132: 4457592.411 | Y132: 571213.4912 | Z132: 6255872.678 | AA132: -87287.17946 | AB132: 0 | AC132: 2453131.731 | AD132: 20305054.25 | AE132: 0 | AF132: 0 | AG132: 0 | AH132: 0 | AI132: 12213371.66 | AJ132: 0 | AK132: 159651.3354 | AL132: 0 | AM132: 649000.5499 | AN132: 0 | AO132: 0 | AP132: 30905.07597 | AQ132: 14838527.59 | AR132: 0 | AS132: 0 | AT132: 0 | AU132: 13785699.8 | AV132: 0 | AW132: 0 | AX132: 0 | AY132: 0 | AZ132: 0
C133: 2016
C134: 2017
C135: 2018
C136: 2019
C137: 2020
C138: 2021
C139: 2022
C140: 2023
C141: 2024
C142: 2025
C143: 2026
C144: 2027
C145: 2028
C146: 2029
C147: 2030
C149: Reguliere uitbreidingsinvesteringen per jaar en activaklasse
C151: Activaklasse | D151: 01 Regionale leidingen | E151: 01 Regionale leidingen (Waterkruisingen) | F151: 02 Gasontvangststations | G151: 03 Verremeting | H151: 04 Terreinen | I151: 05 Wegen en terreinvoorzieningen | J151: 06 Utiliteitsgebouwen | K151: 07 Dienstwoningen | L151: 08 Inrichting gebouwen | M151: 09 Bedrijfsinventaris | N151: 10 Gereedschap | O151: 10 Gereedschap (LNG) | P151: 11 Werktuigen | Q151: 11 Werktuigen (gaschromatografen en comptabele meters) | R151: 12 Motorvoertuigen | S151: 13 Aanhangwagens | T151: 14 Overig rollend materieel | U151: 15 Compressorstations (TT-BAT-BT) | V151: 15 Compressorstations (TT-BAT-BT) (gaschromatografen en comptabele meters) | W151: 15 Compressorstations (KC) | X151: 15 Compressorstations extra kosten leveringszekerheid (TT-BAT-BT) | Y151: 16 LNG installaties | Z151: 17 Mengstations | AA151: 18 Ijkinstallaties | AB151: 19 Stortgasinstallaties | AC151: 20 Kantoorgebouwen | AD151: 21 Hoofdtransportleiding | AE151: 21 Hoofdtransportleiding (waterkruisingen) | AF151: 21 Hoofdtransportleiding (gaschromatografen en comptabele meting) | AG151: 22 Regionaal hoofdtransportnet | AH151: 23 Brigittaleiding | AI151: 32 M&R stations | AJ151: 32 M&R stations (gaschromatografen en comptabele meting) | AK151: 33 Exportstations | AL151: 33 Exportstations (gaschromatografen en comptabele meting) | AM151: 34 Reduceerstations | AN151: 34 Reduceerstations (gaschromatografen en comptabele meting) | AO151: 35 Injectiestations | AP151: 36 Luchtscheidingsunit | AQ151: 37 ICT middelen 1 | AR151: 37 ICT middelen 1 (transparency) | AS151: 37 ICT middelen 1 (gaschromatografen en comptabele meting) | AT151: 38 ICT middelen 2 | AU151: 39 ICT middelen 3 | AV151: 40 Aansluitpunten | AW151: 41 Stikstofbuffer | AX151: 42 Vulgas | AY151: 43 Stikstof | AZ151: 44 Stikstofleiding
C152: 1946
C153: 1947
C154: 1948
C155: 1949
C156: 1950
C157: 1951
C158: 1952
C159: 1953
C160: 1954
C161: 1955
C162: 1956
C163: 1957
C164: 1958
C165: 1959
C166: 1960
C167: 1961
C168: 1962
C169: 1963
C170: 1964
C171: 1965
C172: 1966
C173: 1967
C174: 1968
C175: 1969
C176: 1970
C177: 1971
C178: 1972
C179: 1973
C180: 1974
C181: 1975
C182: 1976
C183: 1977
C184: 1978
C185: 1979
C186: 1980
C187: 1981
C188: 1982
C189: 1983
C190: 1984
C191: 1985
C192: 1986
C193: 1987
C194: 1988
C195: 1989
C196: 1990
C197: 1991
C198: 1992
C199: 1993
C200: 1994
C201: 1995
C202: 1996
C203: 1997
C204: 1998
C205: 1999
C206: 2000
C207: 2001
C208: 2002
... 293 more rows

Sheet CPI
B1: Besluit: x-factorbesluit GTS 2017-2021; bestand: GAW-berekening GTS
B3: CPI-tabel
B5: Dit tabblad toont het consumentenprijsindexcijfer (cpi) per jaar en de factor waarmee het cpi tussen verschillende jaren verschilt.
F11: Naar:
B12: jaar | C12: cpi | D12: Inflatie van: | E12: 1+cpi | F12: 1946 | G12: 1947 | H12: 1948 | I12: 1949 | J12: 1950 | K12: 1951 | L12: 1952 | M12: 1953 | N12: 1954 | O12: 1955 | P12: 1956 | Q12: 1957 | R12: 1958 | S12: 1959 | T12: 1960 | U12: 1961 | V12: 1962 | W12: 1963 | X12: 1964 | Y12: 1965 | Z12: 1966 | AA12: 1967 | AB12: 1968 | AC12: 1969 | AD12: 1970 | AE12: 1971 | AF12: 1972 | AG12: 1973 | AH12: 1974 | AI12: 1975 | AJ12: 1976 | AK12: 1977 | AL12: 1978 | AM12: 1979 | AN12: 1980 | AO12: 1981 | AP12: 1982 | AQ12: 1983 | AR12: 1984 | AS12: 1985 | AT12: 1986 | AU12: 1987 | AV12: 1988 | AW12: 1989 | AX12: 1990 | AY12: 1991 | AZ12: 1992 | BA12: 1993 | BB12: 1994 | BC12: 1995 | BD12: 1996 | BE12: 1997 | BF12: 1998 | BG12: 1999 | BH12: 2000 | BI12: 2001 | BJ12: 2002 | BK12: 2003 | BL12: 2004 | BM12: 2005 | BN12: 2006 | BO12: 2007 | BP12: 2008 | BQ12: 2009 | BR12: 2010 | BS12: 2011 | BT12: 2012 | BU12: 2013 | BV12: 2014 | BW12: 2015 | BX12: 2016 | BY12: 2017 | BZ12: 2018 | CA12: 2019 | CB12: 2020 | CC12: 2021 | CD12: 2022 | CE12: 2023 | CF12: 2024 | CG12: 2025 | CH12: 2026 | CI12: 2027 | CJ12: 2028 | CK12: 2029 | CL12: 2030
B13: 1946 | C13: 0.09083007388 | D13: 1946 | E13: =1+C13 -> 1.090830074 | F13: 1 | G13: =$E14*G14 -> 1.03625498 | H13: 1.072908367 | I13: 1.14063745 | J13: 1.244621514 | K13: 1.364541833 | L13: 1.364541833 | M13: 1.364541833 | N13: 1.419123506 | O13: 1.446215139 | P13: 1.473705179 | Q13: 1.569322709 | R13: 1.596414343 | S13: 1.609960159 | T13: 1.650996016 | U13: 1.678486056 | V13: 1.710756972 | W13: 1.776095618 | X13: 1.809841434 | Y13: 1.961868115 | Z13: 2.046228444 | AA13: 2.164909693 | AB13: 2.249341171 | AC13: 2.32356943 | AD13: 2.483895721 | AE13: 2.61802609 | AF13: 2.816996073 | AG13: 3.025453782 | AH13: 3.270515538 | AI13: 3.591026061 | AJ13: 3.975265849 | AK13: 4.305212915 | AL13: 4.597967393 | AM13: =$E14*AM14 -> 4.791082024 | AN13: 4.973143141 | AO13: 5.326236304 | AP13: 5.667115427 | AQ13: 6.001475237 | AR13: 6.157513593 | AS13: 6.329923974 | AT13: 6.475512225 | AU13: 6.443134664 | AV13: 6.456020934 | AW13: 6.514125122 | AX13: 6.585780498 | AY13: 6.74383923 | AZ13: 7.054055835 | BA13: 7.300947789 | BB13: 7.446966745 | BC13: 7.64058788 | BD13: 7.755196699 | BE13: 7.902545436 | BF13: 8.108011617 | BG13: 8.245847815 | BH13: 8.460239858 | BI13: 8.671745854 | BJ13: 9.079317909 | BK13: 9.3789354 | BL13: 9.575893044 | BM13: 9.681227867 | BN13: 9.855489969 | BO13: 9.993466828 | BP13: 10.10339496 | BQ13: 10.4267036 | BR13: 10.45798371 | BS13: =$E14*BS14 -> 10.61485347 | BT13: 10.89083966 | BU13: 11.14132897 | BV13: 11.45328618 | BW13: 11.56781904 | BX13: 11.6603616 | BY13: 11.6603616 | BZ13: 11.6603616 | CA13: 11.6603616 | CB13: 11.6603616 | CC13: 11.6603616 | CD13: 11.6603616 | CE13: 11.6603616 | CF13: 11.6603616 | CG13: 11.6603616 | CH13: 11.6603616 | CI13: 11.6603616 | CJ13: 11.6603616 | CK13: 11.6603616 | CL13: 11.6603616
B14: 1947 | C14: 0.03625498008 | D14: 1947 | E14: 1.03625498 | G14: 1 | H14: =$E15*H15 -> 1.035371011 | I14: 1.100730488 | J14: 1.201076509 | K14: 1.31680123 | L14: 1.31680123 | M14: 1.31680123 | N14: 1.36947328 | O14: 1.39561707 | P14: 1.422145329 | Q14: 1.514417532 | R14: 1.540561323 | S14: 1.553633218 | T14: 1.593233372 | U14: 1.61976163 | V14: 1.650903499 | W14: 1.713956171 | X14: 1.746521338 | Y14: 1.89322913 | Z14: 1.974637983 | AA14: 2.089166986 | AB14: 2.170644498 | AC14: 2.242275767 | AD14: 2.396992795 | AE14: 2.526430406 | AF14: 2.718439117 | AG14: 2.919603611 | AH14: 3.156091504 | AI14: 3.465388471 | AJ14: 3.836185037 | AK14: 4.154588395 | AL14: 4.437100406 | AM14: 4.623458623 | AN14: =$E15*AN15 -> 4.799150051 | AO14: 5.139889705 | AP14: 5.468842646 | AQ14: 5.791504362 | AR14: 5.942083475 | AS14: 6.108461813 | AT14: 6.248956434 | AU14: 6.217711652 | AV14: 6.230147076 | AW14: 6.286218399 | AX14: 6.355366802 | AY14: 6.507895605 | AZ14: 6.807258803 | BA14: 7.045512861 | BB14: 7.186423118 | BC14: 7.373270119 | BD14: 7.483869171 | BE14: 7.626062685 | BF14: 7.824340315 | BG14: 7.9573541 | BH14: 8.164245307 | BI14: 8.36835144 | BJ14: 8.761663957 | BK14: 9.050798868 | BL14: 9.240865644 | BM14: 9.342515166 | BN14: 9.510680439 | BO14: 9.643829965 | BP14: 9.749912095 | BQ14: 10.06190928 | BR14: 10.09209501 | BS14: 10.24347643 | BT14: =$E15*BT15 -> 10.50980682 | BU14: 10.75153238 | BV14: 11.05257529 | BW14: 11.16310104 | BX14: 11.25240585 | BY14: 11.25240585 | BZ14: 11.25240585 | CA14: 11.25240585 | CB14: 11.25240585 | CC14: 11.25240585 | CD14: 11.25240585 | CE14: 11.25240585 | CF14: 11.25240585 | CG14: 11.25240585 | CH14: 11.25240585 | CI14: 11.25240585 | CJ14: 11.25240585 | CK14: 11.25240585 | CL14: 11.25240585
B15: 1948 | C15: 0.03537101115 | D15: 1948 | E15: 1.035371011 | H15: 1 | I15: =$E16*I16 -> 1.063126625 | J15: 1.16004456 | K15: 1.271815819 | L15: 1.271815819 | M15: 1.271815819 | N15: 1.322688452 | O15: 1.347939101 | P15: 1.373561084 | Q15: 1.462681025 | R15: 1.487931675 | S15: 1.500557 | T15: 1.538804307 | U15: 1.56442629 | V15: 1.59450427 | W15: 1.655402896 | X15: 1.686855551 | Y15: 1.828551418 | Z15: 1.907179129 | AA15: 2.017795518 | AB15: 2.096489543 | AC15: 2.165673698 | AD15: 2.315105184 | AE15: 2.440120863 | AF15: 2.625570049 | AG15: 2.819862233 | AH15: 3.048271074 | AI15: 3.347001639 | AJ15: 3.705130814 | AK15: 4.012656672 | AL15: 4.285517325 | AM15: 4.465509053 | AN15: 4.635198397 | AO15: =$E16*AO16 -> 4.964297483 | AP15: 5.282012522 | AQ15: 5.593651261 | AR15: 5.739086194 | AS15: 5.899780607 | AT15: 6.035475561 | AU15: 6.005298183 | AV15: 6.01730878 | AW15: 6.071464559 | AX15: 6.138250669 | AY15: 6.285568685 | AZ15: 6.574704844 | BA15: 6.804819514 | BB15: 6.940915904 | BC15: 7.121379718 | BD15: 7.228200413 | BE15: 7.365536221 | BF15: 7.557040163 | BG15: 7.685509846 | BH15: 7.885333102 | BI15: 8.082466429 | BJ15: 8.462342352 | BK15: 8.741599649 | BL15: 8.925173242 | BM15: 9.023350147 | BN15: 9.18577045 | BO15: 9.314371236 | BP15: 9.41682932 | BQ15: 9.718167858 | BR15: 9.747322362 | BS15: 9.893532197 | BT15: 10.15076403 | BU15: =$E16*BU16 -> 10.38423161 | BV15: 10.67499009 | BW15: 10.78173999 | BX15: 10.86799391 | BY15: 10.86799391 | BZ15: 10.86799391 | CA15: 10.86799391 | CB15: 10.86799391 | CC15: 10.86799391 | CD15: 10.86799391 | CE15: 10.86799391 | CF15: 10.86799391 | CG15: 10.86799391 | CH15: 10.86799391 | CI15: 10.86799391 | CJ15: 10.86799391 | CK15: 10.86799391 | CL15: 10.86799391
B16: 1949 | C16: 0.06312662458 | D16: 1949 | E16: 1.063126625 | I16: 1 | J16: =$E17*J17 -> 1.091163116 | K16: 1.19629759 | L16: 1.19629759 | M16: 1.19629759 | N16: 1.244149494 | O16: 1.267900803 | P16: 1.292001397 | Q16: 1.375829549 | R16: 1.399580859 | S16: 1.411456514 | T16: 1.447432763 | U16: 1.471533357 | V16: 1.499825358 | W16: 1.557107929 | X16: 1.586692979 | Y16: 1.71997519 | Z16: 1.793934123 | AA16: 1.897982302 | AB16: 1.972003612 | AC16: 2.037079731 | AD16: 2.177638232 | AE16: 2.295230697 | AF16: 2.46966823 | AG16: 2.652423679 | AH16: 2.867269997 | AI16: 3.148262457 | AJ16: 3.485126539 | AK16: 3.774392042 | AL16: 4.031050701 | AM16: 4.20035483 | AN16: 4.359968314 | AO16: 4.669526064 | AP16: =$E17*AP17 -> 4.968375732 | AQ16: 5.261509901 | AR16: 5.398309158 | AS16: 5.549461814 | AT16: 5.677099436 | AU16: 5.648713939 | AV16: 5.660011367 | AW16: 5.710951469 | AX16: 5.773771935 | AY16: 5.912342462 | AZ16: 6.184310215 | BA16: 6.400761073 | BB16: 6.528776294 | BC16: 6.698524478 | BD16: 6.799002345 | BE16: 6.928183389 | BF16: 7.108316158 | BG16: 7.229157532 | BH16: 7.417115628 | BI16: 7.602543519 | BJ16: 7.959863064 | BK16: 8.222538545 | BL16: 8.395211855 | BM16: 8.487559185 | BN16: 8.64033525 | BO16: 8.761299944 | BP16: 8.857674243 | BQ16: 9.141119819 | BR16: 9.168543179 | BS16: 9.306071326 | BT16: 9.548029181 | BU16: 9.767633852 | BV16: =$E17*BV17 -> 10.0411276 | BW16: 10.14153888 | BX16: 10.22267119 | BY16: 10.22267119 | BZ16: 10.22267119 | CA16: 10.22267119 | CB16: 10.22267119 | CC16: 10.22267119 | CD16: 10.22267119 | CE16: 10.22267119 | CF16: 10.22267119 | CG16: 10.22267119 | CH16: 10.22267119 | CI16: 10.22267119 | CJ16: 10.22267119 | CK16: 10.22267119 | CL16: 10.22267119
B17: 1950 | C17: 0.09116311561 | D17: 1950 | E17: 1.091163116 | J17: 1 | K17: =$E18*K18 -> 1.096350832 | L17: 1.096350832 | M17: 1.096350832 | N17: 1.140204866 | O17: 1.161971831 | P17: 1.184058899 | Q17: 1.260883483 | R17: 1.282650448 | S17: 1.293533931 | T17: 1.326504481 | U17: 1.348591549 | V17: 1.374519846 | W17: 1.427016645 | X17: 1.454129962 | Y17: 1.576276878 | Z17: 1.644056784 | AA17: 1.739412078 | AB17: 1.807249149 | AC17: 1.866888371 | AD17: 1.995703668 | AE17: 2.103471666 | AF17: 2.263335513 | AG17: 2.430822341 | AH17: 2.62771895 | AI17: 2.885235408 | AJ17: 3.193955596 | AK17: 3.459053911 | AL17: 3.694269577 | AM17: 3.849428899 | AN17: 3.995707197 | AO17: 4.279402408 | AP17: 4.553284162 | AQ17: =$E18*AQ18 -> 4.821927928 | AR17: 4.947298054 | AS17: 5.085822399 | AT17: 5.202796314 | AU17: 5.176782333 | AV17: 5.187135897 | AW17: 5.23382012 | AX17: 5.291392142 | AY17: 5.418385553 | AZ17: 5.667631289 | BA17: 5.865998384 | BB17: 5.983318351 | BC17: 6.138884629 | BD17: 6.230967898 | BE17: 6.349356288 | BF17: 6.514439552 | BG17: 6.625185024 | BH17: 6.797439835 | BI17: 6.96737583 | BJ17: 7.294842494 | BK17: 7.535572297 | BL17: 7.693819315 | BM17: 7.778451327 | BN17: 7.918463451 | BO17: 8.02932194 | BP17: 8.117644481 | BQ17: 8.377409104 | BR17: 8.402541332 | BS17: 8.528579452 | BT17: 8.750322517 | BU17: 8.951579935 | BV17: 9.202224174 | BW17: =$E18*BW18 -> 9.294246415 | BX17: 9.368600387 | BY17: 9.368600387 | BZ17: 9.368600387 | CA17: 9.368600387 | CB17: 9.368600387 | CC17: 9.368600387 | CD17: 9.368600387 | CE17: 9.368600387 | CF17: 9.368600387 | CG17: 9.368600387 | CH17: 9.368600387 | CI17: 9.368600387 | CJ17: 9.368600387 | CK17: 9.368600387 | CL17: 9.368600387
B18: 1951 | C18: 0.09635083227 | D18: 1951 | E18: 1.096350832 | K18: 1 | L18: =$E19*L19 -> 1 | M18: 1 | N18: 1.04 | O18: 1.059854015 | P18: 1.08 | Q18: 1.150072993 | R18: 1.169927007 | S18: 1.179854015 | T18: 1.209927007 | U18: 1.230072993 | V18: 1.253722628 | W18: 1.301605839 | X18: 1.32633635 | Y18: 1.437748604 | Z18: 1.499571794 | AA18: 1.586546958 | AB18: 1.648422289 | AC18: 1.702820225 | AD18: 1.82031482 | AE18: 1.91861182 | AF18: 2.064426319 | AG18: 2.217193866 | AH18: 2.39678657 | AI18: 2.631671653 | AJ18: 2.91326052 | AK18: 3.155061144 | AL18: 3.369605301 | AM18: 3.511128724 | AN18: 3.644551615 | AO18: 3.90331478 | AP18: 4.153126926 | AQ18: 4.398161415 | AR18: =$E19*AR19 -> 4.512513612 | AS18: 4.638863993 | AT18: 4.745557864 | AU18: 4.721830075 | AV18: 4.731273735 | AW18: 4.773855199 | AX18: 4.826367606 | AY18: 4.942200429 | AZ18: 5.169541648 | BA18: 5.350475606 | BB18: 5.457485118 | BC18: 5.599379731 | BD18: 5.683370427 | BE18: 5.791354465 | BF18: 5.941929681 | BG18: 6.042942486 | BH18: 6.200058991 | BI18: 6.355060465 | BJ18: 6.653748307 | BK18: 6.873322001 | BL18: 7.017661763 | BM18: 7.094856043 | BN18: 7.222563452 | BO18: 7.32367934 | BP18: 7.404239813 | BQ18: 7.641175487 | BR18: 7.664099013 | BS18: 7.779060498 | BT18: 7.981316071 | BU18: 8.164886341 | BV18: 8.393503159 | BW18: 8.47743819 | BX18: =$E19*BX19 -> 8.545257696 | BY18: 8.545257696 | BZ18: 8.545257696 | CA18: 8.545257696 | CB18: 8.545257696 | CC18: 8.545257696 | CD18: 8.545257696 | CE18: 8.545257696 | CF18: 8.545257696 | CG18: 8.545257696 | CH18: 8.545257696 | CI18: 8.545257696 | CJ18: 8.545257696 | CK18: 8.545257696 | CL18: 8.545257696
B19: 1952 | C19: 0 | D19: 1952 | E19: 1 | L19: 1 | M19: =$E20*M20 -> 1 | N19: 1.04 | O19: 1.059854015 | P19: 1.08 | Q19: 1.150072993 | R19: 1.169927007 | S19: 1.179854015 | T19: 1.209927007 | U19: 1.230072993 | V19: 1.253722628 | W19: 1.301605839 | X19: 1.32633635 | Y19: 1.437748604 | Z19: 1.499571794 | AA19: 1.586546958 | AB19: 1.648422289 | AC19: 1.702820225 | AD19: 1.82031482 | AE19: 1.91861182 | AF19: 2.064426319 | AG19: 2.217193866 | AH19: 2.39678657 | AI19: 2.631671653 | AJ19: 2.91326052 | AK19: 3.155061144 | AL19: 3.369605301 | AM19: 3.511128724 | AN19: 3.644551615 | AO19: 3.90331478 | AP19: 4.153126926 | AQ19: 4.398161415 | AR19: 4.512513612 | AS19: =$E20*AS20 -> 4.638863993 | AT19: 4.745557864 | AU19: 4.721830075 | AV19: 4.731273735 | AW19: 4.773855199 | AX19: 4.826367606 | AY19: 4.942200429 | AZ19: 5.169541648 | BA19: 5.350475606 | BB19: 5.457485118 | BC19: 5.599379731 | BD19: 5.683370427 | BE19: 5.791354465 | BF19: 5.941929681 | BG19: 6.042942486 | BH19: 6.200058991 | BI19: 6.355060465 | BJ19: 6.653748307 | BK19: 6.873322001 | BL19: 7.017661763 | BM19: 7.094856043 | BN19: 7.222563452 | BO19: 7.32367934 | BP19: 7.404239813 | BQ19: 7.641175487 | BR19: 7.664099013 | BS19: 7.779060498 | BT19: 7.981316071 | BU19: 8.164886341 | BV19: 8.393503159 | BW19: 8.47743819 | BX19: 8.545257696 | BY19: =$E20*BY20 -> 8.545257696 | BZ19: 8.545257696 | CA19: 8.545257696 | CB19: 8.545257696 | CC19: 8.545257696 | CD19: 8.545257696 | CE19: 8.545257696 | CF19: 8.545257696 | CG19: 8.545257696 | CH19: 8.545257696 | CI19: 8.545257696 | CJ19: 8.545257696 | CK19: 8.545257696 | CL19: 8.545257696
B20: 1953 | C20: 0 | D20: 1953 | E20: 1 | M20: 1 | N20: =$E21*N21 -> 1.04 | O20: 1.059854015 | P20: 1.08 | Q20: 1.150072993 | R20: 1.169927007 | S20: 1.179854015 | T20: 1.209927007 | U20: 1.230072993 | V20: 1.253722628 | W20: 1.301605839 | X20: 1.32633635 | Y20: 1.437748604 | Z20: 1.499571794 | AA20: 1.586546958 | AB20: 1.648422289 | AC20: 1.702820225 | AD20: 1.82031482 | AE20: 1.91861182 | AF20: 2.064426319 | AG20: 2.217193866 | AH20: 2.39678657 | AI20: 2.631671653 | AJ20: 2.91326052 | AK20: 3.155061144 | AL20: 3.369605301 | AM20: 3.511128724 | AN20: 3.644551615 | AO20: 3.90331478 | AP20: 4.153126926 | AQ20: 4.398161415 | AR20: 4.512513612 | AS20: 4.638863993 | AT20: =$E21*AT21 -> 4.745557864 | AU20: 4.721830075 | AV20: 4.731273735 | AW20: 4.773855199 | AX20: 4.826367606 | AY20: 4.942200429 | AZ20: 5.169541648 | BA20: 5.350475606 | BB20: 5.457485118 | BC20: 5.599379731 | BD20: 5.683370427 | BE20: 5.791354465 | BF20: 5.941929681 | BG20: 6.042942486 | BH20: 6.200058991 | BI20: 6.355060465 | BJ20: 6.653748307 | BK20: 6.873322001 | BL20: 7.017661763 | BM20: 7.094856043 | BN20: 7.222563452 | BO20: 7.32367934 | BP20: 7.404239813 | BQ20: 7.641175487 | BR20: 7.664099013 | BS20: 7.779060498 | BT20: 7.981316071 | BU20: 8.164886341 | BV20: 8.393503159 | BW20: 8.47743819 | BX20: 8.545257696 | BY20: 8.545257696 | BZ20: =$E21*BZ21 -> 8.545257696 | CA20: 8.545257696 | CB20: 8.545257696 | CC20: 8.545257696 | CD20: 8.545257696 | CE20: 8.545257696 | CF20: 8.545257696 | CG20: 8.545257696 | CH20: 8.545257696 | CI20: 8.545257696 | CJ20: 8.545257696 | CK20: 8.545257696 | CL20: 8.545257696
B21: 1954 | C21: 0.04 | D21: 1954 | E21: 1.04 | N21: 1 | O21: =$E22*O22 -> 1.019090399 | P21: 1.038461538 | Q21: 1.105839416 | R21: 1.124929815 | S21: 1.134475014 | T21: 1.163391353 | U21: 1.182762493 | V21: 1.205502527 | W21: 1.251544076 | X21: 1.275323414 | Y21: 1.382450581 | Z21: 1.441895956 | AA21: 1.525525921 | AB21: 1.585021432 | AC21: 1.637327139 | AD21: 1.750302712 | AE21: 1.844819058 | AF21: 1.985025307 | AG21: 2.131917179 | AH21: 2.304602471 | AI21: 2.530453513 | AJ21: 2.801212039 | AK21: 3.033712638 | AL21: 3.240005097 | AM21: 3.376085312 | AN21: 3.504376553 | AO21: 3.753187289 | AP21: 3.993391275 | AQ21: 4.22900136 | AR21: 4.338955396 | AS21: 4.460446147 | AT21: 4.563036408 | AU21: =$E22*AU22 -> 4.540221226 | AV21: 4.549301669 | AW21: 4.590245384 | AX21: 4.640738083 | AY21: 4.752115797 | AZ21: 4.970713123 | BA21: 5.144688083 | BB21: 5.247581844 | BC21: 5.384018972 | BD21: 5.464779257 | BE21: 5.568610063 | BF21: 5.713393924 | BG21: 5.810521621 | BH21: 5.961595183 | BI21: 6.110635063 | BJ21: 6.397834911 | BK21: 6.608963463 | BL21: 6.747751696 | BM21: 6.821976964 | BN21: 6.94477255 | BO21: 7.041999365 | BP21: 7.119461358 | BQ21: 7.347284122 | BR21: 7.369325974 | BS21: 7.479865864 | BT21: 7.674342376 | BU21: 7.850852251 | BV21: 8.070676114 | BW21: 8.151382875 | BX21: 8.216593938 | BY21: 8.216593938 | BZ21: 8.216593938 | CA21: =$E22*CA22 -> 8.216593938 | CB21: 8.216593938 | CC21: 8.216593938 | CD21: 8.216593938 | CE21: 8.216593938 | CF21: 8.216593938 | CG21: 8.216593938 | CH21: 8.216593938 | CI21: 8.216593938 | CJ21: 8.216593938 | CK21: 8.216593938 | CL21: 8.216593938
B22: 1955 | C22: 0.01909039865 | D22: 1955 | E22: 1.019090399 | O22: 1 | P22: =$E23*P23 -> 1.019008264 | Q22: 1.085123967 | R22: 1.103856749 | S22: 1.11322314 | T22: 1.141597796 | U22: 1.160606061 | V22: 1.18292011 | W22: 1.228099174 | X22: 1.251433058 | Y22: 1.356553435 | Z22: 1.414885232 | AA22: 1.496948576 | AB22: 1.55532957 | AC22: 1.606655446 | AD22: 1.717514672 | AE22: 1.810260464 | AF22: 1.94784026 | AG22: 2.091980439 | AH22: 2.261430854 | AI22: 2.483051078 | AJ22: 2.748737543 | AK22: 2.976882759 | AL22: 3.179310787 | AM22: 3.31284184 | AN22: 3.43872983 | AO22: 3.682879648 | AP22: 3.918583945 | AQ22: 4.149780398 | AR22: 4.257674689 | AS22: 4.37688958 | AT22: 4.47755804 | AU22: 4.45517025 | AV22: =$E23*AV23 -> 4.46408059 | AW22: 4.504257316 | AX22: 4.553804146 | AY22: 4.663095446 | AZ22: 4.877597836 | BA22: 5.048313761 | BB22: 5.149280036 | BC22: 5.283161317 | BD22: 5.362408736 | BE22: 5.464294502 | BF22: 5.60636616 | BG22: 5.701674384 | BH22: 5.849917918 | BI22: 5.996165866 | BJ22: 6.277985662 | BK22: 6.485159189 | BL22: 6.621347532 | BM22: 6.694182355 | BN22: 6.814677637 | BO22: 6.910083124 | BP22: 6.986094038 | BQ22: 7.209649047 | BR22: 7.231277995 | BS22: 7.339747164 | BT22: 7.530580591 | BU22: 7.703783944 | BV22: 7.919489895 | BW22: 7.998684794 | BX22: 8.062674272 | BY22: 8.062674272 | BZ22: 8.062674272 | CA22: 8.062674272 | CB22: =$E23*CB23 -> 8.062674272 | CC22: 8.062674272 | CD22: 8.062674272 | CE22: 8.062674272 | CF22: 8.062674272 | CG22: 8.062674272 | CH22: 8.062674272 | CI22: 8.062674272 | CJ22: 8.062674272 | CK22: 8.062674272 | CL22: 8.062674272
B23: 1956 | C23: 0.01900826446 | D23: 1956 | E23: 1.019008264 | P23: 1 | Q23: =$E24*Q24 -> 1.064882401 | R23: 1.083265747 | S23: 1.092457421 | T23: 1.120302785 | U23: 1.138956475 | V23: 1.160854285 | W23: 1.205190592 | X23: 1.228089213 | Y23: 1.331248707 | Z23: 1.388492402 | AA23: 1.469024961 | AB23: 1.526316934 | AC23: 1.576685393 | AD23: 1.685476685 | AE23: 1.776492426 | AF23: 1.911505851 | AG23: 2.052957284 | AH23: 2.219246824 | AI23: 2.436733012 | AJ23: 2.697463445 | AK23: 2.921352911 | AL23: 3.120004909 | AM23: 3.251045115 | AN23: 3.374584829 | AO23: 3.614180352 | AP23: 3.845487895 | AQ23: 4.07237168 | AR23: 4.178253344 | AS23: 4.295244438 | AT23: 4.39403506 | AU23: 4.372064884 | AV23: 4.380809014 | AW23: =$E24*AW24 -> 4.420236295 | AX23: 4.468858895 | AY23: 4.576111508 | AZ23: 4.786612637 | BA23: 4.95414408 | BB23: 5.053226961 | BC23: 5.184610862 | BD23: 5.262380025 | BE23: 5.362365246 | BF23: 5.501786742 | BG23: 5.595317117 | BH23: 5.740795362 | BI23: 5.884315246 | BJ23: 6.160878062 | BK23: 6.364187038 | BL23: 6.497834966 | BM23: 6.569311151 | BN23: 6.687558752 | BO23: 6.781184574 | BP23: 6.855777604 | BQ23: 7.075162488 | BR23: 7.096387975 | BS23: 7.202833795 | BT23: 7.390107473 | BU23: 7.560079945 | BV23: 7.771762184 | BW23: 7.849479806 | BX23: 7.912275644 | BY23: 7.912275644 | BZ23: 7.912275644 | CA23: 7.912275644 | CB23: 7.912275644 | CC23: =$E24*CC24 -> 7.912275644 | CD23: 7.912275644 | CE23: 7.912275644 | CF23: 7.912275644 | CG23: 7.912275644 | CH23: 7.912275644 | CI23: 7.912275644 | CJ23: 7.912275644 | CK23: 7.912275644 | CL23: 7.912275644
B24: 1957 | C24: 0.06488240065 | D24: 1957 | E24: 1.064882401 | Q24: 1 | R24: =$E25*R25 -> 1.017263265 | S24: 1.025894897 | T24: 1.052043666 | U24: 1.069560802 | V24: 1.090124397 | W24: 1.13175933 | X24: 1.153262757 | Y24: 1.250136829 | Z24: 1.303892712 | AA24: 1.37951849 | AB24: 1.433319711 | AC24: 1.480619261 | AD24: 1.58278199 | AE24: 1.668252218 | AF24: 1.795039386 | AG24: 1.927872301 | AH24: 2.084029957 | AI24: 2.288264893 | AJ24: 2.533109236 | AK24: 2.743357303 | AL24: 2.9299056 | AM24: 3.052961635 | AN24: 3.168974177 | AO24: 3.393971344 | AP24: 3.61118551 | AQ24: 3.824245455 | AR24: 3.923675836 | AS24: 4.03353876 | AT24: 4.126310151 | AU24: 4.105678601 | AV24: 4.113889958 | AW24: 4.150914967 | AX24: =$E25*AX25 -> 4.196575032 | AY24: 4.297292833 | AZ24: 4.494968303 | BA24: 4.652292194 | BB24: 4.745338038 | BC24: 4.868716827 | BD24: 4.941747579 | BE24: 5.035640783 | BF24: 5.166567443 | BG24: 5.25439909 | BH24: 5.391013466 | BI24: 5.525788803 | BJ24: 5.785500877 | BK24: 5.976422405 | BL24: 6.101927276 | BM24: 6.169048476 | BN24: 6.280091349 | BO24: 6.368012627 | BP24: 6.438060766 | BQ24: 6.644078711 | BR24: 6.664010947 | BS24: 6.763971111 | BT24: 6.93983436 | BU24: 7.09945055 | BV24: 7.298235166 | BW24: 7.371217517 | BX24: 7.430187258 | BY24: 7.430187258 | BZ24: 7.430187258 | CA24: 7.430187258 | CB24: 7.430187258 | CC24: 7.430187258 | CD24: =$E25*CD25 -> 7.430187258 | CE24: 7.430187258 | CF24: 7.430187258 | CG24: 7.430187258 | CH24: 7.430187258 | CI24: 7.430187258 | CJ24: 7.430187258 | CK24: 7.430187258 | CL24: 7.430187258
B25: 1958 | C25: 0.01726326479 | D25: 1958 | E25: 1.017263265 | R25: 1 | S25: =$E26*S26 -> 1.008485151 | T25: 1.034190167 | U25: 1.051410032 | V25: 1.071624657 | W25: 1.112553032 | X25: 1.13369154 | Y25: 1.228921629 | Z25: 1.281765259 | AA25: 1.356107644 | AB25: 1.408995842 | AC25: 1.455492705 | AD25: 1.555921702 | AE25: 1.639941474 | AF25: 1.764577026 | AG25: 1.895155726 | AH25: 2.048663339 | AI25: 2.249432347 | AJ25: 2.490121608 | AK25: 2.696801701 | AL25: 2.880184217 | AM25: 3.001151954 | AN25: 3.115195728 | AO25: 3.336374625 | AP25: 3.549902601 | AQ25: 3.759346854 | AR25: 3.857089873 | AS25: 3.965088389 | AT25: 4.056285422 | AU25: 4.036003995 | AV25: 4.044076003 | AW25: 4.080472687 | AX25: 4.125357886 | AY25: =$E26*AY26 -> 4.224366476 | AZ25: 4.418687334 | BA25: 4.57334139 | BB25: 4.664808218 | BC25: 4.786093232 | BD25: 4.85788463 | BE25: 4.950184438 | BF25: 5.078889234 | BG25: 5.165230351 | BH25: 5.29952634 | BI25: 5.432014498 | BJ25: 5.68731918 | BK25: 5.875000713 | BL25: 5.998375727 | BM25: 6.06435786 | BN25: 6.173516302 | BO25: 6.25994553 | BP25: 6.328804931 | BQ25: 6.531326689 | BR25: 6.550920669 | BS25: 6.649184479 | BT25: 6.822063275 | BU25: 6.978970731 | BV25: 7.174381911 | BW25: 7.24612573 | BX25: 7.304094736 | BY25: 7.304094736 | BZ25: 7.304094736 | CA25: 7.304094736 | CB25: 7.304094736 | CC25: 7.304094736 | CD25: 7.304094736 | CE25: =$E26*CE26 -> 7.304094736 | CF25: 7.304094736 | CG25: 7.304094736 | CH25: 7.304094736 | CI25: 7.304094736 | CJ25: 7.304094736 | CK25: 7.304094736 | CL25: 7.304094736
B26: 1959 | C26: 0.008485150986 | D26: 1959 | E26: 1.008485151 | S26: 1 | T26: =$E27*T27 -> 1.02548874 | U26: 1.042563722 | V26: 1.062608265 | W26: 1.103192279 | X26: 1.124152932 | Y26: 1.218581779 | Z26: 1.270980795 | AA26: 1.344697681 | AB26: 1.397140891 | AC26: 1.44324654 | AD26: 1.542830552 | AE26: 1.626143401 | AF26: 1.7497303 | AG26: 1.879210342 | AH26: 2.03142638 | AI26: 2.230506165 | AJ26: 2.469170325 | AK26: 2.674111462 | AL26: 2.855951041 | AM26: 2.975900985 | AN26: 3.088985222 | AO26: 3.308303173 | AP26: 3.520034576 | AQ26: 3.727716616 | AR26: 3.824637248 | AS26: 3.931727091 | AT26: 4.022156814 | AU26: 4.00204603 | AV26: 4.010050122 | AW26: 4.046140573 | AX26: 4.09064812 | AY26: 4.188823674 | AZ26: =$E27*AZ27 -> 4.381509563 | BA26: 4.534862398 | BB26: 4.625559646 | BC26: 4.745824197 | BD26: 4.81701156 | BE26: 4.908534779 | BF26: 5.036156684 | BG26: 5.121771347 | BH26: 5.254937402 | BI26: 5.386310837 | BJ26: 5.639467447 | BK26: 5.825569873 | BL26: 5.94790684 | BM26: 6.013333815 | BN26: 6.121573824 | BO26: 6.207275857 | BP26: 6.275555892 | BQ26: 6.47637368 | BR26: 6.495802801 | BS26: 6.593239843 | BT26: 6.764664079 | BU26: 6.920251353 | BV26: 7.114018391 | BW26: 7.185158575 | BX26: 7.242639844 | BY26: 7.242639844 | BZ26: 7.242639844 | CA26: 7.242639844 | CB26: 7.242639844 | CC26: 7.242639844 | CD26: 7.242639844 | CE26: 7.242639844 | CF26: =$E27*CF27 -> 7.242639844 | CG26: 7.242639844 | CH26: 7.242639844 | CI26: 7.242639844 | CJ26: 7.242639844 | CK26: 7.242639844 | CL26: 7.242639844
B27: 1960 | C27: 0.02548874041 | D27: 1960 | E27: 1.02548874 | T27: 1 | U27: =$E28*U28 -> 1.016650579 | V27: 1.036196911 | W27: 1.075772201 | X27: 1.096211873 | Y27: 1.18829367 | Z27: 1.239390298 | AA27: 1.311274935 | AB27: 1.362414657 | AC27: 1.407374341 | AD27: 1.504483171 | AE27: 1.585725262 | AF27: 1.706240382 | AG27: 1.83250217 | AH27: 1.980934846 | AI27: 2.175066461 | AJ27: 2.407798572 | AK27: 2.607645853 | AL27: 2.784965771 | AM27: 2.901934334 | AN27: 3.012207839 | AO27: 3.226074595 | AP27: 3.432543369 | AQ27: 3.635063428 | AR27: 3.729575077 | AS27: 3.834003179 | AT27: 3.922185252 | AU27: 3.902574326 | AV27: 3.910379475 | AW27: 3.94557289 | AX27: 3.988974192 | AY27: 4.084709572 | AZ27: 4.272606213 | BA27: =$E28*BA28 -> 4.42214743 | BB27: 4.510590379 | BC27: 4.627865729 | BD27: 4.697283715 | BE27: 4.786532105 | BF27: 4.91098194 | BG27: 4.994468633 | BH27: 5.124324817 | BI27: 5.252432938 | BJ27: 5.499297286 | BK27: 5.680774096 | BL27: 5.800070352 | BM27: 5.863871126 | BN27: 5.969420806 | BO27: 6.052992698 | BP27: 6.119575617 | BQ27: 6.315402037 | BR27: 6.334348243 | BS27: 6.429363467 | BT27: 6.596526917 | BU27: 6.748247036 | BV27: 6.937197953 | BW27: 7.006569933 | BX27: 7.062622492 | BY27: 7.062622492 | BZ27: 7.062622492 | CA27: 7.062622492 | CB27: 7.062622492 | CC27: 7.062622492 | CD27: 7.062622492 | CE27: 7.062622492 | CF27: 7.062622492 | CG27: =$E28*CG28 -> 7.062622492 | CH27: 7.062622492 | CI27: 7.062622492 | CJ27: 7.062622492 | CK27: 7.062622492 | CL27: 7.062622492
B28: 1961 | C28: 0.01665057915 | D28: 1961 | E28: 1.016650579 | U28: 1 | V28: =$E29*V29 -> 1.019226205 | W28: 1.058153335 | X28: 1.078258248 | Y28: 1.168831941 | Z28: 1.219091715 | AA28: 1.289799034 | AB28: 1.340101196 | AC28: 1.384324536 | AD28: 1.479842929 | AE28: 1.559754447 | AF28: 1.678295785 | AG28: 1.802489673 | AH28: 1.948491337 | AI28: 2.139443488 | AJ28: 2.368363941 | AK28: 2.564938148 | AL28: 2.739353942 | AM28: 2.854406807 | AN28: 2.962874266 | AO28: 3.173238339 | AP28: 3.376325593 | AQ28: 3.575528803 | AR28: 3.668492552 | AS28: 3.771210343 | AT28: 3.857948181 | AU28: 3.83865844 | AV28: 3.846335757 | AW28: 3.880952779 | AX28: 3.923643259 | AY28: 4.017810697 | AZ28: 4.202629989 | BA28: 4.349722039 | BB28: =$E29*BB29 -> 4.43671648 | BC28: 4.552071108 | BD28: 4.620352175 | BE28: 4.708138866 | BF28: 4.830550477 | BG28: 4.912669835 | BH28: 5.040399251 | BI28: 5.166409232 | BJ28: 5.409230466 | BK28: 5.587735071 | BL28: 5.705077508 | BM28: 5.76783336 | BN28: 5.871654361 | BO28: 5.953857522 | BP28: 6.019349955 | BQ28: 6.211969153 | BR28: 6.230605061 | BS28: 6.324064136 | BT28: 6.488489804 | BU28: 6.63772507 | BV28: 6.823581371 | BW28: 6.891817185 | BX28: 6.946951723 | BY28: 6.946951723 | BZ28: 6.946951723 | CA28: 6.946951723 | CB28: 6.946951723 | CC28: 6.946951723 | CD28: 6.946951723 | CE28: 6.946951723 | CF28: 6.946951723 | CG28: 6.946951723 | CH28: =$E29*CH29 -> 6.946951723 | CI28: 6.946951723 | CJ28: 6.946951723 | CK28: 6.946951723 | CL28: 6.946951723
B29: 1962 | C29: 0.0192262046 | D29: 1962 | E29: 1.019226205 | V29: 1 | W29: =$E30*W30 -> 1.038192827 | X29: 1.057918491 | Y29: 1.146783644 | Z29: 1.196095341 | AA29: 1.265468871 | AB29: 1.314822157 | AC29: 1.358211288 | AD29: 1.451927867 | AE29: 1.530331971 | AF29: 1.646637201 | AG29: 1.768488354 | AH29: 1.911735911 | AI29: 2.09908603 | AJ29: 2.323688235 | AK29: 2.516554359 | AL29: 2.687680055 | AM29: 2.800562618 | AN29: 2.906983997 | AO29: 3.113379861 | AP29: 3.312636172 | AQ29: 3.508081706 | AR29: 3.59929183 | AS29: 3.700072002 | AT29: 3.785173658 | AU29: 3.766247789 | AV29: 3.773780285 | AW29: 3.807744307 | AX29: 3.849629495 | AY29: 3.942020603 | AZ29: 4.12335355 | BA29: 4.267670925 | BB29: 4.353024343 | BC29: =$E30*BC30 -> 4.466202976 | BD29: 4.533196021 | BE29: 4.619326745 | BF29: 4.739429241 | BG29: 4.819999538 | BH29: 4.945319526 | BI29: 5.068952514 | BJ29: 5.307193282 | BK29: 5.48233066 | BL29: 5.597459604 | BM29: 5.65903166 | BN29: 5.76089423 | BO29: 5.841546749 | BP29: 5.905803763 | BQ29: 6.094789483 | BR29: 6.113073852 | BS29: 6.20476996 | BT29: 6.366093979 | BU29: 6.51251414 | BV29: 6.694864536 | BW29: 6.761813181 | BX29: 6.815907687 | BY29: 6.815907687 | BZ29: 6.815907687 | CA29: 6.815907687 | CB29: 6.815907687 | CC29: 6.815907687 | CD29: 6.815907687 | CE29: 6.815907687 | CF29: 6.815907687 | CG29: 6.815907687 | CH29: 6.815907687 | CI29: =$E30*CI30 -> 6.815907687 | CJ29: 6.815907687 | CK29: 6.815907687 | CL29: 6.815907687
B30: 1963 | C30: 0.0381928272 | D30: 1963 | E30: 1.038192827 | W30: 1 | X30: =$E31*X31 -> 1.019 | Y30: 1.104596 | Z30: 1.152093628 | AA30: 1.218915058 | AB30: 1.266452746 | AC30: 1.308245686 | AD30: 1.398514639 | AE30: 1.474034429 | AF30: 1.586061046 | AG30: 1.703429563 | AH30: 1.841407358 | AI30: 2.021865279 | AJ30: 2.238204864 | AK30: 2.423975867 | AL30: 2.588806226 | AM30: 2.697536088 | AN30: 2.800042459 | AO30: 2.998845474 | AP30: 3.190771584 | AQ30: 3.379027108 | AR30: 3.466881812 | AS30: 3.563954503 | AT30: 3.645925457 | AU30: 3.627695829 | AV30: 3.634951221 | AW30: 3.667665782 | AX30: 3.708010106 | AY30: 3.797002348 | AZ30: 3.971664456 | BA30: 4.110672712 | BB30: 4.192886166 | BC30: 4.301901207 | BD30: =$E31*BD31 -> 4.366429725 | BE30: 4.44939189 | BF30: 4.565076079 | BG30: 4.642682372 | BH30: 4.763392114 | BI30: 4.882476917 | BJ30: 5.111953332 | BK30: 5.280647792 | BL30: 5.391541395 | BM30: 5.450848351 | BN30: 5.548963621 | BO30: 5.626649112 | BP30: 5.688542252 | BQ30: 5.870575604 | BR30: 5.888187331 | BS30: 5.976510141 | BT30: 6.131899404 | BU30: 6.272933091 | BV30: 6.448575217 | BW30: 6.513060969 | BX30: 6.565165457 | BY30: 6.565165457 | BZ30: 6.565165457 | CA30: 6.565165457 | CB30: 6.565165457 | CC30: 6.565165457 | CD30: 6.565165457 | CE30: 6.565165457 | CF30: 6.565165457 | CG30: 6.565165457 | CH30: 6.565165457 | CI30: 6.565165457 | CJ30: =$E31*CJ31 -> 6.565165457 | CK30: 6.565165457 | CL30: 6.565165457
B31: 1964 | C31: 0.019 | D31: 1964 | E31: 1.019 | X31: 1 | Y31: =$E32*Y32 -> 1.084 | Z31: 1.130612 | AA31: 1.196187496 | AB31: 1.242838808 | AC31: 1.283852489 | AD31: 1.372438311 | AE31: 1.44654998 | AF31: 1.556487778 | AG31: 1.671667874 | AH31: 1.807072971 | AI31: 1.984166123 | AJ31: 2.196471898 | AK31: 2.378779065 | AL31: 2.540536042 | AM31: 2.647238555 | AN31: 2.74783362 | AO31: 2.942929807 | AP31: 3.131277315 | AQ31: 3.316022677 | AR31: 3.402239266 | AS31: 3.497501966 | AT31: 3.577944511 | AU31: 3.560054788 | AV31: 3.567174898 | AW31: 3.599279472 | AX31: 3.638871546 | AY31: 3.726204463 | AZ31: 3.897609869 | BA31: 4.034026214 | BB31: 4.114706738 | BC31: 4.221689114 | BD31: 4.28501445 | BE31: =$E32*BE32 -> 4.366429725 | BF31: 4.479956898 | BG31: 4.556116165 | BH31: 4.674575185 | BI31: 4.791439565 | BJ31: 5.016637224 | BK31: 5.182186253 | BL31: 5.291012164 | BM31: 5.349213298 | BN31: 5.445499137 | BO31: 5.521736125 | BP31: 5.582475223 | BQ31: 5.76111443 | BR31: 5.778397773 | BS31: 5.86507374 | BT31: 6.017565657 | BU31: 6.155969667 | BV31: 6.328336818 | BW31: 6.391620186 | BX31: 6.442753147 | BY31: 6.442753147 | BZ31: 6.442753147 | CA31: 6.442753147 | CB31: 6.442753147 | CC31: 6.442753147 | CD31: 6.442753147 | CE31: 6.442753147 | CF31: 6.442753147 | CG31: 6.442753147 | CH31: 6.442753147 | CI31: 6.442753147 | CJ31: 6.442753147 | CK31: =$E32*CK32 -> 6.442753147 | CL31: 6.442753147
B32: 1965 | C32: 0.084 | D32: 1965 | E32: 1.084 | Y32: 1 | Z32: =$E33*Z33 -> 1.043 | AA32: 1.103494 | AB32: 1.146530266 | AC32: 1.184365765 | AD32: 1.266087003 | AE32: 1.334455701 | AF32: 1.435874334 | AG32: 1.542129035 | AH32: 1.667041486 | AI32: 1.830411552 | AJ32: 2.026265588 | AK32: 2.194445632 | AL32: 2.343667935 | AM32: 2.442101988 | AN32: 2.534901864 | AO32: 2.714879896 | AP32: 2.88863221 | AQ32: 3.05906151 | AR32: 3.138597109 | AS32: 3.226477828 | AT32: 3.300686818 | AU32: 3.284183384 | AV32: 3.290751751 | AW32: 3.320368517 | AX32: 3.35689257 | AY32: 3.437457992 | AZ32: 3.59558106 | BA32: 3.721426397 | BB32: 3.795854925 | BC32: 3.894547153 | BD32: 3.95296536 | BE32: 4.028071702 | BF32: =$E33*BF33 -> 4.132801566 | BG32: 4.203059193 | BH32: 4.312338732 | BI32: 4.4201472 | BJ32: 4.627894118 | BK32: 4.780614624 | BL32: 4.881007531 | BM32: 4.934698614 | BN32: 5.023523189 | BO32: 5.093852514 | BP32: 5.149884892 | BQ32: 5.314681208 | BR32: 5.330625252 | BS32: 5.410584631 | BT32: 5.551259831 | BU32: 5.678938807 | BV32: 5.837949094 | BW32: 5.896328585 | BX32: 5.943499213 | BY32: 5.943499213 | BZ32: 5.943499213 | CA32: 5.943499213 | CB32: 5.943499213 | CC32: 5.943499213 | CD32: 5.943499213 | CE32: 5.943499213 | CF32: 5.943499213 | CG32: 5.943499213 | CH32: 5.943499213 | CI32: 5.943499213 | CJ32: 5.943499213 | CK32: 5.943499213 | CL32: =$E33*CL33 -> 5.943499213
B33: 1966 | C33: 0.043 | D33: 1966 | E33: 1.043 | Z33: 1 | AA33: =$E34*AA34 -> 1.058 | AB33: 1.099262 | AC33: 1.135537646 | AD33: 1.213889744 | AE33: 1.27943979 | AF33: 1.376677214 | AG33: 1.478551328 | AH33: 1.598313985 | AI33: 1.754948756 | AJ33: 1.942728272 | AK33: 2.103974719 | AL33: 2.247045 | AM33: 2.34142089 | AN33: 2.430394884 | AO33: 2.602952921 | AP33: 2.769541907 | AQ33: 2.93294488 | AR33: 3.009201447 | AS33: 3.093459087 | AT33: 3.164608646 | AU33: 3.148785603 | AV33: 3.155083174 | AW33: 3.183478923 | AX33: 3.218497191 | AY33: 3.295741124 | AZ33: 3.447345215 | BA33: 3.568002298 | BB33: 3.639362344 | BC33: 3.733985765 | BD33: 3.789995551 | BE33: 3.862005467 | BF33: 3.962417609 | BG33: =$E34*BG34 -> 4.029778708 | BH33: 4.134552955 | BI33: 4.237916779 | BJ33: 4.437098867 | BK33: 4.58352313 | BL33: 4.679777116 | BM33: 4.731254664 | BN33: 4.816417248 | BO33: 4.883847089 | BP33: 4.937569407 | BQ33: 5.095571628 | BR33: 5.110858343 | BS33: 5.187521218 | BT33: 5.32239677 | BU33: 5.444811896 | BV33: 5.597266629 | BW33: 5.653239295 | BX33: 5.698465209 | BY33: 5.698465209 | BZ33: 5.698465209 | CA33: 5.698465209 | CB33: 5.698465209 | CC33: 5.698465209 | CD33: 5.698465209 | CE33: 5.698465209 | CF33: 5.698465209 | CG33: 5.698465209 | CH33: 5.698465209 | CI33: 5.698465209 | CJ33: 5.698465209 | CK33: 5.698465209 | CL33: 5.698465209
B34: 1967 | C34: 0.058 | D34: 1967 | E34: 1.058 | AA34: 1 | AB34: =$E35*AB35 -> 1.039 | AC34: 1.073287 | AD34: 1.147343803 | AE34: 1.209300368 | AF34: 1.301207196 | AG34: 1.397496529 | AH34: 1.510693748 | AI34: 1.658741735 | AJ34: 1.836227101 | AK34: 1.98863395 | AL34: 2.123861059 | AM34: 2.213063223 | AN34: 2.297159626 | AO34: 2.460257959 | AP34: 2.617714468 | AQ34: 2.772159622 | AR34: 2.844235772 | AS34: 2.923874374 | AT34: 2.991123484 | AU34: 2.976167867 | AV34: 2.982120203 | AW34: 3.008959284 | AX34: 3.042057837 | AY34: 3.115067225 | AZ34: 3.258360317 | BA34: 3.372402928 | BB34: 3.439850987 | BC34: 3.529287112 | BD34: 3.582226419 | BE34: 3.650288721 | BF34: 3.745196228 | BG34: 3.808864564 | BH34: =$E35*BH35 -> 3.907895042 | BI34: 4.005592418 | BJ34: 4.193855262 | BK34: 4.332252486 | BL34: 4.423229788 | BM34: 4.471885315 | BN34: 4.552379251 | BO34: 4.616112561 | BP34: 4.666889799 | BQ34: 4.816230272 | BR34: 4.830678963 | BS34: 4.903139148 | BT34: 5.030620766 | BU34: 5.146325043 | BV34: 5.290422144 | BW34: 5.343326366 | BX34: 5.386072977 | BY34: 5.386072977 | BZ34: 5.386072977 | CA34: 5.386072977 | CB34: 5.386072977 | CC34: 5.386072977 | CD34: 5.386072977 | CE34: 5.386072977 | CF34: 5.386072977 | CG34: 5.386072977 | CH34: 5.386072977 | CI34: 5.386072977 | CJ34: 5.386072977 | CK34: 5.386072977 | CL34: 5.386072977
B35: 1968 | C35: 0.039 | D35: 1968 | E35: 1.039 | AB35: 1 | AC35: =$E36*AC36 -> 1.033 | AD35: 1.104277 | AE35: 1.163907958 | AF35: 1.252364963 | AG35: 1.34503997 | AH35: 1.453988208 | AI35: 1.596479052 | AJ35: 1.767302311 | AK35: 1.913988402 | AL35: 2.044139614 | AM35: 2.129993477 | AN35: 2.21093323 | AO35: 2.367909489 | AP35: 2.519455696 | AQ35: 2.668103582 | AR35: 2.737474275 | AS35: 2.814123555 | AT35: 2.878848397 | AU35: 2.864454155 | AV35: 2.870183063 | AW35: 2.896014711 | AX35: 2.927870873 | AY35: 2.998139774 | AZ35: 3.136054203 | BA35: 3.2458161 | BB35: 3.310732422 | BC35: 3.396811465 | BD35: 3.447763637 | BE35: 3.513271146 | BF35: 3.604616196 | BG35: 3.665894671 | BH35: 3.761207933 | BI35: =$E36*BI36 -> 3.855238131 | BJ35: 4.036434323 | BK35: 4.169636656 | BL35: 4.257199026 | BM35: 4.304028215 | BN35: 4.381500723 | BO35: 4.442841733 | BP35: 4.491712992 | BQ35: 4.635447808 | BR35: 4.649354151 | BS35: 4.719094464 | BT35: 4.84179092 | BU35: 4.953152111 | BV35: 5.09184037 | BW35: 5.142758774 | BX35: 5.183900844 | BY35: 5.183900844 | BZ35: 5.183900844 | CA35: 5.183900844 | CB35: 5.183900844 | CC35: 5.183900844 | CD35: 5.183900844 | CE35: 5.183900844 | CF35: 5.183900844 | CG35: 5.183900844 | CH35: 5.183900844 | CI35: 5.183900844 | CJ35: 5.183900844 | CK35: 5.183900844 | CL35: 5.183900844
B36: 1969 | C36: 0.033 | D36: 1969 | E36: 1.033 | AC36: 1 | AD36: =$E37*AD37 -> 1.069 | AE36: 1.126726 | AF36: 1.212357176 | AG36: 1.302071607 | AH36: 1.407539407 | AI36: 1.545478269 | AJ36: 1.710844444 | AK36: 1.852844533 | AL36: 1.978837961 | AM36: 2.061949155 | AN36: 2.140303223 | AO36: 2.292264752 | AP36: 2.438969696 | AQ36: 2.582868908 | AR36: 2.6500235 | AS36: 2.724224158 | AT36: 2.786881314 | AU36: 2.772946907 | AV36: 2.778492801 | AW36: 2.803499236 | AX36: 2.834337728 | AY36: 2.902361833 | AZ36: 3.035870477 | BA36: 3.142125944 | BB36: 3.204968463 | BC36: 3.288297643 | BD36: 3.337622108 | BE36: 3.401036928 | BF36: 3.489463888 | BG36: 3.548784774 | BH36: 3.641053178 | BI36: 3.732079507 | BJ36: =$E37*BJ37 -> 3.907487244 | BK36: 4.036434323 | BL36: 4.121199444 | BM36: 4.166532638 | BN36: 4.241530226 | BO36: 4.300911649 | BP36: 4.348221677 | BQ36: 4.48736477 | BR36: 4.500826865 | BS36: 4.568339268 | BT36: 4.687116089 | BU36: 4.794919759 | BV36: 4.929177512 | BW36: 4.978469287 | BX36: 5.018297041 | BY36: 5.018297041 | BZ36: 5.018297041 | CA36: 5.018297041 | CB36: 5.018297041 | CC36: 5.018297041 | CD36: 5.018297041 | CE36: 5.018297041 | CF36: 5.018297041 | CG36: 5.018297041 | CH36: 5.018297041 | CI36: 5.018297041 | CJ36: 5.018297041 | CK36: 5.018297041 | CL36: 5.018297041
B37: 1970 | C37: 0.069 | D37: 1970 | E37: 1.069 | AD37: 1 | AE37: =$E38*AE38 -> 1.054 | AF37: 1.134104 | AG37: 1.218027696 | AH37: 1.316687939 | AI37: 1.445723357 | AJ37: 1.600415757 | AK37: 1.733250264 | AL37: 1.851111282 | AM37: 1.928857956 | AN37: 2.002154559 | AO37: 2.144307532 | AP37: 2.281543214 | AQ37: 2.416154264 | AR37: 2.478974275 | AS37: 2.548385555 | AT37: 2.606998422 | AU37: 2.59396343 | AV37: 2.599151357 | AW37: 2.622543719 | AX37: 2.6513917 | AY37: 2.715025101 | AZ37: 2.839916256 | BA37: 2.939313325 | BB37: 2.998099591 | BC37: 3.076050181 | BD37: 3.122190933 | BE37: 3.181512561 | BF37: 3.264231888 | BG37: 3.31972383 | BH37: 3.406036649 | BI37: 3.491187565 | BJ37: 3.655273381 | BK37: =$E38*BK38 -> 3.775897403 | BL37: 3.855191248 | BM37: 3.897598352 | BN37: 3.967755122 | BO37: 4.023303694 | BP37: 4.067560034 | BQ37: 4.197721956 | BR37: 4.210315121 | BS37: 4.273469848 | BT37: 4.384580064 | BU37: 4.485425406 | BV37: 4.611017317 | BW37: 4.65712749 | BX37: 4.69438451 | BY37: 4.69438451 | BZ37: 4.69438451 | CA37: 4.69438451 | CB37: 4.69438451 | CC37: 4.69438451 | CD37: 4.69438451 | CE37: 4.69438451 | CF37: 4.69438451 | CG37: 4.69438451 | CH37: 4.69438451 | CI37: 4.69438451 | CJ37: 4.69438451 | CK37: 4.69438451 | CL37: 4.69438451
B38: 1971 | C38: 0.054 | D38: 1971 | E38: 1.054 | AE38: 1 | AF38: =$E39*AF39 -> 1.076 | AG38: 1.155624 | AH38: 1.249229544 | AI38: 1.371654039 | AJ38: 1.518421022 | AK38: 1.644449966 | AL38: 1.756272564 | AM38: 1.830036012 | AN38: 1.89957738 | AO38: 2.034447374 | AP38: 2.164652006 | AQ38: 2.292366474 | AR38: 2.351968003 | AS38: 2.417823107 | AT38: 2.473433038 | AU38: 2.461065873 | AV38: 2.465988005 | AW38: 2.488181897 | AX38: 2.515551898 | AY38: 2.575925143 | AZ38: 2.6944177 | BA38: 2.788722319 | BB38: 2.844496766 | BC38: 2.918453682 | BD38: 2.962230487 | BE38: 3.018512866 | BF38: 3.096994201 | BG38: 3.149643102 | BH38: 3.231533823 | BI38: 3.312322168 | BJ38: 3.46800131 | BK38: 3.582445353 | BL38: =$E39*BL39 -> 3.657676706 | BM38: 3.69791115 | BN38: 3.76447355 | BO38: 3.81717618 | BP38: 3.859165118 | BQ38: 3.982658402 | BR38: 3.994606377 | BS38: 4.054525473 | BT38: 4.159943135 | BU38: 4.255621827 | BV38: 4.374779238 | BW38: 4.418527031 | BX38: 4.453875247 | BY38: 4.453875247 | BZ38: 4.453875247 | CA38: 4.453875247 | CB38: 4.453875247 | CC38: 4.453875247 | CD38: 4.453875247 | CE38: 4.453875247 | CF38: 4.453875247 | CG38: 4.453875247 | CH38: 4.453875247 | CI38: 4.453875247 | CJ38: 4.453875247 | CK38: 4.453875247 | CL38: 4.453875247
B39: 1972 | C39: 0.076 | D39: 1972 | E39: 1.076 | AF39: 1 | AG39: =$E40*AG40 -> 1.074 | AH39: 1.160994 | AI39: 1.274771412 | AJ39: 1.411171953 | AK39: 1.528299225 | AL39: 1.632223573 | AM39: 1.700776963 | AN39: 1.765406487 | AO39: 1.890750348 | AP39: 2.01175837 | AQ39: 2.130452114 | AR39: 2.185843869 | AS39: 2.247047497 | AT39: 2.29872959 | AU39: 2.287235942 | AV39: 2.291810413 | AW39: 2.312436707 | AX39: 2.337873511 | AY39: 2.393982475 | AZ39: 2.504105669 | BA39: 2.591749367 | BB39: 2.643584355 | BC39: 2.712317548 | BD39: 2.753002311 | BE39: 2.805309355 | BF39: 2.878247398 | BG39: 2.927177604 | BH39: 3.003284222 | BI39: 3.078366327 | BJ39: 3.223049545 | BK39: 3.32941018 | BL39: 3.399327794 | BM39: =$E40*BM40 -> 3.436720399 | BN39: 3.498581367 | BO39: 3.547561506 | BP39: 3.586584682 | BQ39: 3.701355392 | BR39: 3.712459458 | BS39: 3.76814635 | BT39: 3.866118155 | BU39: 3.955038873 | BV39: 4.065779961 | BW39: 4.106437761 | BX39: 4.139289263 | BY39: 4.139289263 | BZ39: 4.139289263 | CA39: 4.139289263 | CB39: 4.139289263 | CC39: 4.139289263 | CD39: 4.139289263 | CE39: 4.139289263 | CF39: 4.139289263 | CG39: 4.139289263 | CH39: 4.139289263 | CI39: 4.139289263 | CJ39: 4.139289263 | CK39: 4.139289263 | CL39: 4.139289263
B40: 1973 | C40: 0.074 | D40: 1973 | E40: 1.074 | AG40: 1 | AH40: =$E41*AH41 -> 1.081 | AI40: 1.186938 | AJ40: 1.313940366 | AK40: 1.422997416 | AL40: 1.519761241 | AM40: 1.583591213 | AN40: 1.643767679 | AO40: 1.760475184 | AP40: 1.873145596 | AQ40: 1.983661186 | AR40: 2.035236377 | AS40: 2.092222995 | AT40: 2.140344124 | AU40: 2.129642404 | AV40: 2.133901688 | AW40: 2.153106804 | AX40: 2.176790979 | AY40: 2.229033962 | AZ40: 2.331569524 | BA40: 2.413174458 | BB40: 2.461437947 | BC40: 2.525435333 | BD40: 2.563316863 | BE40: 2.612019884 | BF40: 2.679932401 | BG40: 2.725491252 | BH40: 2.796354024 | BI40: 2.866262875 | BJ40: 3.00097723 | BK40: 3.100009478 | BL40: 3.165109677 | BM40: 3.199925884 | BN40: =$E41*BN41 -> 3.25752455 | BO40: 3.303129894 | BP40: 3.339464322 | BQ40: 3.446327181 | BR40: 3.456666162 | BS40: 3.508516155 | BT40: 3.599737575 | BU40: 3.682531539 | BV40: 3.785642422 | BW40: 3.823498846 | BX40: 3.854086837 | BY40: 3.854086837 | BZ40: 3.854086837 | CA40: 3.854086837 | CB40: 3.854086837 | CC40: 3.854086837 | CD40: 3.854086837 | CE40: 3.854086837 | CF40: 3.854086837 | CG40: 3.854086837 | CH40: 3.854086837 | CI40: 3.854086837 | CJ40: 3.854086837 | CK40: 3.854086837 | CL40: 3.854086837
B41: 1974 | C41: 0.081 | D41: 1974 | E41: 1.081 | AH41: 1 | AI41: =$E42*AI42 -> 1.098 | AJ41: 1.215486 | AK41: 1.316371338 | AL41: 1.405884589 | AM41: 1.464931742 | AN41: 1.520599148 | AO41: 1.628561687 | AP41: 1.732789635 | AQ41: 1.835024224 | AR41: 1.882734854 | AS41: 1.93545143 | AT41: 1.979966812 | AU41: 1.970066978 | AV41: 1.974007112 | AW41: 1.991773176 | AX41: 2.013682681 | AY41: 2.062011066 | AZ41: 2.156863575 | BA41: 2.2323538 | BB41: 2.277000876 | BC41: 2.336202899 | BD41: 2.371245942 | BE41: 2.416299615 | BF41: 2.479123405 | BG41: 2.521268503 | BH41: 2.586821484 | BI41: 2.651492021 | BJ41: 2.776112146 | BK41: 2.867723847 | BL41: 2.927946048 | BM41: 2.960153454 | BN41: 3.013436216 | BO41: =$E42*BO42 -> 3.055624323 | BP41: 3.089236191 | BQ41: 3.188091749 | BR41: 3.197656024 | BS41: 3.245620865 | BT41: 3.330007007 | BU41: 3.406597168 | BV41: 3.501981889 | BW41: 3.537001708 | BX41: 3.565297722 | BY41: 3.565297722 | BZ41: 3.565297722 | CA41: 3.565297722 | CB41: 3.565297722 | CC41: 3.565297722 | CD41: 3.565297722 | CE41: 3.565297722 | CF41: 3.565297722 | CG41: 3.565297722 | CH41: 3.565297722 | CI41: 3.565297722 | CJ41: 3.565297722 | CK41: 3.565297722 | CL41: 3.565297722
B42: 1975 | C42: 0.098 | D42: 1975 | E42: 1.098 | AI42: 1 | AJ42: =$E43*AJ43 -> 1.107 | AK42: 1.198881 | AL42: 1.280404908 | AM42: 1.334181914 | AN42: 1.384880827 | AO42: 1.483207366 | AP42: 1.578132637 | AQ42: 1.671242463 | AR42: 1.714694767 | AS42: 1.76270622 | AT42: 1.803248463 | AU42: 1.794232221 | AV42: 1.797820685 | AW42: 1.814001071 | AX42: 1.833955083 | AY42: 1.877970005 | AZ42: 1.964356625 | BA42: 2.033109107 | BB42: 2.073771289 | BC42: 2.127689343 | BD42: 2.159604683 | BE42: 2.200637172 | BF42: 2.257853739 | BG42: 2.296237252 | BH42: 2.355939421 | BI42: 2.414837906 | BJ42: 2.528335288 | BK42: 2.611770352 | BL42: 2.66661753 | BM42: 2.695950323 | BN42: 2.744477428 | BO42: 2.782900112 | BP42: =$E43*BP43 -> 2.813512014 | BQ42: 2.903544398 | BR42: 2.912255031 | BS42: 2.955938857 | BT42: 3.032793267 | BU42: 3.102547512 | BV42: 3.189418842 | BW42: 3.221313031 | BX42: 3.247083535 | BY42: 3.247083535 | BZ42: 3.247083535 | CA42: 3.247083535 | CB42: 3.247083535 | CC42: 3.247083535 | CD42: 3.247083535 | CE42: 3.247083535 | CF42: 3.247083535 | CG42: 3.247083535 | CH42: 3.247083535 | CI42: 3.247083535 | CJ42: 3.247083535 | CK42: 3.247083535 | CL42: 3.247083535
B43: 1976 | C43: 0.107 | D43: 1976 | E43: 1.107 | AJ43: 1 | AK43: =$E44*AK44 -> 1.083 | AL43: 1.156644 | AM43: 1.205223048 | AN43: 1.251021524 | AO43: 1.339844052 | AP43: 1.425594071 | AQ43: 1.509704122 | AR43: 1.548956429 | AS43: 1.592327209 | AT43: 1.628950735 | AU43: 1.620805981 | AV43: 1.624047593 | AW43: 1.638664021 | AX43: 1.656689325 | AY43: 1.696449869 | AZ43: 1.774486563 | BA43: 1.836593593 | BB43: 1.873325465 | BC43: 1.922031927 | BD43: 1.950862406 | BE43: 1.987928791 | BF43: 2.03961494 | BG43: 2.074288394 | BH43: 2.128219892 | BI43: 2.18142539 | BJ43: 2.283952383 | BK43: 2.359322811 | BL43: 2.408868591 | BM43: 2.435366145 | BN43: 2.479202736 | BO43: 2.513911574 | BP43: 2.541564601 | BQ43: =$E44*BQ44 -> 2.622894668 | BR43: 2.630763352 | BS43: 2.670224803 | BT43: 2.739650648 | BU43: 2.802662613 | BV43: 2.881137166 | BW43: 2.909948537 | BX43: 2.933228126 | BY43: 2.933228126 | BZ43: 2.933228126 | CA43: 2.933228126 | CB43: 2.933228126 | CC43: 2.933228126 | CD43: 2.933228126 | CE43: 2.933228126 | CF43: 2.933228126 | CG43: 2.933228126 | CH43: 2.933228126 | CI43: 2.933228126 | CJ43: 2.933228126 | CK43: 2.933228126 | CL43: 2.933228126
B44: 1977 | C44: 0.083 | D44: 1977 | E44: 1.083 | AK44: 1 | AL44: =$E45*AL45 -> 1.068 | AM44: 1.112856 | AN44: 1.155144528 | AO44: 1.237159789 | AP44: 1.316338016 | AQ44: 1.394001959 | AR44: 1.43024601 | AS44: 1.470292898 | AT44: 1.504109635 | AU44: 1.496589087 | AV44: 1.499582265 | AW44: 1.513078505 | AX44: 1.529722369 | AY44: 1.566435706 | AZ44: 1.638491748 | BA44: 1.695838959 | BB44: 1.729755738 | BC44: 1.774729388 | BD44: 1.801350328 | BE44: 1.835575985 | BF44: 1.88330096 | BG44: 1.915317077 | BH44: 1.965115321 | BI44: 2.014243204 | BJ44: 2.108912634 | BK44: 2.178506751 | BL44: 2.224255393 | BM44: 2.248722202 | BN44: 2.289199202 | BO44: 2.321247991 | BP44: 2.346781719 | BQ44: 2.421878734 | BR44: =$E45*BR45 -> 2.42914437 | BS44: 2.465581535 | BT44: 2.529686655 | BU44: 2.587869448 | BV44: 2.660329793 | BW44: 2.686933091 | BX44: 2.708428556 | BY44: 2.708428556 | BZ44: 2.708428556 | CA44: 2.708428556 | CB44: 2.708428556 | CC44: 2.708428556 | CD44: 2.708428556 | CE44: 2.708428556 | CF44: 2.708428556 | CG44: 2.708428556 | CH44: 2.708428556 | CI44: 2.708428556 | CJ44: 2.708428556 | CK44: 2.708428556 | CL44: 2.708428556
B45: 1978 | C45: 0.068 | D45: 1978 | E45: =1+C45 -> 1.068 | AL45: 1 | AM45: =$E46*AM46 -> 1.042 | AN45: 1.081596 | AO45: 1.158389316 | AP45: 1.232526232 | AQ45: 1.30524528 | AR45: 1.339181657 | AS45: 1.376678744 | AT45: 1.408342355 | AU45: 1.401300643 | AV45: 1.404103244 | AW45: 1.416740173 | AX45: 1.432324315 | AY45: 1.466700099 | AZ45: 1.534168303 | BA45: 1.587864194 | BB45: 1.619621478 | BC45: 1.661731636 | BD45: 1.686657611 | BE45: 1.718704106 | BF45: 1.763390412 | BG45: 1.793368049 | BH45: 1.839995619 | BI45: 1.885995509 | BJ45: 1.974637298 | BK45: 2.039800329 | BL45: 2.082636136 | BM45: 2.105545133 | BN45: 2.143444946 | BO45: 2.173453175 | BP45: 2.19736116 | BQ45: 2.267676717 | BR45: 2.274479747 | BS45: =$E46*BS46 -> 2.308596943 | BT45: 2.368620464 | BU45: 2.423098734 | BV45: 2.490945499 | BW45: 2.515854954 | BX45: 2.535981794 | BY45: 2.535981794 | BZ45: 2.535981794 | CA45: 2.535981794 | CB45: 2.535981794 | CC45: 2.535981794 | CD45: 2.535981794 | CE45: 2.535981794 | CF45: 2.535981794 | CG45: 2.535981794 | CH45: 2.535981794 | CI45: 2.535981794 | CJ45: 2.535981794 | CK45: 2.535981794 | CL45: 2.535981794
B46: 1979 | C46: 0.042 | D46: 1979 | E46: 1.042 | AM46: 1 | AN46: =$E47*AN47 -> 1.038 | AO46: 1.111698 | AP46: 1.182846672 | AQ46: 1.252634626 | AR46: 1.285203126 | AS46: 1.321188813 | AT46: 1.351576156 | AU46: 1.344818275 | AV46: 1.347507912 | AW46: 1.359635483 | AX46: 1.374591473 | AY46: 1.407581669 | AZ46: 1.472330426 | BA46: 1.52386199 | BB46: 1.55433923 | BC46: 1.59475205 | BD46: 1.618673331 | BE46: 1.649428124 | BF46: 1.692313256 | BG46: 1.721082581 | BH46: 1.765830728 | BI46: 1.809976496 | BJ46: 1.895045392 | BK46: 1.957581889 | BL46: 1.998691109 | BM46: 2.020676711 | BN46: 2.057048892 | BO46: 2.085847577 | BP46: 2.1087919 | BQ46: 2.176273241 | BR46: 2.18280206 | BS46: 2.215544091 | BT46: =$E47*BT47 -> 2.273148238 | BU46: 2.325430647 | BV46: 2.390542705 | BW46: 2.414448132 | BX46: 2.433763717 | BY46: 2.433763717 | BZ46: 2.433763717 | CA46: 2.433763717 | CB46: 2.433763717 | CC46: 2.433763717 | CD46: 2.433763717 | CE46: 2.433763717 | CF46: 2.433763717 | CG46: 2.433763717 | CH46: 2.433763717 | CI46: 2.433763717 | CJ46: 2.433763717 | CK46: 2.433763717 | CL46: 2.433763717
B47: 1980 | C47: 0.038 | D47: 1980 | E47: 1.038 | AN47: 1 | AO47: =$E48*AO48 -> 1.071 | AP47: 1.139544 | AQ47: 1.206777096 | AR47: 1.2381533 | AS47: 1.272821593 | AT47: 1.30209649 | AU47: 1.295586007 | AV47: 1.298177179 | AW47: 1.309860774 | AX47: 1.324269242 | AY47: 1.356051704 | AZ47: 1.418430082 | BA47: 1.468075135 | BB47: 1.497436638 | BC47: 1.536369991 | BD47: 1.55941554 | BE47: 1.589044436 | BF47: 1.630359591 | BG47: 1.658075704 | BH47: 1.701185672 | BI47: 1.743715314 | BJ47: 1.825669934 | BK47: 1.885917042 | BL47: 1.9255213 | BM47: 1.946702034 | BN47: 1.981742671 | BO47: 2.009487068 | BP47: 2.031591426 | BQ47: 2.096602351 | BR47: 2.102892158 | BS47: 2.134435541 | BT47: 2.189930865 | BU47: =$E48*BU48 -> 2.240299275 | BV47: 2.303027654 | BW47: 2.326057931 | BX47: 2.344666394 | BY47: 2.344666394 | BZ47: 2.344666394 | CA47: 2.344666394 | CB47: 2.344666394 | CC47: 2.344666394 | CD47: 2.344666394 | CE47: 2.344666394 | CF47: 2.344666394 | CG47: 2.344666394 | CH47: 2.344666394 | CI47: 2.344666394 | CJ47: 2.344666394 | CK47: 2.344666394 | CL47: 2.344666394
B48: 1981 | C48: 0.071 | D48: 1981 | E48: 1.071 | AO48: 1 | AP48: =$E49*AP49 -> 1.064 | AQ48: 1.126776 | AR48: 1.156072176 | AS48: 1.188442197 | AT48: 1.215776367 | AU48: 1.209697486 | AV48: 1.212116881 | AW48: 1.223025933 | AX48: 1.236479218 | AY48: 1.266154719 | AZ48: 1.324397836 | BA48: 1.37075176 | BB48: 1.398166796 | BC48: 1.434519132 | BD48: 1.456036919 | BE48: 1.483701621 | BF48: 1.522277863 | BG48: 1.548156586 | BH48: 1.588408658 | BI48: 1.628118874 | BJ48: 1.704640461 | BK48: 1.760893596 | BL48: 1.797872362 | BM48: 1.817648958 | BN48: 1.850366639 | BO48: 1.876271772 | BP48: 1.896910762 | BQ48: 1.957611906 | BR48: 1.963484742 | BS48: 1.992937013 | BT48: 2.044753375 | BU48: 2.091782703 | BV48: =$E49*BV49 -> 2.150352619 | BW48: 2.171856145 | BX48: 2.189230994 | BY48: 2.189230994 | BZ48: 2.189230994 | CA48: 2.189230994 | CB48: 2.189230994 | CC48: 2.189230994 | CD48: 2.189230994 | CE48: 2.189230994 | CF48: 2.189230994 | CG48: 2.189230994 | CH48: 2.189230994 | CI48: 2.189230994 | CJ48: 2.189230994 | CK48: 2.189230994 | CL48: 2.189230994
B49: 1982 | C49: 0.064 | D49: 1982 | E49: 1.064 | AP49: 1 | AQ49: =$E50*AQ50 -> 1.059 | AR49: 1.086534 | AS49: 1.116956952 | AT49: 1.142646962 | AU49: 1.136933727 | AV49: 1.139207595 | AW49: 1.149460463 | AX49: 1.162104528 | AY49: 1.189995037 | AZ49: 1.244734808 | BA49: 1.288300527 | BB49: 1.314066537 | BC49: 1.348232267 | BD49: 1.368455751 | BE49: 1.39445641 | BF49: 1.430712277 | BG49: 1.455034386 | BH49: 1.49286528 | BI49: 1.530186912 | BJ49: 1.602105697 | BK49: 1.654975185 | BL49: 1.689729664 | BM49: 1.70831669 | BN49: 1.73906639 | BO49: 1.76341332 | BP49: 1.782810866 | BQ49: 1.839860814 | BR49: 1.845380396 | BS49: 1.873061102 | BT49: 1.921760691 | BU49: 1.965961187 | BV49: 2.0210081 | BW49: 2.041218181 | BX49: 2.057547927 | BY49: 2.057547927 | BZ49: 2.057547927 | CA49: 2.057547927 | CB49: 2.057547927 | CC49: 2.057547927 | CD49: 2.057547927 | CE49: 2.057547927 | CF49: 2.057547927 | CG49: 2.057547927 | CH49: 2.057547927 | CI49: 2.057547927 | CJ49: 2.057547927 | CK49: 2.057547927 | CL49: 2.057547927
B50: 1983 | C50: 0.059 | D50: 1983 | E50: 1.059 | AQ50: 1 | AR50: =$E51*AR51 -> 1.026 | AS50: 1.054728 | AT50: 1.078986744 | AU50: 1.07359181 | AV50: 1.075738994 | AW50: 1.085420645 | AX50: 1.097360272 | AY50: 1.123696918 | AZ50: 1.175386977 | BA50: 1.216525521 | BB50: 1.240856031 | BC50: 1.273118288 | BD50: 1.292215062 | BE50: 1.316767149 | BF50: 1.351003095 | BG50: 1.373970147 | BH50: 1.409693371 | BI50: 1.444935705 | BJ50: 1.512847683 | BK50: 1.562771657 | BL50: 1.595589862 | BM50: 1.61314135 | BN50: 1.642177894 | BO50: 1.665168385 | BP50: 1.683485237 | BQ50: 1.737356765 | BR50: 1.742568835 | BS50: 1.768707368 | BT50: 1.814693759 | BU50: 1.856431716 | BV50: 1.908411804 | BW50: 1.927495922 | BX50: 1.942915889 | BY50: 1.942915889 | BZ50: 1.942915889 | CA50: 1.942915889 | CB50: 1.942915889 | CC50: 1.942915889 | CD50: 1.942915889 | CE50: 1.942915889 | CF50: 1.942915889 | CG50: 1.942915889 | CH50: 1.942915889 | CI50: 1.942915889 | CJ50: 1.942915889 | CK50: 1.942915889 | CL50: 1.942915889
B51: 1984 | C51: 0.026 | D51: 1984 | E51: 1.026 | AR51: 1 | AS51: =$E52*AS52 -> 1.028 | AT51: 1.051644 | AU51: 1.04638578 | AV51: 1.048478552 | AW51: 1.057914859 | AX51: 1.069551922 | AY51: 1.095221168 | AZ51: 1.145601342 | BA51: 1.185697389 | BB51: 1.209411337 | BC51: 1.240856031 | BD51: 1.259468872 | BE51: 1.28339878 | BF51: 1.316767149 | BG51: 1.33915219 | BH51: 1.373970147 | BI51: 1.408319401 | BJ51: 1.474510413 | BK51: 1.523169256 | BL51: 1.555155811 | BM51: 1.572262525 | BN51: 1.60056325 | BO51: 1.622971135 | BP51: 1.640823818 | BQ51: 1.69333018 | BR51: 1.698410171 | BS51: 1.723886323 | BT51: 1.768707368 | BU51: 1.809387637 | BV51: 1.860050491 | BW51: 1.878650996 | BX51: 1.893680204 | BY51: 1.893680204 | BZ51: 1.893680204 | CA51: 1.893680204 | CB51: 1.893680204 | CC51: 1.893680204 | CD51: 1.893680204 | CE51: 1.893680204 | CF51: 1.893680204 | CG51: 1.893680204 | CH51: 1.893680204 | CI51: 1.893680204 | CJ51: 1.893680204 | CK51: 1.893680204 | CL51: 1.893680204
B52: 1985 | C52: 0.028 | D52: 1985 | E52: 1.028 | AS52: 1 | AT52: =$E53*AT53 -> 1.023 | AU52: 1.017885 | AV52: 1.01992077 | AW52: 1.029100057 | AX52: 1.040420158 | AY52: 1.065390241 | AZ52: 1.114398192 | BA52: 1.153402129 | BB52: 1.176470172 | BC52: 1.207058396 | BD52: 1.225164272 | BE52: 1.248442393 | BF52: 1.280901896 | BG52: 1.302677228 | BH52: 1.336546836 | BI52: 1.369960507 | BJ52: 1.43434865 | BK52: 1.481682156 | BL52: 1.512797481 | BM52: 1.529438253 | BN52: 1.556968142 | BO52: 1.578765696 | BP52: 1.596132119 | BQ52: 1.647208346 | BR52: 1.652149971 | BS52: 1.676932221 | BT52: 1.720532459 | BU52: 1.760104705 | BV52: 1.809387637 | BW52: 1.827481513 | BX52: 1.842101366 | BY52: 1.842101366 | BZ52: 1.842101366 | CA52: 1.842101366 | CB52: 1.842101366 | CC52: 1.842101366 | CD52: 1.842101366 | CE52: 1.842101366 | CF52: 1.842101366 | CG52: 1.842101366 | CH52: 1.842101366 | CI52: 1.842101366 | CJ52: 1.842101366 | CK52: 1.842101366 | CL52: 1.842101366
B53: 1986 | C53: 0.023 | D53: 1986 | E53: 1.023 | AT53: 1 | AU53: =$E54*AU54 -> 0.995 | AV53: 0.99699 | AW53: 1.00596291 | AX53: 1.017028502 | AY53: 1.041437186 | AZ53: 1.089343297 | BA53: 1.127470312 | BB53: 1.150019718 | BC53: 1.179920231 | BD53: 1.197619034 | BE53: 1.220373796 | BF53: 1.252103515 | BG53: 1.273389274 | BH53: 1.306497396 | BI53: 1.339159831 | BJ53: 1.402100343 | BK53: 1.448369654 | BL53: 1.478785417 | BM53: 1.495052056 | BN53: 1.521962993 | BO53: 1.543270475 | BP53: 1.56024645 | BQ53: 1.610174337 | BR53: 1.61500486 | BS53: 1.639229933 | BT53: 1.681849911 | BU53: 1.720532459 | BV53: 1.768707368 | BW53: 1.786394441 | BX53: 1.800685597 | BY53: 1.800685597 | BZ53: 1.800685597 | CA53: 1.800685597 | CB53: 1.800685597 | CC53: 1.800685597 | CD53: 1.800685597 | CE53: 1.800685597 | CF53: 1.800685597 | CG53: 1.800685597 | CH53: 1.800685597 | CI53: 1.800685597 | CJ53: 1.800685597 | CK53: 1.800685597 | CL53: 1.800685597
B54: 1987 | C54: -0.005 | D54: 1987 | E54: 0.995 | AU54: 1 | AV54: =$E55*AV55 -> 1.002 | AW54: 1.011018 | AX54: 1.022139198 | AY54: 1.046670539 | AZ54: 1.094817384 | BA54: 1.133135992 | BB54: 1.155798712 | BC54: 1.185849478 | BD54: 1.20363722 | BE54: 1.226506328 | BF54: 1.258395492 | BG54: 1.279788216 | BH54: 1.313062709 | BI54: 1.345889277 | BJ54: 1.409146073 | BK54: 1.455647893 | BL54: 1.486216499 | BM54: 1.502564881 | BN54: 1.529611048 | BO54: 1.551025603 | BP54: 1.568086885 | BQ54: 1.618265665 | BR54: 1.623120462 | BS54: 1.647467269 | BT54: 1.690301418 | BU54: 1.729178351 | BV54: 1.777595344 | BW54: 1.795371298 | BX54: 1.809734268 | BY54: 1.809734268 | BZ54: 1.809734268 | CA54: 1.809734268 | CB54: 1.809734268 | CC54: 1.809734268 | CD54: 1.809734268 | CE54: 1.809734268 | CF54: 1.809734268 | CG54: 1.809734268 | CH54: 1.809734268 | CI54: 1.809734268 | CJ54: 1.809734268 | CK54: 1.809734268 | CL54: 1.809734268
B55: 1988 | C55: 0.002 | D55: 1988 | E55: 1.002 | AV55: 1 | AW55: =$E56*AW56 -> 1.009 | AX55: 1.020099 | AY55: 1.044581376 | AZ55: 1.092632119 | BA55: 1.130874243 | BB55: 1.153491728 | BC55: 1.183482513 | BD55: 1.201234751 | BE55: 1.224058211 | BF55: 1.255883725 | BG55: 1.277233748 | BH55: 1.310441826 | BI55: 1.343202871 | BJ55: 1.406333406 | BK55: 1.452742408 | BL55: 1.483249999 | BM55: 1.499565749 | BN55: 1.526557933 | BO55: 1.547929744 | BP55: 1.564956971 | BQ55: 1.615035594 | BR55: 1.619880701 | BS55: 1.644178911 | BT55: 1.686927563 | BU55: 1.725726897 | BV55: 1.77404725 | BW55: 1.791787722 | BX55: 1.806122024 | BY55: 1.806122024 | BZ55: 1.806122024 | CA55: 1.806122024 | CB55: 1.806122024 | CC55: 1.806122024 | CD55: 1.806122024 | CE55: 1.806122024 | CF55: 1.806122024 | CG55: 1.806122024 | CH55: 1.806122024 | CI55: 1.806122024 | CJ55: 1.806122024 | CK55: 1.806122024 | CL55: 1.806122024
B56: 1989 | C56: 0.009 | D56: 1989 | E56: 1.009 | AW56: 1 | AX56: =$E57*AX57 -> 1.011 | AY56: 1.035264 | AZ56: 1.082886144 | BA56: 1.120787159 | BB56: 1.143202902 | BC56: 1.172926178 | BD56: 1.19052007 | BE56: 1.213139952 | BF56: 1.24468159 | BG56: 1.265841177 | BH56: 1.298753048 | BI56: 1.331221874 | BJ56: 1.393789302 | BK56: 1.439784349 | BL56: 1.470019821 | BM56: 1.486190039 | BN56: 1.512941459 | BO56: 1.53412264 | BP56: 1.550997989 | BQ56: 1.600629925 | BR56: 1.605431814 | BS56: 1.629513292 | BT56: 1.671880637 | BU56: 1.710333892 | BV56: 1.758223241 | BW56: 1.775805473 | BX56: 1.790011917 | BY56: 1.790011917 | BZ56: 1.790011917 | CA56: 1.790011917 | CB56: 1.790011917 | CC56: 1.790011917 | CD56: 1.790011917 | CE56: 1.790011917 | CF56: 1.790011917 | CG56: 1.790011917 | CH56: 1.790011917 | CI56: 1.790011917 | CJ56: 1.790011917 | CK56: 1.790011917 | CL56: 1.790011917
B57: 1990 | C57: 0.011 | D57: 1990 | E57: 1.011 | AX57: 1 | AY57: =$E58*AY58 -> 1.024 | AZ57: 1.071104 | BA57: 1.10859264 | BB57: 1.130764493 | BC57: 1.16016437 | BD57: 1.177566835 | BE57: 1.199940605 | BF57: 1.231139061 | BG57: 1.252068425 | BH57: 1.284622204 | BI57: 1.316737759 | BJ57: 1.378624434 | BK57: 1.42411904 | BL57: 1.45402554 | BM57: 1.470019821 | BN57: 1.496480177 | BO57: 1.5174309 | BP57: 1.53412264 | BQ57: 1.583214564 | BR57: 1.587964208 | BS57: 1.611783671 | BT57: 1.653690047 | BU57: 1.691724918 | BV57: 1.739093215 | BW57: 1.756484147 | BX57: 1.770536021 | BY57: 1.770536021 | BZ57: 1.770536021 | CA57: 1.770536021 | CB57: 1.770536021 | CC57: 1.770536021 | CD57: 1.770536021 | CE57: 1.770536021 | CF57: 1.770536021 | CG57: 1.770536021 | CH57: 1.770536021 | CI57: 1.770536021 | CJ57: 1.770536021 | CK57: 1.770536021 | CL57: 1.770536021
B58: 1991 | C58: 0.024 | D58: 1991 | E58: 1.024 | AY58: 1 | AZ58: =$E59*AZ59 -> 1.046 | BA58: 1.08261 | BB58: 1.1042622 | BC58: 1.132973017 | BD58: 1.149967612 | BE58: 1.171816997 | BF58: 1.202284239 | BG58: 1.222723071 | BH58: 1.254513871 | BI58: 1.285876718 | BJ58: 1.346312923 | BK58: 1.39074125 | BL58: 1.419946816 | BM58: 1.435566231 | BN58: 1.461406423 | BO58: 1.481866113 | BP58: 1.49816664 | BQ58: 1.546107973 | BR58: 1.550746297 | BS58: 1.574007491 | BT58: 1.614931686 | BU58: 1.652075115 | BV58: 1.698333218 | BW58: 1.71531655 | BX58: 1.729039083 | BY58: 1.729039083 | BZ58: 1.729039083 | CA58: 1.729039083 | CB58: 1.729039083 | CC58: 1.729039083 | CD58: 1.729039083 | CE58: 1.729039083 | CF58: 1.729039083 | CG58: 1.729039083 | CH58: 1.729039083 | CI58: 1.729039083 | CJ58: 1.729039083 | CK58: 1.729039083 | CL58: 1.729039083
B59: 1992 | C59: 0.046 | D59: 1992 | E59: 1.046 | AZ59: 1 | BA59: =$E60*BA60 -> 1.035 | BB59: 1.0557 | BC59: 1.0831482 | BD59: 1.099395423 | BE59: 1.120283936 | BF59: 1.149411318 | BG59: 1.168951311 | BH59: 1.199344045 | BI59: 1.229327646 | BJ59: 1.287106045 | BK59: 1.329580545 | BL59: 1.357501736 | BM59: 1.372434255 | BN59: 1.397138072 | BO59: 1.416698005 | BP59: 1.432281683 | BQ59: 1.478114697 | BR59: 1.482549041 | BS59: 1.504787277 | BT59: 1.543911746 | BU59: 1.579421716 | BV59: 1.623645524 | BW59: 1.639881979 | BX59: 1.653001035 | BY59: 1.653001035 | BZ59: 1.653001035 | CA59: 1.653001035 | CB59: 1.653001035 | CC59: 1.653001035 | CD59: 1.653001035 | CE59: 1.653001035 | CF59: 1.653001035 | CG59: 1.653001035 | CH59: 1.653001035 | CI59: 1.653001035 | CJ59: 1.653001035 | CK59: 1.653001035 | CL59: 1.653001035
B60: 1993 | C60: 0.035 | D60: 1993 | E60: 1.035 | BA60: 1 | BB60: =$E61*BB61 -> 1.02 | BC60: 1.04652 | BD60: 1.0622178 | BE60: 1.082399938 | BF60: 1.110542337 | BG60: 1.129421556 | BH60: 1.158786517 | BI60: 1.18775618 | BJ60: 1.24358072 | BK60: 1.284618884 | BL60: 1.31159588 | BM60: 1.326023435 | BN60: 1.349891857 | BO60: 1.368790343 | BP60: 1.383847037 | BQ60: 1.428130142 | BR60: 1.432414532 | BS60: 1.45390075 | BT60: 1.49170217 | BU60: 1.52601132 | BV60: 1.568739637 | BW60: 1.584427033 | BX60: 1.597102449 | BY60: 1.597102449 | BZ60: 1.597102449 | CA60: 1.597102449 | CB60: 1.597102449 | CC60: 1.597102449 | CD60: 1.597102449 | CE60: 1.597102449 | CF60: 1.597102449 | CG60: 1.597102449 | CH60: 1.597102449 | CI60: 1.597102449 | CJ60: 1.597102449 | CK60: 1.597102449 | CL60: 1.597102449
B61: 1994 | C61: 0.02 | D61: 1994 | E61: 1.02 | BB61: 1 | BC61: =$E62*BC62 -> 1.026 | BD61: 1.04139 | BE61: 1.06117641 | BF61: 1.088766997 | BG61: 1.107276036 | BH61: 1.136065213 | BI61: 1.164466843 | BJ61: 1.219196784 | BK61: 1.259430278 | BL61: 1.285878314 | BM61: 1.300022976 | BN61: 1.323423389 | BO61: 1.341951317 | BP61: 1.356712781 | BQ61: 1.40012759 | BR61: 1.404327973 | BS61: 1.425392892 | BT61: 1.462453108 | BU61: 1.496089529 | BV61: 1.537980036 | BW61: 1.553359836 | BX61: 1.565786715 | BY61: 1.565786715 | BZ61: 1.565786715 | CA61: 1.565786715 | CB61: 1.565786715 | CC61: 1.565786715 | CD61: 1.565786715 | CE61: 1.565786715 | CF61: 1.565786715 | CG61: 1.565786715 | CH61: 1.565786715 | CI61: 1.565786715 | CJ61: 1.565786715 | CK61: 1.565786715 | CL61: 1.565786715
B62: 1995 | C62: 0.026 | D62: 1995 | E62: 1.026 | BC62: 1 | BD62: =$E63*BD63 -> 1.015 | BE62: 1.034285 | BF62: 1.06117641 | BG62: 1.079216409 | BH62: 1.107276036 | BI62: 1.134957936 | BJ62: 1.18830096 | BK62: 1.227514891 | BL62: 1.253292704 | BM62: 1.267078924 | BN62: 1.289886344 | BO62: 1.307944753 | BP62: 1.322332145 | BQ62: 1.364646774 | BR62: 1.368740714 | BS62: 1.389271825 | BT62: 1.425392892 | BU62: 1.458176929 | BV62: 1.499005883 | BW62: 1.513995942 | BX62: 1.526107909 | BY62: 1.526107909 | BZ62: 1.526107909 | CA62: 1.526107909 | CB62: 1.526107909 | CC62: 1.526107909 | CD62: 1.526107909 | CE62: 1.526107909 | CF62: 1.526107909 | CG62: 1.526107909 | CH62: 1.526107909 | CI62: 1.526107909 | CJ62: 1.526107909 | CK62: 1.526107909 | CL62: 1.526107909
B63: 1996 | C63: 0.015 | D63: 1996 | E63: 1.015 | BD63: 1 | BE63: =$E64*BE64 -> 1.019 | BF63: 1.045494 | BG63: 1.063267398 | BH63: 1.09091235 | BI63: 1.118185159 | BJ63: 1.170739862 | BK63: 1.209374277 | BL63: 1.234771137 | BM63: 1.248353619 | BN63: 1.270823984 | BO63: 1.28861552 | BP63: 1.302790291 | BQ63: 1.34447958 | BR63: 1.348513019 | BS63: 1.368740714 | BT63: 1.404327973 | BU63: 1.436627516 | BV63: 1.476853087 | BW63: 1.491621618 | BX63: 1.503554591 | BY63: 1.503554591 | BZ63: 1.503554591 | CA63: 1.503554591 | CB63: 1.503554591 | CC63: 1.503554591 | CD63: 1.503554591 | CE63: 1.503554591 | CF63: 1.503554591 | CG63: 1.503554591 | CH63: 1.503554591 | CI63: 1.503554591 | CJ63: 1.503554591 | CK63: 1.503554591 | CL63: 1.503554591
B64: 1997 | C64: 0.019 | D64: 1997 | E64: 1.019 | BE64: 1 | BF64: =$E65*BF65 -> 1.026 | BG64: 1.043442 | BH64: 1.070571492 | BI64: 1.097335779 | BJ64: 1.148910561 | BK64: 1.186824609 | BL64: 1.211747926 | BM64: 1.225077153 | BN64: 1.247128542 | BO64: 1.264588342 | BP64: 1.278498814 | BQ64: 1.319410776 | BR64: 1.323369008 | BS64: 1.343219543 | BT64: 1.378143251 | BU64: 1.409840546 | BV64: 1.449316081 | BW64: 1.463809242 | BX64: 1.475519716 | BY64: 1.475519716 | BZ64: 1.475519716 | CA64: 1.475519716 | CB64: 1.475519716 | CC64: 1.475519716 | CD64: 1.475519716 | CE64: 1.475519716 | CF64: 1.475519716 | CG64: 1.475519716 | CH64: 1.475519716 | CI64: 1.475519716 | CJ64: 1.475519716 | CK64: 1.475519716 | CL64: 1.475519716
B65: 1998 | C65: 0.026 | D65: 1998 | E65: 1.026 | BF65: 1 | BG65: =$E66*BG66 -> 1.017 | BH65: 1.043442 | BI65: 1.06952805 | BJ65: 1.119795868 | BK65: 1.156749132 | BL65: 1.181040864 | BM65: 1.194032313 | BN65: 1.215524895 | BO65: 1.232542243 | BP65: 1.246100208 | BQ65: 1.285975415 | BR65: 1.289833341 | BS65: 1.309180841 | BT65: 1.343219543 | BU65: 1.374113593 | BV65: 1.412588773 | BW65: 1.426714661 | BX65: 1.438128378 | BY65: 1.438128378 | BZ65: 1.438128378 | CA65: 1.438128378 | CB65: 1.438128378 | CC65: 1.438128378 | CD65: 1.438128378 | CE65: 1.438128378 | CF65: 1.438128378 | CG65: 1.438128378 | CH65: 1.438128378 | CI65: 1.438128378 | CJ65: 1.438128378 | CK65: 1.438128378 | CL65: 1.438128378
B66: 1999 | C66: 0.017 | D66: 1999 | E66: 1.017 | BG66: 1 | BH66: =$E67*BH67 -> 1.026 | BI66: 1.05165 | BJ66: 1.10107755 | BK66: 1.137413109 | BL66: 1.161298784 | BM66: 1.174073071 | BN66: 1.195206386 | BO66: 1.211939276 | BP66: 1.225270608 | BQ66: 1.264479267 | BR66: 1.268272705 | BS66: 1.287296796 | BT66: 1.320766512 | BU66: 1.351144142 | BV66: 1.388976178 | BW66: 1.40286594 | BX66: 1.414088867 | BY66: 1.414088867 | BZ66: 1.414088867 | CA66: 1.414088867 | CB66: 1.414088867 | CC66: 1.414088867 | CD66: 1.414088867 | CE66: 1.414088867 | CF66: 1.414088867 | CG66: 1.414088867 | CH66: 1.414088867 | CI66: 1.414088867 | CJ66: 1.414088867 | CK66: 1.414088867 | CL66: 1.414088867
B67: 2000 | C67: 0.026 | D67: 2000 | E67: 1.026 | BH67: 1 | BI67: =$E68*BI68 -> 1.025 | BJ67: 1.073175 | BK67: 1.108589775 | BL67: 1.13187016 | BM67: 1.144320732 | BN67: 1.164918505 | BO67: 1.181227364 | BP67: 1.194220865 | BQ67: 1.232435933 | BR67: 1.236133241 | BS67: 1.254675239 | BT67: 1.287296796 | BU67: 1.316904622 | BV67: 1.353777951 | BW67: 1.367315731 | BX67: 1.378254257 | BY67: 1.378254257 | BZ67: 1.378254257 | CA67: 1.378254257 | CB67: 1.378254257 | CC67: 1.378254257 | CD67: 1.378254257 | CE67: 1.378254257 | CF67: 1.378254257 | CG67: 1.378254257 | CH67: 1.378254257 | CI67: 1.378254257 | CJ67: 1.378254257 | CK67: 1.378254257 | CL67: 1.378254257
B68: 2001 | C68: 0.025 | D68: 2001 | E68: 1.025 | BI68: 1 | BJ68: =$E69*BJ69 -> 1.047 | BK68: 1.081551 | BL68: 1.104263571 | BM68: 1.11641047 | BN68: 1.136505859 | BO68: 1.152416941 | BP68: 1.165093527 | BQ68: 1.20237652 | BR68: 1.20598365 | BS68: 1.224073404 | BT68: 1.255899313 | BU68: 1.284784997 | BV68: 1.320758977 | BW68: 1.333966567 | BX68: 1.344638299 | BY68: 1.344638299 | BZ68: 1.344638299 | CA68: 1.344638299 | CB68: 1.344638299 | CC68: 1.344638299 | CD68: 1.344638299 | CE68: 1.344638299 | CF68: 1.344638299 | CG68: 1.344638299 | CH68: 1.344638299 | CI68: 1.344638299 | CJ68: 1.344638299 | CK68: 1.344638299 | CL68: 1.344638299
B69: 2002 | C69: 0.047 | D69: 2002 | E69: 1.047 | BJ69: 1 | BK69: =$E70*BK70 -> 1.033 | BL69: 1.054693 | BM69: 1.066294623 | BN69: 1.085487926 | BO69: 1.100684757 | BP69: 1.11279229 | BQ69: 1.148401643 | BR69: 1.151846848 | BS69: 1.16912455 | BT69: 1.199521789 | BU69: 1.22711079 | BV69: 1.261469892 | BW69: 1.274084591 | BX69: 1.284277268 | BY69: 1.284277268 | BZ69: 1.284277268 | CA69: 1.284277268 | CB69: 1.284277268 | CC69: 1.284277268 | CD69: 1.284277268 | CE69: 1.284277268 | CF69: 1.284277268 | CG69: 1.284277268 | CH69: 1.284277268 | CI69: 1.284277268 | CJ69: 1.284277268 | CK69: 1.284277268 | CL69: 1.284277268
B70: 2003 | C70: 0.033 | D70: 2003 | E70: 1.033 | BK70: 1 | BL70: =$E71*BL71 -> 1.021 | BM70: 1.032231 | BN70: 1.050811158 | BO70: 1.065522514 | BP70: 1.077243262 | BQ70: 1.111715046 | BR70: 1.115050191 | BS70: 1.131775944 | BT70: 1.161202119 | BU70: 1.187909768 | BV70: 1.221171241 | BW70: 1.233382953 | BX70: 1.243250017 | BY70: 1.243250017 | BZ70: 1.243250017 | CA70: 1.243250017 | CB70: 1.243250017 | CC70: 1.243250017 | CD70: 1.243250017 | CE70: 1.243250017 | CF70: 1.243250017 | CG70: 1.243250017 | CH70: 1.243250017 | CI70: 1.243250017 | CJ70: 1.243250017 | CK70: 1.243250017 | CL70: 1.243250017
B71: 2004 | C71: 0.021 | D71: 2004 | E71: 1.021 | BL71: 1 | BM71: =$E72*BM72 -> 1.011 | BN71: 1.029198 | BO71: 1.043606772 | BP71: 1.055086446 | BQ71: 1.088849213 | BR71: 1.09211576 | BS71: 1.108497497 | BT71: 1.137318432 | BU71: 1.163476756 | BV71: 1.196054105 | BW71: 1.208014646 | BX71: 1.217678763 | BY71: 1.217678763 | BZ71: 1.217678763 | CA71: 1.217678763 | CB71: 1.217678763 | CC71: 1.217678763 | CD71: 1.217678763 | CE71: 1.217678763 | CF71: 1.217678763 | CG71: 1.217678763 | CH71: 1.217678763 | CI71: 1.217678763 | CJ71: 1.217678763 | CK71: 1.217678763 | CL71: 1.217678763
B72: 2005 | C72: 0.011 | D72: 2005 | E72: 1.011 | BM72: 1 | BN72: =$E73*BN73 -> 1.018 | BO72: 1.032252 | BP72: 1.043606772 | BQ72: 1.077002189 | BR72: 1.080233195 | BS72: 1.096436693 | BT72: 1.124944047 | BU72: 1.15081776 | BV72: 1.183040658 | BW72: 1.194871064 | BX72: 1.204430033 | BY72: 1.204430033 | BZ72: 1.204430033 | CA72: 1.204430033 | CB72: 1.204430033 | CC72: 1.204430033 | CD72: 1.204430033 | CE72: 1.204430033 | CF72: 1.204430033 | CG72: 1.204430033 | CH72: 1.204430033 | CI72: 1.204430033 | CJ72: 1.204430033 | CK72: 1.204430033 | CL72: 1.204430033
B73: 2006 | C73: 0.018 | D73: 2006 | E73: 1.018 | BN73: 1 | BO73: =$E74*BO74 -> 1.014 | BP73: 1.025154 | BQ73: 1.057958928 | BR73: 1.061132805 | BS73: 1.077049797 | BT73: 1.105053092 | BU73: 1.130469313 | BV73: 1.162122453 | BW73: 1.173743678 | BX73: 1.183133627 | BY73: 1.183133627 | BZ73: 1.183133627 | CA73: 1.183133627 | CB73: 1.183133627 | CC73: 1.183133627 | CD73: 1.183133627 | CE73: 1.183133627 | CF73: 1.183133627 | CG73: 1.183133627 | CH73: 1.183133627 | CI73: 1.183133627 | CJ73: 1.183133627 | CK73: 1.183133627 | CL73: 1.183133627
B74: 2007 | C74: 0.014 | D74: 2007 | E74: 1.014 | BO74: 1 | BP74: =$E75*BP75 -> 1.011 | BQ74: 1.043352 | BR74: 1.046482056 | BS74: 1.062179287 | BT74: 1.089795948 | BU74: 1.114861255 | BV74: 1.14607737 | BW74: 1.157538144 | BX74: 1.166798449 | BY74: 1.166798449 | BZ74: 1.166798449 | CA74: 1.166798449 | CB74: 1.166798449 | CC74: 1.166798449 | CD74: 1.166798449 | CE74: 1.166798449 | CF74: 1.166798449 | CG74: 1.166798449 | CH74: 1.166798449 | CI74: 1.166798449 | CJ74: 1.166798449 | CK74: 1.166798449 | CL74: 1.166798449
B75: 2008 | C75: 0.011 | D75: 2008 | E75: 1.011 | BP75: 1 | BQ75: =$E76*BQ76 -> 1.032 | BR75: 1.035096 | BS75: 1.05062244 | BT75: 1.077938623 | BU75: 1.102731212 | BV75: 1.133607686 | BW75: 1.144943763 | BX75: 1.154103313 | BY75: 1.154103313 | BZ75: 1.154103313 | CA75: 1.154103313 | CB75: 1.154103313 | CC75: 1.154103313 | CD75: 1.154103313 | CE75: 1.154103313 | CF75: 1.154103313 | CG75: 1.154103313 | CH75: 1.154103313 | CI75: 1.154103313 | CJ75: 1.154103313 | CK75: 1.154103313 | CL75: 1.154103313
B76: 2009 | C76: 0.032 | D76: 2009 | E76: 1.032 | BQ76: 1 | BR76: =$E77*BR77 -> 1.003 | BS76: 1.018045 | BT76: 1.04451417 | BU76: 1.068537996 | BV76: 1.09845706 | BW76: 1.10944163 | BX76: 1.118317163 | BY76: 1.118317163 | BZ76: 1.118317163 | CA76: 1.118317163 | CB76: 1.118317163 | CC76: 1.118317163 | CD76: 1.118317163 | CE76: 1.118317163 | CF76: 1.118317163 | CG76: 1.118317163 | CH76: 1.118317163 | CI76: 1.118317163 | CJ76: 1.118317163 | CK76: 1.118317163 | CL76: 1.118317163
B77: 2010 | C77: 0.003 | D77: 2010 | E77: =1+C77 -> 1.003 | BR77: 1 | BS77: =$E78*BS78 -> 1.015 | BT77: 1.04139 | BU77: 1.06534197 | BV77: 1.095171545 | BW77: 1.106123261 | BX77: 1.114972247 | BY77: 1.114972247 | BZ77: 1.114972247 | CA77: 1.114972247 | CB77: 1.114972247 | CC77: 1.114972247 | CD77: 1.114972247 | CE77: 1.114972247 | CF77: 1.114972247 | CG77: 1.114972247 | CH77: 1.114972247 | CI77: 1.114972247 | CJ77: 1.114972247 | CK77: 1.114972247 | CL77: 1.114972247
B78: 2011 | C78: 0.015 | D78: 2011 | E78: 1.015 | BS78: 1 | BT78: =$E79*BT79 -> 1.026 | BU78: 1.049598 | BV78: 1.078986744 | BW78: 1.089776611 | BX78: 1.098494824 | BY78: 1.098494824 | BZ78: 1.098494824 | CA78: 1.098494824 | CB78: 1.098494824 | CC78: 1.098494824 | CD78: 1.098494824 | CE78: 1.098494824 | CF78: 1.098494824 | CG78: 1.098494824 | CH78: 1.098494824 | CI78: 1.098494824 | CJ78: 1.098494824 | CK78: 1.098494824 | CL78: 1.098494824
B79: 2012 | C79: 0.026 | D79: 2012 | E79: 1.026 | BT79: 1 | BU79: =$E80*BU80 -> 1.023 | BV79: 1.051644 | BW79: 1.06216044 | BX79: 1.070657724 | BY79: 1.070657724 | BZ79: 1.070657724 | CA79: 1.070657724 | CB79: 1.070657724 | CC79: 1.070657724 | CD79: 1.070657724 | CE79: 1.070657724 | CF79: 1.070657724 | CG79: 1.070657724 | CH79: 1.070657724 | CI79: 1.070657724 | CJ79: 1.070657724 | CK79: 1.070657724 | CL79: 1.070657724
B80: 2013 | C80: 0.023 | D80: 2013 | E80: 1.023 | BU80: 1 | BV80: =$E81*BV81 -> 1.028 | BW80: 1.03828 | BX80: 1.04658624 | BY80: 1.04658624 | BZ80: 1.04658624 | CA80: 1.04658624 | CB80: 1.04658624 | CC80: 1.04658624 | CD80: 1.04658624 | CE80: 1.04658624 | CF80: 1.04658624 | CG80: 1.04658624 | CH80: 1.04658624 | CI80: 1.04658624 | CJ80: 1.04658624 | CK80: 1.04658624 | CL80: 1.04658624
B81: 2014 | C81: 0.028 | D81: 2014 | E81: 1.028 | BV81: 1 | BW81: =$E82*BW82 -> 1.01 | BX81: 1.01808 | BY81: 1.01808 | BZ81: 1.01808 | CA81: 1.01808 | CB81: 1.01808 | CC81: 1.01808 | CD81: 1.01808 | CE81: 1.01808 | CF81: 1.01808 | CG81: 1.01808 | CH81: 1.01808 | CI81: 1.01808 | CJ81: 1.01808 | CK81: 1.01808 | CL81: 1.01808
B82: 2015 | C82: 0.01 | D82: 2015 | E82: 1.01 | BW82: 1 | BX82: =$E83*BX83 -> 1.008 | BY82: 1.008 | BZ82: 1.008 | CA82: 1.008 | CB82: 1.008 | CC82: 1.008 | CD82: 1.008 | CE82: 1.008 | CF82: 1.008 | CG82: 1.008 | CH82: 1.008 | CI82: 1.008 | CJ82: 1.008 | CK82: 1.008 | CL82: 1.008
B83: 2016 | C83: 0.008 | D83: 2016 | E83: 1.008 | BX83: 1 | BY83: =$E84*BY84 -> 1 | BZ83: 1 | CA83: 1 | CB83: 1 | CC83: 1 | CD83: 1 | CE83: 1 | CF83: 1 | CG83: 1 | CH83: 1 | CI83: 1 | CJ83: 1 | CK83: 1 | CL83: 1
B84: 2017 | D84: 2017 | E84: 1 | BY84: 1 | BZ84: =$E85*BZ85 -> 1 | CA84: 1 | CB84: 1 | CC84: 1 | CD84: 1 | CE84: 1 | CF84: 1 | CG84: 1 | CH84: 1 | CI84: 1 | CJ84: 1 | CK84: 1 | CL84: 1
B85: 2018 | D85: 2018 | E85: 1 | BZ85: 1 | CA85: =$E86*CA86 -> 1 | CB85: 1 | CC85: 1 | CD85: 1 | CE85: 1 | CF85: 1 | CG85: 1 | CH85: 1 | CI85: 1 | CJ85: 1 | CK85: 1 | CL85: 1
B86: 2019 | D86: 2019 | E86: 1 | CA86: 1 | CB86: =$E87*CB87 -> 1 | CC86: 1 | CD86: 1 | CE86: 1 | CF86: 1 | CG86: 1 | CH86: 1 | CI86: 1 | CJ86: 1 | CK86: 1 | CL86: 1
B87: 2020 | D87: 2020 | E87: 1 | CB87: 1 | CC87: =$E88*CC88 -> 1 | CD87: 1 | CE87: 1 | CF87: 1 | CG87: 1 | CH87: 1 | CI87: 1 | CJ87: 1 | CK87: 1 | CL87: 1
B88: 2021 | D88: 2021 | E88: 1 | CC88: 1 | CD88: =$E89*CD89 -> 1 | CE88: 1 | CF88: 1 | CG88: 1 | CH88: 1 | CI88: 1 | CJ88: 1 | CK88: 1 | CL88: 1
B89: 2022 | D89: 2022 | E89: 1 | CD89: 1 | CE89: =$E90*CE90 -> 1 | CF89: 1 | CG89: 1 | CH89: 1 | CI89: 1 | CJ89: 1 | CK89: 1 | CL89: 1
B90: 2023 | D90: 2023 | E90: 1 | CE90: 1 | CF90: =$E91*CF91 -> 1 | CG90: 1 | CH90: 1 | CI90: 1 | CJ90: 1 | CK90: 1 | CL90: 1
B91: 2024 | D91: 2024 | E91: 1 | CF91: 1 | CG91: =$E92*CG92 -> 1 | CH91: 1 | CI91: 1 | CJ91: 1 | CK91: 1 | CL91: 1
B92: 2025 | D92: 2025 | E92: 1 | CG92: 1 | CH92: =$E93*CH93 -> 1 | CI92: =$E93*CI93 -> 1 | CJ92: =$E93*CJ93 -> 1 | CK92: =$E93*CK93 -> 1 | CL92: =$E93*CL93 -> 1
B93: 2026 | D93: 2026 | E93: 1 | CH93: 1 | CI93: =$E94*CI94 -> 1 | CJ93: =$E94*CJ94 -> 1 | CK93: =$E94*CK94 -> 1 | CL93: =$E94*CL94 -> 1
B94: 2027 | D94: 2027 | E94: 1 | CI94: 1 | CJ94: =$E95*CJ95 -> 1 | CK94: =$E95*CK95 -> 1 | CL94: =$E95*CL95 -> 1
B95: 2028 | D95: 2028 | E95: 1 | CJ95: 1 | CK95: =$E96*CK96 -> 1 | CL95: =$E96*CL96 -> 1
B96: 2029 | D96: 2029 | E96: 1 | CK96: 1 | CL96: =$E97*CL97 -> 1
B97: 2030 | D97: 2030 | E97: 1 | CL97: 1

Sheet Afschr 5
B1: Besluit: x-factorbesluit GTS 2017-2021; bestand: GAW-berekening GTS
B3: Afschrijvingen 5 jaar
B5: Dit tabblad toont per jaar de som van de totale investeringen (VVI, RUI en NRUI) met afschrijvingstermijn 5 jaar voor de geselecteerde investeringen. Vervolgens zijn de gestandaardiseerde afschrijvingen per afschrijvingsjaar, het deel van het jaar dat wordt meegenomen in de afschrijvingen en het cpi weergegeven. Gecombineerd leiden deze gegevens tot de berekening van de geïnfleerde afschrijvingen.
B7: Berekening geïnfleerde afschrijvingen van investeringen met een afschrijvingstermijn van 5 jaar | G7: 1946 | H7: 1947 | I7: 1948 | J7: 1949 | K7: 1950 | L7: 1951 | M7: 1952 | N7: 1953 | O7: 1954 | P7: 1955 | Q7: 1956 | R7: 1957 | S7: 1958 | T7: 1959 | U7: 1960 | V7: 1961 | W7: 1962 | X7: 1963 | Y7: 1964 | Z7: 1965 | AA7: 1966 | AB7: 1967 | AC7: 1968 | AD7: 1969 | AE7: 1970 | AF7: 1971 | AG7: 1972 | AH7: 1973 | AI7: 1974 | AJ7: 1975 | AK7: 1976 | AL7: 1977 | AM7: 1978 | AN7: 1979 | AO7: 1980 | AP7: 1981 | AQ7: 1982 | AR7: 1983 | AS7: 1984 | AT7: 1985 | AU7: 1986 | AV7: 1987 | AW7: 1988 | AX7: 1989 | AY7: 1990 | AZ7: 1991 | BA7: 1992 | BB7: 1993 | BC7: 1994 | BD7: 1995 | BE7: 1996 | BF7: 1997 | BG7: 1998 | BH7: 1999 | BI7: 2000 | BJ7: 2001 | BK7: 2002 | BL7: 2003 | BM7: 2004 | BN7: 2005 | BO7: 2006 | BP7: 2007 | BQ7: 2008 | BR7: 2009 | BS7: 2010 | BT7: 2011 | BU7: 2012 | BV7: 2013 | BW7: 2014 | BX7: 2015 | BY7: 2016 | BZ7: 2017 | CA7: 2018 | CB7: 2019 | CC7: 2020 | CD7: 2021 | CE7: 2022 | CF7: 2023 | CG7: 2024 | CH7: 2025 | CI7: 2026 | CJ7: 2027 | CK7: 2028 | CL7: 2029 | CM7: 2030
B9: Afschrijvingstermijn | C9: ='Inv totaal'!E422 -> 5
B11: Berekening gestandaardiseerde afschrijvingen | F11: Berekening geïnfleerde afschrijvingen
C12: Investeringen | D12: Gestandaard. Afschrijvingen | G12: 1946 | H12: 1947 | I12: 1948 | J12: 1949 | K12: 1950 | L12: 1951 | M12: 1952 | N12: 1953 | O12: 1954 | P12: 1955 | Q12: 1956 | R12: 1957 | S12: 1958 | T12: 1959 | U12: 1960 | V12: 1961 | W12: 1962 | X12: 1963 | Y12: 1964 | Z12: 1965 | AA12: 1966 | AB12: 1967 | AC12: 1968 | AD12: 1969 | AE12: 1970 | AF12: 1971 | AG12: 1972 | AH12: 1973 | AI12: 1974 | AJ12: 1975 | AK12: 1976 | AL12: 1977 | AM12: 1978 | AN12: 1979 | AO12: 1980 | AP12: 1981 | AQ12: 1982 | AR12: 1983 | AS12: 1984 | AT12: 1985 | AU12: 1986 | AV12: 1987 | AW12: 1988 | AX12: 1989 | AY12: 1990 | AZ12: 1991 | BA12: 1992 | BB12: 1993 | BC12: 1994 | BD12: 1995 | BE12: 1996 | BF12: 1997 | BG12: 1998 | BH12: 1999 | BI12: 2000 | BJ12: 2001 | BK12: 2002 | BL12: 2003 | BM12: 2004 | BN12: 2005 | BO12: 2006 | BP12: 2007 | BQ12: 2008 | BR12: 2009 | BS12: 2010 | BT12: 2011 | BU12: 2012 | BV12: 2013 | BW12: 2014 | BX12: 2015 | BY12: 2016 | BZ12: 2017 | CA12: 2018 | CB12: 2019 | CC12: 2020 | CD12: 2021 | CE12: 2022 | CF12: 2023 | CG12: 2024 | CH12: 2025 | CI12: 2026 | CJ12: 2027 | CK12: 2028 | CL12: 2029 | CM12: 2030
B13: 1946 | C13: ='Inv totaal'!E423 -> 0 | D13: =C13/$C$9 -> 0 | F13: 1946 | G13: =$D13*G101*G189 -> 0 | H13: =$D13*H101*H189 -> 0 | I13: 0 | J13: 0 | K13: 0 | L13: 0 | M13: 0 | N13: 0 | O13: 0 | P13: 0 | Q13: 0 | R13: 0 | S13: 0 | T13: 0 | U13: 0 | V13: 0 | W13: 0 | X13: 0 | Y13: 0 | Z13: 0 | AA13: 0 | AB13: 0 | AC13: 0 | AD13: 0 | AE13: 0 | AF13: 0 | AG13: 0 | AH13: 0 | AI13: 0 | AJ13: 0 | AK13: 0 | AL13: 0 | AM13: =$D13*AM101*AM189 -> 0 | AN13: 0 | AO13: 0 | AP13: 0 | AQ13: 0 | AR13: 0 | AS13: 0 | AT13: 0 | AU13: 0 | AV13: 0 | AW13: 0 | AX13: 0 | AY13: 0 | AZ13: 0 | BA13: 0 | BB13: 0 | BC13: 0 | BD13: 0 | BE13: 0 | BF13: 0 | BG13: 0 | BH13: 0 | BI13: 0 | BJ13: 0 | BK13: 0 | BL13: 0 | BM13: 0 | BN13: 0 | BO13: 0 | BP13: 0 | BQ13: 0 | BR13: 0 | BS13: =$D13*BS101*BS189 -> 0 | BT13: 0 | BU13: 0 | BV13: 0 | BW13: 0 | BX13: 0 | BY13: 0 | BZ13: 0 | CA13: 0 | CB13: 0 | CC13: 0 | CD13: 0 | CE13: 0 | CF13: 0 | CG13: 0 | CH13: 0 | CI13: 0 | CJ13: 0 | CK13: 0 | CL13: 0 | CM13: 0
B14: 1947 | C14: ='Inv totaal'!E424 -> 0 | D14: 0 | F14: 1947 | G14: =$D14*G102*G190 -> 0 | H14: 0 | I14: 0 | J14: 0 | K14: 0 | L14: 0 | M14: 0 | N14: 0 | O14: 0 | P14: 0 | Q14: 0 | R14: 0 | S14: 0 | T14: 0 | U14: 0 | V14: 0 | W14: 0 | X14: 0 | Y14: 0 | Z14: 0 | AA14: 0 | AB14: 0 | AC14: 0 | AD14: 0 | AE14: 0 | AF14: 0 | AG14: 0 | AH14: 0 | AI14: 0 | AJ14: 0 | AK14: 0 | AL14: 0 | AM14: =$D14*AM102*AM190 -> 0 | AN14: 0 | AO14: 0 | AP14: 0 | AQ14: 0 | AR14: 0 | AS14: 0 | AT14: 0 | AU14: 0 | AV14: 0 | AW14: 0 | AX14: 0 | AY14: 0 | AZ14: 0 | BA14: 0 | BB14: 0 | BC14: 0 | BD14: 0 | BE14: 0 | BF14: 0 | BG14: 0 | BH14: 0 | BI14: 0 | BJ14: 0 | BK14: 0 | BL14: 0 | BM14: 0 | BN14: 0 | BO14: 0 | BP14: 0 | BQ14: 0 | BR14: 0 | BS14: =$D14*BS102*BS190 -> 0 | BT14: 0 | BU14: 0 | BV14: 0 | BW14: 0 | BX14: 0 | BY14: 0 | BZ14: 0 | CA14: 0 | CB14: 0 | CC14: 0 | CD14: 0 | CE14: 0 | CF14: 0 | CG14: 0 | CH14: 0 | CI14: 0 | CJ14: 0 | CK14: 0 | CL14: 0 | CM14: 0
B15: 1948 | C15: ='Inv totaal'!E425 -> 0 | D15: 0 | F15: 1948 | G15: =$D15*G103*G191 -> 0 | H15: 0 | I15: 0 | J15: 0 | K15: 0 | L15: 0 | M15: 0 | N15: 0 | O15: 0 | P15: 0 | Q15: 0 | R15: 0 | S15: 0 | T15: 0 | U15: 0 | V15: 0 | W15: 0 | X15: 0 | Y15: 0 | Z15: 0 | AA15: 0 | AB15: 0 | AC15: 0 | AD15: 0 | AE15: 0 | AF15: 0 | AG15: 0 | AH15: 0 | AI15: 0 | AJ15: 0 | AK15: 0 | AL15: 0 | AM15: =$D15*AM103*AM191 -> 0 | AN15: 0 | AO15: 0 | AP15: 0 | AQ15: 0 | AR15: 0 | AS15: 0 | AT15: 0 | AU15: 0 | AV15: 0 | AW15: 0 | AX15: 0 | AY15: 0 | AZ15: 0 | BA15: 0 | BB15: 0 | BC15: 0 | BD15: 0 | BE15: 0 | BF15: 0 | BG15: 0 | BH15: 0 | BI15: 0 | BJ15: 0 | BK15: 0 | BL15: 0 | BM15: 0 | BN15: 0 | BO15: 0 | BP15: 0 | BQ15: 0 | BR15: 0 | BS15: =$D15*BS103*BS191 -> 0 | BT15: 0 | BU15: 0 | BV15: 0 | BW15: 0 | BX15: 0 | BY15: 0 | BZ15: 0 | CA15: 0 | CB15: 0 | CC15: 0 | CD15: 0 | CE15: 0 | CF15: 0 | CG15: 0 | CH15: 0 | CI15: 0 | CJ15: 0 | CK15: 0 | CL15: 0 | CM15: 0
B16: 1949 | C16: ='Inv totaal'!E426 -> 0 | D16: 0 | F16: 1949 | G16: =$D16*G104*G192 -> 0 | H16: 0 | I16: 0 | J16: 0 | K16: 0 | L16: 0 | M16: 0 | N16: 0 | O16: 0 | P16: 0 | Q16: 0 | R16: 0 | S16: 0 | T16: 0 | U16: 0 | V16: 0 | W16: 0 | X16: 0 | Y16: 0 | Z16: 0 | AA16: 0 | AB16: 0 | AC16: 0 | AD16: 0 | AE16: 0 | AF16: 0 | AG16: 0 | AH16: 0 | AI16: 0 | AJ16: 0 | AK16: 0 | AL16: 0 | AM16: =$D16*AM104*AM192 -> 0 | AN16: 0 | AO16: 0 | AP16: 0 | AQ16: 0 | AR16: 0 | AS16: 0 | AT16: 0 | AU16: 0 | AV16: 0 | AW16: 0 | AX16: 0 | AY16: 0 | AZ16: 0 | BA16: 0 | BB16: 0 | BC16: 0 | BD16: 0 | BE16: 0 | BF16: 0 | BG16: 0 | BH16: 0 | BI16: 0 | BJ16: 0 | BK16: 0 | BL16: 0 | BM16: 0 | BN16: 0 | BO16: 0 | BP16: 0 | BQ16: 0 | BR16: 0 | BS16: =$D16*BS104*BS192 -> 0 | BT16: 0 | BU16: 0 | BV16: 0 | BW16: 0 | BX16: 0 | BY16: 0 | BZ16: 0 | CA16: 0 | CB16: 0 | CC16: 0 | CD16: 0 | CE16: 0 | CF16: 0 | CG16: 0 | CH16: 0 | CI16: 0 | CJ16: 0 | CK16: 0 | CL16: 0 | CM16: 0
B17: 1950 | C17: ='Inv totaal'!E427 -> 0 | D17: 0 | F17: 1950 | G17: =$D17*G105*G193 -> 0 | H17: 0 | I17: 0 | J17: 0 | K17: 0 | L17: 0 | M17: 0 | N17: 0 | O17: 0 | P17: 0 | Q17: 0 | R17: 0 | S17: 0 | T17: 0 | U17: 0 | V17: 0 | W17: 0 | X17: 0 | Y17: 0 | Z17: 0 | AA17: 0 | AB17: 0 | AC17: 0 | AD17: 0 | AE17: 0 | AF17: 0 | AG17: 0 | AH17: 0 | AI17: 0 | AJ17: 0 | AK17: 0 | AL17: 0 | AM17: =$D17*AM105*AM193 -> 0 | AN17: 0 | AO17: 0 | AP17: 0 | AQ17: 0 | AR17: 0 | AS17: 0 | AT17: 0 | AU17: 0 | AV17: 0 | AW17: 0 | AX17: 0 | AY17: 0 | AZ17: 0 | BA17: 0 | BB17: 0 | BC17: 0 | BD17: 0 | BE17: 0 | BF17: 0 | BG17: 0 | BH17: 0 | BI17: 0 | BJ17: 0 | BK17: 0 | BL17: 0 | BM17: 0 | BN17: 0 | BO17: 0 | BP17: 0 | BQ17: 0 | BR17: 0 | BS17: =$D17*BS105*BS193 -> 0 | BT17: 0 | BU17: 0 | BV17: 0 | BW17: 0 | BX17: 0 | BY17: 0 | BZ17: 0 | CA17: 0 | CB17: 0 | CC17: 0 | CD17: 0 | CE17: 0 | CF17: 0 | CG17: 0 | CH17: 0 | CI17: 0 | CJ17: 0 | CK17: 0 | CL17: 0 | CM17: 0
B18: 1951 | C18: ='Inv totaal'!E428 -> 0 | D18: 0 | F18: 1951 | G18: =$D18*G106*G194 -> 0 | H18: 0 | I18: 0 | J18: 0 | K18: 0 | L18: 0 | M18: 0 | N18: 0 | O18: 0 | P18: 0 | Q18: 0 | R18: 0 | S18: 0 | T18: 0 | U18: 0 | V18: 0 | W18: 0 | X18: 0 | Y18: 0 | Z18: 0 | AA18: 0 | AB18: 0 | AC18: 0 | AD18: 0 | AE18: 0 | AF18: 0 | AG18: 0 | AH18: 0 | AI18: 0 | AJ18: 0 | AK18: 0 | AL18: 0 | AM18: =$D18*AM106*AM194 -> 0 | AN18: 0 | AO18: 0 | AP18: 0 | AQ18: 0 | AR18: 0 | AS18: 0 | AT18: 0 | AU18: 0 | AV18: 0 | AW18: 0 | AX18: 0 | AY18: 0 | AZ18: 0 | BA18: 0 | BB18: 0 | BC18: 0 | BD18: 0 | BE18: 0 | BF18: 0 | BG18: 0 | BH18: 0 | BI18: 0 | BJ18: 0 | BK18: 0 | BL18: 0 | BM18: 0 | BN18: 0 | BO18: 0 | BP18: 0 | BQ18: 0 | BR18: 0 | BS18: =$D18*BS106*BS194 -> 0 | BT18: 0 | BU18: 0 | BV18: 0 | BW18: 0 | BX18: 0 | BY18: 0 | BZ18: 0 | CA18: 0 | CB18: 0 | CC18: 0 | CD18: 0 | CE18: 0 | CF18: 0 | CG18: 0 | CH18: 0 | CI18: 0 | CJ18: 0 | CK18: 0 | CL18: 0 | CM18: 0
B19: 1952 | C19: ='Inv totaal'!E429 -> 0 | D19: 0 | F19: 1952 | G19: =$D19*G107*G195 -> 0 | H19: 0 | I19: 0 | J19: 0 | K19: 0 | L19: 0 | M19: 0 | N19: 0 | O19: 0 | P19: 0 | Q19: 0 | R19: 0 | S19: 0 | T19: 0 | U19: 0 | V19: 0 | W19: 0 | X19: 0 | Y19: 0 | Z19: 0 | AA19: 0 | AB19: 0 | AC19: 0 | AD19: 0 | AE19: 0 | AF19: 0 | AG19: 0 | AH19: 0 | AI19: 0 | AJ19: 0 | AK19: 0 | AL19: 0 | AM19: =$D19*AM107*AM195 -> 0 | AN19: 0 | AO19: 0 | AP19: 0 | AQ19: 0 | AR19: 0 | AS19: 0 | AT19: 0 | AU19: 0 | AV19: 0 | AW19: 0 | AX19: 0 | AY19: 0 | AZ19: 0 | BA19: 0 | BB19: 0 | BC19: 0 | BD19: 0 | BE19: 0 | BF19: 0 | BG19: 0 | BH19: 0 | BI19: 0 | BJ19: 0 | BK19: 0 | BL19: 0 | BM19: 0 | BN19: 0 | BO19: 0 | BP19: 0 | BQ19: 0 | BR19: 0 | BS19: =$D19*BS107*BS195 -> 0 | BT19: 0 | BU19: 0 | BV19: 0 | BW19: 0 | BX19: 0 | BY19: 0 | BZ19: 0 | CA19: 0 | CB19: 0 | CC19: 0 | CD19: 0 | CE19: 0 | CF19: 0 | CG19: 0 | CH19: 0 | CI19: 0 | CJ19: 0 | CK19: 0 | CL19: 0 | CM19: 0
B20: 1953 | C20: ='Inv totaal'!E430 -> 0 | D20: 0 | F20: 1953 | G20: =$D20*G108*G196 -> 0 | H20: 0 | I20: 0 | J20: 0 | K20: 0 | L20: 0 | M20: 0 | N20: 0 | O20: 0 | P20: 0 | Q20: 0 | R20: 0 | S20: 0 | T20: 0 | U20: 0 | V20: 0 | W20: 0 | X20: 0 | Y20: 0 | Z20: 0 | AA20: 0 | AB20: 0 | AC20: 0 | AD20: 0 | AE20: 0 | AF20: 0 | AG20: 0 | AH20: 0 | AI20: 0 | AJ20: 0 | AK20: 0 | AL20: 0 | AM20: =$D20*AM108*AM196 -> 0 | AN20: 0 | AO20: 0 | AP20: 0 | AQ20: 0 | AR20: 0 | AS20: 0 | AT20: 0 | AU20: 0 | AV20: 0 | AW20: 0 | AX20: 0 | AY20: 0 | AZ20: 0 | BA20: 0 | BB20: 0 | BC20: 0 | BD20: 0 | BE20: 0 | BF20: 0 | BG20: 0 | BH20: 0 | BI20: 0 | BJ20: 0 | BK20: 0 | BL20: 0 | BM20: 0 | BN20: 0 | BO20: 0 | BP20: 0 | BQ20: 0 | BR20: 0 | BS20: =$D20*BS108*BS196 -> 0 | BT20: 0 | BU20: 0 | BV20: 0 | BW20: 0 | BX20: 0 | BY20: 0 | BZ20: 0 | CA20: 0 | CB20: 0 | CC20: 0 | CD20: 0 | CE20: 0 | CF20: 0 | CG20: 0 | CH20: 0 | CI20: 0 | CJ20: 0 | CK20: 0 | CL20: 0 | CM20: 0
B21: 1954 | C21: ='Inv totaal'!E431 -> 0 | D21: 0 | F21: 1954 | G21: =$D21*G109*G197 -> 0 | H21: 0 | I21: 0 | J21: 0 | K21: 0 | L21: 0 | M21: 0 | N21: 0 | O21: 0 | P21: 0 | Q21: 0 | R21: 0 | S21: 0 | T21: 0 | U21: 0 | V21: 0 | W21: 0 | X21: 0 | Y21: 0 | Z21: 0 | AA21: 0 | AB21: 0 | AC21: 0 | AD21: 0 | AE21: 0 | AF21: 0 | AG21: 0 | AH21: 0 | AI21: 0 | AJ21: 0 | AK21: 0 | AL21: 0 | AM21: =$D21*AM109*AM197 -> 0 | AN21: 0 | AO21: 0 | AP21: 0 | AQ21: 0 | AR21: 0 | AS21: 0 | AT21: 0 | AU21: 0 | AV21: 0 | AW21: 0 | AX21: 0 | AY21: 0 | AZ21: 0 | BA21: 0 | BB21: 0 | BC21: 0 | BD21: 0 | BE21: 0 | BF21: 0 | BG21: 0 | BH21: 0 | BI21: 0 | BJ21: 0 | BK21: 0 | BL21: 0 | BM21: 0 | BN21: 0 | BO21: 0 | BP21: 0 | BQ21: 0 | BR21: 0 | BS21: =$D21*BS109*BS197 -> 0 | BT21: 0 | BU21: 0 | BV21: 0 | BW21: 0 | BX21: 0 | BY21: 0 | BZ21: 0 | CA21: 0 | CB21: 0 | CC21: 0 | CD21: 0 | CE21: 0 | CF21: 0 | CG21: 0 | CH21: 0 | CI21: 0 | CJ21: 0 | CK21: 0 | CL21: 0 | CM21: 0
B22: 1955 | C22: ='Inv totaal'!E432 -> 0 | D22: 0 | F22: 1955 | G22: =$D22*G110*G198 -> 0 | H22: 0 | I22: 0 | J22: 0 | K22: 0 | L22: 0 | M22: 0 | N22: 0 | O22: 0 | P22: 0 | Q22: 0 | R22: 0 | S22: 0 | T22: 0 | U22: 0 | V22: 0 | W22: 0 | X22: 0 | Y22: 0 | Z22: 0 | AA22: 0 | AB22: 0 | AC22: 0 | AD22: 0 | AE22: 0 | AF22: 0 | AG22: 0 | AH22: 0 | AI22: 0 | AJ22: 0 | AK22: 0 | AL22: 0 | AM22: =$D22*AM110*AM198 -> 0 | AN22: 0 | AO22: 0 | AP22: 0 | AQ22: 0 | AR22: 0 | AS22: 0 | AT22: 0 | AU22: 0 | AV22: 0 | AW22: 0 | AX22: 0 | AY22: 0 | AZ22: 0 | BA22: 0 | BB22: 0 | BC22: 0 | BD22: 0 | BE22: 0 | BF22: 0 | BG22: 0 | BH22: 0 | BI22: 0 | BJ22: 0 | BK22: 0 | BL22: 0 | BM22: 0 | BN22: 0 | BO22: 0 | BP22: 0 | BQ22: 0 | BR22: 0 | BS22: =$D22*BS110*BS198 -> 0 | BT22: 0 | BU22: 0 | BV22: 0 | BW22: 0 | BX22: 0 | BY22: 0 | BZ22: 0 | CA22: 0 | CB22: 0 | CC22: 0 | CD22: 0 | CE22: 0 | CF22: 0 | CG22: 0 | CH22: 0 | CI22: 0 | CJ22: 0 | CK22: 0 | CL22: 0 | CM22: 0
B23: 1956 | C23: ='Inv totaal'!E433 -> 0 | D23: 0 | F23: 1956 | G23: =$D23*G111*G199 -> 0 | H23: 0 | I23: 0 | J23: 0 | K23: 0 | L23: 0 | M23: 0 | N23: 0 | O23: 0 | P23: 0 | Q23: 0 | R23: 0 | S23: 0 | T23: 0 | U23: 0 | V23: 0 | W23: 0 | X23: 0 | Y23: 0 | Z23: 0 | AA23: 0 | AB23: 0 | AC23: 0 | AD23: 0 | AE23: 0 | AF23: 0 | AG23: 0 | AH23: 0 | AI23: 0 | AJ23: 0 | AK23: 0 | AL23: 0 | AM23: =$D23*AM111*AM199 -> 0 | AN23: 0 | AO23: 0 | AP23: 0 | AQ23: 0 | AR23: 0 | AS23: 0 | AT23: 0 | AU23: 0 | AV23: 0 | AW23: 0 | AX23: 0 | AY23: 0 | AZ23: 0 | BA23: 0 | BB23: 0 | BC23: 0 | BD23: 0 | BE23: 0 | BF23: 0 | BG23: 0 | BH23: 0 | BI23: 0 | BJ23: 0 | BK23: 0 | BL23: 0 | BM23: 0 | BN23: 0 | BO23: 0 | BP23: 0 | BQ23: 0 | BR23: 0 | BS23: =$D23*BS111*BS199 -> 0 | BT23: 0 | BU23: 0 | BV23: 0 | BW23: 0 | BX23: 0 | BY23: 0 | BZ23: 0 | CA23: 0 | CB23: 0 | CC23: 0 | CD23: 0 | CE23: 0 | CF23: 0 | CG23: 0 | CH23: 0 | CI23: 0 | CJ23: 0 | CK23: 0 | CL23: 0 | CM23: 0
B24: 1957 | C24: ='Inv totaal'!E434 -> 0 | D24: 0 | F24: 1957 | G24: =$D24*G112*G200 -> 0 | H24: 0 | I24: 0 | J24: 0 | K24: 0 | L24: 0 | M24: 0 | N24: 0 | O24: 0 | P24: 0 | Q24: 0 | R24: 0 | S24: 0 | T24: 0 | U24: 0 | V24: 0 | W24: 0 | X24: 0 | Y24: 0 | Z24: 0 | AA24: 0 | AB24: 0 | AC24: 0 | AD24: 0 | AE24: 0 | AF24: 0 | AG24: 0 | AH24: 0 | AI24: 0 | AJ24: 0 | AK24: 0 | AL24: 0 | AM24: =$D24*AM112*AM200 -> 0 | AN24: 0 | AO24: 0 | AP24: 0 | AQ24: 0 | AR24: 0 | AS24: 0 | AT24: 0 | AU24: 0 | AV24: 0 | AW24: 0 | AX24: 0 | AY24: 0 | AZ24: 0 | BA24: 0 | BB24: 0 | BC24: 0 | BD24: 0 | BE24: 0 | BF24: 0 | BG24: 0 | BH24: 0 | BI24: 0 | BJ24: 0 | BK24: 0 | BL24: 0 | BM24: 0 | BN24: 0 | BO24: 0 | BP24: 0 | BQ24: 0 | BR24: 0 | BS24: =$D24*BS112*BS200 -> 0 | BT24: 0 | BU24: 0 | BV24: 0 | BW24: 0 | BX24: 0 | BY24: 0 | BZ24: 0 | CA24: 0 | CB24: 0 | CC24: 0 | CD24: 0 | CE24: 0 | CF24: 0 | CG24: 0 | CH24: 0 | CI24: 0 | CJ24: 0 | CK24: 0 | CL24: 0 | CM24: 0
B25: 1958 | C25: ='Inv totaal'!E435 -> 0 | D25: 0 | F25: 1958 | G25: =$D25*G113*G201 -> 0 | H25: 0 | I25: 0 | J25: 0 | K25: 0 | L25: 0 | M25: 0 | N25: 0 | O25: 0 | P25: 0 | Q25: 0 | R25: 0 | S25: 0 | T25: 0 | U25: 0 | V25: 0 | W25: 0 | X25: 0 | Y25: 0 | Z25: 0 | AA25: 0 | AB25: 0 | AC25: 0 | AD25: 0 | AE25: 0 | AF25: 0 | AG25: 0 | AH25: 0 | AI25: 0 | AJ25: 0 | AK25: 0 | AL25: 0 | AM25: =$D25*AM113*AM201 -> 0 | AN25: 0 | AO25: 0 | AP25: 0 | AQ25: 0 | AR25: 0 | AS25: 0 | AT25: 0 | AU25: 0 | AV25: 0 | AW25: 0 | AX25: 0 | AY25: 0 | AZ25: 0 | BA25: 0 | BB25: 0 | BC25: 0 | BD25: 0 | BE25: 0 | BF25: 0 | BG25: 0 | BH25: 0 | BI25: 0 | BJ25: 0 | BK25: 0 | BL25: 0 | BM25: 0 | BN25: 0 | BO25: 0 | BP25: 0 | BQ25: 0 | BR25: 0 | BS25: =$D25*BS113*BS201 -> 0 | BT25: 0 | BU25: 0 | BV25: 0 | BW25: 0 | BX25: 0 | BY25: 0 | BZ25: 0 | CA25: 0 | CB25: 0 | CC25: 0 | CD25: 0 | CE25: 0 | CF25: 0 | CG25: 0 | CH25: 0 | CI25: 0 | CJ25: 0 | CK25: 0 | CL25: 0 | CM25: 0
B26: 1959 | C26: ='Inv totaal'!E436 -> 0 | D26: 0 | F26: 1959 | G26: =$D26*G114*G202 -> 0 | H26: 0 | I26: 0 | J26: 0 | K26: 0 | L26: 0 | M26: 0 | N26: 0 | O26: 0 | P26: 0 | Q26: 0 | R26: 0 | S26: 0 | T26: 0 | U26: 0 | V26: 0 | W26: 0 | X26: 0 | Y26: 0 | Z26: 0 | AA26: 0 | AB26: 0 | AC26: 0 | AD26: 0 | AE26: 0 | AF26: 0 | AG26: 0 | AH26: 0 | AI26: 0 | AJ26: 0 | AK26: 0 | AL26: 0 | AM26: =$D26*AM114*AM202 -> 0 | AN26: 0 | AO26: 0 | AP26: 0 | AQ26: 0 | AR26: 0 | AS26: 0 | AT26: 0 | AU26: 0 | AV26: 0 | AW26: 0 | AX26: 0 | AY26: 0 | AZ26: 0 | BA26: 0 | BB26: 0 | BC26: 0 | BD26: 0 | BE26: 0 | BF26: 0 | BG26: 0 | BH26: 0 | BI26: 0 | BJ26: 0 | BK26: 0 | BL26: 0 | BM26: 0 | BN26: 0 | BO26: 0 | BP26: 0 | BQ26: 0 | BR26: 0 | BS26: =$D26*BS114*BS202 -> 0 | BT26: 0 | BU26: 0 | BV26: 0 | BW26: 0 | BX26: 0 | BY26: 0 | BZ26: 0 | CA26: 0 | CB26: 0 | CC26: 0 | CD26: 0 | CE26: 0 | CF26: 0 | CG26: 0 | CH26: 0 | CI26: 0 | CJ26: 0 | CK26: 0 | CL26: 0 | CM26: 0
B27: 1960 | C27: ='Inv totaal'!E437 -> 0 | D27: 0 | F27: 1960 | G27: =$D27*G115*G203 -> 0 | H27: 0 | I27: 0 | J27: 0 | K27: 0 | L27: 0 | M27: 0 | N27: 0 | O27: 0 | P27: 0 | Q27: 0 | R27: 0 | S27: 0 | T27: 0 | U27: 0 | V27: 0 | W27: 0 | X27: 0 | Y27: 0 | Z27: 0 | AA27: 0 | AB27: 0 | AC27: 0 | AD27: 0 | AE27: 0 | AF27: 0 | AG27: 0 | AH27: 0 | AI27: 0 | AJ27: 0 | AK27: 0 | AL27: 0 | AM27: =$D27*AM115*AM203 -> 0 | AN27: 0 | AO27: 0 | AP27: 0 | AQ27: 0 | AR27: 0 | AS27: 0 | AT27: 0 | AU27: 0 | AV27: 0 | AW27: 0 | AX27: 0 | AY27: 0 | AZ27: 0 | BA27: 0 | BB27: 0 | BC27: 0 | BD27: 0 | BE27: 0 | BF27: 0 | BG27: 0 | BH27: 0 | BI27: 0 | BJ27: 0 | BK27: 0 | BL27: 0 | BM27: 0 | BN27: 0 | BO27: 0 | BP27: 0 | BQ27: 0 | BR27: 0 | BS27: =$D27*BS115*BS203 -> 0 | BT27: 0 | BU27: 0 | BV27: 0 | BW27: 0 | BX27: 0 | BY27: 0 | BZ27: 0 | CA27: 0 | CB27: 0 | CC27: 0 | CD27: 0 | CE27: 0 | CF27: 0 | CG27: 0 | CH27: 0 | CI27: 0 | CJ27: 0 | CK27: 0 | CL27: 0 | CM27: 0
B28: 1961 | C28: ='Inv totaal'!E438 -> 0 | D28: 0 | F28: 1961 | G28: =$D28*G116*G204 -> 0 | H28: 0 | I28: 0 | J28: 0 | K28: 0 | L28: 0 | M28: 0 | N28: 0 | O28: 0 | P28: 0 | Q28: 0 | R28: 0 | S28: 0 | T28: 0 | U28: 0 | V28: 0 | W28: 0 | X28: 0 | Y28: 0 | Z28: 0 | AA28: 0 | AB28: 0 | AC28: 0 | AD28: 0 | AE28: 0 | AF28: 0 | AG28: 0 | AH28: 0 | AI28: 0 | AJ28: 0 | AK28: 0 | AL28: 0 | AM28: =$D28*AM116*AM204 -> 0 | AN28: 0 | AO28: 0 | AP28: 0 | AQ28: 0 | AR28: 0 | AS28: 0 | AT28: 0 | AU28: 0 | AV28: 0 | AW28: 0 | AX28: 0 | AY28: 0 | AZ28: 0 | BA28: 0 | BB28: 0 | BC28: 0 | BD28: 0 | BE28: 0 | BF28: 0 | BG28: 0 | BH28: 0 | BI28: 0 | BJ28: 0 | BK28: 0 | BL28: 0 | BM28: 0 | BN28: 0 | BO28: 0 | BP28: 0 | BQ28: 0 | BR28: 0 | BS28: =$D28*BS116*BS204 -> 0 | BT28: 0 | BU28: 0 | BV28: 0 | BW28: 0 | BX28: 0 | BY28: 0 | BZ28: 0 | CA28: 0 | CB28: 0 | CC28: 0 | CD28: 0 | CE28: 0 | CF28: 0 | CG28: 0 | CH28: 0 | CI28: 0 | CJ28: 0 | CK28: 0 | CL28: 0 | CM28: 0
B29: 1962 | C29: ='Inv totaal'!E439 -> 0 | D29: 0 | F29: 1962 | G29: =$D29*G117*G205 -> 0 | H29: 0 | I29: 0 | J29: 0 | K29: 0 | L29: 0 | M29: 0 | N29: 0 | O29: 0 | P29: 0 | Q29: 0 | R29: 0 | S29: 0 | T29: 0 | U29: 0 | V29: 0 | W29: 0 | X29: 0 | Y29: 0 | Z29: 0 | AA29: 0 | AB29: 0 | AC29: 0 | AD29: 0 | AE29: 0 | AF29: 0 | AG29: 0 | AH29: 0 | AI29: 0 | AJ29: 0 | AK29: 0 | AL29: 0 | AM29: =$D29*AM117*AM205 -> 0 | AN29: 0 | AO29: 0 | AP29: 0 | AQ29: 0 | AR29: 0 | AS29: 0 | AT29: 0 | AU29: 0 | AV29: 0 | AW29: 0 | AX29: 0 | AY29: 0 | AZ29: 0 | BA29: 0 | BB29: 0 | BC29: 0 | BD29: 0 | BE29: 0 | BF29: 0 | BG29: 0 | BH29: 0 | BI29: 0 | BJ29: 0 | BK29: 0 | BL29: 0 | BM29: 0 | BN29: 0 | BO29: 0 | BP29: 0 | BQ29: 0 | BR29: 0 | BS29: =$D29*BS117*BS205 -> 0 | BT29: 0 | BU29: 0 | BV29: 0 | BW29: 0 | BX29: 0 | BY29: 0 | BZ29: 0 | CA29: 0 | CB29: 0 | CC29: 0 | CD29: 0 | CE29: 0 | CF29: 0 | CG29: 0 | CH29: 0 | CI29: 0 | CJ29: 0 | CK29: 0 | CL29: 0 | CM29: 0
B30: 1963 | C30: ='Inv totaal'!E440 -> 0 | D30: 0 | F30: 1963 | G30: =$D30*G118*G206 -> 0 | H30: 0 | I30: 0 | J30: 0 | K30: 0 | L30: 0 | M30: 0 | N30: 0 | O30: 0 | P30: 0 | Q30: 0 | R30: 0 | S30: 0 | T30: 0 | U30: 0 | V30: 0 | W30: 0 | X30: 0 | Y30: 0 | Z30: 0 | AA30: 0 | AB30: 0 | AC30: 0 | AD30: 0 | AE30: 0 | AF30: 0 | AG30: 0 | AH30: 0 | AI30: 0 | AJ30: 0 | AK30: 0 | AL30: 0 | AM30: =$D30*AM118*AM206 -> 0 | AN30: 0 | AO30: 0 | AP30: 0 | AQ30: 0 | AR30: 0 | AS30: 0 | AT30: 0 | AU30: 0 | AV30: 0 | AW30: 0 | AX30: 0 | AY30: 0 | AZ30: 0 | BA30: 0 | BB30: 0 | BC30: 0 | BD30: 0 | BE30: 0 | BF30: 0 | BG30: 0 | BH30: 0 | BI30: 0 | BJ30: 0 | BK30: 0 | BL30: 0 | BM30: 0 | BN30: 0 | BO30: 0 | BP30: 0 | BQ30: 0 | BR30: 0 | BS30: =$D30*BS118*BS206 -> 0 | BT30: 0 | BU30: 0 | BV30: 0 | BW30: 0 | BX30: 0 | BY30: 0 | BZ30: 0 | CA30: 0 | CB30: 0 | CC30: 0 | CD30: 0 | CE30: 0 | CF30: 0 | CG30: 0 | CH30: 0 | CI30: 0 | CJ30: 0 | CK30: 0 | CL30: 0 | CM30: 0
B31: 1964 | C31: ='Inv totaal'!E441 -> 0 | D31: 0 | F31: 1964 | G31: =$D31*G119*G207 -> 0 | H31: 0 | I31: 0 | J31: 0 | K31: 0 | L31: 0 | M31: 0 | N31: 0 | O31: 0 | P31: 0 | Q31: 0 | R31: 0 | S31: 0 | T31: 0 | U31: 0 | V31: 0 | W31: 0 | X31: 0 | Y31: 0 | Z31: 0 | AA31: 0 | AB31: 0 | AC31: 0 | AD31: 0 | AE31: 0 | AF31: 0 | AG31: 0 | AH31: 0 | AI31: 0 | AJ31: 0 | AK31: 0 | AL31: 0 | AM31: =$D31*AM119*AM207 -> 0 | AN31: 0 | AO31: 0 | AP31: 0 | AQ31: 0 | AR31: 0 | AS31: 0 | AT31: 0 | AU31: 0 | AV31: 0 | AW31: 0 | AX31: 0 | AY31: 0 | AZ31: 0 | BA31: 0 | BB31: 0 | BC31: 0 | BD31: 0 | BE31: 0 | BF31: 0 | BG31: 0 | BH31: 0 | BI31: 0 | BJ31: 0 | BK31: 0 | BL31: 0 | BM31: 0 | BN31: 0 | BO31: 0 | BP31: 0 | BQ31: 0 | BR31: 0 | BS31: =$D31*BS119*BS207 -> 0 | BT31: 0 | BU31: 0 | BV31: 0 | BW31: 0 | BX31: 0 | BY31: 0 | BZ31: 0 | CA31: 0 | CB31: 0 | CC31: 0 | CD31: 0 | CE31: 0 | CF31: 0 | CG31: 0 | CH31: 0 | CI31: 0 | CJ31: 0 | CK31: 0 | CL31: 0 | CM31: 0
B32: 1965 | C32: ='Inv totaal'!E442 -> 0 | D32: 0 | F32: 1965 | G32: =$D32*G120*G208 -> 0 | H32: 0 | I32: 0 | J32: 0 | K32: 0 | L32: 0 | M32: 0 | N32: 0 | O32: 0 | P32: 0 | Q32: 0 | R32: 0 | S32: 0 | T32: 0 | U32: 0 | V32: 0 | W32: 0 | X32: 0 | Y32: 0 | Z32: 0 | AA32: 0 | AB32: 0 | AC32: 0 | AD32: 0 | AE32: 0 | AF32: 0 | AG32: 0 | AH32: 0 | AI32: 0 | AJ32: 0 | AK32: 0 | AL32: 0 | AM32: =$D32*AM120*AM208 -> 0 | AN32: 0 | AO32: 0 | AP32: 0 | AQ32: 0 | AR32: 0 | AS32: 0 | AT32: 0 | AU32: 0 | AV32: 0 | AW32: 0 | AX32: 0 | AY32: 0 | AZ32: 0 | BA32: 0 | BB32: 0 | BC32: 0 | BD32: 0 | BE32: 0 | BF32: 0 | BG32: 0 | BH32: 0 | BI32: 0 | BJ32: 0 | BK32: 0 | BL32: 0 | BM32: 0 | BN32: 0 | BO32: 0 | BP32: 0 | BQ32: 0 | BR32: 0 | BS32: =$D32*BS120*BS208 -> 0 | BT32: 0 | BU32: 0 | BV32: 0 | BW32: 0 | BX32: 0 | BY32: 0 | BZ32: 0 | CA32: 0 | CB32: 0 | CC32: 0 | CD32: 0 | CE32: 0 | CF32: 0 | CG32: 0 | CH32: 0 | CI32: 0 | CJ32: 0 | CK32: 0 | CL32: 0 | CM32: 0
B33: 1966 | C33: ='Inv totaal'!E443 -> 1188180 | D33: 237636 | F33: 1966 | G33: =$D33*G121*G209 -> 0 | H33: 0 | I33: 0 | J33: 0 | K33: 0 | L33: 0 | M33: 0 | N33: 0 | O33: 0 | P33: 0 | Q33: 0 | R33: 0 | S33: 0 | T33: 0 | U33: 0 | V33: 0 | W33: 0 | X33: 0 | Y33: 0 | Z33: 0 | AA33: 118818 | AB33: 251418.888 | AC33: 261224.2246 | AD33: 269844.624 | AE33: 288463.9031 | AF33: 152020.4769 | AG33: 0 | AH33: 0 | AI33: 0 | AJ33: 0 | AK33: 0 | AL33: 0 | AM33: =$D33*AM121*AM209 -> 0 | AN33: 0 | AO33: 0 | AP33: 0 | AQ33: 0 | AR33: 0 | AS33: 0 | AT33: 0 | AU33: 0 | AV33: 0 | AW33: 0 | AX33: 0 | AY33: 0 | AZ33: 0 | BA33: 0 | BB33: 0 | BC33: 0 | BD33: 0 | BE33: 0 | BF33: 0 | BG33: 0 | BH33: 0 | BI33: 0 | BJ33: 0 | BK33: 0 | BL33: 0 | BM33: 0 | BN33: 0 | BO33: 0 | BP33: 0 | BQ33: 0 | BR33: 0 | BS33: =$D33*BS121*BS209 -> 0 | BT33: 0 | BU33: 0 | BV33: 0 | BW33: 0 | BX33: 0 | BY33: 0 | BZ33: 0 | CA33: 0 | CB33: 0 | CC33: 0 | CD33: 0 | CE33: 0 | CF33: 0 | CG33: 0 | CH33: 0 | CI33: 0 | CJ33: 0 | CK33: 0 | CL33: 0 | CM33: 0
B34: 1967 | C34: ='Inv totaal'!E444 -> 0 | D34: 0 | F34: 1967 | G34: =$D34*G122*G210 -> 0 | H34: 0 | I34: 0 | J34: 0 | K34: 0 | L34: 0 | M34: 0 | N34: 0 | O34: 0 | P34: 0 | Q34: 0 | R34: 0 | S34: 0 | T34: 0 | U34: 0 | V34: 0 | W34: 0 | X34: 0 | Y34: 0 | Z34: 0 | AA34: 0 | AB34: 0 | AC34: 0 | AD34: 0 | AE34: 0 | AF34: 0 | AG34: 0 | AH34: 0 | AI34: 0 | AJ34: 0 | AK34: 0 | AL34: 0 | AM34: =$D34*AM122*AM210 -> 0 | AN34: 0 | AO34: 0 | AP34: 0 | AQ34: 0 | AR34: 0 | AS34: 0 | AT34: 0 | AU34: 0 | AV34: 0 | AW34: 0 | AX34: 0 | AY34: 0 | AZ34: 0 | BA34: 0 | BB34: 0 | BC34: 0 | BD34: 0 | BE34: 0 | BF34: 0 | BG34: 0 | BH34: 0 | BI34: 0 | BJ34: 0 | BK34: 0 | BL34: 0 | BM34: 0 | BN34: 0 | BO34: 0 | BP34: 0 | BQ34: 0 | BR34: 0 | BS34: =$D34*BS122*BS210 -> 0 | BT34: 0 | BU34: 0 | BV34: 0 | BW34: 0 | BX34: 0 | BY34: 0 | BZ34: 0 | CA34: 0 | CB34: 0 | CC34: 0 | CD34: 0 | CE34: 0 | CF34: 0 | CG34: 0 | CH34: 0 | CI34: 0 | CJ34: 0 | CK34: 0 | CL34: 0 | CM34: 0
B35: 1968 | C35: ='Inv totaal'!E445 -> 426113 | D35: 85222.6 | F35: 1968 | G35: =$D35*G123*G211 -> 0 | H35: 0 | I35: 0 | J35: 0 | K35: 0 | L35: 0 | M35: 0 | N35: 0 | O35: 0 | P35: 0 | Q35: 0 | R35: 0 | S35: 0 | T35: 0 | U35: 0 | V35: 0 | W35: 0 | X35: 0 | Y35: 0 | Z35: 0 | AA35: 0 | AB35: 0 | AC35: 42611.3 | AD35: 88034.9458 | AE35: 94109.35706 | AF35: 99191.26234 | AG35: 106729.7983 | AH35: 57313.90168 | AI35: 0 | AJ35: 0 | AK35: 0 | AL35: 0 | AM35: =$D35*AM123*AM211 -> 0 | AN35: 0 | AO35: 0 | AP35: 0 | AQ35: 0 | AR35: 0 | AS35: 0 | AT35: 0 | AU35: 0 | AV35: 0 | AW35: 0 | AX35: 0 | AY35: 0 | AZ35: 0 | BA35: 0 | BB35: 0 | BC35: 0 | BD35: 0 | BE35: 0 | BF35: 0 | BG35: 0 | BH35: 0 | BI35: 0 | BJ35: 0 | BK35: 0 | BL35: 0 | BM35: 0 | BN35: 0 | BO35: 0 | BP35: 0 | BQ35: 0 | BR35: 0 | BS35: =$D35*BS123*BS211 -> 0 | BT35: 0 | BU35: 0 | BV35: 0 | BW35: 0 | BX35: 0 | BY35: 0 | BZ35: 0 | CA35: 0 | CB35: 0 | CC35: 0 | CD35: 0 | CE35: 0 | CF35: 0 | CG35: 0 | CH35: 0 | CI35: 0 | CJ35: 0 | CK35: 0 | CL35: 0 | CM35: 0
B36: 1969 | C36: ='Inv totaal'!E446 -> 637444 | D36: 127488.8 | F36: 1969 | G36: =$D36*G124*G212 -> 0 | H36: 0 | I36: 0 | J36: 0 | K36: 0 | L36: 0 | M36: 0 | N36: 0 | O36: 0 | P36: 0 | Q36: 0 | R36: 0 | S36: 0 | T36: 0 | U36: 0 | V36: 0 | W36: 0 | X36: 0 | Y36: 0 | Z36: 0 | AA36: 0 | AB36: 0 | AC36: 0 | AD36: 63744.4 | AE36: 136285.5272 | AF36: 143644.9457 | AG36: 154561.9615 | AH36: 165999.5467 | AI36: 89722.75499 | AJ36: 0 | AK36: 0 | AL36: 0 | AM36: =$D36*AM124*AM212 -> 0 | AN36: 0 | AO36: 0 | AP36: 0 | AQ36: 0 | AR36: 0 | AS36: 0 | AT36: 0 | AU36: 0 | AV36: 0 | AW36: 0 | AX36: 0 | AY36: 0 | AZ36: 0 | BA36: 0 | BB36: 0 | BC36: 0 | BD36: 0 | BE36: 0 | BF36: 0 | BG36: 0 | BH36: 0 | BI36: 0 | BJ36: 0 | BK36: 0 | BL36: 0 | BM36: 0 | BN36: 0 | BO36: 0 | BP36: 0 | BQ36: 0 | BR36: 0 | BS36: =$D36*BS124*BS212 -> 0 | BT36: 0 | BU36: 0 | BV36: 0 | BW36: 0 | BX36: 0 | BY36: 0 | BZ36: 0 | CA36: 0 | CB36: 0 | CC36: 0 | CD36: 0 | CE36: 0 | CF36: 0 | CG36: 0 | CH36: 0 | CI36: 0 | CJ36: 0 | CK36: 0 | CL36: 0 | CM36: 0
B37: 1970 | C37: ='Inv totaal'!E447 -> 444354 | D37: 88870.8 | F37: 1970 | G37: =$D37*G125*G213 -> 0 | H37: 0 | I37: 0 | J37: 0 | K37: 0 | L37: 0 | M37: 0 | N37: 0 | O37: 0 | P37: 0 | Q37: 0 | R37: 0 | S37: 0 | T37: 0 | U37: 0 | V37: 0 | W37: 0 | X37: 0 | Y37: 0 | Z37: 0 | AA37: 0 | AB37: 0 | AC37: 0 | AD37: 0 | AE37: 44435.4 | AF37: 93669.8232 | AG37: 100788.7298 | AH37: 108247.0958 | AI37: 117015.1105 | AJ37: 64241.29568 | AK37: 0 | AL37: 0 | AM37: =$D37*AM125*AM213 -> 0 | AN37: 0 | AO37: 0 | AP37: 0 | AQ37: 0 | AR37: 0 | AS37: 0 | AT37: 0 | AU37: 0 | AV37: 0 | AW37: 0 | AX37: 0 | AY37: 0 | AZ37: 0 | BA37: 0 | BB37: 0 | BC37: 0 | BD37: 0 | BE37: 0 | BF37: 0 | BG37: 0 | BH37: 0 | BI37: 0 | BJ37: 0 | BK37: 0 | BL37: 0 | BM37: 0 | BN37: 0 | BO37: 0 | BP37: 0 | BQ37: 0 | BR37: 0 | BS37: =$D37*BS125*BS213 -> 0 | BT37: 0 | BU37: 0 | BV37: 0 | BW37: 0 | BX37: 0 | BY37: 0 | BZ37: 0 | CA37: 0 | CB37: 0 | CC37: 0 | CD37: 0 | CE37: 0 | CF37: 0 | CG37: 0 | CH37: 0 | CI37: 0 | CJ37: 0 | CK37: 0 | CL37: 0 | CM37: 0
B38: 1971 | C38: ='Inv totaal'!E448 -> 980544 | D38: 196108.8 | F38: 1971 | G38: =$D38*G126*G214 -> 0 | H38: 0 | I38: 0 | J38: 0 | K38: 0 | L38: 0 | M38: 0 | N38: 0 | O38: 0 | P38: 0 | Q38: 0 | R38: 0 | S38: 0 | T38: 0 | U38: 0 | V38: 0 | W38: 0 | X38: 0 | Y38: 0 | Z38: 0 | AA38: 0 | AB38: 0 | AC38: 0 | AD38: 0 | AE38: 0 | AF38: 98054.4 | AG38: 211013.0688 | AH38: 226628.0359 | AI38: 244984.9068 | AJ38: 268993.4277 | AK38: 148887.8622 | AL38: 0 | AM38: =$D38*AM126*AM214 -> 0 | AN38: 0 | AO38: 0 | AP38: 0 | AQ38: 0 | AR38: 0 | AS38: 0 | AT38: 0 | AU38: 0 | AV38: 0 | AW38: 0 | AX38: 0 | AY38: 0 | AZ38: 0 | BA38: 0 | BB38: 0 | BC38: 0 | BD38: 0 | BE38: 0 | BF38: 0 | BG38: 0 | BH38: 0 | BI38: 0 | BJ38: 0 | BK38: 0 | BL38: 0 | BM38: 0 | BN38: 0 | BO38: 0 | BP38: 0 | BQ38: 0 | BR38: 0 | BS38: =$D38*BS126*BS214 -> 0 | BT38: 0 | BU38: 0 | BV38: 0 | BW38: 0 | BX38: 0 | BY38: 0 | BZ38: 0 | CA38: 0 | CB38: 0 | CC38: 0 | CD38: 0 | CE38: 0 | CF38: 0 | CG38: 0 | CH38: 0 | CI38: 0 | CJ38: 0 | CK38: 0 | CL38: 0 | CM38: 0
B39: 1972 | C39: ='Inv totaal'!E449 -> 1625125 | D39: 325025 | F39: 1972 | G39: =$D39*G127*G215 -> 0 | H39: 0 | I39: 0 | J39: 0 | K39: 0 | L39: 0 | M39: 0 | N39: 0 | O39: 0 | P39: 0 | Q39: 0 | R39: 0 | S39: 0 | T39: 0 | U39: 0 | V39: 0 | W39: 0 | X39: 0 | Y39: 0 | Z39: 0 | AA39: 0 | AB39: 0 | AC39: 0 | AD39: 0 | AE39: 0 | AF39: 0 | AG39: 162512.5 | AH39: 349076.85 | AI39: 377352.0749 | AJ39: 414332.5782 | AK39: 458666.1641 | AL39: 248367.7278 | AM39: =$D39*AM127*AM215 -> 0 | AN39: 0 | AO39: 0 | AP39: 0 | AQ39: 0 | AR39: 0 | AS39: 0 | AT39: 0 | AU39: 0 | AV39: 0 | AW39: 0 | AX39: 0 | AY39: 0 | AZ39: 0 | BA39: 0 | BB39: 0 | BC39: 0 | BD39: 0 | BE39: 0 | BF39: 0 | BG39: 0 | BH39: 0 | BI39: 0 | BJ39: 0 | BK39: 0 | BL39: 0 | BM39: 0 | BN39: 0 | BO39: 0 | BP39: 0 | BQ39: 0 | BR39: 0 | BS39: =$D39*BS127*BS215 -> 0 | BT39: 0 | BU39: 0 | BV39: 0 | BW39: 0 | BX39: 0 | BY39: 0 | BZ39: 0 | CA39: 0 | CB39: 0 | CC39: 0 | CD39: 0 | CE39: 0 | CF39: 0 | CG39: 0 | CH39: 0 | CI39: 0 | CJ39: 0 | CK39: 0 | CL39: 0 | CM39: 0
B40: 1973 | C40: ='Inv totaal'!E450 -> 1116647 | D40: 223329.4 | F40: 1973 | G40: =$D40*G128*G216 -> 0 | H40: 0 | I40: 0 | J40: 0 | K40: 0 | L40: 0 | M40: 0 | N40: 0 | O40: 0 | P40: 0 | Q40: 0 | R40: 0 | S40: 0 | T40: 0 | U40: 0 | V40: 0 | W40: 0 | X40: 0 | Y40: 0 | Z40: 0 | AA40: 0 | AB40: 0 | AC40: 0 | AD40: 0 | AE40: 0 | AF40: 0 | AG40: 0 | AH40: 111664.7 | AI40: 241419.0814 | AJ40: 265078.1514 | AK40: 293441.5136 | AL40: 317797.1592 | AM40: =$D40*AM128*AM216 -> 169703.683 | AN40: 0 | AO40: 0 | AP40: 0 | AQ40: 0 | AR40: 0 | AS40: 0 | AT40: 0 | AU40: 0 | AV40: 0 | AW40: 0 | AX40: 0 | AY40: 0 | AZ40: 0 | BA40: 0 | BB40: 0 | BC40: 0 | BD40: 0 | BE40: 0 | BF40: 0 | BG40: 0 | BH40: 0 | BI40: 0 | BJ40: 0 | BK40: 0 | BL40: 0 | BM40: 0 | BN40: 0 | BO40: 0 | BP40: 0 | BQ40: 0 | BR40: 0 | BS40: =$D40*BS128*BS216 -> 0 | BT40: 0 | BU40: 0 | BV40: 0 | BW40: 0 | BX40: 0 | BY40: 0 | BZ40: 0 | CA40: 0 | CB40: 0 | CC40: 0 | CD40: 0 | CE40: 0 | CF40: 0 | CG40: 0 | CH40: 0 | CI40: 0 | CJ40: 0 | CK40: 0 | CL40: 0 | CM40: 0
B41: 1974 | C41: ='Inv totaal'!E451 -> 1827697 | D41: 365539.4 | F41: 1974 | G41: =$D41*G129*G217 -> 0 | H41: 0 | I41: 0 | J41: 0 | K41: 0 | L41: 0 | M41: 0 | N41: 0 | O41: 0 | P41: 0 | Q41: 0 | R41: 0 | S41: 0 | T41: 0 | U41: 0 | V41: 0 | W41: 0 | X41: 0 | Y41: 0 | Z41: 0 | AA41: 0 | AB41: 0 | AC41: 0 | AD41: 0 | AE41: 0 | AF41: 0 | AG41: 0 | AH41: 0 | AI41: 182769.7 | AJ41: 401362.2612 | AK41: 444308.0231 | AL41: 481185.5891 | AM41: =$D41*AM129*AM217 -> 513906.2091 | AN41: 267745.135 | AO41: 0 | AP41: 0 | AQ41: 0 | AR41: 0 | AS41: 0 | AT41: 0 | AU41: 0 | AV41: 0 | AW41: 0 | AX41: 0 | AY41: 0 | AZ41: 0 | BA41: 0 | BB41: 0 | BC41: 0 | BD41: 0 | BE41: 0 | BF41: 0 | BG41: 0 | BH41: 0 | BI41: 0 | BJ41: 0 | BK41: 0 | BL41: 0 | BM41: 0 | BN41: 0 | BO41: 0 | BP41: 0 | BQ41: 0 | BR41: 0 | BS41: =$D41*BS129*BS217 -> 0 | BT41: 0 | BU41: 0 | BV41: 0 | BW41: 0 | BX41: 0 | BY41: 0 | BZ41: 0 | CA41: 0 | CB41: 0 | CC41: 0 | CD41: 0 | CE41: 0 | CF41: 0 | CG41: 0 | CH41: 0 | CI41: 0 | CJ41: 0 | CK41: 0 | CL41: 0 | CM41: 0
B42: 1975 | C42: ='Inv totaal'!E452 -> 734693 | D42: 146938.6 | F42: 1975 | G42: =$D42*G130*G218 -> 0 | H42: 0 | I42: 0 | J42: 0 | K42: 0 | L42: 0 | M42: 0 | N42: 0 | O42: 0 | P42: 0 | Q42: 0 | R42: 0 | S42: 0 | T42: 0 | U42: 0 | V42: 0 | W42: 0 | X42: 0 | Y42: 0 | Z42: 0 | AA42: 0 | AB42: 0 | AC42: 0 | AD42: 0 | AE42: 0 | AF42: 0 | AG42: 0 | AH42: 0 | AI42: 0 | AJ42: 73469.3 | AK42: 162661.0302 | AL42: 176161.8957 | AM42: =$D42*AM130*AM218 -> 188140.9046 | AN42: 196042.8226 | AO42: 101746.2249 | AP42: 0 | AQ42: 0 | AR42: 0 | AS42: 0 | AT42: 0 | AU42: 0 | AV42: 0 | AW42: 0 | AX42: 0 | AY42: 0 | AZ42: 0 | BA42: 0 | BB42: 0 | BC42: 0 | BD42: 0 | BE42: 0 | BF42: 0 | BG42: 0 | BH42: 0 | BI42: 0 | BJ42: 0 | BK42: 0 | BL42: 0 | BM42: 0 | BN42: 0 | BO42: 0 | BP42: 0 | BQ42: 0 | BR42: 0 | BS42: =$D42*BS130*BS218 -> 0 | BT42: 0 | BU42: 0 | BV42: 0 | BW42: 0 | BX42: 0 | BY42: 0 | BZ42: 0 | CA42: 0 | CB42: 0 | CC42: 0 | CD42: 0 | CE42: 0 | CF42: 0 | CG42: 0 | CH42: 0 | CI42: 0 | CJ42: 0 | CK42: 0 | CL42: 0 | CM42: 0
B43: 1976 | C43: ='Inv totaal'!E453 -> 1380940 | D43: 276188 | F43: 1976 | G43: =$D43*G131*G219 -> 0 | H43: 0 | I43: 0 | J43: 0 | K43: 0 | L43: 0 | M43: 0 | N43: 0 | O43: 0 | P43: 0 | Q43: 0 | R43: 0 | S43: 0 | T43: 0 | U43: 0 | V43: 0 | W43: 0 | X43: 0 | Y43: 0 | Z43: 0 | AA43: 0 | AB43: 0 | AC43: 0 | AD43: 0 | AE43: 0 | AF43: 0 | AG43: 0 | AH43: 0 | AI43: 0 | AJ43: 0 | AK43: 138094 | AL43: 299111.604 | AM43: =$D43*AM131*AM219 -> 319451.1931 | AN43: 332868.1432 | AO43: 345517.1326 | AP43: 185024.4245 | AQ43: 0 | AR43: 0 | AS43: 0 | AT43: 0 | AU43: 0 | AV43: 0 | AW43: 0 | AX43: 0 | AY43: 0 | AZ43: 0 | BA43: 0 | BB43: 0 | BC43: 0 | BD43: 0 | BE43: 0 | BF43: 0 | BG43: 0 | BH43: 0 | BI43: 0 | BJ43: 0 | BK43: 0 | BL43: 0 | BM43: 0 | BN43: 0 | BO43: 0 | BP43: 0 | BQ43: 0 | BR43: 0 | BS43: =$D43*BS131*BS219 -> 0 | BT43: 0 | BU43: 0 | BV43: 0 | BW43: 0 | BX43: 0 | BY43: 0 | BZ43: 0 | CA43: 0 | CB43: 0 | CC43: 0 | CD43: 0 | CE43: 0 | CF43: 0 | CG43: 0 | CH43: 0 | CI43: 0 | CJ43: 0 | CK43: 0 | CL43: 0 | CM43: 0
B44: 1977 | C44: ='Inv totaal'!E454 -> 1392166 | D44: 278433.2 | F44: 1977 | G44: =$D44*G132*G220 -> 0 | H44: 0 | I44: 0 | J44: 0 | K44: 0 | L44: 0 | M44: 0 | N44: 0 | O44: 0 | P44: 0 | Q44: 0 | R44: 0 | S44: 0 | T44: 0 | U44: 0 | V44: 0 | W44: 0 | X44: 0 | Y44: 0 | Z44: 0 | AA44: 0 | AB44: 0 | AC44: 0 | AD44: 0 | AE44: 0 | AF44: 0 | AG44: 0 | AH44: 0 | AI44: 0 | AJ44: 0 | AK44: 0 | AL44: 139216.6 | AM44: =$D44*AM132*AM220 -> 297366.6576 | AN44: 309856.0572 | AO44: 321630.5874 | AP44: 344466.3591 | AQ44: 183256.103 | AR44: 0 | AS44: 0 | AT44: 0 | AU44: 0 | AV44: 0 | AW44: 0 | AX44: 0 | AY44: 0 | AZ44: 0 | BA44: 0 | BB44: 0 | BC44: 0 | BD44: 0 | BE44: 0 | BF44: 0 | BG44: 0 | BH44: 0 | BI44: 0 | BJ44: 0 | BK44: 0 | BL44: 0 | BM44: 0 | BN44: 0 | BO44: 0 | BP44: 0 | BQ44: 0 | BR44: 0 | BS44: =$D44*BS132*BS220 -> 0 | BT44: 0 | BU44: 0 | BV44: 0 | BW44: 0 | BX44: 0 | BY44: 0 | BZ44: 0 | CA44: 0 | CB44: 0 | CC44: 0 | CD44: 0 | CE44: 0 | CF44: 0 | CG44: 0 | CH44: 0 | CI44: 0 | CJ44: 0 | CK44: 0 | CL44: 0 | CM44: 0
B45: 1978 | C45: ='Inv totaal'!E455 -> 5242812 | D45: =C45/$C$9 -> 1048562.4 | F45: 1978 | G45: =$D45*G133*G221 -> 0 | H45: 0 | I45: 0 | J45: 0 | K45: 0 | L45: 0 | M45: 0 | N45: 0 | O45: 0 | P45: 0 | Q45: 0 | R45: 0 | S45: 0 | T45: 0 | U45: 0 | V45: 0 | W45: 0 | X45: 0 | Y45: 0 | Z45: 0 | AA45: 0 | AB45: 0 | AC45: 0 | AD45: 0 | AE45: 0 | AF45: 0 | AG45: 0 | AH45: 0 | AI45: 0 | AJ45: 0 | AK45: 0 | AL45: 0 | AM45: =$D45*AM133*AM221 -> 524281.2 | AN45: 1092602.021 | AO45: 1134120.898 | AP45: 1214643.481 | AQ45: 1292380.664 | AR45: 684315.5617 | AS45: 0 | AT45: 0 | AU45: 0 | AV45: 0 | AW45: 0 | AX45: 0 | AY45: 0 | AZ45: 0 | BA45: 0 | BB45: 0 | BC45: 0 | BD45: 0 | BE45: 0 | BF45: 0 | BG45: 0 | BH45: 0 | BI45: 0 | BJ45: 0 | BK45: 0 | BL45: 0 | BM45: 0 | BN45: 0 | BO45: 0 | BP45: 0 | BQ45: 0 | BR45: 0 | BS45: =$D45*BS133*BS221 -> 0 | BT45: 0 | BU45: 0 | BV45: 0 | BW45: 0 | BX45: 0 | BY45: 0 | BZ45: 0 | CA45: 0 | CB45: 0 | CC45: 0 | CD45: 0 | CE45: 0 | CF45: 0 | CG45: 0 | CH45: 0 | CI45: 0 | CJ45: 0 | CK45: 0 | CL45: 0 | CM45: 0
B46: 1979 | C46: ='Inv totaal'!E456 -> 2442668 | D46: 488533.6 | F46: 1979 | G46: =$D46*G134*G222 -> 0 | H46: 0 | I46: 0 | J46: 0 | K46: 0 | L46: 0 | M46: 0 | N46: 0 | O46: 0 | P46: 0 | Q46: 0 | R46: 0 | S46: 0 | T46: 0 | U46: 0 | V46: 0 | W46: 0 | X46: 0 | Y46: 0 | Z46: 0 | AA46: 0 | AB46: 0 | AC46: 0 | AD46: 0 | AE46: 0 | AF46: 0 | AG46: 0 | AH46: 0 | AI46: 0 | AJ46: 0 | AK46: 0 | AL46: 0 | AM46: =$D46*AM134*AM222 -> 0 | AN46: 244266.8 | AO46: 507097.8768 | AP46: 543101.8261 | AQ46: 577860.3429 | AR46: 611954.1032 | AS46: 313932.4549 | AT46: 0 | AU46: 0 | AV46: 0 | AW46: 0 | AX46: 0 | AY46: 0 | AZ46: 0 | BA46: 0 | BB46: 0 | BC46: 0 | BD46: 0 | BE46: 0 | BF46: 0 | BG46: 0 | BH46: 0 | BI46: 0 | BJ46: 0 | BK46: 0 | BL46: 0 | BM46: 0 | BN46: 0 | BO46: 0 | BP46: 0 | BQ46: 0 | BR46: 0 | BS46: =$D46*BS134*BS222 -> 0 | BT46: 0 | BU46: 0 | BV46: 0 | BW46: 0 | BX46: 0 | BY46: 0 | BZ46: 0 | CA46: 0 | CB46: 0 | CC46: 0 | CD46: 0 | CE46: 0 | CF46: 0 | CG46: 0 | CH46: 0 | CI46: 0 | CJ46: 0 | CK46: 0 | CL46: 0 | CM46: 0
B47: 1980 | C47: ='Inv totaal'!E457 -> 2389317 | D47: 477863.4 | F47: 1980 | G47: =$D47*G135*G223 -> 0 | H47: 0 | I47: 0 | J47: 0 | K47: 0 | L47: 0 | M47: 0 | N47: 0 | O47: 0 | P47: 0 | Q47: 0 | R47: 0 | S47: 0 | T47: 0 | U47: 0 | V47: 0 | W47: 0 | X47: 0 | Y47: 0 | Z47: 0 | AA47: 0 | AB47: 0 | AC47: 0 | AD47: 0 | AE47: 0 | AF47: 0 | AG47: 0 | AH47: 0 | AI47: 0 | AJ47: 0 | AK47: 0 | AL47: 0 | AM47: =$D47*AM135*AM223 -> 0 | AN47: 0 | AO47: 238931.7 | AP47: 511791.7014 | AQ47: 544546.3703 | AR47: 576674.6061 | AS47: 591668.1459 | AT47: 304117.427 | AU47: 0 | AV47: 0 | AW47: 0 | AX47: 0 | AY47: 0 | AZ47: 0 | BA47: 0 | BB47: 0 | BC47: 0 | BD47: 0 | BE47: 0 | BF47: 0 | BG47: 0 | BH47: 0 | BI47: 0 | BJ47: 0 | BK47: 0 | BL47: 0 | BM47: 0 | BN47: 0 | BO47: 0 | BP47: 0 | BQ47: 0 | BR47: 0 | BS47: =$D47*BS135*BS223 -> 0 | BT47: 0 | BU47: 0 | BV47: 0 | BW47: 0 | BX47: 0 | BY47: 0 | BZ47: 0 | CA47: 0 | CB47: 0 | CC47: 0 | CD47: 0 | CE47: 0 | CF47: 0 | CG47: 0 | CH47: 0 | CI47: 0 | CJ47: 0 | CK47: 0 | CL47: 0 | CM47: 0
B48: 1981 | C48: ='Inv totaal'!E458 -> 2142381 | D48: 428476.2 | F48: 1981 | G48: =$D48*G136*G224 -> 0 | H48: 0 | I48: 0 | J48: 0 | K48: 0 | L48: 0 | M48: 0 | N48: 0 | O48: 0 | P48: 0 | Q48: 0 | R48: 0 | S48: 0 | T48: 0 | U48: 0 | V48: 0 | W48: 0 | X48: 0 | Y48: 0 | Z48: 0 | AA48: 0 | AB48: 0 | AC48: 0 | AD48: 0 | AE48: 0 | AF48: 0 | AG48: 0 | AH48: 0 | AI48: 0 | AJ48: 0 | AK48: 0 | AL48: 0 | AM48: =$D48*AM136*AM224 -> 0 | AN48: 0 | AO48: 0 | AP48: 214238.1 | AQ48: 455898.6768 | AR48: 482796.6987 | AS48: 495349.4129 | AT48: 509219.1965 | AU48: 260465.619 | AV48: 0 | AW48: 0 | AX48: 0 | AY48: 0 | AZ48: 0 | BA48: 0 | BB48: 0 | BC48: 0 | BD48: 0 | BE48: 0 | BF48: 0 | BG48: 0 | BH48: 0 | BI48: 0 | BJ48: 0 | BK48: 0 | BL48: 0 | BM48: 0 | BN48: 0 | BO48: 0 | BP48: 0 | BQ48: 0 | BR48: 0 | BS48: =$D48*BS136*BS224 -> 0 | BT48: 0 | BU48: 0 | BV48: 0 | BW48: 0 | BX48: 0 | BY48: 0 | BZ48: 0 | CA48: 0 | CB48: 0 | CC48: 0 | CD48: 0 | CE48: 0 | CF48: 0 | CG48: 0 | CH48: 0 | CI48: 0 | CJ48: 0 | CK48: 0 | CL48: 0 | CM48: 0
B49: 1982 | C49: ='Inv totaal'!E459 -> 4060119 | D49: 812023.8 | F49: 1982 | G49: =$D49*G137*G225 -> 0 | H49: 0 | I49: 0 | J49: 0 | K49: 0 | L49: 0 | M49: 0 | N49: 0 | O49: 0 | P49: 0 | Q49: 0 | R49: 0 | S49: 0 | T49: 0 | U49: 0 | V49: 0 | W49: 0 | X49: 0 | Y49: 0 | Z49: 0 | AA49: 0 | AB49: 0 | AC49: 0 | AD49: 0 | AE49: 0 | AF49: 0 | AG49: 0 | AH49: 0 | AI49: 0 | AJ49: 0 | AK49: 0 | AL49: 0 | AM49: =$D49*AM137*AM225 -> 0 | AN49: 0 | AO49: 0 | AP49: 0 | AQ49: 406011.9 | AR49: 859933.2042 | AS49: 882291.4675 | AT49: 906995.6286 | AU49: 927856.5281 | AV49: 461608.6227 | AW49: 0 | AX49: 0 | AY49: 0 | AZ49: 0 | BA49: 0 | BB49: 0 | BC49: 0 | BD49: 0 | BE49: 0 | BF49: 0 | BG49: 0 | BH49: 0 | BI49: 0 | BJ49: 0 | BK49: 0 | BL49: 0 | BM49: 0 | BN49: 0 | BO49: 0 | BP49: 0 | BQ49: 0 | BR49: 0 | BS49: =$D49*BS137*BS225 -> 0 | BT49: 0 | BU49: 0 | BV49: 0 | BW49: 0 | BX49: 0 | BY49: 0 | BZ49: 0 | CA49: 0 | CB49: 0 | CC49: 0 | CD49: 0 | CE49: 0 | CF49: 0 | CG49: 0 | CH49: 0 | CI49: 0 | CJ49: 0 | CK49: 0 | CL49: 0 | CM49: 0
B50: 1983 | C50: ='Inv totaal'!E460 -> 404967 | D50: 80993.4 | F50: 1983 | G50: =$D50*G138*G226 -> 0 | H50: 0 | I50: 0 | J50: 0 | K50: 0 | L50: 0 | M50: 0 | N50: 0 | O50: 0 | P50: 0 | Q50: 0 | R50: 0 | S50: 0 | T50: 0 | U50: 0 | V50: 0 | W50: 0 | X50: 0 | Y50: 0 | Z50: 0 | AA50: 0 | AB50: 0 | AC50: 0 | AD50: 0 | AE50: 0 | AF50: 0 | AG50: 0 | AH50: 0 | AI50: 0 | AJ50: 0 | AK50: 0 | AL50: 0 | AM50: =$D50*AM138*AM226 -> 0 | AN50: 0 | AO50: 0 | AP50: 0 | AQ50: 0 | AR50: 40496.7 | AS50: 83099.2284 | AT50: 85426.0068 | AU50: 87390.80495 | AV50: 86953.85093 | AW50: 43563.87931 | AX50: 0 | AY50: 0 | AZ50: 0 | BA50: 0 | BB50: 0 | BC50: 0 | BD50: 0 | BE50: 0 | BF50: 0 | BG50: 0 | BH50: 0 | BI50: 0 | BJ50: 0 | BK50: 0 | BL50: 0 | BM50: 0 | BN50: 0 | BO50: 0 | BP50: 0 | BQ50: 0 | BR50: 0 | BS50: =$D50*BS138*BS226 -> 0 | BT50: 0 | BU50: 0 | BV50: 0 | BW50: 0 | BX50: 0 | BY50: 0 | BZ50: 0 | CA50: 0 | CB50: 0 | CC50: 0 | CD50: 0 | CE50: 0 | CF50: 0 | CG50: 0 | CH50: 0 | CI50: 0 | CJ50: 0 | CK50: 0 | CL50: 0 | CM50: 0
B51: 1984 | C51: ='Inv totaal'!E461 -> 1706761 | D51: 341352.2 | F51: 1984 | G51: =$D51*G139*G227 -> 0 | H51: 0 | I51: 0 | J51: 0 | K51: 0 | L51: 0 | M51: 0 | N51: 0 | O51: 0 | P51: 0 | Q51: 0 | R51: 0 | S51: 0 | T51: 0 | U51: 0 | V51: 0 | W51: 0 | X51: 0 | Y51: 0 | Z51: 0 | AA51: 0 | AB51: 0 | AC51: 0 | AD51: 0 | AE51: 0 | AF51: 0 | AG51: 0 | AH51: 0 | AI51: 0 | AJ51: 0 | AK51: 0 | AL51: 0 | AM51: =$D51*AM139*AM227 -> 0 | AN51: 0 | AO51: 0 | AP51: 0 | AQ51: 0 | AR51: 0 | AS51: 170676.1 | AT51: 350910.0616 | AU51: 358980.993 | AV51: 357186.0881 | AW51: 357900.4602 | AX51: 180560.7822 | AY51: 0 | AZ51: 0 | BA51: 0 | BB51: 0 | BC51: 0 | BD51: 0 | BE51: 0 | BF51: 0 | BG51: 0 | BH51: 0 | BI51: 0 | BJ51: 0 | BK51: 0 | BL51: 0 | BM51: 0 | BN51: 0 | BO51: 0 | BP51: 0 | BQ51: 0 | BR51: 0 | BS51: =$D51*BS139*BS227 -> 0 | BT51: 0 | BU51: 0 | BV51: 0 | BW51: 0 | BX51: 0 | BY51: 0 | BZ51: 0 | CA51: 0 | CB51: 0 | CC51: 0 | CD51: 0 | CE51: 0 | CF51: 0 | CG51: 0 | CH51: 0 | CI51: 0 | CJ51: 0 | CK51: 0 | CL51: 0 | CM51: 0
B52: 1985 | C52: ='Inv totaal'!E462 -> 1177041 | D52: 235408.2 | F52: 1985 | G52: =$D52*G140*G228 -> 0 | H52: 0 | I52: 0 | J52: 0 | K52: 0 | L52: 0 | M52: 0 | N52: 0 | O52: 0 | P52: 0 | Q52: 0 | R52: 0 | S52: 0 | T52: 0 | U52: 0 | V52: 0 | W52: 0 | X52: 0 | Y52: 0 | Z52: 0 | AA52: 0 | AB52: 0 | AC52: 0 | AD52: 0 | AE52: 0 | AF52: 0 | AG52: 0 | AH52: 0 | AI52: 0 | AJ52: 0 | AK52: 0 | AL52: 0 | AM52: =$D52*AM140*AM228 -> 0 | AN52: 0 | AO52: 0 | AP52: 0 | AQ52: 0 | AR52: 0 | AS52: 0 | AT52: 117704.1 | AU52: 240822.5886 | AV52: 239618.4757 | AW52: 240097.7126 | AX52: 242258.592 | AY52: 122461.7183 | AZ52: 0 | BA52: 0 | BB52: 0 | BC52: 0 | BD52: 0 | BE52: 0 | BF52: 0 | BG52: 0 | BH52: 0 | BI52: 0 | BJ52: 0 | BK52: 0 | BL52: 0 | BM52: 0 | BN52: 0 | BO52: 0 | BP52: 0 | BQ52: 0 | BR52: 0 | BS52: =$D52*BS140*BS228 -> 0 | BT52: 0 | BU52: 0 | BV52: 0 | BW52: 0 | BX52: 0 | BY52: 0 | BZ52: 0 | CA52: 0 | CB52: 0 | CC52: 0 | CD52: 0 | CE52: 0 | CF52: 0 | CG52: 0 | CH52: 0 | CI52: 0 | CJ52: 0 | CK52: 0 | CL52: 0 | CM52: 0
B53: 1986 | C53: ='Inv totaal'!E463 -> 1099662 | D53: 219932.4 | F53: 1986 | G53: =$D53*G141*G229 -> 0 | H53: 0 | I53: 0 | J53: 0 | K53: 0 | L53: 0 | M53: 0 | N53: 0 | O53: 0 | P53: 0 | Q53: 0 | R53: 0 | S53: 0 | T53: 0 | U53: 0 | V53: 0 | W53: 0 | X53: 0 | Y53: 0 | Z53: 0 | AA53: 0 | AB53: 0 | AC53: 0 | AD53: 0 | AE53: 0 | AF53: 0 | AG53: 0 | AH53: 0 | AI53: 0 | AJ53: 0 | AK53: 0 | AL53: 0 | AM53: =$D53*AM141*AM229 -> 0 | AN53: 0 | AO53: 0 | AP53: 0 | AQ53: 0 | AR53: 0 | AS53: 0 | AT53: 0 | AU53: 109966.2 | AV53: 218832.738 | AW53: 219270.4035 | AX53: 221243.8371 | AY53: 223677.5193 | AZ53: 114522.8899 | BA53: 0 | BB53: 0 | BC53: 0 | BD53: 0 | BE53: 0 | BF53: 0 | BG53: 0 | BH53: 0 | BI53: 0 | BJ53: 0 | BK53: 0 | BL53: 0 | BM53: 0 | BN53: 0 | BO53: 0 | BP53: 0 | BQ53: 0 | BR53: 0 | BS53: =$D53*BS141*BS229 -> 0 | BT53: 0 | BU53: 0 | BV53: 0 | BW53: 0 | BX53: 0 | BY53: 0 | BZ53: 0 | CA53: 0 | CB53: 0 | CC53: 0 | CD53: 0 | CE53: 0 | CF53: 0 | CG53: 0 | CH53: 0 | CI53: 0 | CJ53: 0 | CK53: 0 | CL53: 0 | CM53: 0
B54: 1987 | C54: ='Inv totaal'!E464 -> 200268 | D54: 40053.6 | F54: 1987 | G54: =$D54*G142*G230 -> 0 | H54: 0 | I54: 0 | J54: 0 | K54: 0 | L54: 0 | M54: 0 | N54: 0 | O54: 0 | P54: 0 | Q54: 0 | R54: 0 | S54: 0 | T54: 0 | U54: 0 | V54: 0 | W54: 0 | X54: 0 | Y54: 0 | Z54: 0 | AA54: 0 | AB54: 0 | AC54: 0 | AD54: 0 | AE54: 0 | AF54: 0 | AG54: 0 | AH54: 0 | AI54: 0 | AJ54: 0 | AK54: 0 | AL54: 0 | AM54: =$D54*AM142*AM230 -> 0 | AN54: 0 | AO54: 0 | AP54: 0 | AQ54: 0 | AR54: 0 | AS54: 0 | AT54: 0 | AU54: 0 | AV54: 20026.8 | AW54: 40133.7072 | AX54: 40494.91056 | AY54: 40940.35458 | AZ54: 41922.92309 | BA54: 21925.68878 | BB54: 0 | BC54: 0 | BD54: 0 | BE54: 0 | BF54: 0 | BG54: 0 | BH54: 0 | BI54: 0 | BJ54: 0 | BK54: 0 | BL54: 0 | BM54: 0 | BN54: 0 | BO54: 0 | BP54: 0 | BQ54: 0 | BR54: 0 | BS54: =$D54*BS142*BS230 -> 0 | BT54: 0 | BU54: 0 | BV54: 0 | BW54: 0 | BX54: 0 | BY54: 0 | BZ54: 0 | CA54: 0 | CB54: 0 | CC54: 0 | CD54: 0 | CE54: 0 | CF54: 0 | CG54: 0 | CH54: 0 | CI54: 0 | CJ54: 0 | CK54: 0 | CL54: 0 | CM54: 0
B55: 1988 | C55: ='Inv totaal'!E465 -> 45777 | D55: 9155.4 | F55: 1988 | G55: =$D55*G143*G231 -> 0 | H55: 0 | I55: 0 | J55: 0 | K55: 0 | L55: 0 | M55: 0 | N55: 0 | O55: 0 | P55: 0 | Q55: 0 | R55: 0 | S55: 0 | T55: 0 | U55: 0 | V55: 0 | W55: 0 | X55: 0 | Y55: 0 | Z55: 0 | AA55: 0 | AB55: 0 | AC55: 0 | AD55: 0 | AE55: 0 | AF55: 0 | AG55: 0 | AH55: 0 | AI55: 0 | AJ55: 0 | AK55: 0 | AL55: 0 | AM55: =$D55*AM143*AM231 -> 0 | AN55: 0 | AO55: 0 | AP55: 0 | AQ55: 0 | AR55: 0 | AS55: 0 | AT55: 0 | AU55: 0 | AV55: 0 | AW55: 4577.7 | AX55: 9237.7986 | AY55: 9339.414385 | AZ55: 9563.56033 | BA55: 10003.48411 | BB55: 5176.803024 | BC55: 0 | BD55: 0 | BE55: 0 | BF55: 0 | BG55: 0 | BH55: 0 | BI55: 0 | BJ55: 0 | BK55: 0 | BL55: 0 | BM55: 0 | BN55: 0 | BO55: 0 | BP55: 0 | BQ55: 0 | BR55: 0 | BS55: =$D55*BS143*BS231 -> 0 | BT55: 0 | BU55: 0 | BV55: 0 | BW55: 0 | BX55: 0 | BY55: 0 | BZ55: 0 | CA55: 0 | CB55: 0 | CC55: 0 | CD55: 0 | CE55: 0 | CF55: 0 | CG55: 0 | CH55: 0 | CI55: 0 | CJ55: 0 | CK55: 0 | CL55: 0 | CM55: 0
B56: 1989 | C56: ='Inv totaal'!E466 -> 1957740.569 | D56: 391548.1138 | F56: 1989 | G56: =$D56*G144*G232 -> 0 | H56: 0 | I56: 0 | J56: 0 | K56: 0 | L56: 0 | M56: 0 | N56: 0 | O56: 0 | P56: 0 | Q56: 0 | R56: 0 | S56: 0 | T56: 0 | U56: 0 | V56: 0 | W56: 0 | X56: 0 | Y56: 0 | Z56: 0 | AA56: 0 | AB56: 0 | AC56: 0 | AD56: 0 | AE56: 0 | AF56: 0 | AG56: 0 | AH56: 0 | AI56: 0 | AJ56: 0 | AK56: 0 | AL56: 0 | AM56: =$D56*AM144*AM232 -> 0 | AN56: 0 | AO56: 0 | AP56: 0 | AQ56: 0 | AR56: 0 | AS56: 0 | AT56: 0 | AU56: 0 | AV56: 0 | AW56: 0 | AX56: 195774.0569 | AY56: 395855.1431 | AZ56: 405355.6665 | BA56: 424002.0272 | BB56: 438842.0981 | BC56: 223809.47 | BD56: 0 | BE56: 0 | BF56: 0 | BG56: 0 | BH56: 0 | BI56: 0 | BJ56: 0 | BK56: 0 | BL56: 0 | BM56: 0 | BN56: 0 | BO56: 0 | BP56: 0 | BQ56: 0 | BR56: 0 | BS56: =$D56*BS144*BS232 -> 0 | BT56: 0 | BU56: 0 | BV56: 0 | BW56: 0 | BX56: 0 | BY56: 0 | BZ56: 0 | CA56: 0 | CB56: 0 | CC56: 0 | CD56: 0 | CE56: 0 | CF56: 0 | CG56: 0 | CH56: 0 | CI56: 0 | CJ56: 0 | CK56: 0 | CL56: 0 | CM56: 0
B57: 1990 | C57: ='Inv totaal'!E467 -> 2284139.538 | D57: 456827.9076 | F57: 1990 | G57: =$D57*G145*G233 -> 0 | H57: 0 | I57: 0 | J57: 0 | K57: 0 | L57: 0 | M57: 0 | N57: 0 | O57: 0 | P57: 0 | Q57: 0 | R57: 0 | S57: 0 | T57: 0 | U57: 0 | V57: 0 | W57: 0 | X57: 0 | Y57: 0 | Z57: 0 | AA57: 0 | AB57: 0 | AC57: 0 | AD57: 0 | AE57: 0 | AF57: 0 | AG57: 0 | AH57: 0 | AI57: 0 | AJ57: 0 | AK57: 0 | AL57: 0 | AM57: =$D57*AM145*AM233 -> 0 | AN57: 0 | AO57: 0 | AP57: 0 | AQ57: 0 | AR57: 0 | AS57: 0 | AT57: 0 | AU57: 0 | AV57: 0 | AW57: 0 | AX57: 0 | AY57: 228413.9538 | AZ57: 467791.7774 | BA57: 489310.1992 | BB57: 506436.0561 | BC57: 516564.7773 | BD57: 264997.7307 | BE57: 0 | BF57: 0 | BG57: 0 | BH57: 0 | BI57: 0 | BJ57: 0 | BK57: 0 | BL57: 0 | BM57: 0 | BN57: 0 | BO57: 0 | BP57: 0 | BQ57: 0 | BR57: 0 | BS57: =$D57*BS145*BS233 -> 0 | BT57: 0 | BU57: 0 | BV57: 0 | BW57: 0 | BX57: 0 | BY57: 0 | BZ57: 0 | CA57: 0 | CB57: 0 | CC57: 0 | CD57: 0 | CE57: 0 | CF57: 0 | CG57: 0 | CH57: 0 | CI57: 0 | CJ57: 0 | CK57: 0 | CL57: 0 | CM57: 0
B58: 1991 | C58: ='Inv totaal'!E468 -> 652434 | D58: 130486.8 | F58: 1991 | G58: =$D58*G146*G234 -> 0 | H58: 0 | I58: 0 | J58: 0 | K58: 0 | L58: 0 | M58: 0 | N58: 0 | O58: 0 | P58: 0 | Q58: 0 | R58: 0 | S58: 0 | T58: 0 | U58: 0 | V58: 0 | W58: 0 | X58: 0 | Y58: 0 | Z58: 0 | AA58: 0 | AB58: 0 | AC58: 0 | AD58: 0 | AE58: 0 | AF58: 0 | AG58: 0 | AH58: 0 | AI58: 0 | AJ58: 0 | AK58: 0 | AL58: 0 | AM58: =$D58*AM146*AM234 -> 0 | AN58: 0 | AO58: 0 | AP58: 0 | AQ58: 0 | AR58: 0 | AS58: 0 | AT58: 0 | AU58: 0 | AV58: 0 | AW58: 0 | AX58: 0 | AY58: 0 | AZ58: 65243.4 | BA58: 136489.1928 | BB58: 141266.3145 | BC58: 144091.6408 | BD58: 147838.0235 | BE58: 75027.79693 | BF58: 0 | BG58: 0 | BH58: 0 | BI58: 0 | BJ58: 0 | BK58: 0 | BL58: 0 | BM58: 0 | BN58: 0 | BO58: 0 | BP58: 0 | BQ58: 0 | BR58: 0 | BS58: =$D58*BS146*BS234 -> 0 | BT58: 0 | BU58: 0 | BV58: 0 | BW58: 0 | BX58: 0 | BY58: 0 | BZ58: 0 | CA58: 0 | CB58: 0 | CC58: 0 | CD58: 0 | CE58: 0 | CF58: 0 | CG58: 0 | CH58: 0 | CI58: 0 | CJ58: 0 | CK58: 0 | CL58: 0 | CM58: 0
B59: 1992 | C59: ='Inv totaal'!E469 -> 143193.5282 | D59: 28638.70564 | F59: 1992 | G59: =$D59*G147*G235 -> 0 | H59: 0 | I59: 0 | J59: 0 | K59: 0 | L59: 0 | M59: 0 | N59: 0 | O59: 0 | P59: 0 | Q59: 0 | R59: 0 | S59: 0 | T59: 0 | U59: 0 | V59: 0 | W59: 0 | X59: 0 | Y59: 0 | Z59: 0 | AA59: 0 | AB59: 0 | AC59: 0 | AD59: 0 | AE59: 0 | AF59: 0 | AG59: 0 | AH59: 0 | AI59: 0 | AJ59: 0 | AK59: 0 | AL59: 0 | AM59: =$D59*AM147*AM235 -> 0 | AN59: 0 | AO59: 0 | AP59: 0 | AQ59: 0 | AR59: 0 | AS59: 0 | AT59: 0 | AU59: 0 | AV59: 0 | AW59: 0 | AX59: 0 | AY59: 0 | AZ59: 0 | BA59: 14319.35282 | BB59: 29641.06033 | BC59: 30233.88154 | BD59: 31019.96246 | BE59: 31485.2619 | BF59: 16041.74094 | BG59: 0 | BH59: 0 | BI59: 0 | BJ59: 0 | BK59: 0 | BL59: 0 | BM59: 0 | BN59: 0 | BO59: 0 | BP59: 0 | BQ59: 0 | BR59: 0 | BS59: =$D59*BS147*BS235 -> 0 | BT59: 0 | BU59: 0 | BV59: 0 | BW59: 0 | BX59: 0 | BY59: 0 | BZ59: 0 | CA59: 0 | CB59: 0 | CC59: 0 | CD59: 0 | CE59: 0 | CF59: 0 | CG59: 0 | CH59: 0 | CI59: 0 | CJ59: 0 | CK59: 0 | CL59: 0 | CM59: 0
B60: 1993 | C60: ='Inv totaal'!E470 -> 31889287.96 | D60: 6377857.592 | F60: 1993 | G60: =$D60*G148*G236 -> 0 | H60: 0 | I60: 0 | J60: 0 | K60: 0 | L60: 0 | M60: 0 | N60: 0 | O60: 0 | P60: 0 | Q60: 0 | R60: 0 | S60: 0 | T60: 0 | U60: 0 | V60: 0 | W60: 0 | X60: 0 | Y60: 0 | Z60: 0 | AA60: 0 | AB60: 0 | AC60: 0 | AD60: 0 | AE60: 0 | AF60: 0 | AG60: 0 | AH60: 0 | AI60: 0 | AJ60: 0 | AK60: 0 | AL60: 0 | AM60: =$D60*AM148*AM236 -> 0 | AN60: 0 | AO60: 0 | AP60: 0 | AQ60: 0 | AR60: 0 | AS60: 0 | AT60: 0 | AU60: 0 | AV60: 0 | AW60: 0 | AX60: 0 | AY60: 0 | AZ60: 0 | BA60: 0 | BB60: 3188928.796 | BC60: 6505414.744 | BD60: 6674555.527 | BE60: 6774673.86 | BF60: 6903392.664 | BG60: 3541440.436 | BH60: 0 | BI60: 0 | BJ60: 0 | BK60: 0 | BL60: 0 | BM60: 0 | BN60: 0 | BO60: 0 | BP60: 0 | BQ60: 0 | BR60: 0 | BS60: =$D60*BS148*BS236 -> 0 | BT60: 0 | BU60: 0 | BV60: 0 | BW60: 0 | BX60: 0 | BY60: 0 | BZ60: 0 | CA60: 0 | CB60: 0 | CC60: 0 | CD60: 0 | CE60: 0 | CF60: 0 | CG60: 0 | CH60: 0 | CI60: 0 | CJ60: 0 | CK60: 0 | CL60: 0 | CM60: 0
B61: 1994 | C61: ='Inv totaal'!E471 -> 2609757.2 | D61: 521951.44 | F61: 1994 | G61: =$D61*G149*G237 -> 0 | H61: 0 | I61: 0 | J61: 0 | K61: 0 | L61: 0 | M61: 0 | N61: 0 | O61: 0 | P61: 0 | Q61: 0 | R61: 0 | S61: 0 | T61: 0 | U61: 0 | V61: 0 | W61: 0 | X61: 0 | Y61: 0 | Z61: 0 | AA61: 0 | AB61: 0 | AC61: 0 | AD61: 0 | AE61: 0 | AF61: 0 | AG61: 0 | AH61: 0 | AI61: 0 | AJ61: 0 | AK61: 0 | AL61: 0 | AM61: =$D61*AM149*AM237 -> 0 | AN61: 0 | AO61: 0 | AP61: 0 | AQ61: 0 | AR61: 0 | AS61: 0 | AT61: 0 | AU61: 0 | AV61: 0 | AW61: 0 | AX61: 0 | AY61: 0 | AZ61: 0 | BA61: 0 | BB61: 0 | BC61: 260975.72 | BD61: 535522.1774 | BE61: 543555.0101 | BF61: 553882.5553 | BG61: 568283.5017 | BH61: 288972.1606 | BI61: 0 | BJ61: 0 | BK61: 0 | BL61: 0 | BM61: 0 | BN61: 0 | BO61: 0 | BP61: 0 | BQ61: 0 | BR61: 0 | BS61: =$D61*BS149*BS237 -> 0 | BT61: 0 | BU61: 0 | BV61: 0 | BW61: 0 | BX61: 0 | BY61: 0 | BZ61: 0 | CA61: 0 | CB61: 0 | CC61: 0 | CD61: 0 | CE61: 0 | CF61: 0 | CG61: 0 | CH61: 0 | CI61: 0 | CJ61: 0 | CK61: 0 | CL61: 0 | CM61: 0
B62: 1995 | C62: ='Inv totaal'!E472 -> 15493608.91 | D62: 3098721.782 | F62: 1995 | G62: =$D62*G150*G238 -> 0 | H62: 0 | I62: 0 | J62: 0 | K62: 0 | L62: 0 | M62: 0 | N62: 0 | O62: 0 | P62: 0 | Q62: 0 | R62: 0 | S62: 0 | T62: 0 | U62: 0 | V62: 0 | W62: 0 | X62: 0 | Y62: 0 | Z62: 0 | AA62: 0 | AB62: 0 | AC62: 0 | AD62: 0 | AE62: 0 | AF62: 0 | AG62: 0 | AH62: 0 | AI62: 0 | AJ62: 0 | AK62: 0 | AL62: 0 | AM62: =$D62*AM150*AM238 -> 0 | AN62: 0 | AO62: 0 | AP62: 0 | AQ62: 0 | AR62: 0 | AS62: 0 | AT62: 0 | AU62: 0 | AV62: 0 | AW62: 0 | AX62: 0 | AY62: 0 | AZ62: 0 | BA62: 0 | BB62: 0 | BC62: 0 | BD62: 1549360.891 | BE62: 3145202.609 | BF62: 3204961.458 | BG62: 3288290.456 | BH62: 3344191.394 | BI62: 1715570.185 | BJ62: 0 | BK62: 0 | BL62: 0 | BM62: 0 | BN62: 0 | BO62: 0 | BP62: 0 | BQ62: 0 | BR62: 0 | BS62: =$D62*BS150*BS238 -> 0 | BT62: 0 | BU62: 0 | BV62: 0 | BW62: 0 | BX62: 0 | BY62: 0 | BZ62: 0 | CA62: 0 | CB62: 0 | CC62: 0 | CD62: 0 | CE62: 0 | CF62: 0 | CG62: 0 | CH62: 0 | CI62: 0 | CJ62: 0 | CK62: 0 | CL62: 0 | CM62: 0
B63: 1996 | C63: ='Inv totaal'!E473 -> 15241202.8 | D63: 3048240.56 | F63: 1996 | G63: =$D63*G151*G239 -> 0 | H63: 0 | I63: 0 | J63: 0 | K63: 0 | L63: 0 | M63: 0 | N63: 0 | O63: 0 | P63: 0 | Q63: 0 | R63: 0 | S63: 0 | T63: 0 | U63: 0 | V63: 0 | W63: 0 | X63: 0 | Y63: 0 | Z63: 0 | AA63: 0 | AB63: 0 | AC63: 0 | AD63: 0 | AE63: 0 | AF63: 0 | AG63: 0 | AH63: 0 | AI63: 0 | AJ63: 0 | AK63: 0 | AL63: 0 | AM63: =$D63*AM151*AM239 -> 0 | AN63: 0 | AO63: 0 | AP63: 0 | AQ63: 0 | AR63: 0 | AS63: 0 | AT63: 0 | AU63: 0 | AV63: 0 | AW63: 0 | AX63: 0 | AY63: 0 | AZ63: 0 | BA63: 0 | BB63: 0 | BC63: 0 | BD63: 0 | BE63: 1524120.28 | BF63: 3106157.131 | BG63: 3186917.216 | BH63: 3241094.809 | BI63: 3325363.274 | BJ63: 1704248.678 | BK63: 0 | BL63: 0 | BM63: 0 | BN63: 0 | BO63: 0 | BP63: 0 | BQ63: 0 | BR63: 0 | BS63: =$D63*BS151*BS239 -> 0 | BT63: 0 | BU63: 0 | BV63: 0 | BW63: 0 | BX63: 0 | BY63: 0 | BZ63: 0 | CA63: 0 | CB63: 0 | CC63: 0 | CD63: 0 | CE63: 0 | CF63: 0 | CG63: 0 | CH63: 0 | CI63: 0 | CJ63: 0 | CK63: 0 | CL63: 0 | CM63: 0
B64: 1997 | C64: ='Inv totaal'!E474 -> 5296212.929 | D64: 1059242.586 | F64: 1997 | G64: =$D64*G152*G240 -> 0 | H64: 0 | I64: 0 | J64: 0 | K64: 0 | L64: 0 | M64: 0 | N64: 0 | O64: 0 | P64: 0 | Q64: 0 | R64: 0 | S64: 0 | T64: 0 | U64: 0 | V64: 0 | W64: 0 | X64: 0 | Y64: 0 | Z64: 0 | AA64: 0 | AB64: 0 | AC64: 0 | AD64: 0 | AE64: 0 | AF64: 0 | AG64: 0 | AH64: 0 | AI64: 0 | AJ64: 0 | AK64: 0 | AL64: 0 | AM64: =$D64*AM152*AM240 -> 0 | AN64: 0 | AO64: 0 | AP64: 0 | AQ64: 0 | AR64: 0 | AS64: 0 | AT64: 0 | AU64: 0 | AV64: 0 | AW64: 0 | AX64: 0 | AY64: 0 | AZ64: 0 | BA64: 0 | BB64: 0 | BC64: 0 | BD64: 0 | BE64: 0 | BF64: 529621.2929 | BG64: 1086782.893 | BH64: 1105258.202 | BI64: 1133994.916 | BJ64: 1162344.788 | BK64: 608487.4967 | BL64: 0 | BM64: 0 | BN64: 0 | BO64: 0 | BP64: 0 | BQ64: 0 | BR64: 0 | BS64: =$D64*BS152*BS240 -> 0 | BT64: 0 | BU64: 0 | BV64: 0 | BW64: 0 | BX64: 0 | BY64: 0 | BZ64: 0 | CA64: 0 | CB64: 0 | CC64: 0 | CD64: 0 | CE64: 0 | CF64: 0 | CG64: 0 | CH64: 0 | CI64: 0 | CJ64: 0 | CK64: 0 | CL64: 0 | CM64: 0
B65: 1998 | C65: ='Inv totaal'!E475 -> 11336196.63 | D65: 2267239.326 | F65: 1998 | G65: =$D65*G153*G241 -> 0 | H65: 0 | I65: 0 | J65: 0 | K65: 0 | L65: 0 | M65: 0 | N65: 0 | O65: 0 | P65: 0 | Q65: 0 | R65: 0 | S65: 0 | T65: 0 | U65: 0 | V65: 0 | W65: 0 | X65: 0 | Y65: 0 | Z65: 0 | AA65: 0 | AB65: 0 | AC65: 0 | AD65: 0 | AE65: 0 | AF65: 0 | AG65: 0 | AH65: 0 | AI65: 0 | AJ65: 0 | AK65: 0 | AL65: 0 | AM65: =$D65*AM153*AM241 -> 0 | AN65: 0 | AO65: 0 | AP65: 0 | AQ65: 0 | AR65: 0 | AS65: 0 | AT65: 0 | AU65: 0 | AV65: 0 | AW65: 0 | AX65: 0 | AY65: 0 | AZ65: 0 | BA65: 0 | BB65: 0 | BC65: 0 | BD65: 0 | BE65: 0 | BF65: 0 | BG65: 1133619.663 | BH65: 2305782.395 | BI65: 2365732.737 | BJ65: 2424876.055 | BK65: 2538845.23 | BL65: 1311313.561 | BM65: 0 | BN65: 0 | BO65: 0 | BP65: 0 | BQ65: 0 | BR65: 0 | BS65: =$D65*BS153*BS241 -> 0 | BT65: 0 | BU65: 0 | BV65: 0 | BW65: 0 | BX65: 0 | BY65: 0 | BZ65: 0 | CA65: 0 | CB65: 0 | CC65: 0 | CD65: 0 | CE65: 0 | CF65: 0 | CG65: 0 | CH65: 0 | CI65: 0 | CJ65: 0 | CK65: 0 | CL65: 0 | CM65: 0
B66: 1999 | C66: ='Inv totaal'!E476 -> 19381410.09 | D66: 3876282.018 | F66: 1999 | G66: =$D66*G154*G242 -> 0 | H66: 0 | I66: 0 | J66: 0 | K66: 0 | L66: 0 | M66: 0 | N66: 0 | O66: 0 | P66: 0 | Q66: 0 | R66: 0 | S66: 0 | T66: 0 | U66: 0 | V66: 0 | W66: 0 | X66: 0 | Y66: 0 | Z66: 0 | AA66: 0 | AB66: 0 | AC66: 0 | AD66: 0 | AE66: 0 | AF66: 0 | AG66: 0 | AH66: 0 | AI66: 0 | AJ66: 0 | AK66: 0 | AL66: 0 | AM66: =$D66*AM154*AM242 -> 0 | AN66: 0 | AO66: 0 | AP66: 0 | AQ66: 0 | AR66: 0 | AS66: 0 | AT66: 0 | AU66: 0 | AV66: 0 | AW66: 0 | AX66: 0 | AY66: 0 | AZ66: 0 | BA66: 0 | BB66: 0 | BC66: 0 | BD66: 0 | BE66: 0 | BF66: 0 | BG66: 0 | BH66: 1938141.009 | BI66: 3977065.35 | BJ66: 4076491.984 | BK66: 4268087.107 | BL66: 4408933.982 | BM66: 2250760.798 | BN66: 0 | BO66: 0 | BP66: 0 | BQ66: 0 | BR66: 0 | BS66: =$D66*BS154*BS242 -> 0 | BT66: 0 | BU66: 0 | BV66: 0 | BW66: 0 | BX66: 0 | BY66: 0 | BZ66: 0 | CA66: 0 | CB66: 0 | CC66: 0 | CD66: 0 | CE66: 0 | CF66: 0 | CG66: 0 | CH66: 0 | CI66: 0 | CJ66: 0 | CK66: 0 | CL66: 0 | CM66: 0
B67: 2000 | C67: ='Inv totaal'!E477 -> 8960806.998 | D67: 1792161.4 | F67: 2000 | G67: =$D67*G155*G243 -> 0 | H67: 0 | I67: 0 | J67: 0 | K67: 0 | L67: 0 | M67: 0 | N67: 0 | O67: 0 | P67: 0 | Q67: 0 | R67: 0 | S67: 0 | T67: 0 | U67: 0 | V67: 0 | W67: 0 | X67: 0 | Y67: 0 | Z67: 0 | AA67: 0 | AB67: 0 | AC67: 0 | AD67: 0 | AE67: 0 | AF67: 0 | AG67: 0 | AH67: 0 | AI67: 0 | AJ67: 0 | AK67: 0 | AL67: 0 | AM67: =$D67*AM155*AM243 -> 0 | AN67: 0 | AO67: 0 | AP67: 0 | AQ67: 0 | AR67: 0 | AS67: 0 | AT67: 0 | AU67: 0 | AV67: 0 | AW67: 0 | AX67: 0 | AY67: 0 | AZ67: 0 | BA67: 0 | BB67: 0 | BC67: 0 | BD67: 0 | BE67: 0 | BF67: 0 | BG67: 0 | BH67: 0 | BI67: 896080.6998 | BJ67: 1836965.435 | BK67: 1923302.81 | BL67: 1986771.803 | BM67: 2028494.011 | BN67: 1025403.722 | BO67: 0 | BP67: 0 | BQ67: 0 | BR67: 0 | BS67: =$D67*BS155*BS243 -> 0 | BT67: 0 | BU67: 0 | BV67: 0 | BW67: 0 | BX67: 0 | BY67: 0 | BZ67: 0 | CA67: 0 | CB67: 0 | CC67: 0 | CD67: 0 | CE67: 0 | CF67: 0 | CG67: 0 | CH67: 0 | CI67: 0 | CJ67: 0 | CK67: 0 | CL67: 0 | CM67: 0
B68: 2001 | C68: ='Inv totaal'!E478 -> 9450000 | D68: 1890000 | F68: 2001 | G68: =$D68*G156*G244 -> 0 | H68: 0 | I68: 0 | J68: 0 | K68: 0 | L68: 0 | M68: 0 | N68: 0 | O68: 0 | P68: 0 | Q68: 0 | R68: 0 | S68: 0 | T68: 0 | U68: 0 | V68: 0 | W68: 0 | X68: 0 | Y68: 0 | Z68: 0 | AA68: 0 | AB68: 0 | AC68: 0 | AD68: 0 | AE68: 0 | AF68: 0 | AG68: 0 | AH68: 0 | AI68: 0 | AJ68: 0 | AK68: 0 | AL68: 0 | AM68: =$D68*AM156*AM244 -> 0 | AN68: 0 | AO68: 0 | AP68: 0 | AQ68: 0 | AR68: 0 | AS68: 0 | AT68: 0 | AU68: 0 | AV68: 0 | AW68: 0 | AX68: 0 | AY68: 0 | AZ68: 0 | BA68: 0 | BB68: 0 | BC68: 0 | BD68: 0 | BE68: 0 | BF68: 0 | BG68: 0 | BH68: 0 | BI68: 0 | BJ68: 945000 | BK68: 1978830 | BL68: 2044131.39 | BM68: 2087058.149 | BN68: 2110015.789 | BO68: 1073998.037 | BP68: 0 | BQ68: 0 | BR68: 0 | BS68: =$D68*BS156*BS244 -> 0 | BT68: 0 | BU68: 0 | BV68: 0 | BW68: 0 | BX68: 0 | BY68: 0 | BZ68: 0 | CA68: 0 | CB68: 0 | CC68: 0 | CD68: 0 | CE68: 0 | CF68: 0 | CG68: 0 | CH68: 0 | CI68: 0 | CJ68: 0 | CK68: 0 | CL68: 0 | CM68: 0
B69: 2002 | C69: ='Inv totaal'!E479 -> 23771000 | D69: 4754200 | F69: 2002 | G69: =$D69*G157*G245 -> 0 | H69: 0 | I69: 0 | J69: 0 | K69: 0 | L69: 0 | M69: 0 | N69: 0 | O69: 0 | P69: 0 | Q69: 0 | R69: 0 | S69: 0 | T69: 0 | U69: 0 | V69: 0 | W69: 0 | X69: 0 | Y69: 0 | Z69: 0 | AA69: 0 | AB69: 0 | AC69: 0 | AD69: 0 | AE69: 0 | AF69: 0 | AG69: 0 | AH69: 0 | AI69: 0 | AJ69: 0 | AK69: 0 | AL69: 0 | AM69: =$D69*AM157*AM245 -> 0 | AN69: 0 | AO69: 0 | AP69: 0 | AQ69: 0 | AR69: 0 | AS69: 0 | AT69: 0 | AU69: 0 | AV69: 0 | AW69: 0 | AX69: 0 | AY69: 0 | AZ69: 0 | BA69: 0 | BB69: 0 | BC69: 0 | BD69: 0 | BE69: 0 | BF69: 0 | BG69: 0 | BH69: 0 | BI69: 0 | BJ69: 0 | BK69: 2377100 | BL69: 4911088.6 | BM69: 5014221.461 | BN69: 5069377.897 | BO69: 5160626.699 | BP69: 2616437.736 | BQ69: 0 | BR69: 0 | BS69: =$D69*BS157*BS245 -> 0 | BT69: 0 | BU69: 0 | BV69: 0 | BW69: 0 | BX69: 0 | BY69: 0 | BZ69: 0 | CA69: 0 | CB69: 0 | CC69: 0 | CD69: 0 | CE69: 0 | CF69: 0 | CG69: 0 | CH69: 0 | CI69: 0 | CJ69: 0 | CK69: 0 | CL69: 0 | CM69: 0
B70: 2003 | C70: ='Inv totaal'!E480 -> 15450000 | D70: 3090000 | F70: 2003 | G70: =$D70*G158*G246 -> 0 | H70: 0 | I70: 0 | J70: 0 | K70: 0 | L70: 0 | M70: 0 | N70: 0 | O70: 0 | P70: 0 | Q70: 0 | R70: 0 | S70: 0 | T70: 0 | U70: 0 | V70: 0 | W70: 0 | X70: 0 | Y70: 0 | Z70: 0 | AA70: 0 | AB70: 0 | AC70: 0 | AD70: 0 | AE70: 0 | AF70: 0 | AG70: 0 | AH70: 0 | AI70: 0 | AJ70: 0 | AK70: 0 | AL70: 0 | AM70: =$D70*AM158*AM246 -> 0 | AN70: 0 | AO70: 0 | AP70: 0 | AQ70: 0 | AR70: 0 | AS70: 0 | AT70: 0 | AU70: 0 | AV70: 0 | AW70: 0 | AX70: 0 | AY70: 0 | AZ70: 0 | BA70: 0 | BB70: 0 | BC70: 0 | BD70: 0 | BE70: 0 | BF70: 0 | BG70: 0 | BH70: 0 | BI70: 0 | BJ70: 0 | BK70: 0 | BL70: 1545000 | BM70: 3154890 | BN70: 3189593.79 | BO70: 3247006.478 | BP70: 3292464.569 | BQ70: 1664340.84 | BR70: 0 | BS70: =$D70*BS158*BS246 -> 0 | BT70: 0 | BU70: 0 | BV70: 0 | BW70: 0 | BX70: 0 | BY70: 0 | BZ70: 0 | CA70: 0 | CB70: 0 | CC70: 0 | CD70: 0 | CE70: 0 | CF70: 0 | CG70: 0 | CH70: 0 | CI70: 0 | CJ70: 0 | CK70: 0 | CL70: 0 | CM70: 0
B71: 2004 | C71: ='Inv totaal'!E481 -> 12177000 | D71: 2435400 | F71: 2004 | G71: =$D71*G159*G247 -> 0 | H71: 0 | I71: 0 | J71: 0 | K71: 0 | L71: 0 | M71: 0 | N71: 0 | O71: 0 | P71: 0 | Q71: 0 | R71: 0 | S71: 0 | T71: 0 | U71: 0 | V71: 0 | W71: 0 | X71: 0 | Y71: 0 | Z71: 0 | AA71: 0 | AB71: 0 | AC71: 0 | AD71: 0 | AE71: 0 | AF71: 0 | AG71: 0 | AH71: 0 | AI71: 0 | AJ71: 0 | AK71: 0 | AL71: 0 | AM71: =$D71*AM159*AM247 -> 0 | AN71: 0 | AO71: 0 | AP71: 0 | AQ71: 0 | AR71: 0 | AS71: 0 | AT71: 0 | AU71: 0 | AV71: 0 | AW71: 0 | AX71: 0 | AY71: 0 | AZ71: 0 | BA71: 0 | BB71: 0 | BC71: 0 | BD71: 0 | BE71: 0 | BF71: 0 | BG71: 0 | BH71: 0 | BI71: 0 | BJ71: 0 | BK71: 0 | BL71: 0 | BM71: 1217700 | BN71: 2462189.4 | BO71: 2506508.809 | BP71: 2541599.933 | BQ71: 2569557.532 | BR71: 1325891.686 | BS71: =$D71*BS159*BS247 -> 0 | BT71: 0 | BU71: 0 | BV71: 0 | BW71: 0 | BX71: 0 | BY71: 0 | BZ71: 0 | CA71: 0 | CB71: 0 | CC71: 0 | CD71: 0 | CE71: 0 | CF71: 0 | CG71: 0 | CH71: 0 | CI71: 0 | CJ71: 0 | CK71: 0 | CL71: 0 | CM71: 0
B72: 2005 | C72: ='Inv totaal'!E482 -> 23431012 | D72: 4686202.4 | F72: 2005 | G72: =$D72*G160*G248 -> 0 | H72: 0 | I72: 0 | J72: 0 | K72: 0 | L72: 0 | M72: 0 | N72: 0 | O72: 0 | P72: 0 | Q72: 0 | R72: 0 | S72: 0 | T72: 0 | U72: 0 | V72: 0 | W72: 0 | X72: 0 | Y72: 0 | Z72: 0 | AA72: 0 | AB72: 0 | AC72: 0 | AD72: 0 | AE72: 0 | AF72: 0 | AG72: 0 | AH72: 0 | AI72: 0 | AJ72: 0 | AK72: 0 | AL72: 0 | AM72: =$D72*AM160*AM248 -> 0 | AN72: 0 | AO72: 0 | AP72: 0 | AQ72: 0 | AR72: 0 | AS72: 0 | AT72: 0 | AU72: 0 | AV72: 0 | AW72: 0 | AX72: 0 | AY72: 0 | AZ72: 0 | BA72: 0 | BB72: 0 | BC72: 0 | BD72: 0 | BE72: 0 | BF72: 0 | BG72: 0 | BH72: 0 | BI72: 0 | BJ72: 0 | BK72: 0 | BL72: 0 | BM72: 0 | BN72: 2343101.2 | BO72: 4770554.043 | BP72: 4837341.8 | BQ72: 4890552.56 | BR72: 5047050.242 | BS72: =$D72*BS160*BS248 -> 2531095.696 | BT72: 0 | BU72: 0 | BV72: 0 | BW72: 0 | BX72: 0 | BY72: 0 | BZ72: 0 | CA72: 0 | CB72: 0 | CC72: 0 | CD72: 0 | CE72: 0 | CF72: 0 | CG72: 0 | CH72: 0 | CI72: 0 | CJ72: 0 | CK72: 0 | CL72: 0 | CM72: 0
B73: 2006 | C73: ='Inv totaal'!E483 -> 17957366 | D73: 3591473.2 | F73: 2006 | G73: =$D73*G161*G249 -> 0 | H73: 0 | I73: 0 | J73: 0 | K73: 0 | L73: 0 | M73: 0 | N73: 0 | O73: 0 | P73: 0 | Q73: 0 | R73: 0 | S73: 0 | T73: 0 | U73: 0 | V73: 0 | W73: 0 | X73: 0 | Y73: 0 | Z73: 0 | AA73: 0 | AB73: 0 | AC73: 0 | AD73: 0 | AE73: 0 | AF73: 0 | AG73: 0 | AH73: 0 | AI73: 0 | AJ73: 0 | AK73: 0 | AL73: 0 | AM73: =$D73*AM161*AM249 -> 0 | AN73: 0 | AO73: 0 | AP73: 0 | AQ73: 0 | AR73: 0 | AS73: 0 | AT73: 0 | AU73: 0 | AV73: 0 | AW73: 0 | AX73: 0 | AY73: 0 | AZ73: 0 | BA73: 0 | BB73: 0 | BC73: 0 | BD73: 0 | BE73: 0 | BF73: 0 | BG73: 0 | BH73: 0 | BI73: 0 | BJ73: 0 | BK73: 0 | BL73: 0 | BM73: 0 | BN73: 0 | BO73: 1795736.6 | BP73: 3641753.825 | BQ73: 3681813.117 | BR73: 3799631.137 | BS73: =$D73*BS161*BS249 -> 3811030.03 | BT73: 1934097.74 | BU73: 0 | BV73: 0 | BW73: 0 | BX73: 0 | BY73: 0 | BZ73: 0 | CA73: 0 | CB73: 0 | CC73: 0 | CD73: 0 | CE73: 0 | CF73: 0 | CG73: 0 | CH73: 0 | CI73: 0 | CJ73: 0 | CK73: 0 | CL73: 0 | CM73: 0
B74: 2007 | C74: ='Inv totaal'!E484 -> 39859403 | D74: 7971880.6 | F74: 2007 | G74: =$D74*G162*G250 -> 0 | H74: 0 | I74: 0 | J74: 0 | K74: 0 | L74: 0 | M74: 0 | N74: 0 | O74: 0 | P74: 0 | Q74: 0 | R74: 0 | S74: 0 | T74: 0 | U74: 0 | V74: 0 | W74: 0 | X74: 0 | Y74: 0 | Z74: 0 | AA74: 0 | AB74: 0 | AC74: 0 | AD74: 0 | AE74: 0 | AF74: 0 | AG74: 0 | AH74: 0 | AI74: 0 | AJ74: 0 | AK74: 0 | AL74: 0 | AM74: =$D74*AM162*AM250 -> 0 | AN74: 0 | AO74: 0 | AP74: 0 | AQ74: 0 | AR74: 0 | AS74: 0 | AT74: 0 | AU74: 0 | AV74: 0 | AW74: 0 | AX74: 0 | AY74: 0 | AZ74: 0 | BA74: 0 | BB74: 0 | BC74: 0 | BD74: 0 | BE74: 0 | BF74: 0 | BG74: 0 | BH74: 0 | BI74: 0 | BJ74: 0 | BK74: 0 | BL74: 0 | BM74: 0 | BN74: 0 | BO74: 0 | BP74: 3985940.3 | BQ74: 8059571.287 | BR74: 8317477.568 | BS74: =$D74*BS162*BS250 -> 8342430 | BT74: 8467566.45 | BU74: 4343861.589 | BV74: 0 | BW74: 0 | BX74: 0 | BY74: 0 | BZ74: 0 | CA74: 0 | CB74: 0 | CC74: 0 | CD74: 0 | CE74: 0 | CF74: 0 | CG74: 0 | CH74: 0 | CI74: 0 | CJ74: 0 | CK74: 0 | CL74: 0 | CM74: 0
B75: 2008 | C75: ='Inv totaal'!E485 -> 17195064.88 | D75: 3439012.976 | F75: 2008 | G75: =$D75*G163*G251 -> 0 | H75: 0 | I75: 0 | J75: 0 | K75: 0 | L75: 0 | M75: 0 | N75: 0 | O75: 0 | P75: 0 | Q75: 0 | R75: 0 | S75: 0 | T75: 0 | U75: 0 | V75: 0 | W75: 0 | X75: 0 | Y75: 0 | Z75: 0 | AA75: 0 | AB75: 0 | AC75: 0 | AD75: 0 | AE75: 0 | AF75: 0 | AG75: 0 | AH75: 0 | AI75: 0 | AJ75: 0 | AK75: 0 | AL75: 0 | AM75: =$D75*AM163*AM251 -> 0 | AN75: 0 | AO75: 0 | AP75: 0 | AQ75: 0 | AR75: 0 | AS75: 0 | AT75: 0 | AU75: 0 | AV75: 0 | AW75: 0 | AX75: 0 | AY75: 0 | AZ75: 0 | BA75: 0 | BB75: 0 | BC75: 0 | BD75: 0 | BE75: 0 | BF75: 0 | BG75: 0 | BH75: 0 | BI75: 0 | BJ75: 0 | BK75: 0 | BL75: 0 | BM75: 0 | BN75: 0 | BO75: 0 | BP75: 0 | BQ75: 1719506.488 | BR75: 3549061.391 | BS75: =$D75*BS163*BS251 -> 3559708.575 | BT75: 3613104.204 | BU75: 3707044.913 | BV75: 1896153.473 | BW75: 0 | BX75: 0 | BY75: 0 | BZ75: 0 | CA75: 0 | CB75: 0 | CC75: 0 | CD75: 0 | CE75: 0 | CF75: 0 | CG75: 0 | CH75: 0 | CI75: 0 | CJ75: 0 | CK75: 0 | CL75: 0 | CM75: 0
B76: 2009 | C76: ='Inv totaal'!E486 -> 12215927.13 | D76: 2443185.426 | F76: 2009 | G76: =$D76*G164*G252 -> 0 | H76: 0 | I76: 0 | J76: 0 | K76: 0 | L76: 0 | M76: 0 | N76: 0 | O76: 0 | P76: 0 | Q76: 0 | R76: 0 | S76: 0 | T76: 0 | U76: 0 | V76: 0 | W76: 0 | X76: 0 | Y76: 0 | Z76: 0 | AA76: 0 | AB76: 0 | AC76: 0 | AD76: 0 | AE76: 0 | AF76: 0 | AG76: 0 | AH76: 0 | AI76: 0 | AJ76: 0 | AK76: 0 | AL76: 0 | AM76: =$D76*AM164*AM252 -> 0 | AN76: 0 | AO76: 0 | AP76: 0 | AQ76: 0 | AR76: 0 | AS76: 0 | AT76: 0 | AU76: 0 | AV76: 0 | AW76: 0 | AX76: 0 | AY76: 0 | AZ76: 0 | BA76: 0 | BB76: 0 | BC76: 0 | BD76: 0 | BE76: 0 | BF76: 0 | BG76: 0 | BH76: 0 | BI76: 0 | BJ76: 0 | BK76: 0 | BL76: 0 | BM76: 0 | BN76: 0 | BO76: 0 | BP76: 0 | BQ76: 0 | BR76: 1221592.713 | BS76: =$D76*BS164*BS252 -> 2450514.982 | BT76: 2487272.707 | BU76: 2551941.797 | BV76: 2610636.459 | BW76: 1341867.14 | BX76: 0 | BY76: 0 | BZ76: 0 | CA76: 0 | CB76: 0 | CC76: 0 | CD76: 0 | CE76: 0 | CF76: 0 | CG76: 0 | CH76: 0 | CI76: 0 | CJ76: 0 | CK76: 0 | CL76: 0 | CM76: 0
B77: 2010 | C77: ='Inv totaal'!E487 -> 24046193.56 | D77: =C77/$C$9 -> 4809238.711 | F77: 2010 | G77: =$D77*G165*G253 -> 0 | H77: 0 | I77: 0 | J77: 0 | K77: 0 | L77: 0 | M77: 0 | N77: 0 | O77: 0 | P77: 0 | Q77: 0 | R77: 0 | S77: 0 | T77: 0 | U77: 0 | V77: 0 | W77: 0 | X77: 0 | Y77: 0 | Z77: 0 | AA77: 0 | AB77: 0 | AC77: 0 | AD77: 0 | AE77: 0 | AF77: 0 | AG77: 0 | AH77: 0 | AI77: 0 | AJ77: 0 | AK77: 0 | AL77: 0 | AM77: =$D77*AM165*AM253 -> 0 | AN77: 0 | AO77: 0 | AP77: 0 | AQ77: 0 | AR77: 0 | AS77: 0 | AT77: 0 | AU77: 0 | AV77: 0 | AW77: 0 | AX77: 0 | AY77: 0 | AZ77: 0 | BA77: 0 | BB77: 0 | BC77: 0 | BD77: 0 | BE77: 0 | BF77: 0 | BG77: 0 | BH77: 0 | BI77: 0 | BJ77: 0 | BK77: 0 | BL77: 0 | BM77: 0 | BN77: 0 | BO77: 0 | BP77: 0 | BQ77: 0 | BR77: 0 | BS77: =$D77*BS165*BS253 -> 2404619.356 | BT77: 4881377.292 | BU77: 5008293.102 | BV77: 5123483.843 | BW77: 5266941.391 | BX77: 2659805.402 | BY77: 0 | BZ77: 0 | CA77: 0 | CB77: 0 | CC77: 0 | CD77: 0 | CE77: 0 | CF77: 0 | CG77: 0 | CH77: 0 | CI77: 0 | CJ77: 0 | CK77: 0 | CL77: 0 | CM77: 0
B78: 2011 | C78: ='Inv totaal'!E488 -> 33966834.33 | D78: 6793366.866 | F78: 2011 | G78: =$D78*G166*G254 -> 0 | H78: 0 | I78: 0 | J78: 0 | K78: 0 | L78: 0 | M78: 0 | N78: 0 | O78: 0 | P78: 0 | Q78: 0 | R78: 0 | S78: 0 | T78: 0 | U78: 0 | V78: 0 | W78: 0 | X78: 0 | Y78: 0 | Z78: 0 | AA78: 0 | AB78: 0 | AC78: 0 | AD78: 0 | AE78: 0 | AF78: 0 | AG78: 0 | AH78: 0 | AI78: 0 | AJ78: 0 | AK78: 0 | AL78: 0 | AM78: =$D78*AM166*AM254 -> 0 | AN78: 0 | AO78: 0 | AP78: 0 | AQ78: 0 | AR78: 0 | AS78: 0 | AT78: 0 | AU78: 0 | AV78: 0 | AW78: 0 | AX78: 0 | AY78: 0 | AZ78: 0 | BA78: 0 | BB78: 0 | BC78: 0 | BD78: 0 | BE78: 0 | BF78: 0 | BG78: 0 | BH78: 0 | BI78: 0 | BJ78: 0 | BK78: 0 | BL78: 0 | BM78: 0 | BN78: 0 | BO78: 0 | BP78: 0 | BQ78: 0 | BR78: 0 | BS78: =$D78*BS166*BS254 -> 0 | BT78: 3396683.433 | BU78: 6969994.405 | BV78: 7130304.276 | BW78: 7329952.796 | BX78: 7403252.324 | BY78: 3731239.171 | BZ78: 0 | CA78: 0 | CB78: 0 | CC78: 0 | CD78: 0 | CE78: 0 | CF78: 0 | CG78: 0 | CH78: 0 | CI78: 0 | CJ78: 0 | CK78: 0 | CL78: 0 | CM78: 0
B79: 2012 | C79: ='Inv totaal'!E489 -> 29805963.06 | D79: 5961192.613 | F79: 2012 | G79: =$D79*G167*G255 -> 0 | H79: 0 | I79: 0 | J79: 0 | K79: 0 | L79: 0 | M79: 0 | N79: 0 | O79: 0 | P79: 0 | Q79: 0 | R79: 0 | S79: 0 | T79: 0 | U79: 0 | V79: 0 | W79: 0 | X79: 0 | Y79: 0 | Z79: 0 | AA79: 0 | AB79: 0 | AC79: 0 | AD79: 0 | AE79: 0 | AF79: 0 | AG79: 0 | AH79: 0 | AI79: 0 | AJ79: 0 | AK79: 0 | AL79: 0 | AM79: =$D79*AM167*AM255 -> 0 | AN79: 0 | AO79: 0 | AP79: 0 | AQ79: 0 | AR79: 0 | AS79: 0 | AT79: 0 | AU79: 0 | AV79: 0 | AW79: 0 | AX79: 0 | AY79: 0 | AZ79: 0 | BA79: 0 | BB79: 0 | BC79: 0 | BD79: 0 | BE79: 0 | BF79: 0 | BG79: 0 | BH79: 0 | BI79: 0 | BJ79: 0 | BK79: 0 | BL79: 0 | BM79: 0 | BN79: 0 | BO79: 0 | BP79: 0 | BQ79: 0 | BR79: 0 | BS79: =$D79*BS167*BS255 -> 0 | BT79: 0 | BU79: 2980596.306 | BV79: 6098300.043 | BW79: 6269052.444 | BX79: 6331742.969 | BY79: 6382396.912 | BZ79: 3191198.456 | CA79: 0 | CB79: 0 | CC79: 0 | CD79: 0 | CE79: 0 | CF79: 0 | CG79: 0 | CH79: 0 | CI79: 0 | CJ79: 0 | CK79: 0 | CL79: 0 | CM79: 0
B80: 2013 | C80: ='Inv totaal'!E490 -> 19814336.96 | D80: =C80/$C$9 -> 3962867.392 | F80: 2013 | G80: =$D80*G168*G256 -> 0 | H80: 0 | I80: 0 | J80: 0 | K80: 0 | L80: 0 | M80: 0 | N80: 0 | O80: 0 | P80: 0 | Q80: 0 | R80: 0 | S80: 0 | T80: 0 | U80: 0 | V80: 0 | W80: 0 | X80: 0 | Y80: 0 | Z80: 0 | AA80: 0 | AB80: 0 | AC80: 0 | AD80: 0 | AE80: 0 | AF80: 0 | AG80: 0 | AH80: 0 | AI80: 0 | AJ80: 0 | AK80: 0 | AL80: 0 | AM80: 0 | AN80: 0 | AO80: 0 | AP80: 0 | AQ80: 0 | AR80: 0 | AS80: 0 | AT80: 0 | AU80: 0 | AV80: 0 | AW80: 0 | AX80: 0 | AY80: 0 | AZ80: 0 | BA80: 0 | BB80: 0 | BC80: 0 | BD80: 0 | BE80: 0 | BF80: 0 | BG80: 0 | BH80: 0 | BI80: 0 | BJ80: 0 | BK80: 0 | BL80: 0 | BM80: 0 | BN80: 0 | BO80: 0 | BP80: 0 | BQ80: 0 | BR80: 0 | BS80: =$D80*BS168*BS256 -> 0 | BT80: 0 | BU80: 0 | BV80: 1981433.696 | BW80: 4073827.679 | BX80: 4114565.955 | BY80: 4147482.483 | BZ80: 4147482.483 | CA80: 2073741.242 | CB80: 0 | CC80: 0 | CD80: 0 | CE80: 0 | CF80: 0 | CG80: 0 | CH80: 0 | CI80: 0 | CJ80: 0 | CK80: 0 | CL80: 0 | CM80: 0
B81: 2014 | C81: ='Inv totaal'!E491 -> 29901568.7 | D81: 5980313.741 | F81: 2014 | G81: =$D81*G169*G257 -> 0 | H81: 0 | I81: 0 | J81: 0 | K81: 0 | L81: 0 | M81: 0 | N81: 0 | O81: 0 | P81: 0 | Q81: 0 | R81: 0 | S81: 0 | T81: 0 | U81: 0 | V81: 0 | W81: 0 | X81: 0 | Y81: 0 | Z81: 0 | AA81: 0 | AB81: 0 | AC81: 0 | AD81: 0 | AE81: 0 | AF81: 0 | AG81: 0 | AH81: 0 | AI81: 0 | AJ81: 0 | AK81: 0 | AL81: 0 | AM81: 0 | AN81: 0 | AO81: 0 | AP81: 0 | AQ81: 0 | AR81: 0 | AS81: 0 | AT81: 0 | AU81: 0 | AV81: 0 | AW81: 0 | AX81: 0 | AY81: 0 | AZ81: 0 | BA81: 0 | BB81: 0 | BC81: 0 | BD81: 0 | BE81: 0 | BF81: 0 | BG81: 0 | BH81: 0 | BI81: 0 | BJ81: 0 | BK81: 0 | BL81: 0 | BM81: 0 | BN81: 0 | BO81: 0 | BP81: 0 | BQ81: 0 | BR81: 0 | BS81: =$D81*BS169*BS257 -> 0 | BT81: 0 | BU81: 0 | BV81: 0 | BW81: 2990156.87 | BX81: 6040116.878 | BY81: 6088437.813 | BZ81: 6088437.813 | CA81: 6088437.813 | CB81: 3044218.907 | CC81: 0 | CD81: 0 | CE81: 0 | CF81: 0 | CG81: 0 | CH81: 0 | CI81: 0 | CJ81: 0 | CK81: 0 | CL81: 0 | CM81: 0
B82: 2015 | C82: ='Inv totaal'!E492 -> 16482731.36 | D82: 3296546.271 | F82: 2015 | G82: =$D82*G170*G258 -> 0 | H82: 0 | I82: =$D82*I170*I258 -> 0 | J82: 0 | K82: 0 | L82: 0 | M82: 0 | N82: 0 | O82: 0 | P82: 0 | Q82: 0 | R82: 0 | S82: 0 | T82: 0 | U82: 0 | V82: 0 | W82: 0 | X82: 0 | Y82: 0 | Z82: 0 | AA82: 0 | AB82: 0 | AC82: 0 | AD82: 0 | AE82: 0 | AF82: 0 | AG82: 0 | AH82: 0 | AI82: 0 | AJ82: 0 | AK82: 0 | AL82: 0 | AM82: 0 | AN82: 0 | AO82: 0 | AP82: 0 | AQ82: 0 | AR82: 0 | AS82: 0 | AT82: 0 | AU82: 0 | AV82: 0 | AW82: 0 | AX82: 0 | AY82: 0 | AZ82: 0 | BA82: 0 | BB82: 0 | BC82: 0 | BD82: 0 | BE82: 0 | BF82: 0 | BG82: 0 | BH82: 0 | BI82: 0 | BJ82: 0 | BK82: 0 | BL82: 0 | BM82: 0 | BN82: 0 | BO82: 0 | BP82: 0 | BQ82: 0 | BR82: 0 | BS82: 0 | BT82: 0 | BU82: =$D82*BU170*BU258 -> 0 | BV82: 0 | BW82: 0 | BX82: 1648273.136 | BY82: 3322918.642 | BZ82: 3322918.642 | CA82: 3322918.642 | CB82: 3322918.642 | CC82: 1661459.321 | CD82: 0 | CE82: 0 | CF82: 0 | CG82: 0 | CH82: 0 | CI82: 0 | CJ82: 0 | CK82: 0 | CL82: 0 | CM82: 0
B83: 2016 | C83: ='Inv totaal'!E493 -> 0 | D83: 0 | F83: 2016 | G83: 0 | H83: 0 | I83: =$D83*I171*I259 -> 0 | J83: 0 | K83: 0 | L83: 0 | M83: 0 | N83: 0 | O83: 0 | P83: 0 | Q83: 0 | R83: 0 | S83: 0 | T83: 0 | U83: 0 | V83: 0 | W83: 0 | X83: 0 | Y83: 0 | Z83: 0 | AA83: 0 | AB83: 0 | AC83: 0 | AD83: 0 | AE83: 0 | AF83: 0 | AG83: 0 | AH83: 0 | AI83: 0 | AJ83: 0 | AK83: 0 | AL83: 0 | AM83: 0 | AN83: 0 | AO83: 0 | AP83: 0 | AQ83: 0 | AR83: 0 | AS83: 0 | AT83: 0 | AU83: 0 | AV83: 0 | AW83: 0 | AX83: 0 | AY83: 0 | AZ83: 0 | BA83: 0 | BB83: 0 | BC83: 0 | BD83: 0 | BE83: 0 | BF83: 0 | BG83: 0 | BH83: 0 | BI83: 0 | BJ83: 0 | BK83: 0 | BL83: 0 | BM83: 0 | BN83: 0 | BO83: 0 | BP83: 0 | BQ83: 0 | BR83: 0 | BS83: 0 | BT83: 0 | BU83: =$D83*BU171*BU259 -> 0 | BV83: 0 | BW83: 0 | BX83: 0 | BY83: 0 | BZ83: 0 | CA83: 0 | CB83: 0 | CC83: 0 | CD83: 0 | CE83: 0 | CF83: 0 | CG83: 0 | CH83: 0 | CI83: 0 | CJ83: 0 | CK83: 0 | CL83: 0 | CM83: 0
B84: 2017 | F84: 2017
B85: 2018 | F85: 2018
B86: 2019 | F86: 2019
B87: 2020 | F87: 2020
B88: 2021 | F88: 2021
B89: 2022 | F89: 2022
B90: 2023 | F90: 2023
B91: 2024 | F91: 2024
B92: 2025 | F92: 2025
B93: 2026 | F93: 2026
B94: 2027 | F94: 2027
B95: 2028 | F95: 2028
B96: 2029 | F96: 2029
B97: 2030 | F97: 2030
F99: Afschrijven?
F100: =C9 -> 5 | G100: 1946 | H100: 1947 | I100: 1948 | J100: 1949 | K100: 1950 | L100: 1951 | M100: 1952 | N100: 1953 | O100: 1954 | P100: 1955 | Q100: 1956 | R100: 1957 | S100: 1958 | T100: 1959 | U100: 1960 | V100: 1961 | W100: 1962 | X100: 1963 | Y100: 1964 | Z100: 1965 | AA100: 1966 | AB100: 1967 | AC100: 1968 | AD100: 1969 | AE100: 1970 | AF100: 1971 | AG100: 1972 | AH100: 1973 | AI100: 1974 | AJ100: 1975 | AK100: 1976 | AL100: 1977 | AM100: 1978 | AN100: 1979 | AO100: 1980 | AP100: 1981 | AQ100: 1982 | AR100: 1983 | AS100: 1984 | AT100: 1985 | AU100: 1986 | AV100: 1987 | AW100: 1988 | AX100: 1989 | AY100: 1990 | AZ100: 1991 | BA100: 1992 | BB100: 1993 | BC100: 1994 | BD100: 1995 | BE100: 1996 | BF100: 1997 | BG100: 1998 | BH100: 1999 | BI100: 2000 | BJ100: 2001 | BK100: 2002 | BL100: 2003 | BM100: 2004 | BN100: 2005 | BO100: 2006 | BP100: 2007 | BQ100: 2008 | BR100: 2009 | BS100: 2010 | BT100: 2011 | BU100: 2012 | BV100: 2013 | BW100: 2014 | BX100: 2015 | BY100: 2016 | BZ100: 2017 | CA100: 2018 | CB100: 2019 | CC100: 2020 | CD100: 2021 | CE100: 2022 | CF100: 2023 | CG100: 2024 | CH100: 2025 | CI100: 2026 | CJ100: 2027 | CK100: 2028 | CL100: 2029 | CM100: 2030
F101: 1946 | G101: =SUM((AND(G$100>$F101,G$100<$F101+$F$100))*1,OR($F101=G$100,$F101+$F$100=G$100)*0.5) -> 0.5 | H101: =SUM((AND(H$100>$F101,H$100<$F101+$F$100))*1,OR($F101=H$100,$F101+$F$100=H$100)*0.5) -> 1 | I101: 1 | J101: 1 | K101: 1 | L101: 0.5 | M101: 0 | N101: 0 | O101: 0 | P101: 0 | Q101: 0 | R101: 0 | S101: 0 | T101: 0 | U101: 0 | V101: 0 | W101: 0 | X101: 0 | Y101: 0 | Z101: 0 | AA101: 0 | AB101: 0 | AC101: 0 | AD101: 0 | AE101: 0 | AF101: 0 | AG101: 0 | AH101: 0 | AI101: 0 | AJ101: 0 | AK101: 0 | AL101: 0 | AM101: 0 | AN101: 0 | AO101: 0 | AP101: 0 | AQ101: 0 | AR101: 0 | AS101: 0 | AT101: 0 | AU101: 0 | AV101: 0 | AW101: 0 | AX101: 0 | AY101: 0 | AZ101: 0 | BA101: 0 | BB101: 0 | BC101: 0 | BD101: 0 | BE101: 0 | BF101: 0 | BG101: 0 | BH101: 0 | BI101: 0 | BJ101: 0 | BK101: 0 | BL101: 0 | BM101: 0 | BN101: 0 | BO101: 0 | BP101: 0 | BQ101: 0 | BR101: 0 | BS101: 0 | BT101: =SUM((AND(BT$100>$F101,BT$100<$F101+$F$100))*1,OR($F101=BT$100,$F101+$F$100=BT$100)*0.5) -> 0 | BU101: 0 | BV101: 0 | BW101: 0 | BX101: 0 | BY101: 0 | BZ101: 0 | CA101: 0 | CB101: 0 | CC101: 0 | CD101: 0 | CE101: 0 | CF101: 0 | CG101: 0 | CH101: 0 | CI101: 0 | CJ101: 0 | CK101: 0 | CL101: 0 | CM101: 0
F102: 1947 | G102: =SUM((AND(G$100>$F102,G$100<$F102+$F$100))*1,OR($F102=G$100,$F102+$F$100=G$100)*0.5) -> 0 | H102: 0.5 | I102: 1 | J102: 1 | K102: 1 | L102: 1 | M102: 0.5 | N102: 0 | O102: 0 | P102: 0 | Q102: 0 | R102: 0 | S102: 0 | T102: 0 | U102: 0 | V102: 0 | W102: 0 | X102: 0 | Y102: 0 | Z102: 0 | AA102: 0 | AB102: 0 | AC102: 0 | AD102: 0 | AE102: 0 | AF102: 0 | AG102: 0 | AH102: 0 | AI102: 0 | AJ102: 0 | AK102: 0 | AL102: 0 | AM102: 0 | AN102: 0 | AO102: 0 | AP102: 0 | AQ102: 0 | AR102: 0 | AS102: 0 | AT102: 0 | AU102: 0 | AV102: 0 | AW102: 0 | AX102: 0 | AY102: 0 | AZ102: 0 | BA102: 0 | BB102: 0 | BC102: 0 | BD102: 0 | BE102: 0 | BF102: 0 | BG102: 0 | BH102: 0 | BI102: 0 | BJ102: 0 | BK102: 0 | BL102: 0 | BM102: 0 | BN102: 0 | BO102: 0 | BP102: 0 | BQ102: 0 | BR102: 0 | BS102: 0 | BT102: 0 | BU102: 0 | BV102: 0 | BW102: 0 | BX102: 0 | BY102: 0 | BZ102: 0 | CA102: 0 | CB102: 0 | CC102: 0 | CD102: 0 | CE102: 0 | CF102: 0 | CG102: 0 | CH102: 0 | CI102: 0 | CJ102: 0 | CK102: 0 | CL102: 0 | CM102: 0
F103: 1948 | G103: 0 | H103: 0 | I103: 0.5 | J103: 1 | K103: 1 | L103: 1 | M103: 1 | N103: 0.5 | O103: 0 | P103: 0 | Q103: 0 | R103: 0 | S103: 0 | T103: 0 | U103: 0 | V103: 0 | W103: 0 | X103: 0 | Y103: 0 | Z103: 0 | AA103: 0 | AB103: 0 | AC103: 0 | AD103: 0 | AE103: 0 | AF103: 0 | AG103: 0 | AH103: 0 | AI103: 0 | AJ103: 0 | AK103: 0 | AL103: 0 | AM103: 0 | AN103: 0 | AO103: 0 | AP103: 0 | AQ103: 0 | AR103: 0 | AS103: 0 | AT103: 0 | AU103: 0 | AV103: 0 | AW103: 0 | AX103: 0 | AY103: 0 | AZ103: 0 | BA103: 0 | BB103: 0 | BC103: 0 | BD103: 0 | BE103: 0 | BF103: 0 | BG103: 0 | BH103: 0 | BI103: 0 | BJ103: 0 | BK103: 0 | BL103: 0 | BM103: 0 | BN103: 0 | BO103: 0 | BP103: 0 | BQ103: 0 | BR103: 0 | BS103: 0 | BT103: 0 | BU103: 0 | BV103: 0 | BW103: 0 | BX103: 0 | BY103: 0 | BZ103: 0 | CA103: 0 | CB103: 0 | CC103: 0 | CD103: 0 | CE103: 0 | CF103: 0 | CG103: 0 | CH103: 0 | CI103: 0 | CJ103: 0 | CK103: 0 | CL103: 0 | CM103: 0
F104: 1949 | G104: 0 | H104: 0 | I104: 0 | J104: 0.5 | K104: 1 | L104: 1 | M104: 1 | N104: 1 | O104: 0.5 | P104: 0 | Q104: 0 | R104: 0 | S104: 0 | T104: 0 | U104: 0 | V104: 0 | W104: 0 | X104: 0 | Y104: 0 | Z104: 0 | AA104: 0 | AB104: 0 | AC104: 0 | AD104: 0 | AE104: 0 | AF104: 0 | AG104: 0 | AH104: 0 | AI104: 0 | AJ104: 0 | AK104: 0 | AL104: 0 | AM104: 0 | AN104: 0 | AO104: 0 | AP104: 0 | AQ104: 0 | AR104: 0 | AS104: 0 | AT104: 0 | AU104: 0 | AV104: 0 | AW104: 0 | AX104: 0 | AY104: 0 | AZ104: 0 | BA104: 0 | BB104: 0 | BC104: 0 | BD104: 0 | BE104: 0 | BF104: 0 | BG104: 0 | BH104: 0 | BI104: 0 | BJ104: 0 | BK104: 0 | BL104: 0 | BM104: 0 | BN104: 0 | BO104: 0 | BP104: 0 | BQ104: 0 | BR104: 0 | BS104: =SUM((AND(BS$100>$F104,BS$100<$F104+$F$100))*1,OR($F104=BS$100,$F104+$F$100=BS$100)*0.5) -> 0 | BT104: 0 | BU104: 0 | BV104: 0 | BW104: 0 | BX104: 0 | BY104: 0 | BZ104: 0 | CA104: 0 | CB104: 0 | CC104: 0 | CD104: 0 | CE104: 0 | CF104: 0 | CG104: 0 | CH104: 0 | CI104: 0 | CJ104: 0 | CK104: 0 | CL104: 0 | CM104: 0
F105: 1950 | G105: 0 | H105: 0 | I105: 0 | J105: 0 | K105: 0.5 | L105: 1 | M105: 1 | N105: 1 | O105: 1 | P105: 0.5 | Q105: 0 | R105: 0 | S105: 0 | T105: 0 | U105: 0 | V105: 0 | W105: 0 | X105: 0 | Y105: 0 | Z105: 0 | AA105: 0 | AB105: 0 | AC105: 0 | AD105: 0 | AE105: 0 | AF105: 0 | AG105: 0 | AH105: 0 | AI105: 0 | AJ105: 0 | AK105: 0 | AL105: 0 | AM105: 0 | AN105: 0 | AO105: 0 | AP105: 0 | AQ105: 0 | AR105: 0 | AS105: 0 | AT105: 0 | AU105: 0 | AV105: 0 | AW105: 0 | AX105: 0 | AY105: 0 | AZ105: 0 | BA105: 0 | BB105: 0 | BC105: 0 | BD105: 0 | BE105: 0 | BF105: 0 | BG105: 0 | BH105: 0 | BI105: 0 | BJ105: 0 | BK105: 0 | BL105: 0 | BM105: 0 | BN105: 0 | BO105: 0 | BP105: 0 | BQ105: 0 | BR105: 0 | BS105: 0 | BT105: 0 | BU105: 0 | BV105: 0 | BW105: 0 | BX105: 0 | BY105: 0 | BZ105: 0 | CA105: 0 | CB105: 0 | CC105: 0 | CD105: 0 | CE105: 0 | CF105: 0 | CG105: 0 | CH105: 0 | CI105: 0 | CJ105: 0 | CK105: 0 | CL105: 0 | CM105: 0
F106: 1951 | G106: 0 | H106: 0 | I106: 0 | J106: 0 | K106: 0 | L106: 0.5 | M106: 1 | N106: 1 | O106: 1 | P106: 1 | Q106: 0.5 | R106: 0 | S106: 0 | T106: 0 | U106: 0 | V106: 0 | W106: 0 | X106: 0 | Y106: 0 | Z106: 0 | AA106: 0 | AB106: 0 | AC106: 0 | AD106: 0 | AE106: 0 | AF106: 0 | AG106: 0 | AH106: 0 | AI106: 0 | AJ106: 0 | AK106: 0 | AL106: 0 | AM106: 0 | AN106: 0 | AO106: 0 | AP106: 0 | AQ106: 0 | AR106: 0 | AS106: 0 | AT106: 0 | AU106: 0 | AV106: 0 | AW106: 0 | AX106: 0 | AY106: 0 | AZ106: 0 | BA106: 0 | BB106: 0 | BC106: 0 | BD106: 0 | BE106: 0 | BF106: 0 | BG106: 0 | BH106: 0 | BI106: 0 | BJ106: 0 | BK106: 0 | BL106: 0 | BM106: 0 | BN106: 0 | BO106: 0 | BP106: 0 | BQ106: 0 | BR106: 0 | BS106: 0 | BT106: 0 | BU106: 0 | BV106: 0 | BW106: 0 | BX106: 0 | BY106: 0 | BZ106: 0 | CA106: 0 | CB106: 0 | CC106: 0 | CD106: 0 | CE106: 0 | CF106: 0 | CG106: 0 | CH106: 0 | CI106: 0 | CJ106: 0 | CK106: 0 | CL106: 0 | CM106: 0
F107: 1952 | G107: 0 | H107: 0 | I107: 0 | J107: 0 | K107: 0 | L107: 0 | M107: 0.5 | N107: 1 | O107: 1 | P107: 1 | Q107: 1 | R107: 0.5 | S107: 0 | T107: 0 | U107: 0 | V107: 0 | W107: 0 | X107: 0 | Y107: 0 | Z107: 0 | AA107: 0 | AB107: 0 | AC107: 0 | AD107: 0 | AE107: 0 | AF107: 0 | AG107: 0 | AH107: 0 | AI107: 0 | AJ107: 0 | AK107: 0 | AL107: 0 | AM107: 0 | AN107: 0 | AO107: 0 | AP107: 0 | AQ107: 0 | AR107: 0 | AS107: 0 | AT107: 0 | AU107: 0 | AV107: 0 | AW107: 0 | AX107: 0 | AY107: 0 | AZ107: 0 | BA107: 0 | BB107: 0 | BC107: 0 | BD107: 0 | BE107: 0 | BF107: 0 | BG107: 0 | BH107: 0 | BI107: 0 | BJ107: 0 | BK107: 0 | BL107: 0 | BM107: 0 | BN107: 0 | BO107: 0 | BP107: 0 | BQ107: 0 | BR107: 0 | BS107: 0 | BT107: 0 | BU107: 0 | BV107: 0 | BW107: 0 | BX107: 0 | BY107: 0 | BZ107: 0 | CA107: 0 | CB107: 0 | CC107: 0 | CD107: 0 | CE107: 0 | CF107: 0 | CG107: 0 | CH107: 0 | CI107: 0 | CJ107: 0 | CK107: 0 | CL107: 0 | CM107: 0
F108: 1953 | G108: 0 | H108: 0 | I108: 0 | J108: 0 | K108: 0 | L108: 0 | M108: 0 | N108: 0.5 | O108: 1 | P108: 1 | Q108: 1 | R108: 1 | S108: 0.5 | T108: 0 | U108: 0 | V108: 0 | W108: 0 | X108: 0 | Y108: 0 | Z108: 0 | AA108: 0 | AB108: 0 | AC108: 0 | AD108: 0 | AE108: 0 | AF108: 0 | AG108: 0 | AH108: 0 | AI108: 0 | AJ108: 0 | AK108: 0 | AL108: 0 | AM108: 0 | AN108: 0 | AO108: 0 | AP108: 0 | AQ108: 0 | AR108: 0 | AS108: 0 | AT108: 0 | AU108: 0 | AV108: 0 | AW108: 0 | AX108: 0 | AY108: 0 | AZ108: 0 | BA108: 0 | BB108: 0 | BC108: 0 | BD108: 0 | BE108: 0 | BF108: 0 | BG108: 0 | BH108: 0 | BI108: 0 | BJ108: 0 | BK108: 0 | BL108: 0 | BM108: 0 | BN108: 0 | BO108: 0 | BP108: 0 | BQ108: 0 | BR108: =SUM((AND(BR$100>$F108,BR$100<$F108+$F$100))*1,OR($F108=BR$100,$F108+$F$100=BR$100)*0.5) -> 0 | BS108: 0 | BT108: 0 | BU108: 0 | BV108: 0 | BW108: 0 | BX108: 0 | BY108: 0 | BZ108: 0 | CA108: 0 | CB108: 0 | CC108: 0 | CD108: 0 | CE108: 0 | CF108: 0 | CG108: 0 | CH108: 0 | CI108: 0 | CJ108: 0 | CK108: 0 | CL108: 0 | CM108: 0
F109: 1954 | G109: 0 | H109: 0 | I109: 0 | J109: 0 | K109: 0 | L109: 0 | M109: 0 | N109: 0 | O109: 0.5 | P109: 1 | Q109: 1 | R109: 1 | S109: 1 | T109: 0.5 | U109: 0 | V109: 0 | W109: =SUM((AND(W$100>$F109,W$100<$F109+$F$100))*1,OR($F109=W$100,$F109+$F$100=W$100)*0.5) -> 0 | X109: 0 | Y109: 0 | Z109: 0 | AA109: 0 | AB109: 0 | AC109: 0 | AD109: 0 | AE109: 0 | AF109: 0 | AG109: 0 | AH109: 0 | AI109: 0 | AJ109: 0 | AK109: 0 | AL109: 0 | AM109: =SUM((AND(AM$100>$F109,AM$100<$F109+$F$100))*1,OR($F109=AM$100,$F109+$F$100=AM$100)*0.5) -> 0 | AN109: 0 | AO109: 0 | AP109: 0 | AQ109: 0 | AR109: 0 | AS109: 0 | AT109: 0 | AU109: 0 | AV109: 0 | AW109: 0 | AX109: 0 | AY109: 0 | AZ109: 0 | BA109: 0 | BB109: 0 | BC109: =SUM((AND(BC$100>$F109,BC$100<$F109+$F$100))*1,OR($F109=BC$100,$F109+$F$100=BC$100)*0.5) -> 0 | BD109: 0 | BE109: 0 | BF109: 0 | BG109: 0 | BH109: 0 | BI109: 0 | BJ109: 0 | BK109: 0 | BL109: 0 | BM109: 0 | BN109: 0 | BO109: 0 | BP109: 0 | BQ109: 0 | BR109: 0 | BS109: 0 | BT109: 0 | BU109: 0 | BV109: 0 | BW109: 0 | BX109: 0 | BY109: 0 | BZ109: 0 | CA109: 0 | CB109: 0 | CC109: 0 | CD109: 0 | CE109: 0 | CF109: 0 | CG109: 0 | CH109: 0 | CI109: 0 | CJ109: 0 | CK109: 0 | CL109: 0 | CM109: 0
F110: 1955 | G110: 0 | H110: 0 | I110: 0 | J110: 0 | K110: 0 | L110: 0 | M110: 0 | N110: 0 | O110: 0 | P110: 0.5 | Q110: 1 | R110: 1 | S110: 1 | T110: 1 | U110: 0.5 | V110: 0 | W110: 0 | X110: 0 | Y110: 0 | Z110: 0 | AA110: 0 | AB110: 0 | AC110: 0 | AD110: 0 | AE110: 0 | AF110: 0 | AG110: 0 | AH110: 0 | AI110: 0 | AJ110: 0 | AK110: 0 | AL110: 0 | AM110: 0 | AN110: 0 | AO110: 0 | AP110: 0 | AQ110: 0 | AR110: 0 | AS110: 0 | AT110: 0 | AU110: 0 | AV110: 0 | AW110: 0 | AX110: 0 | AY110: 0 | AZ110: 0 | BA110: 0 | BB110: 0 | BC110: 0 | BD110: 0 | BE110: 0 | BF110: 0 | BG110: 0 | BH110: 0 | BI110: 0 | BJ110: 0 | BK110: 0 | BL110: 0 | BM110: 0 | BN110: 0 | BO110: 0 | BP110: 0 | BQ110: 0 | BR110: 0 | BS110: 0 | BT110: 0 | BU110: 0 | BV110: 0 | BW110: 0 | BX110: 0 | BY110: 0 | BZ110: 0 | CA110: 0 | CB110: 0 | CC110: 0 | CD110: 0 | CE110: 0 | CF110: 0 | CG110: 0 | CH110: 0 | CI110: 0 | CJ110: 0 | CK110: 0 | CL110: 0 | CM110: 0
F111: 1956 | G111: 0 | H111: 0 | I111: 0 | J111: 0 | K111: 0 | L111: 0 | M111: 0 | N111: 0 | O111: 0 | P111: 0 | Q111: 0.5 | R111: 1 | S111: 1 | T111: 1 | U111: 1 | V111: 0.5 | W111: 0 | X111: 0 | Y111: 0 | Z111: 0 | AA111: 0 | AB111: 0 | AC111: 0 | AD111: 0 | AE111: 0 | AF111: 0 | AG111: 0 | AH111: 0 | AI111: 0 | AJ111: 0 | AK111: 0 | AL111: 0 | AM111: 0 | AN111: 0 | AO111: 0 | AP111: 0 | AQ111: 0 | AR111: 0 | AS111: 0 | AT111: 0 | AU111: 0 | AV111: 0 | AW111: 0 | AX111: 0 | AY111: 0 | AZ111: 0 | BA111: 0 | BB111: 0 | BC111: 0 | BD111: 0 | BE111: 0 | BF111: 0 | BG111: 0 | BH111: 0 | BI111: 0 | BJ111: 0 | BK111: 0 | BL111: 0 | BM111: 0 | BN111: 0 | BO111: 0 | BP111: 0 | BQ111: 0 | BR111: 0 | BS111: 0 | BT111: 0 | BU111: 0 | BV111: 0 | BW111: 0 | BX111: 0 | BY111: 0 | BZ111: 0 | CA111: 0 | CB111: 0 | CC111: 0 | CD111: 0 | CE111: 0 | CF111: 0 | CG111: 0 | CH111: 0 | CI111: 0 | CJ111: 0 | CK111: 0 | CL111: 0 | CM111: 0
F112: 1957 | G112: 0 | H112: 0 | I112: 0 | J112: 0 | K112: 0 | L112: 0 | M112: 0 | N112: 0 | O112: 0 | P112: 0 | Q112: 0 | R112: 0.5 | S112: 1 | T112: 1 | U112: 1 | V112: 1 | W112: 0.5 | X112: 0 | Y112: 0 | Z112: 0 | AA112: 0 | AB112: 0 | AC112: 0 | AD112: 0 | AE112: 0 | AF112: 0 | AG112: 0 | AH112: 0 | AI112: 0 | AJ112: 0 | AK112: 0 | AL112: 0 | AM112: 0 | AN112: 0 | AO112: 0 | AP112: 0 | AQ112: 0 | AR112: 0 | AS112: 0 | AT112: 0 | AU112: 0 | AV112: 0 | AW112: 0 | AX112: 0 | AY112: 0 | AZ112: 0 | BA112: 0 | BB112: 0 | BC112: 0 | BD112: 0 | BE112: 0 | BF112: 0 | BG112: 0 | BH112: 0 | BI112: 0 | BJ112: 0 | BK112: 0 | BL112: 0 | BM112: 0 | BN112: 0 | BO112: 0 | BP112: 0 | BQ112: 0 | BR112: 0 | BS112: 0 | BT112: 0 | BU112: 0 | BV112: 0 | BW112: 0 | BX112: 0 | BY112: 0 | BZ112: 0 | CA112: 0 | CB112: 0 | CC112: 0 | CD112: 0 | CE112: 0 | CF112: 0 | CG112: 0 | CH112: 0 | CI112: 0 | CJ112: 0 | CK112: 0 | CL112: 0 | CM112: 0
F113: 1958 | G113: 0 | H113: 0 | I113: 0 | J113: 0 | K113: 0 | L113: 0 | M113: 0 | N113: 0 | O113: 0 | P113: 0 | Q113: 0 | R113: 0 | S113: 0.5 | T113: 1 | U113: 1 | V113: 1 | W113: 1 | X113: 0.5 | Y113: 0 | Z113: 0 | AA113: 0 | AB113: 0 | AC113: 0 | AD113: 0 | AE113: 0 | AF113: 0 | AG113: 0 | AH113: 0 | AI113: 0 | AJ113: 0 | AK113: 0 | AL113: 0 | AM113: 0 | AN113: 0 | AO113: 0 | AP113: 0 | AQ113: 0 | AR113: 0 | AS113: 0 | AT113: 0 | AU113: 0 | AV113: 0 | AW113: 0 | AX113: 0 | AY113: 0 | AZ113: 0 | BA113: 0 | BB113: 0 | BC113: 0 | BD113: 0 | BE113: 0 | BF113: 0 | BG113: 0 | BH113: 0 | BI113: 0 | BJ113: 0 | BK113: 0 | BL113: 0 | BM113: 0 | BN113: 0 | BO113: 0 | BP113: 0 | BQ113: 0 | BR113: 0 | BS113: 0 | BT113: 0 | BU113: 0 | BV113: 0 | BW113: 0 | BX113: 0 | BY113: 0 | BZ113: 0 | CA113: 0 | CB113: 0 | CC113: 0 | CD113: 0 | CE113: 0 | CF113: 0 | CG113: 0 | CH113: 0 | CI113: =SUM((AND(CI$100>$F113,CI$100<$F113+$F$100))*1,OR($F113=CI$100,$F113+$F$100=CI$100)*0.5) -> 0 | CJ113: 0 | CK113: 0 | CL113: 0 | CM113: 0
F114: 1959 | G114: 0 | H114: 0 | I114: 0 | J114: 0 | K114: 0 | L114: 0 | M114: 0 | N114: 0 | O114: 0 | P114: 0 | Q114: 0 | R114: 0 | S114: 0 | T114: 0.5 | U114: 1 | V114: 1 | W114: 1 | X114: 1 | Y114: 0.5 | Z114: 0 | AA114: 0 | AB114: 0 | AC114: 0 | AD114: 0 | AE114: 0 | AF114: 0 | AG114: 0 | AH114: 0 | AI114: 0 | AJ114: 0 | AK114: 0 | AL114: 0 | AM114: 0 | AN114: 0 | AO114: 0 | AP114: 0 | AQ114: 0 | AR114: 0 | AS114: 0 | AT114: 0 | AU114: 0 | AV114: 0 | AW114: 0 | AX114: 0 | AY114: 0 | AZ114: 0 | BA114: 0 | BB114: 0 | BC114: 0 | BD114: 0 | BE114: 0 | BF114: 0 | BG114: 0 | BH114: 0 | BI114: 0 | BJ114: 0 | BK114: 0 | BL114: 0 | BM114: 0 | BN114: 0 | BO114: 0 | BP114: 0 | BQ114: 0 | BR114: 0 | BS114: 0 | BT114: 0 | BU114: 0 | BV114: 0 | BW114: 0 | BX114: 0 | BY114: 0 | BZ114: 0 | CA114: 0 | CB114: 0 | CC114: 0 | CD114: 0 | CE114: 0 | CF114: 0 | CG114: 0 | CH114: =SUM((AND(CH$100>$F114,CH$100<$F114+$F$100))*1,OR($F114=CH$100,$F114+$F$100=CH$100)*0.5) -> 0 | CI114: 0 | CJ114: 0 | CK114: 0 | CL114: 0 | CM114: 0
F115: 1960 | G115: 0 | H115: 0 | I115: 0 | J115: 0 | K115: 0 | L115: 0 | M115: 0 | N115: 0 | O115: 0 | P115: 0 | Q115: 0 | R115: 0 | S115: 0 | T115: 0 | U115: 0.5 | V115: 1 | W115: 1 | X115: 1 | Y115: 1 | Z115: 0.5 | AA115: 0 | AB115: 0 | AC115: 0 | AD115: 0 | AE115: 0 | AF115: 0 | AG115: 0 | AH115: 0 | AI115: 0 | AJ115: 0 | AK115: 0 | AL115: 0 | AM115: 0 | AN115: 0 | AO115: 0 | AP115: 0 | AQ115: 0 | AR115: 0 | AS115: 0 | AT115: 0 | AU115: 0 | AV115: 0 | AW115: 0 | AX115: 0 | AY115: 0 | AZ115: 0 | BA115: 0 | BB115: 0 | BC115: 0 | BD115: 0 | BE115: 0 | BF115: 0 | BG115: 0 | BH115: 0 | BI115: 0 | BJ115: 0 | BK115: 0 | BL115: 0 | BM115: 0 | BN115: 0 | BO115: 0 | BP115: 0 | BQ115: 0 | BR115: 0 | BS115: 0 | BT115: 0 | BU115: 0 | BV115: 0 | BW115: 0 | BX115: 0 | BY115: 0 | BZ115: 0 | CA115: 0 | CB115: 0 | CC115: 0 | CD115: 0 | CE115: 0 | CF115: 0 | CG115: 0 | CH115: 0 | CI115: 0 | CJ115: 0 | CK115: 0 | CL115: 0 | CM115: 0
F116: 1961 | G116: 0 | H116: 0 | I116: 0 | J116: 0 | K116: 0 | L116: 0 | M116: 0 | N116: 0 | O116: 0 | P116: 0 | Q116: 0 | R116: 0 | S116: 0 | T116: 0 | U116: 0 | V116: 0.5 | W116: 1 | X116: 1 | Y116: 1 | Z116: 1 | AA116: 0.5 | AB116: 0 | AC116: 0 | AD116: 0 | AE116: 0 | AF116: 0 | AG116: 0 | AH116: 0 | AI116: 0 | AJ116: 0 | AK116: 0 | AL116: 0 | AM116: 0 | AN116: 0 | AO116: 0 | AP116: 0 | AQ116: 0 | AR116: 0 | AS116: 0 | AT116: 0 | AU116: 0 | AV116: 0 | AW116: 0 | AX116: 0 | AY116: 0 | AZ116: 0 | BA116: 0 | BB116: 0 | BC116: 0 | BD116: 0 | BE116: 0 | BF116: 0 | BG116: 0 | BH116: 0 | BI116: 0 | BJ116: 0 | BK116: 0 | BL116: 0 | BM116: 0 | BN116: 0 | BO116: 0 | BP116: 0 | BQ116: 0 | BR116: 0 | BS116: 0 | BT116: 0 | BU116: 0 | BV116: 0 | BW116: 0 | BX116: 0 | BY116: 0 | BZ116: 0 | CA116: 0 | CB116: 0 | CC116: 0 | CD116: 0 | CE116: 0 | CF116: 0 | CG116: 0 | CH116: 0 | CI116: 0 | CJ116: 0 | CK116: 0 | CL116: 0 | CM116: 0
F117: 1962 | G117: 0 | H117: 0 | I117: 0 | J117: 0 | K117: 0 | L117: 0 | M117: 0 | N117: 0 | O117: 0 | P117: 0 | Q117: 0 | R117: 0 | S117: 0 | T117: 0 | U117: 0 | V117: 0 | W117: 0.5 | X117: 1 | Y117: 1 | Z117: 1 | AA117: 1 | AB117: 0.5 | AC117: 0 | AD117: 0 | AE117: 0 | AF117: 0 | AG117: 0 | AH117: 0 | AI117: 0 | AJ117: 0 | AK117: 0 | AL117: 0 | AM117: 0 | AN117: 0 | AO117: 0 | AP117: 0 | AQ117: 0 | AR117: 0 | AS117: 0 | AT117: 0 | AU117: 0 | AV117: 0 | AW117: 0 | AX117: 0 | AY117: 0 | AZ117: 0 | BA117: 0 | BB117: 0 | BC117: 0 | BD117: 0 | BE117: 0 | BF117: 0 | BG117: 0 | BH117: 0 | BI117: 0 | BJ117: 0 | BK117: 0 | BL117: 0 | BM117: 0 | BN117: 0 | BO117: 0 | BP117: 0 | BQ117: 0 | BR117: 0 | BS117: 0 | BT117: 0 | BU117: 0 | BV117: 0 | BW117: 0 | BX117: 0 | BY117: 0 | BZ117: 0 | CA117: 0 | CB117: 0 | CC117: 0 | CD117: 0 | CE117: 0 | CF117: 0 | CG117: 0 | CH117: 0 | CI117: 0 | CJ117: 0 | CK117: 0 | CL117: 0 | CM117: 0
F118: 1963 | G118: 0 | H118: 0 | I118: 0 | J118: 0 | K118: 0 | L118: 0 | M118: 0 | N118: 0 | O118: 0 | P118: 0 | Q118: 0 | R118: 0 | S118: 0 | T118: 0 | U118: 0 | V118: 0 | W118: 0 | X118: 0.5 | Y118: 1 | Z118: 1 | AA118: 1 | AB118: 1 | AC118: 0.5 | AD118: 0 | AE118: 0 | AF118: 0 | AG118: 0 | AH118: 0 | AI118: 0 | AJ118: 0 | AK118: 0 | AL118: 0 | AM118: 0 | AN118: 0 | AO118: 0 | AP118: 0 | AQ118: 0 | AR118: 0 | AS118: 0 | AT118: 0 | AU118: 0 | AV118: 0 | AW118: 0 | AX118: 0 | AY118: 0 | AZ118: 0 | BA118: 0 | BB118: 0 | BC118: 0 | BD118: 0 | BE118: 0 | BF118: 0 | BG118: 0 | BH118: 0 | BI118: 0 | BJ118: 0 | BK118: 0 | BL118: 0 | BM118: 0 | BN118: 0 | BO118: 0 | BP118: 0 | BQ118: 0 | BR118: 0 | BS118: 0 | BT118: 0 | BU118: 0 | BV118: 0 | BW118: 0 | BX118: 0 | BY118: 0 | BZ118: 0 | CA118: 0 | CB118: 0 | CC118: 0 | CD118: 0 | CE118: 0 | CF118: 0 | CG118: 0 | CH118: 0 | CI118: 0 | CJ118: 0 | CK118: 0 | CL118: 0 | CM118: 0
F119: 1964 | G119: 0 | H119: 0 | I119: 0 | J119: 0 | K119: 0 | L119: 0 | M119: 0 | N119: 0 | O119: 0 | P119: 0 | Q119: 0 | R119: 0 | S119: 0 | T119: 0 | U119: 0 | V119: 0 | W119: 0 | X119: 0 | Y119: 0.5 | Z119: 1 | AA119: 1 | AB119: 1 | AC119: 1 | AD119: 0.5 | AE119: 0 | AF119: 0 | AG119: 0 | AH119: 0 | AI119: 0 | AJ119: 0 | AK119: 0 | AL119: 0 | AM119: 0 | AN119: 0 | AO119: 0 | AP119: 0 | AQ119: 0 | AR119: 0 | AS119: 0 | AT119: 0 | AU119: 0 | AV119: 0 | AW119: 0 | AX119: 0 | AY119: 0 | AZ119: 0 | BA119: 0 | BB119: 0 | BC119: 0 | BD119: 0 | BE119: 0 | BF119: 0 | BG119: 0 | BH119: 0 | BI119: 0 | BJ119: 0 | BK119: 0 | BL119: 0 | BM119: 0 | BN119: 0 | BO119: 0 | BP119: 0 | BQ119: 0 | BR119: 0 | BS119: 0 | BT119: 0 | BU119: 0 | BV119: 0 | BW119: 0 | BX119: 0 | BY119: 0 | BZ119: 0 | CA119: 0 | CB119: 0 | CC119: 0 | CD119: 0 | CE119: 0 | CF119: 0 | CG119: 0 | CH119: 0 | CI119: 0 | CJ119: 0 | CK119: 0 | CL119: 0 | CM119: 0
F120: 1965 | G120: 0 | H120: 0 | I120: 0 | J120: 0 | K120: 0 | L120: 0 | M120: 0 | N120: 0 | O120: 0 | P120: 0 | Q120: 0 | R120: 0 | S120: 0 | T120: 0 | U120: 0 | V120: 0 | W120: 0 | X120: 0 | Y120: 0 | Z120: 0.5 | AA120: 1 | AB120: 1 | AC120: 1 | AD120: 1 | AE120: 0.5 | AF120: 0 | AG120: 0 | AH120: 0 | AI120: 0 | AJ120: 0 | AK120: 0 | AL120: 0 | AM120: 0 | AN120: 0 | AO120: 0 | AP120: 0 | AQ120: 0 | AR120: 0 | AS120: 0 | AT120: 0 | AU120: 0 | AV120: 0 | AW120: 0 | AX120: 0 | AY120: 0 | AZ120: 0 | BA120: 0 | BB120: 0 | BC120: 0 | BD120: 0 | BE120: 0 | BF120: 0 | BG120: 0 | BH120: 0 | BI120: 0 | BJ120: 0 | BK120: 0 | BL120: 0 | BM120: 0 | BN120: 0 | BO120: 0 | BP120: 0 | BQ120: 0 | BR120: 0 | BS120: 0 | BT120: 0 | BU120: 0 | BV120: 0 | BW120: 0 | BX120: 0 | BY120: 0 | BZ120: 0 | CA120: 0 | CB120: 0 | CC120: 0 | CD120: 0 | CE120: 0 | CF120: 0 | CG120: 0 | CH120: 0 | CI120: 0 | CJ120: 0 | CK120: 0 | CL120: 0 | CM120: 0
F121: 1966 | G121: 0 | H121: 0 | I121: 0 | J121: 0 | K121: 0 | L121: 0 | M121: 0 | N121: 0 | O121: 0 | P121: 0 | Q121: 0 | R121: 0 | S121: 0 | T121: 0 | U121: 0 | V121: 0 | W121: 0 | X121: 0 | Y121: 0 | Z121: 0 | AA121: 0.5 | AB121: 1 | AC121: 1 | AD121: 1 | AE121: 1 | AF121: 0.5 | AG121: 0 | AH121: 0 | AI121: 0 | AJ121: 0 | AK121: 0 | AL121: 0 | AM121: 0 | AN121: 0 | AO121: 0 | AP121: 0 | AQ121: 0 | AR121: 0 | AS121: 0 | AT121: 0 | AU121: 0 | AV121: 0 | AW121: 0 | AX121: 0 | AY121: 0 | AZ121: 0 | BA121: 0 | BB121: 0 | BC121: 0 | BD121: 0 | BE121: 0 | BF121: 0 | BG121: 0 | BH121: 0 | BI121: 0 | BJ121: 0 | BK121: 0 | BL121: 0 | BM121: 0 | BN121: 0 | BO121: 0 | BP121: 0 | BQ121: 0 | BR121: 0 | BS121: 0 | BT121: 0 | BU121: 0 | BV121: 0 | BW121: 0 | BX121: 0 | BY121: 0 | BZ121: 0 | CA121: 0 | CB121: 0 | CC121: 0 | CD121: 0 | CE121: 0 | CF121: 0 | CG121: 0 | CH121: 0 | CI121: 0 | CJ121: 0 | CK121: 0 | CL121: 0 | CM121: 0
F122: 1967 | G122: 0 | H122: 0 | I122: 0 | J122: 0 | K122: 0 | L122: 0 | M122: 0 | N122: 0 | O122: 0 | P122: 0 | Q122: 0 | R122: 0 | S122: 0 | T122: 0 | U122: 0 | V122: 0 | W122: 0 | X122: 0 | Y122: 0 | Z122: 0 | AA122: 0 | AB122: 0.5 | AC122: 1 | AD122: 1 | AE122: 1 | AF122: 1 | AG122: 0.5 | AH122: 0 | AI122: 0 | AJ122: 0 | AK122: 0 | AL122: 0 | AM122: 0 | AN122: 0 | AO122: 0 | AP122: 0 | AQ122: 0 | AR122: 0 | AS122: 0 | AT122: 0 | AU122: 0 | AV122: 0 | AW122: 0 | AX122: 0 | AY122: 0 | AZ122: 0 | BA122: 0 | BB122: 0 | BC122: 0 | BD122: 0 | BE122: 0 | BF122: 0 | BG122: 0 | BH122: 0 | BI122: 0 | BJ122: 0 | BK122: 0 | BL122: 0 | BM122: 0 | BN122: 0 | BO122: 0 | BP122: 0 | BQ122: 0 | BR122: 0 | BS122: 0 | BT122: 0 | BU122: 0 | BV122: 0 | BW122: 0 | BX122: 0 | BY122: 0 | BZ122: 0 | CA122: 0 | CB122: 0 | CC122: 0 | CD122: 0 | CE122: 0 | CF122: 0 | CG122: 0 | CH122: 0 | CI122: 0 | CJ122: 0 | CK122: 0 | CL122: 0 | CM122: 0
F123: 1968 | G123: 0 | H123: 0 | I123: 0 | J123: 0 | K123: 0 | L123: 0 | M123: 0 | N123: 0 | O123: 0 | P123: 0 | Q123: 0 | R123: 0 | S123: 0 | T123: 0 | U123: 0 | V123: 0 | W123: 0 | X123: 0 | Y123: 0 | Z123: 0 | AA123: 0 | AB123: 0 | AC123: 0.5 | AD123: 1 | AE123: 1 | AF123: 1 | AG123: 1 | AH123: 0.5 | AI123: 0 | AJ123: 0 | AK123: 0 | AL123: 0 | AM123: 0 | AN123: 0 | AO123: 0 | AP123: 0 | AQ123: 0 | AR123: 0 | AS123: 0 | AT123: 0 | AU123: 0 | AV123: 0 | AW123: 0 | AX123: 0 | AY123: 0 | AZ123: 0 | BA123: 0 | BB123: 0 | BC123: 0 | BD123: 0 | BE123: 0 | BF123: 0 | BG123: 0 | BH123: 0 | BI123: 0 | BJ123: 0 | BK123: 0 | BL123: 0 | BM123: 0 | BN123: 0 | BO123: 0 | BP123: 0 | BQ123: 0 | BR123: 0 | BS123: 0 | BT123: 0 | BU123: 0 | BV123: 0 | BW123: 0 | BX123: 0 | BY123: 0 | BZ123: 0 | CA123: 0 | CB123: 0 | CC123: 0 | CD123: 0 | CE123: 0 | CF123: 0 | CG123: 0 | CH123: 0 | CI123: 0 | CJ123: 0 | CK123: 0 | CL123: 0 | CM123: 0
F124: 1969 | G124: 0 | H124: 0 | I124: 0 | J124: 0 | K124: 0 | L124: 0 | M124: 0 | N124: 0 | O124: =SUM((AND(O$100>$F124,O$100<$F124+$F$100))*1,OR($F124=O$100,$F124+$F$100=O$100)*0.5) -> 0 | P124: 0 | Q124: 0 | R124: 0 | S124: 0 | T124: 0 | U124: 0 | V124: 0 | W124: 0 | X124: 0 | Y124: 0 | Z124: 0 | AA124: 0 | AB124: 0 | AC124: 0 | AD124: 0.5 | AE124: 1 | AF124: 1 | AG124: 1 | AH124: 1 | AI124: 0.5 | AJ124: 0 | AK124: 0 | AL124: 0 | AM124: 0 | AN124: 0 | AO124: 0 | AP124: 0 | AQ124: 0 | AR124: 0 | AS124: 0 | AT124: 0 | AU124: 0 | AV124: 0 | AW124: 0 | AX124: 0 | AY124: 0 | AZ124: 0 | BA124: 0 | BB124: =SUM((AND(BB$100>$F124,BB$100<$F124+$F$100))*1,OR($F124=BB$100,$F124+$F$100=BB$100)*0.5) -> 0 | BC124: 0 | BD124: 0 | BE124: 0 | BF124: 0 | BG124: 0 | BH124: 0 | BI124: 0 | BJ124: 0 | BK124: 0 | BL124: 0 | BM124: 0 | BN124: 0 | BO124: 0 | BP124: 0 | BQ124: 0 | BR124: 0 | BS124: 0 | BT124: 0 | BU124: 0 | BV124: 0 | BW124: 0 | BX124: 0 | BY124: 0 | BZ124: 0 | CA124: 0 | CB124: 0 | CC124: 0 | CD124: 0 | CE124: 0 | CF124: 0 | CG124: 0 | CH124: 0 | CI124: 0 | CJ124: 0 | CK124: 0 | CL124: 0 | CM124: 0
F125: 1970 | G125: =SUM((AND(G$100>$F125,G$100<$F125+$F$100))*1,OR($F125=G$100,$F125+$F$100=G$100)*0.5) -> 0 | H125: 0 | I125: 0 | J125: 0 | K125: 0 | L125: 0 | M125: 0 | N125: 0 | O125: 0 | P125: 0 | Q125: 0 | R125: 0 | S125: 0 | T125: 0 | U125: 0 | V125: 0 | W125: 0 | X125: 0 | Y125: 0 | Z125: 0 | AA125: 0 | AB125: 0 | AC125: 0 | AD125: 0 | AE125: 0.5 | AF125: 1 | AG125: 1 | AH125: 1 | AI125: 1 | AJ125: 0.5 | AK125: 0 | AL125: =SUM((AND(AL$100>$F125,AL$100<$F125+$F$100))*1,OR($F125=AL$100,$F125+$F$100=AL$100)*0.5) -> 0 | AM125: 0 | AN125: 0 | AO125: 0 | AP125: 0 | AQ125: 0 | AR125: 0 | AS125: 0 | AT125: 0 | AU125: 0 | AV125: 0 | AW125: 0 | AX125: 0 | AY125: 0 | AZ125: 0 | BA125: 0 | BB125: 0 | BC125: 0 | BD125: 0 | BE125: 0 | BF125: 0 | BG125: 0 | BH125: 0 | BI125: 0 | BJ125: 0 | BK125: 0 | BL125: 0 | BM125: 0 | BN125: 0 | BO125: 0 | BP125: 0 | BQ125: 0 | BR125: 0 | BS125: 0 | BT125: 0 | BU125: 0 | BV125: 0 | BW125: 0 | BX125: 0 | BY125: 0 | BZ125: 0 | CA125: 0 | CB125: 0 | CC125: 0 | CD125: 0 | CE125: 0 | CF125: 0 | CG125: 0 | CH125: 0 | CI125: 0 | CJ125: 0 | CK125: 0 | CL125: 0 | CM125: 0
F126: 1971 | G126: 0 | H126: 0 | I126: 0 | J126: 0 | K126: 0 | L126: 0 | M126: 0 | N126: 0 | O126: 0 | P126: 0 | Q126: 0 | R126: 0 | S126: 0 | T126: 0 | U126: 0 | V126: 0 | W126: 0 | X126: 0 | Y126: 0 | Z126: 0 | AA126: 0 | AB126: 0 | AC126: 0 | AD126: 0 | AE126: =SUM((AND(AE$100>$F126,AE$100<$F126+$F$100))*1,OR($F126=AE$100,$F126+$F$100=AE$100)*0.5) -> 0 | AF126: 0.5 | AG126: 1 | AH126: 1 | AI126: 1 | AJ126: 1 | AK126: 0.5 | AL126: 0 | AM126: 0 | AN126: 0 | AO126: 0 | AP126: 0 | AQ126: 0 | AR126: 0 | AS126: 0 | AT126: 0 | AU126: 0 | AV126: 0 | AW126: 0 | AX126: 0 | AY126: 0 | AZ126: 0 | BA126: 0 | BB126: 0 | BC126: 0 | BD126: 0 | BE126: 0 | BF126: 0 | BG126: 0 | BH126: 0 | BI126: 0 | BJ126: 0 | BK126: 0 | BL126: 0 | BM126: 0 | BN126: 0 | BO126: 0 | BP126: 0 | BQ126: 0 | BR126: 0 | BS126: 0 | BT126: 0 | BU126: 0 | BV126: 0 | BW126: 0 | BX126: 0 | BY126: 0 | BZ126: 0 | CA126: 0 | CB126: 0 | CC126: 0 | CD126: 0 | CE126: 0 | CF126: 0 | CG126: 0 | CH126: 0 | CI126: 0 | CJ126: 0 | CK126: 0 | CL126: 0 | CM126: 0
F127: 1972 | G127: 0 | H127: 0 | I127: 0 | J127: 0 | K127: 0 | L127: 0 | M127: 0 | N127: 0 | O127: 0 | P127: 0 | Q127: 0 | R127: 0 | S127: 0 | T127: 0 | U127: 0 | V127: 0 | W127: 0 | X127: 0 | Y127: 0 | Z127: 0 | AA127: 0 | AB127: 0 | AC127: 0 | AD127: 0 | AE127: 0 | AF127: 0 | AG127: 0.5 | AH127: 1 | AI127: 1 | AJ127: 1 | AK127: 1 | AL127: 0.5 | AM127: 0 | AN127: 0 | AO127: 0 | AP127: 0 | AQ127: 0 | AR127: 0 | AS127: 0 | AT127: 0 | AU127: 0 | AV127: 0 | AW127: 0 | AX127: 0 | AY127: 0 | AZ127: 0 | BA127: 0 | BB127: 0 | BC127: 0 | BD127: 0 | BE127: 0 | BF127: 0 | BG127: 0 | BH127: 0 | BI127: 0 | BJ127: 0 | BK127: 0 | BL127: 0 | BM127: 0 | BN127: 0 | BO127: 0 | BP127: 0 | BQ127: 0 | BR127: 0 | BS127: 0 | BT127: 0 | BU127: 0 | BV127: 0 | BW127: 0 | BX127: 0 | BY127: 0 | BZ127: 0 | CA127: 0 | CB127: 0 | CC127: 0 | CD127: 0 | CE127: 0 | CF127: 0 | CG127: 0 | CH127: 0 | CI127: 0 | CJ127: 0 | CK127: 0 | CL127: 0 | CM127: 0
F128: 1973 | G128: 0 | H128: 0 | I128: 0 | J128: 0 | K128: 0 | L128: 0 | M128: 0 | N128: 0 | O128: 0 | P128: 0 | Q128: 0 | R128: 0 | S128: 0 | T128: 0 | U128: 0 | V128: 0 | W128: 0 | X128: 0 | Y128: 0 | Z128: 0 | AA128: 0 | AB128: 0 | AC128: 0 | AD128: 0 | AE128: 0 | AF128: 0 | AG128: 0 | AH128: 0.5 | AI128: 1 | AJ128: 1 | AK128: 1 | AL128: 1 | AM128: 0.5 | AN128: 0 | AO128: 0 | AP128: 0 | AQ128: 0 | AR128: 0 | AS128: 0 | AT128: 0 | AU128: 0 | AV128: 0 | AW128: 0 | AX128: 0 | AY128: 0 | AZ128: 0 | BA128: 0 | BB128: 0 | BC128: 0 | BD128: 0 | BE128: 0 | BF128: 0 | BG128: 0 | BH128: 0 | BI128: 0 | BJ128: 0 | BK128: 0 | BL128: 0 | BM128: 0 | BN128: 0 | BO128: 0 | BP128: 0 | BQ128: 0 | BR128: 0 | BS128: 0 | BT128: 0 | BU128: 0 | BV128: 0 | BW128: 0 | BX128: 0 | BY128: 0 | BZ128: 0 | CA128: 0 | CB128: 0 | CC128: 0 | CD128: 0 | CE128: 0 | CF128: 0 | CG128: 0 | CH128: 0 | CI128: 0 | CJ128: 0 | CK128: 0 | CL128: 0 | CM128: 0
F129: 1974 | G129: 0 | H129: 0 | I129: 0 | J129: 0 | K129: 0 | L129: 0 | M129: 0 | N129: 0 | O129: 0 | P129: 0 | Q129: 0 | R129: 0 | S129: 0 | T129: 0 | U129: 0 | V129: 0 | W129: 0 | X129: 0 | Y129: 0 | Z129: 0 | AA129: 0 | AB129: 0 | AC129: 0 | AD129: 0 | AE129: 0 | AF129: 0 | AG129: 0 | AH129: 0 | AI129: 0.5 | AJ129: 1 | AK129: 1 | AL129: 1 | AM129: 1 | AN129: 0.5 | AO129: 0 | AP129: 0 | AQ129: 0 | AR129: 0 | AS129: 0 | AT129: 0 | AU129: 0 | AV129: 0 | AW129: 0 | AX129: 0 | AY129: 0 | AZ129: 0 | BA129: 0 | BB129: 0 | BC129: 0 | BD129: 0 | BE129: 0 | BF129: 0 | BG129: 0 | BH129: 0 | BI129: 0 | BJ129: 0 | BK129: 0 | BL129: 0 | BM129: 0 | BN129: 0 | BO129: 0 | BP129: 0 | BQ129: 0 | BR129: 0 | BS129: 0 | BT129: 0 | BU129: 0 | BV129: 0 | BW129: 0 | BX129: 0 | BY129: 0 | BZ129: 0 | CA129: 0 | CB129: 0 | CC129: 0 | CD129: 0 | CE129: 0 | CF129: 0 | CG129: 0 | CH129: 0 | CI129: 0 | CJ129: 0 | CK129: 0 | CL129: 0 | CM129: 0
F130: 1975 | G130: 0 | H130: 0 | I130: 0 | J130: 0 | K130: 0 | L130: 0 | M130: 0 | N130: 0 | O130: 0 | P130: 0 | Q130: 0 | R130: 0 | S130: 0 | T130: 0 | U130: 0 | V130: 0 | W130: 0 | X130: 0 | Y130: 0 | Z130: 0 | AA130: 0 | AB130: 0 | AC130: 0 | AD130: 0 | AE130: 0 | AF130: 0 | AG130: 0 | AH130: 0 | AI130: 0 | AJ130: 0.5 | AK130: 1 | AL130: 1 | AM130: 1 | AN130: 1 | AO130: 0.5 | AP130: 0 | AQ130: 0 | AR130: 0 | AS130: 0 | AT130: 0 | AU130: 0 | AV130: 0 | AW130: 0 | AX130: 0 | AY130: 0 | AZ130: 0 | BA130: 0 | BB130: 0 | BC130: 0 | BD130: 0 | BE130: 0 | BF130: 0 | BG130: 0 | BH130: 0 | BI130: 0 | BJ130: 0 | BK130: 0 | BL130: 0 | BM130: 0 | BN130: 0 | BO130: 0 | BP130: 0 | BQ130: 0 | BR130: 0 | BS130: 0 | BT130: 0 | BU130: 0 | BV130: 0 | BW130: 0 | BX130: 0 | BY130: 0 | BZ130: 0 | CA130: =SUM((AND(CA$100>$F130,CA$100<$F130+$F$100))*1,OR($F130=CA$100,$F130+$F$100=CA$100)*0.5) -> 0 | CB130: 0 | CC130: 0 | CD130: 0 | CE130: 0 | CF130: 0 | CG130: 0 | CH130: 0 | CI130: 0 | CJ130: 0 | CK130: 0 | CL130: 0 | CM130: 0
F131: 1976 | G131: 0 | H131: 0 | I131: 0 | J131: 0 | K131: 0 | L131: 0 | M131: 0 | N131: 0 | O131: 0 | P131: 0 | Q131: 0 | R131: 0 | S131: 0 | T131: 0 | U131: 0 | V131: 0 | W131: 0 | X131: 0 | Y131: 0 | Z131: 0 | AA131: 0 | AB131: 0 | AC131: 0 | AD131: 0 | AE131: 0 | AF131: 0 | AG131: 0 | AH131: 0 | AI131: 0 | AJ131: 0 | AK131: 0.5 | AL131: 1 | AM131: 1 | AN131: 1 | AO131: 1 | AP131: 0.5 | AQ131: 0 | AR131: 0 | AS131: 0 | AT131: 0 | AU131: 0 | AV131: 0 | AW131: 0 | AX131: 0 | AY131: 0 | AZ131: 0 | BA131: 0 | BB131: 0 | BC131: 0 | BD131: 0 | BE131: 0 | BF131: 0 | BG131: 0 | BH131: 0 | BI131: 0 | BJ131: 0 | BK131: 0 | BL131: 0 | BM131: 0 | BN131: 0 | BO131: 0 | BP131: 0 | BQ131: 0 | BR131: 0 | BS131: =SUM((AND(BS$100>$F131,BS$100<$F131+$F$100))*1,OR($F131=BS$100,$F131+$F$100=BS$100)*0.5) -> 0 | BT131: 0 | BU131: 0 | BV131: 0 | BW131: 0 | BX131: 0 | BY131: 0 | BZ131: 0 | CA131: 0 | CB131: 0 | CC131: 0 | CD131: 0 | CE131: 0 | CF131: 0 | CG131: 0 | CH131: 0 | CI131: 0 | CJ131: 0 | CK131: 0 | CL131: 0 | CM131: 0
F132: 1977 | G132: 0 | H132: 0 | I132: 0 | J132: 0 | K132: 0 | L132: 0 | M132: 0 | N132: 0 | O132: 0 | P132: 0 | Q132: 0 | R132: 0 | S132: 0 | T132: 0 | U132: 0 | V132: 0 | W132: 0 | X132: 0 | Y132: 0 | Z132: 0 | AA132: 0 | AB132: 0 | AC132: 0 | AD132: 0 | AE132: 0 | AF132: 0 | AG132: 0 | AH132: 0 | AI132: 0 | AJ132: 0 | AK132: 0 | AL132: 0.5 | AM132: 1 | AN132: 1 | AO132: 1 | AP132: 1 | AQ132: 0.5 | AR132: 0 | AS132: 0 | AT132: 0 | AU132: 0 | AV132: 0 | AW132: 0 | AX132: 0 | AY132: 0 | AZ132: 0 | BA132: 0 | BB132: 0 | BC132: 0 | BD132: 0 | BE132: 0 | BF132: 0 | BG132: 0 | BH132: 0 | BI132: 0 | BJ132: 0 | BK132: 0 | BL132: 0 | BM132: 0 | BN132: 0 | BO132: 0 | BP132: 0 | BQ132: 0 | BR132: 0 | BS132: 0 | BT132: 0 | BU132: 0 | BV132: 0 | BW132: 0 | BX132: 0 | BY132: 0 | BZ132: 0 | CA132: 0 | CB132: 0 | CC132: 0 | CD132: 0 | CE132: 0 | CF132: 0 | CG132: 0 | CH132: 0 | CI132: 0 | CJ132: 0 | CK132: 0 | CL132: 0 | CM132: 0
F133: 1978 | G133: 0 | H133: 0 | I133: 0 | J133: 0 | K133: 0 | L133: 0 | M133: 0 | N133: 0 | O133: 0 | P133: 0 | Q133: 0 | R133: 0 | S133: 0 | T133: 0 | U133: 0 | V133: 0 | W133: 0 | X133: 0 | Y133: 0 | Z133: 0 | AA133: 0 | AB133: 0 | AC133: 0 | AD133: 0 | AE133: 0 | AF133: 0 | AG133: 0 | AH133: 0 | AI133: 0 | AJ133: 0 | AK133: 0 | AL133: 0 | AM133: 0.5 | AN133: 1 | AO133: 1 | AP133: 1 | AQ133: 1 | AR133: 0.5 | AS133: 0 | AT133: 0 | AU133: 0 | AV133: 0 | AW133: 0 | AX133: 0 | AY133: 0 | AZ133: 0 | BA133: 0 | BB133: 0 | BC133: 0 | BD133: 0 | BE133: 0 | BF133: 0 | BG133: 0 | BH133: 0 | BI133: 0 | BJ133: 0 | BK133: 0 | BL133: 0 | BM133: 0 | BN133: 0 | BO133: 0 | BP133: 0 | BQ133: 0 | BR133: 0 | BS133: 0 | BT133: 0 | BU133: 0 | BV133: 0 | BW133: 0 | BX133: 0 | BY133: 0 | BZ133: 0 | CA133: 0 | CB133: 0 | CC133: 0 | CD133: 0 | CE133: 0 | CF133: 0 | CG133: 0 | CH133: 0 | CI133: 0 | CJ133: 0 | CK133: 0 | CL133: 0 | CM133: 0
F134: 1979 | G134: 0 | H134: 0 | I134: 0 | J134: 0 | K134: 0 | L134: 0 | M134: 0 | N134: 0 | O134: 0 | P134: 0 | Q134: 0 | R134: 0 | S134: 0 | T134: 0 | U134: 0 | V134: 0 | W134: 0 | X134: 0 | Y134: 0 | Z134: 0 | AA134: 0 | AB134: 0 | AC134: 0 | AD134: 0 | AE134: 0 | AF134: 0 | AG134: 0 | AH134: 0 | AI134: 0 | AJ134: 0 | AK134: 0 | AL134: 0 | AM134: 0 | AN134: 0.5 | AO134: 1 | AP134: 1 | AQ134: 1 | AR134: 1 | AS134: 0.5 | AT134: 0 | AU134: 0 | AV134: 0 | AW134: 0 | AX134: 0 | AY134: 0 | AZ134: 0 | BA134: 0 | BB134: 0 | BC134: 0 | BD134: 0 | BE134: 0 | BF134: 0 | BG134: 0 | BH134: 0 | BI134: 0 | BJ134: 0 | BK134: 0 | BL134: 0 | BM134: 0 | BN134: 0 | BO134: 0 | BP134: 0 | BQ134: 0 | BR134: 0 | BS134: 0 | BT134: 0 | BU134: 0 | BV134: 0 | BW134: 0 | BX134: 0 | BY134: 0 | BZ134: 0 | CA134: 0 | CB134: 0 | CC134: 0 | CD134: 0 | CE134: 0 | CF134: 0 | CG134: 0 | CH134: 0 | CI134: 0 | CJ134: 0 | CK134: 0 | CL134: 0 | CM134: 0
F135: 1980 | G135: 0 | H135: 0 | I135: 0 | J135: 0 | K135: 0 | L135: 0 | M135: 0 | N135: 0 | O135: 0 | P135: 0 | Q135: 0 | R135: 0 | S135: 0 | T135: 0 | U135: 0 | V135: 0 | W135: 0 | X135: 0 | Y135: 0 | Z135: 0 | AA135: 0 | AB135: 0 | AC135: 0 | AD135: 0 | AE135: 0 | AF135: 0 | AG135: 0 | AH135: 0 | AI135: 0 | AJ135: 0 | AK135: 0 | AL135: 0 | AM135: 0 | AN135: 0 | AO135: 0.5 | AP135: 1 | AQ135: 1 | AR135: 1 | AS135: 1 | AT135: 0.5 | AU135: 0 | AV135: 0 | AW135: 0 | AX135: 0 | AY135: 0 | AZ135: 0 | BA135: 0 | BB135: 0 | BC135: 0 | BD135: 0 | BE135: 0 | BF135: 0 | BG135: 0 | BH135: 0 | BI135: 0 | BJ135: 0 | BK135: 0 | BL135: 0 | BM135: 0 | BN135: 0 | BO135: 0 | BP135: 0 | BQ135: 0 | BR135: 0 | BS135: 0 | BT135: 0 | BU135: 0 | BV135: 0 | BW135: 0 | BX135: 0 | BY135: 0 | BZ135: 0 | CA135: 0 | CB135: 0 | CC135: 0 | CD135: 0 | CE135: 0 | CF135: 0 | CG135: 0 | CH135: 0 | CI135: 0 | CJ135: 0 | CK135: 0 | CL135: 0 | CM135: 0
F136: 1981 | G136: 0 | H136: 0 | I136: 0 | J136: 0 | K136: 0 | L136: 0 | M136: 0 | N136: 0 | O136: 0 | P136: 0 | Q136: 0 | R136: 0 | S136: 0 | T136: 0 | U136: 0 | V136: 0 | W136: 0 | X136: 0 | Y136: 0 | Z136: 0 | AA136: 0 | AB136: 0 | AC136: 0 | AD136: 0 | AE136: 0 | AF136: 0 | AG136: 0 | AH136: 0 | AI136: 0 | AJ136: 0 | AK136: 0 | AL136: 0 | AM136: 0 | AN136: 0 | AO136: 0 | AP136: 0.5 | AQ136: 1 | AR136: 1 | AS136: 1 | AT136: 1 | AU136: 0.5 | AV136: 0 | AW136: 0 | AX136: 0 | AY136: 0 | AZ136: 0 | BA136: 0 | BB136: 0 | BC136: 0 | BD136: 0 | BE136: 0 | BF136: 0 | BG136: 0 | BH136: 0 | BI136: 0 | BJ136: 0 | BK136: 0 | BL136: 0 | BM136: 0 | BN136: 0 | BO136: 0 | BP136: 0 | BQ136: 0 | BR136: 0 | BS136: 0 | BT136: 0 | BU136: 0 | BV136: 0 | BW136: 0 | BX136: 0 | BY136: 0 | BZ136: 0 | CA136: 0 | CB136: 0 | CC136: 0 | CD136: 0 | CE136: 0 | CF136: 0 | CG136: 0 | CH136: 0 | CI136: 0 | CJ136: 0 | CK136: 0 | CL136: 0 | CM136: 0
F137: 1982 | G137: 0 | H137: 0 | I137: 0 | J137: 0 | K137: 0 | L137: 0 | M137: 0 | N137: 0 | O137: 0 | P137: 0 | Q137: 0 | R137: 0 | S137: 0 | T137: 0 | U137: 0 | V137: 0 | W137: 0 | X137: 0 | Y137: 0 | Z137: 0 | AA137: 0 | AB137: 0 | AC137: 0 | AD137: 0 | AE137: 0 | AF137: 0 | AG137: 0 | AH137: 0 | AI137: 0 | AJ137: 0 | AK137: 0 | AL137: 0 | AM137: 0 | AN137: 0 | AO137: 0 | AP137: 0 | AQ137: 0.5 | AR137: 1 | AS137: 1 | AT137: 1 | AU137: 1 | AV137: 0.5 | AW137: 0 | AX137: 0 | AY137: 0 | AZ137: 0 | BA137: 0 | BB137: 0 | BC137: 0 | BD137: 0 | BE137: 0 | BF137: 0 | BG137: 0 | BH137: 0 | BI137: 0 | BJ137: 0 | BK137: 0 | BL137: 0 | BM137: 0 | BN137: 0 | BO137: 0 | BP137: 0 | BQ137: 0 | BR137: 0 | BS137: 0 | BT137: 0 | BU137: 0 | BV137: 0 | BW137: 0 | BX137: 0 | BY137: 0 | BZ137: 0 | CA137: 0 | CB137: 0 | CC137: 0 | CD137: 0 | CE137: 0 | CF137: 0 | CG137: 0 | CH137: 0 | CI137: 0 | CJ137: 0 | CK137: 0 | CL137: 0 | CM137: 0
F138: 1983 | G138: 0 | H138: 0 | I138: 0 | J138: 0 | K138: 0 | L138: 0 | M138: 0 | N138: 0 | O138: 0 | P138: 0 | Q138: 0 | R138: 0 | S138: 0 | T138: 0 | U138: 0 | V138: 0 | W138: 0 | X138: 0 | Y138: 0 | Z138: 0 | AA138: 0 | AB138: 0 | AC138: 0 | AD138: 0 | AE138: 0 | AF138: 0 | AG138: 0 | AH138: 0 | AI138: 0 | AJ138: 0 | AK138: 0 | AL138: 0 | AM138: 0 | AN138: 0 | AO138: 0 | AP138: 0 | AQ138: 0 | AR138: 0.5 | AS138: 1 | AT138: 1 | AU138: 1 | AV138: 1 | AW138: 0.5 | AX138: 0 | AY138: 0 | AZ138: 0 | BA138: 0 | BB138: 0 | BC138: 0 | BD138: 0 | BE138: 0 | BF138: 0 | BG138: 0 | BH138: 0 | BI138: 0 | BJ138: 0 | BK138: 0 | BL138: 0 | BM138: 0 | BN138: 0 | BO138: 0 | BP138: 0 | BQ138: 0 | BR138: 0 | BS138: 0 | BT138: 0 | BU138: 0 | BV138: 0 | BW138: 0 | BX138: 0 | BY138: 0 | BZ138: 0 | CA138: 0 | CB138: 0 | CC138: 0 | CD138: 0 | CE138: 0 | CF138: 0 | CG138: 0 | CH138: 0 | CI138: 0 | CJ138: 0 | CK138: 0 | CL138: 0 | CM138: 0
F139: 1984 | G139: 0 | H139: 0 | I139: 0 | J139: 0 | K139: 0 | L139: 0 | M139: 0 | N139: 0 | O139: 0 | P139: 0 | Q139: 0 | R139: 0 | S139: 0 | T139: 0 | U139: 0 | V139: 0 | W139: 0 | X139: 0 | Y139: 0 | Z139: 0 | AA139: 0 | AB139: 0 | AC139: 0 | AD139: 0 | AE139: 0 | AF139: 0 | AG139: 0 | AH139: 0 | AI139: 0 | AJ139: 0 | AK139: 0 | AL139: 0 | AM139: 0 | AN139: 0 | AO139: 0 | AP139: 0 | AQ139: 0 | AR139: 0 | AS139: 0.5 | AT139: 1 | AU139: 1 | AV139: 1 | AW139: 1 | AX139: 0.5 | AY139: 0 | AZ139: 0 | BA139: 0 | BB139: 0 | BC139: 0 | BD139: 0 | BE139: 0 | BF139: 0 | BG139: 0 | BH139: 0 | BI139: 0 | BJ139: 0 | BK139: 0 | BL139: 0 | BM139: 0 | BN139: 0 | BO139: 0 | BP139: 0 | BQ139: =SUM((AND(BQ$100>$F139,BQ$100<$F139+$F$100))*1,OR($F139=BQ$100,$F139+$F$100=BQ$100)*0.5) -> 0 | BR139: 0 | BS139: 0 | BT139: 0 | BU139: 0 | BV139: 0 | BW139: 0 | BX139: 0 | BY139: 0 | BZ139: 0 | CA139: 0 | CB139: 0 | CC139: 0 | CD139: 0 | CE139: 0 | CF139: 0 | CG139: 0 | CH139: 0 | CI139: 0 | CJ139: 0 | CK139: 0 | CL139: 0 | CM139: 0
F140: 1985 | G140: 0 | H140: 0 | I140: 0 | J140: 0 | K140: 0 | L140: 0 | M140: 0 | N140: 0 | O140: 0 | P140: 0 | Q140: 0 | R140: 0 | S140: 0 | T140: 0 | U140: 0 | V140: =SUM((AND(V$100>$F140,V$100<$F140+$F$100))*1,OR($F140=V$100,$F140+$F$100=V$100)*0.5) -> 0 | W140: 0 | X140: 0 | Y140: 0 | Z140: 0 | AA140: 0 | AB140: 0 | AC140: 0 | AD140: 0 | AE140: 0 | AF140: 0 | AG140: 0 | AH140: 0 | AI140: 0 | AJ140: 0 | AK140: 0 | AL140: 0 | AM140: 0 | AN140: 0 | AO140: 0 | AP140: 0 | AQ140: 0 | AR140: 0 | AS140: 0 | AT140: 0.5 | AU140: 1 | AV140: 1 | AW140: 1 | AX140: 1 | AY140: 0.5 | AZ140: 0 | BA140: 0 | BB140: =SUM((AND(BB$100>$F140,BB$100<$F140+$F$100))*1,OR($F140=BB$100,$F140+$F$100=BB$100)*0.5) -> 0 | BC140: 0 | BD140: 0 | BE140: 0 | BF140: 0 | BG140: 0 | BH140: 0 | BI140: 0 | BJ140: 0 | BK140: 0 | BL140: 0 | BM140: 0 | BN140: 0 | BO140: 0 | BP140: 0 | BQ140: 0 | BR140: 0 | BS140: 0 | BT140: 0 | BU140: 0 | BV140: 0 | BW140: 0 | BX140: 0 | BY140: 0 | BZ140: 0 | CA140: 0 | CB140: 0 | CC140: 0 | CD140: 0 | CE140: 0 | CF140: 0 | CG140: 0 | CH140: 0 | CI140: 0 | CJ140: 0 | CK140: 0 | CL140: 0 | CM140: 0
F141: 1986 | G141: =SUM((AND(G$100>$F141,G$100<$F141+$F$100))*1,OR($F141=G$100,$F141+$F$100=G$100)*0.5) -> 0 | H141: 0 | I141: 0 | J141: 0 | K141: 0 | L141: 0 | M141: 0 | N141: 0 | O141: 0 | P141: 0 | Q141: 0 | R141: 0 | S141: 0 | T141: 0 | U141: 0 | V141: 0 | W141: 0 | X141: 0 | Y141: 0 | Z141: 0 | AA141: 0 | AB141: 0 | AC141: 0 | AD141: 0 | AE141: 0 | AF141: 0 | AG141: 0 | AH141: 0 | AI141: 0 | AJ141: 0 | AK141: 0 | AL141: 0 | AM141: 0 | AN141: 0 | AO141: 0 | AP141: 0 | AQ141: 0 | AR141: 0 | AS141: 0 | AT141: 0 | AU141: 0.5 | AV141: 1 | AW141: 1 | AX141: 1 | AY141: 1 | AZ141: 0.5 | BA141: 0 | BB141: 0 | BC141: 0 | BD141: 0 | BE141: 0 | BF141: 0 | BG141: 0 | BH141: 0 | BI141: 0 | BJ141: 0 | BK141: 0 | BL141: 0 | BM141: 0 | BN141: 0 | BO141: 0 | BP141: 0 | BQ141: 0 | BR141: 0 | BS141: 0 | BT141: 0 | BU141: 0 | BV141: 0 | BW141: 0 | BX141: 0 | BY141: 0 | BZ141: 0 | CA141: 0 | CB141: 0 | CC141: 0 | CD141: 0 | CE141: 0 | CF141: 0 | CG141: 0 | CH141: 0 | CI141: 0 | CJ141: 0 | CK141: 0 | CL141: 0 | CM141: 0
F142: 1987 | G142: 0 | H142: 0 | I142: 0 | J142: 0 | K142: 0 | L142: 0 | M142: 0 | N142: 0 | O142: 0 | P142: 0 | Q142: 0 | R142: 0 | S142: 0 | T142: 0 | U142: 0 | V142: 0 | W142: 0 | X142: 0 | Y142: 0 | Z142: 0 | AA142: 0 | AB142: 0 | AC142: 0 | AD142: 0 | AE142: 0 | AF142: 0 | AG142: 0 | AH142: 0 | AI142: 0 | AJ142: 0 | AK142: 0 | AL142: 0 | AM142: 0 | AN142: 0 | AO142: 0 | AP142: 0 | AQ142: 0 | AR142: 0 | AS142: 0 | AT142: 0 | AU142: 0 | AV142: 0.5 | AW142: 1 | AX142: 1 | AY142: 1 | AZ142: 1 | BA142: 0.5 | BB142: 0 | BC142: 0 | BD142: 0 | BE142: 0 | BF142: 0 | BG142: 0 | BH142: 0 | BI142: 0 | BJ142: 0 | BK142: 0 | BL142: 0 | BM142: 0 | BN142: 0 | BO142: 0 | BP142: 0 | BQ142: 0 | BR142: 0 | BS142: 0 | BT142: 0 | BU142: 0 | BV142: 0 | BW142: 0 | BX142: 0 | BY142: 0 | BZ142: 0 | CA142: 0 | CB142: 0 | CC142: 0 | CD142: 0 | CE142: 0 | CF142: 0 | CG142: 0 | CH142: 0 | CI142: 0 | CJ142: 0 | CK142: 0 | CL142: 0 | CM142: 0
F143: 1988 | G143: 0 | H143: 0 | I143: 0 | J143: 0 | K143: 0 | L143: 0 | M143: 0 | N143: 0 | O143: 0 | P143: 0 | Q143: 0 | R143: 0 | S143: 0 | T143: 0 | U143: 0 | V143: 0 | W143: 0 | X143: 0 | Y143: 0 | Z143: 0 | AA143: 0 | AB143: 0 | AC143: 0 | AD143: 0 | AE143: 0 | AF143: 0 | AG143: 0 | AH143: 0 | AI143: 0 | AJ143: 0 | AK143: 0 | AL143: 0 | AM143: 0 | AN143: 0 | AO143: 0 | AP143: =SUM((AND(AP$100>$F143,AP$100<$F143+$F$100))*1,OR($F143=AP$100,$F143+$F$100=AP$100)*0.5) -> 0 | AQ143: 0 | AR143: 0 | AS143: 0 | AT143: 0 | AU143: 0 | AV143: 0 | AW143: 0.5 | AX143: 1 | AY143: 1 | AZ143: 1 | BA143: 1 | BB143: 0.5 | BC143: 0 | BD143: 0 | BE143: 0 | BF143: 0 | BG143: 0 | BH143: 0 | BI143: 0 | BJ143: 0 | BK143: 0 | BL143: 0 | BM143: 0 | BN143: 0 | BO143: 0 | BP143: 0 | BQ143: 0 | BR143: 0 | BS143: 0 | BT143: 0 | BU143: 0 | BV143: 0 | BW143: 0 | BX143: 0 | BY143: 0 | BZ143: 0 | CA143: 0 | CB143: 0 | CC143: 0 | CD143: 0 | CE143: 0 | CF143: 0 | CG143: 0 | CH143: 0 | CI143: 0 | CJ143: 0 | CK143: 0 | CL143: 0 | CM143: 0
F144: 1989 | G144: 0 | H144: 0 | I144: 0 | J144: 0 | K144: 0 | L144: 0 | M144: 0 | N144: 0 | O144: 0 | P144: 0 | Q144: 0 | R144: 0 | S144: 0 | T144: 0 | U144: 0 | V144: 0 | W144: 0 | X144: 0 | Y144: 0 | Z144: 0 | AA144: 0 | AB144: 0 | AC144: 0 | AD144: 0 | AE144: 0 | AF144: 0 | AG144: 0 | AH144: 0 | AI144: 0 | AJ144: 0 | AK144: 0 | AL144: =SUM((AND(AL$100>$F144,AL$100<$F144+$F$100))*1,OR($F144=AL$100,$F144+$F$100=AL$100)*0.5) -> 0 | AM144: 0 | AN144: 0 | AO144: 0 | AP144: 0 | AQ144: 0 | AR144: 0 | AS144: 0 | AT144: 0 | AU144: 0 | AV144: 0 | AW144: 0 | AX144: 0.5 | AY144: 1 | AZ144: 1 | BA144: 1 | BB144: 1 | BC144: 0.5 | BD144: 0 | BE144: 0 | BF144: 0 | BG144: 0 | BH144: 0 | BI144: 0 | BJ144: 0 | BK144: 0 | BL144: 0 | BM144: 0 | BN144: 0 | BO144: 0 | BP144: 0 | BQ144: 0 | BR144: 0 | BS144: 0 | BT144: 0 | BU144: 0 | BV144: 0 | BW144: 0 | BX144: 0 | BY144: 0 | BZ144: 0 | CA144: 0 | CB144: 0 | CC144: 0 | CD144: 0 | CE144: 0 | CF144: 0 | CG144: 0 | CH144: 0 | CI144: 0 | CJ144: 0 | CK144: 0 | CL144: 0 | CM144: 0
F145: 1990 | G145: 0 | H145: 0 | I145: 0 | J145: 0 | K145: 0 | L145: 0 | M145: 0 | N145: 0 | O145: 0 | P145: 0 | Q145: 0 | R145: 0 | S145: 0 | T145: 0 | U145: 0 | V145: 0 | W145: 0 | X145: 0 | Y145: 0 | Z145: 0 | AA145: 0 | AB145: 0 | AC145: 0 | AD145: 0 | AE145: 0 | AF145: 0 | AG145: 0 | AH145: 0 | AI145: 0 | AJ145: 0 | AK145: 0 | AL145: 0 | AM145: 0 | AN145: 0 | AO145: 0 | AP145: 0 | AQ145: 0 | AR145: 0 | AS145: 0 | AT145: 0 | AU145: 0 | AV145: 0 | AW145: 0 | AX145: 0 | AY145: 0.5 | AZ145: 1 | BA145: 1 | BB145: 1 | BC145: 1 | BD145: 0.5 | BE145: 0 | BF145: 0 | BG145: 0 | BH145: 0 | BI145: 0 | BJ145: 0 | BK145: 0 | BL145: 0 | BM145: 0 | BN145: 0 | BO145: 0 | BP145: 0 | BQ145: 0 | BR145: 0 | BS145: 0 | BT145: 0 | BU145: 0 | BV145: 0 | BW145: 0 | BX145: 0 | BY145: 0 | BZ145: 0 | CA145: 0 | CB145: 0 | CC145: 0 | CD145: 0 | CE145: 0 | CF145: 0 | CG145: 0 | CH145: 0 | CI145: 0 | CJ145: 0 | CK145: 0 | CL145: 0 | CM145: 0
F146: 1991 | G146: 0 | H146: 0 | I146: 0 | J146: 0 | K146: 0 | L146: 0 | M146: 0 | N146: 0 | O146: 0 | P146: 0 | Q146: 0 | R146: 0 | S146: 0 | T146: 0 | U146: 0 | V146: 0 | W146: 0 | X146: 0 | Y146: 0 | Z146: 0 | AA146: 0 | AB146: 0 | AC146: 0 | AD146: 0 | AE146: 0 | AF146: 0 | AG146: 0 | AH146: 0 | AI146: 0 | AJ146: 0 | AK146: 0 | AL146: 0 | AM146: 0 | AN146: 0 | AO146: 0 | AP146: 0 | AQ146: 0 | AR146: 0 | AS146: 0 | AT146: 0 | AU146: 0 | AV146: 0 | AW146: 0 | AX146: 0 | AY146: 0 | AZ146: 0.5 | BA146: 1 | BB146: 1 | BC146: 1 | BD146: 1 | BE146: 0.5 | BF146: 0 | BG146: 0 | BH146: 0 | BI146: 0 | BJ146: 0 | BK146: 0 | BL146: 0 | BM146: 0 | BN146: 0 | BO146: 0 | BP146: 0 | BQ146: 0 | BR146: 0 | BS146: 0 | BT146: 0 | BU146: 0 | BV146: 0 | BW146: 0 | BX146: 0 | BY146: 0 | BZ146: 0 | CA146: 0 | CB146: 0 | CC146: 0 | CD146: 0 | CE146: 0 | CF146: 0 | CG146: 0 | CH146: 0 | CI146: 0 | CJ146: 0 | CK146: 0 | CL146: 0 | CM146: 0
F147: 1992 | G147: 0 | H147: 0 | I147: 0 | J147: 0 | K147: 0 | L147: 0 | M147: 0 | N147: 0 | O147: 0 | P147: 0 | Q147: 0 | R147: 0 | S147: 0 | T147: 0 | U147: 0 | V147: 0 | W147: 0 | X147: 0 | Y147: 0 | Z147: 0 | AA147: 0 | AB147: 0 | AC147: 0 | AD147: 0 | AE147: 0 | AF147: 0 | AG147: 0 | AH147: 0 | AI147: 0 | AJ147: 0 | AK147: 0 | AL147: 0 | AM147: 0 | AN147: 0 | AO147: 0 | AP147: 0 | AQ147: 0 | AR147: 0 | AS147: 0 | AT147: 0 | AU147: 0 | AV147: 0 | AW147: 0 | AX147: 0 | AY147: 0 | AZ147: 0 | BA147: 0.5 | BB147: 1 | BC147: 1 | BD147: 1 | BE147: 1 | BF147: 0.5 | BG147: 0 | BH147: 0 | BI147: 0 | BJ147: 0 | BK147: 0 | BL147: 0 | BM147: 0 | BN147: 0 | BO147: 0 | BP147: 0 | BQ147: 0 | BR147: 0 | BS147: 0 | BT147: 0 | BU147: 0 | BV147: 0 | BW147: 0 | BX147: 0 | BY147: 0 | BZ147: 0 | CA147: =SUM((AND(CA$100>$F147,CA$100<$F147+$F$100))*1,OR($F147=CA$100,$F147+$F$100=CA$100)*0.5) -> 0 | CB147: 0 | CC147: 0 | CD147: 0 | CE147: 0 | CF147: 0 | CG147: 0 | CH147: 0 | CI147: 0 | CJ147: 0 | CK147: 0 | CL147: 0 | CM147: 0
F148: 1993 | G148: 0 | H148: 0 | I148: 0 | J148: 0 | K148: 0 | L148: 0 | M148: 0 | N148: 0 | O148: 0 | P148: 0 | Q148: 0 | R148: 0 | S148: 0 | T148: 0 | U148: 0 | V148: 0 | W148: 0 | X148: 0 | Y148: 0 | Z148: 0 | AA148: 0 | AB148: 0 | AC148: 0 | AD148: 0 | AE148: 0 | AF148: 0 | AG148: 0 | AH148: 0 | AI148: 0 | AJ148: 0 | AK148: 0 | AL148: 0 | AM148: 0 | AN148: 0 | AO148: 0 | AP148: 0 | AQ148: 0 | AR148: 0 | AS148: 0 | AT148: 0 | AU148: 0 | AV148: 0 | AW148: 0 | AX148: 0 | AY148: 0 | AZ148: 0 | BA148: 0 | BB148: 0.5 | BC148: 1 | BD148: 1 | BE148: 1 | BF148: 1 | BG148: 0.5 | BH148: 0 | BI148: 0 | BJ148: 0 | BK148: 0 | BL148: 0 | BM148: 0 | BN148: 0 | BO148: 0 | BP148: 0 | BQ148: 0 | BR148: 0 | BS148: 0 | BT148: 0 | BU148: 0 | BV148: 0 | BW148: 0 | BX148: 0 | BY148: 0 | BZ148: 0 | CA148: 0 | CB148: 0 | CC148: 0 | CD148: 0 | CE148: 0 | CF148: 0 | CG148: 0 | CH148: 0 | CI148: 0 | CJ148: 0 | CK148: 0 | CL148: 0 | CM148: 0
F149: 1994 | G149: 0 | H149: 0 | I149: 0 | J149: 0 | K149: 0 | L149: 0 | M149: 0 | N149: 0 | O149: 0 | P149: 0 | Q149: 0 | R149: 0 | S149: 0 | T149: 0 | U149: 0 | V149: 0 | W149: 0 | X149: 0 | Y149: 0 | Z149: 0 | AA149: 0 | AB149: 0 | AC149: 0 | AD149: 0 | AE149: 0 | AF149: 0 | AG149: 0 | AH149: 0 | AI149: 0 | AJ149: 0 | AK149: 0 | AL149: 0 | AM149: 0 | AN149: 0 | AO149: 0 | AP149: 0 | AQ149: 0 | AR149: 0 | AS149: 0 | AT149: 0 | AU149: 0 | AV149: 0 | AW149: 0 | AX149: 0 | AY149: 0 | AZ149: 0 | BA149: 0 | BB149: 0 | BC149: 0.5 | BD149: 1 | BE149: 1 | BF149: 1 | BG149: 1 | BH149: 0.5 | BI149: 0 | BJ149: 0 | BK149: 0 | BL149: 0 | BM149: 0 | BN149: 0 | BO149: 0 | BP149: 0 | BQ149: 0 | BR149: 0 | BS149: 0 | BT149: 0 | BU149: 0 | BV149: 0 | BW149: 0 | BX149: 0 | BY149: 0 | BZ149: 0 | CA149: 0 | CB149: 0 | CC149: 0 | CD149: 0 | CE149: 0 | CF149: 0 | CG149: 0 | CH149: 0 | CI149: 0 | CJ149: 0 | CK149: 0 | CL149: 0 | CM149: 0
F150: 1995 | G150: 0 | H150: 0 | I150: 0 | J150: 0 | K150: 0 | L150: 0 | M150: 0 | N150: 0 | O150: 0 | P150: 0 | Q150: 0 | R150: 0 | S150: 0 | T150: 0 | U150: 0 | V150: 0 | W150: 0 | X150: 0 | Y150: 0 | Z150: 0 | AA150: 0 | AB150: 0 | AC150: 0 | AD150: 0 | AE150: 0 | AF150: 0 | AG150: 0 | AH150: 0 | AI150: 0 | AJ150: 0 | AK150: 0 | AL150: 0 | AM150: 0 | AN150: 0 | AO150: 0 | AP150: 0 | AQ150: 0 | AR150: 0 | AS150: 0 | AT150: 0 | AU150: 0 | AV150: 0 | AW150: 0 | AX150: 0 | AY150: 0 | AZ150: 0 | BA150: 0 | BB150: 0 | BC150: 0 | BD150: 0.5 | BE150: 1 | BF150: 1 | BG150: 1 | BH150: 1 | BI150: 0.5 | BJ150: 0 | BK150: 0 | BL150: 0 | BM150: 0 | BN150: 0 | BO150: 0 | BP150: 0 | BQ150: 0 | BR150: 0 | BS150: 0 | BT150: 0 | BU150: 0 | BV150: 0 | BW150: 0 | BX150: 0 | BY150: 0 | BZ150: 0 | CA150: 0 | CB150: 0 | CC150: 0 | CD150: 0 | CE150: 0 | CF150: 0 | CG150: 0 | CH150: 0 | CI150: 0 | CJ150: 0 | CK150: 0 | CL150: 0 | CM150: 0
F151: 1996 | G151: 0 | H151: 0 | I151: 0 | J151: 0 | K151: 0 | L151: 0 | M151: 0 | N151: 0 | O151: 0 | P151: 0 | Q151: 0 | R151: 0 | S151: 0 | T151: 0 | U151: 0 | V151: 0 | W151: 0 | X151: 0 | Y151: 0 | Z151: 0 | AA151: 0 | AB151: 0 | AC151: 0 | AD151: 0 | AE151: 0 | AF151: 0 | AG151: 0 | AH151: 0 | AI151: 0 | AJ151: 0 | AK151: 0 | AL151: 0 | AM151: 0 | AN151: 0 | AO151: 0 | AP151: 0 | AQ151: 0 | AR151: 0 | AS151: 0 | AT151: 0 | AU151: 0 | AV151: 0 | AW151: 0 | AX151: 0 | AY151: 0 | AZ151: 0 | BA151: 0 | BB151: 0 | BC151: 0 | BD151: 0 | BE151: 0.5 | BF151: 1 | BG151: 1 | BH151: 1 | BI151: 1 | BJ151: 0.5 | BK151: 0 | BL151: 0 | BM151: 0 | BN151: 0 | BO151: 0 | BP151: 0 | BQ151: 0 | BR151: 0 | BS151: 0 | BT151: 0 | BU151: 0 | BV151: 0 | BW151: 0 | BX151: 0 | BY151: 0 | BZ151: 0 | CA151: 0 | CB151: 0 | CC151: 0 | CD151: 0 | CE151: 0 | CF151: 0 | CG151: 0 | CH151: 0 | CI151: 0 | CJ151: 0 | CK151: 0 | CL151: 0 | CM151: 0
F152: 1997 | G152: 0 | H152: 0 | I152: 0 | J152: 0 | K152: 0 | L152: 0 | M152: 0 | N152: 0 | O152: 0 | P152: 0 | Q152: 0 | R152: 0 | S152: 0 | T152: 0 | U152: 0 | V152: 0 | W152: 0 | X152: 0 | Y152: 0 | Z152: 0 | AA152: 0 | AB152: 0 | AC152: 0 | AD152: 0 | AE152: 0 | AF152: 0 | AG152: 0 | AH152: 0 | AI152: 0 | AJ152: 0 | AK152: 0 | AL152: 0 | AM152: 0 | AN152: 0 | AO152: 0 | AP152: 0 | AQ152: 0 | AR152: 0 | AS152: 0 | AT152: 0 | AU152: 0 | AV152: 0 | AW152: 0 | AX152: 0 | AY152: 0 | AZ152: 0 | BA152: 0 | BB152: 0 | BC152: 0 | BD152: 0 | BE152: 0 | BF152: 0.5 | BG152: 1 | BH152: 1 | BI152: 1 | BJ152: 1 | BK152: 0.5 | BL152: 0 | BM152: 0 | BN152: 0 | BO152: 0 | BP152: 0 | BQ152: 0 | BR152: 0 | BS152: 0 | BT152: 0 | BU152: 0 | BV152: 0 | BW152: 0 | BX152: 0 | BY152: 0 | BZ152: 0 | CA152: 0 | CB152: 0 | CC152: 0 | CD152: 0 | CE152: 0 | CF152: 0 | CG152: 0 | CH152: 0 | CI152: 0 | CJ152: 0 | CK152: 0 | CL152: 0 | CM152: 0
F153: 1998 | G153: 0 | H153: 0 | I153: 0 | J153: 0 | K153: 0 | L153: 0 | M153: 0 | N153: 0 | O153: 0 | P153: 0 | Q153: 0 | R153: 0 | S153: 0 | T153: 0 | U153: 0 | V153: 0 | W153: 0 | X153: 0 | Y153: 0 | Z153: 0 | AA153: 0 | AB153: 0 | AC153: 0 | AD153: 0 | AE153: 0 | AF153: 0 | AG153: 0 | AH153: 0 | AI153: 0 | AJ153: 0 | AK153: 0 | AL153: 0 | AM153: 0 | AN153: 0 | AO153: 0 | AP153: 0 | AQ153: 0 | AR153: 0 | AS153: 0 | AT153: 0 | AU153: 0 | AV153: 0 | AW153: 0 | AX153: 0 | AY153: 0 | AZ153: 0 | BA153: 0 | BB153: 0 | BC153: 0 | BD153: 0 | BE153: 0 | BF153: 0 | BG153: 0.5 | BH153: 1 | BI153: 1 | BJ153: 1 | BK153: 1 | BL153: 0.5 | BM153: 0 | BN153: 0 | BO153: 0 | BP153: 0 | BQ153: 0 | BR153: 0 | BS153: 0 | BT153: 0 | BU153: 0 | BV153: 0 | BW153: 0 | BX153: 0 | BY153: 0 | BZ153: 0 | CA153: 0 | CB153: 0 | CC153: 0 | CD153: 0 | CE153: 0 | CF153: 0 | CG153: 0 | CH153: 0 | CI153: 0 | CJ153: 0 | CK153: 0 | CL153: 0 | CM153: 0
F154: 1999 | G154: 0 | H154: 0 | I154: 0 | J154: 0 | K154: 0 | L154: 0 | M154: 0 | N154: 0 | O154: 0 | P154: 0 | Q154: 0 | R154: 0 | S154: 0 | T154: 0 | U154: 0 | V154: 0 | W154: 0 | X154: 0 | Y154: 0 | Z154: 0 | AA154: 0 | AB154: 0 | AC154: 0 | AD154: 0 | AE154: 0 | AF154: 0 | AG154: 0 | AH154: 0 | AI154: 0 | AJ154: 0 | AK154: 0 | AL154: 0 | AM154: 0 | AN154: 0 | AO154: 0 | AP154: 0 | AQ154: 0 | AR154: 0 | AS154: 0 | AT154: 0 | AU154: 0 | AV154: 0 | AW154: 0 | AX154: 0 | AY154: 0 | AZ154: 0 | BA154: 0 | BB154: 0 | BC154: 0 | BD154: 0 | BE154: 0 | BF154: 0 | BG154: 0 | BH154: 0.5 | BI154: 1 | BJ154: 1 | BK154: 1 | BL154: 1 | BM154: 0.5 | BN154: 0 | BO154: 0 | BP154: 0 | BQ154: 0 | BR154: 0 | BS154: 0 | BT154: 0 | BU154: 0 | BV154: 0 | BW154: 0 | BX154: 0 | BY154: 0 | BZ154: 0 | CA154: 0 | CB154: 0 | CC154: 0 | CD154: 0 | CE154: 0 | CF154: 0 | CG154: 0 | CH154: 0 | CI154: 0 | CJ154: 0 | CK154: 0 | CL154: 0 | CM154: 0
F155: 2000 | G155: 0 | H155: 0 | I155: 0 | J155: 0 | K155: 0 | L155: 0 | M155: 0 | N155: 0 | O155: 0 | P155: 0 | Q155: 0 | R155: 0 | S155: 0 | T155: 0 | U155: 0 | V155: 0 | W155: 0 | X155: 0 | Y155: 0 | Z155: 0 | AA155: 0 | AB155: 0 | AC155: 0 | AD155: 0 | AE155: 0 | AF155: 0 | AG155: 0 | AH155: 0 | AI155: 0 | AJ155: 0 | AK155: 0 | AL155: 0 | AM155: 0 | AN155: 0 | AO155: 0 | AP155: 0 | AQ155: 0 | AR155: 0 | AS155: 0 | AT155: 0 | AU155: 0 | AV155: 0 | AW155: 0 | AX155: 0 | AY155: 0 | AZ155: 0 | BA155: 0 | BB155: 0 | BC155: 0 | BD155: 0 | BE155: 0 | BF155: 0 | BG155: 0 | BH155: 0 | BI155: 0.5 | BJ155: 1 | BK155: 1 | BL155: 1 | BM155: 1 | BN155: 0.5 | BO155: 0 | BP155: 0 | BQ155: 0 | BR155: 0 | BS155: 0 | BT155: 0 | BU155: 0 | BV155: 0 | BW155: 0 | BX155: 0 | BY155: 0 | BZ155: 0 | CA155: 0 | CB155: 0 | CC155: 0 | CD155: 0 | CE155: 0 | CF155: 0 | CG155: 0 | CH155: 0 | CI155: 0 | CJ155: 0 | CK155: 0 | CL155: 0 | CM155: 0
F156: 2001 | G156: 0 | H156: 0 | I156: 0 | J156: 0 | K156: 0 | L156: 0 | M156: 0 | N156: 0 | O156: 0 | P156: 0 | Q156: 0 | R156: 0 | S156: 0 | T156: 0 | U156: 0 | V156: =SUM((AND(V$100>$F156,V$100<$F156+$F$100))*1,OR($F156=V$100,$F156+$F$100=V$100)*0.5) -> 0 | W156: 0 | X156: 0 | Y156: 0 | Z156: 0 | AA156: 0 | AB156: 0 | AC156: 0 | AD156: 0 | AE156: 0 | AF156: 0 | AG156: 0 | AH156: 0 | AI156: 0 | AJ156: 0 | AK156: 0 | AL156: 0 | AM156: 0 | AN156: 0 | AO156: 0 | AP156: 0 | AQ156: 0 | AR156: 0 | AS156: 0 | AT156: 0 | AU156: 0 | AV156: 0 | AW156: 0 | AX156: 0 | AY156: 0 | AZ156: 0 | BA156: 0 | BB156: 0 | BC156: 0 | BD156: 0 | BE156: 0 | BF156: 0 | BG156: 0 | BH156: 0 | BI156: 0 | BJ156: 0.5 | BK156: 1 | BL156: 1 | BM156: 1 | BN156: 1 | BO156: 0.5 | BP156: 0 | BQ156: 0 | BR156: 0 | BS156: 0 | BT156: 0 | BU156: 0 | BV156: 0 | BW156: 0 | BX156: 0 | BY156: 0 | BZ156: 0 | CA156: 0 | CB156: 0 | CC156: 0 | CD156: 0 | CE156: 0 | CF156: 0 | CG156: 0 | CH156: 0 | CI156: 0 | CJ156: 0 | CK156: 0 | CL156: 0 | CM156: 0
F157: 2002 | G157: =SUM((AND(G$100>$F157,G$100<$F157+$F$100))*1,OR($F157=G$100,$F157+$F$100=G$100)*0.5) -> 0 | H157: 0 | I157: 0 | J157: 0 | K157: 0 | L157: 0 | M157: 0 | N157: 0 | O157: 0 | P157: 0 | Q157: 0 | R157: 0 | S157: 0 | T157: 0 | U157: 0 | V157: 0 | W157: 0 | X157: 0 | Y157: 0 | Z157: 0 | AA157: 0 | AB157: 0 | AC157: 0 | AD157: 0 | AE157: 0 | AF157: 0 | AG157: 0 | AH157: 0 | AI157: 0 | AJ157: 0 | AK157: 0 | AL157: 0 | AM157: 0 | AN157: 0 | AO157: 0 | AP157: 0 | AQ157: 0 | AR157: 0 | AS157: 0 | AT157: 0 | AU157: 0 | AV157: 0 | AW157: 0 | AX157: 0 | AY157: 0 | AZ157: 0 | BA157: 0 | BB157: 0 | BC157: 0 | BD157: 0 | BE157: 0 | BF157: 0 | BG157: 0 | BH157: 0 | BI157: 0 | BJ157: 0 | BK157: 0.5 | BL157: 1 | BM157: 1 | BN157: 1 | BO157: 1 | BP157: 0.5 | BQ157: 0 | BR157: 0 | BS157: 0 | BT157: 0 | BU157: 0 | BV157: 0 | BW157: 0 | BX157: 0 | BY157: 0 | BZ157: 0 | CA157: 0 | CB157: 0 | CC157: 0 | CD157: 0 | CE157: 0 | CF157: 0 | CG157: 0 | CH157: 0 | CI157: 0 | CJ157: 0 | CK157: 0 | CL157: 0 | CM157: 0
F158: 2003 | G158: 0 | H158: 0 | I158: 0 | J158: 0 | K158: 0 | L158: 0 | M158: 0 | N158: 0 | O158: 0 | P158: 0 | Q158: 0 | R158: 0 | S158: 0 | T158: 0 | U158: 0 | V158: 0 | W158: 0 | X158: 0 | Y158: 0 | Z158: 0 | AA158: 0 | AB158: 0 | AC158: 0 | AD158: 0 | AE158: 0 | AF158: 0 | AG158: 0 | AH158: 0 | AI158: 0 | AJ158: 0 | AK158: 0 | AL158: 0 | AM158: 0 | AN158: 0 | AO158: 0 | AP158: 0 | AQ158: 0 | AR158: 0 | AS158: 0 | AT158: 0 | AU158: 0 | AV158: 0 | AW158: 0 | AX158: 0 | AY158: 0 | AZ158: 0 | BA158: 0 | BB158: 0 | BC158: 0 | BD158: 0 | BE158: 0 | BF158: 0 | BG158: 0 | BH158: 0 | BI158: 0 | BJ158: 0 | BK158: 0 | BL158: 0.5 | BM158: 1 | BN158: 1 | BO158: 1 | BP158: 1 | BQ158: 0.5 | BR158: 0 | BS158: 0 | BT158: 0 | BU158: 0 | BV158: 0 | BW158: 0 | BX158: 0 | BY158: 0 | BZ158: 0 | CA158: 0 | CB158: 0 | CC158: 0 | CD158: 0 | CE158: 0 | CF158: 0 | CG158: 0 | CH158: 0 | CI158: 0 | CJ158: 0 | CK158: 0 | CL158: 0 | CM158: 0
F159: 2004 | G159: 0 | H159: 0 | I159: 0 | J159: 0 | K159: 0 | L159: 0 | M159: 0 | N159: 0 | O159: 0 | P159: 0 | Q159: 0 | R159: 0 | S159: 0 | T159: 0 | U159: 0 | V159: 0 | W159: 0 | X159: 0 | Y159: 0 | Z159: 0 | AA159: 0 | AB159: 0 | AC159: 0 | AD159: 0 | AE159: 0 | AF159: 0 | AG159: 0 | AH159: 0 | AI159: 0 | AJ159: 0 | AK159: 0 | AL159: 0 | AM159: 0 | AN159: 0 | AO159: 0 | AP159: 0 | AQ159: 0 | AR159: 0 | AS159: 0 | AT159: 0 | AU159: 0 | AV159: 0 | AW159: 0 | AX159: 0 | AY159: 0 | AZ159: 0 | BA159: =SUM((AND(BA$100>$F159,BA$100<$F159+$F$100))*1,OR($F159=BA$100,$F159+$F$100=BA$100)*0.5) -> 0 | BB159: 0 | BC159: 0 | BD159: 0 | BE159: 0 | BF159: 0 | BG159: 0 | BH159: 0 | BI159: 0 | BJ159: 0 | BK159: 0 | BL159: 0 | BM159: 0.5 | BN159: 1 | BO159: 1 | BP159: 1 | BQ159: 1 | BR159: 0.5 | BS159: 0 | BT159: 0 | BU159: 0 | BV159: 0 | BW159: 0 | BX159: 0 | BY159: 0 | BZ159: 0 | CA159: 0 | CB159: 0 | CC159: 0 | CD159: 0 | CE159: 0 | CF159: 0 | CG159: 0 | CH159: 0 | CI159: 0 | CJ159: 0 | CK159: 0 | CL159: 0 | CM159: 0
F160: 2005 | G160: 0 | H160: 0 | I160: 0 | J160: 0 | K160: 0 | L160: 0 | M160: 0 | N160: 0 | O160: 0 | P160: 0 | Q160: 0 | R160: 0 | S160: 0 | T160: 0 | U160: 0 | V160: 0 | W160: 0 | X160: 0 | Y160: 0 | Z160: 0 | AA160: 0 | AB160: 0 | AC160: 0 | AD160: 0 | AE160: 0 | AF160: 0 | AG160: 0 | AH160: 0 | AI160: 0 | AJ160: 0 | AK160: 0 | AL160: =SUM((AND(AL$100>$F160,AL$100<$F160+$F$100))*1,OR($F160=AL$100,$F160+$F$100=AL$100)*0.5) -> 0 | AM160: 0 | AN160: 0 | AO160: 0 | AP160: 0 | AQ160: 0 | AR160: 0 | AS160: 0 | AT160: 0 | AU160: 0 | AV160: 0 | AW160: 0 | AX160: 0 | AY160: 0 | AZ160: 0 | BA160: 0 | BB160: 0 | BC160: 0 | BD160: 0 | BE160: 0 | BF160: 0 | BG160: 0 | BH160: 0 | BI160: 0 | BJ160: 0 | BK160: 0 | BL160: 0 | BM160: 0 | BN160: 0.5 | BO160: 1 | BP160: 1 | BQ160: 1 | BR160: 1 | BS160: 0.5 | BT160: 0 | BU160: 0 | BV160: 0 | BW160: 0 | BX160: 0 | BY160: 0 | BZ160: 0 | CA160: 0 | CB160: 0 | CC160: 0 | CD160: 0 | CE160: 0 | CF160: 0 | CG160: 0 | CH160: 0 | CI160: 0 | CJ160: 0 | CK160: 0 | CL160: 0 | CM160: 0
F161: 2006 | G161: 0 | H161: 0 | I161: 0 | J161: 0 | K161: 0 | L161: 0 | M161: 0 | N161: 0 | O161: 0 | P161: 0 | Q161: 0 | R161: 0 | S161: 0 | T161: 0 | U161: 0 | V161: 0 | W161: 0 | X161: 0 | Y161: 0 | Z161: 0 | AA161: 0 | AB161: 0 | AC161: 0 | AD161: 0 | AE161: 0 | AF161: 0 | AG161: 0 | AH161: 0 | AI161: 0 | AJ161: 0 | AK161: 0 | AL161: 0 | AM161: 0 | AN161: 0 | AO161: 0 | AP161: 0 | AQ161: 0 | AR161: 0 | AS161: 0 | AT161: 0 | AU161: 0 | AV161: 0 | AW161: 0 | AX161: 0 | AY161: 0 | AZ161: 0 | BA161: 0 | BB161: 0 | BC161: 0 | BD161: 0 | BE161: 0 | BF161: 0 | BG161: 0 | BH161: 0 | BI161: 0 | BJ161: 0 | BK161: 0 | BL161: 0 | BM161: 0 | BN161: 0 | BO161: 0.5 | BP161: 1 | BQ161: 1 | BR161: 1 | BS161: 1 | BT161: 0.5 | BU161: 0 | BV161: 0 | BW161: 0 | BX161: 0 | BY161: 0 | BZ161: 0 | CA161: 0 | CB161: 0 | CC161: 0 | CD161: 0 | CE161: 0 | CF161: 0 | CG161: 0 | CH161: 0 | CI161: 0 | CJ161: 0 | CK161: 0 | CL161: 0 | CM161: 0
F162: 2007 | G162: 0 | H162: 0 | I162: 0 | J162: 0 | K162: 0 | L162: 0 | M162: 0 | N162: 0 | O162: 0 | P162: 0 | Q162: 0 | R162: 0 | S162: 0 | T162: 0 | U162: 0 | V162: 0 | W162: 0 | X162: 0 | Y162: 0 | Z162: 0 | AA162: 0 | AB162: 0 | AC162: 0 | AD162: 0 | AE162: 0 | AF162: 0 | AG162: 0 | AH162: 0 | AI162: 0 | AJ162: 0 | AK162: 0 | AL162: 0 | AM162: 0 | AN162: 0 | AO162: 0 | AP162: 0 | AQ162: 0 | AR162: 0 | AS162: 0 | AT162: 0 | AU162: 0 | AV162: 0 | AW162: 0 | AX162: 0 | AY162: 0 | AZ162: 0 | BA162: 0 | BB162: 0 | BC162: 0 | BD162: 0 | BE162: 0 | BF162: 0 | BG162: 0 | BH162: 0 | BI162: 0 | BJ162: 0 | BK162: 0 | BL162: 0 | BM162: 0 | BN162: 0 | BO162: 0 | BP162: 0.5 | BQ162: 1 | BR162: 1 | BS162: 1 | BT162: 1 | BU162: 0.5 | BV162: 0 | BW162: 0 | BX162: 0 | BY162: 0 | BZ162: 0 | CA162: 0 | CB162: 0 | CC162: 0 | CD162: 0 | CE162: 0 | CF162: 0 | CG162: 0 | CH162: 0 | CI162: 0 | CJ162: 0 | CK162: 0 | CL162: 0 | CM162: 0
F163: 2008 | G163: 0 | H163: 0 | I163: 0 | J163: 0 | K163: 0 | L163: 0 | M163: 0 | N163: 0 | O163: 0 | P163: 0 | Q163: 0 | R163: 0 | S163: 0 | T163: 0 | U163: 0 | V163: 0 | W163: 0 | X163: 0 | Y163: 0 | Z163: 0 | AA163: 0 | AB163: 0 | AC163: 0 | AD163: 0 | AE163: 0 | AF163: 0 | AG163: 0 | AH163: 0 | AI163: 0 | AJ163: 0 | AK163: 0 | AL163: 0 | AM163: 0 | AN163: 0 | AO163: 0 | AP163: 0 | AQ163: 0 | AR163: 0 | AS163: 0 | AT163: 0 | AU163: 0 | AV163: 0 | AW163: 0 | AX163: 0 | AY163: 0 | AZ163: 0 | BA163: 0 | BB163: 0 | BC163: 0 | BD163: 0 | BE163: 0 | BF163: 0 | BG163: 0 | BH163: 0 | BI163: 0 | BJ163: 0 | BK163: 0 | BL163: 0 | BM163: 0 | BN163: 0 | BO163: 0 | BP163: 0 | BQ163: 0.5 | BR163: 1 | BS163: 1 | BT163: 1 | BU163: 1 | BV163: 0.5 | BW163: 0 | BX163: 0 | BY163: 0 | BZ163: 0 | CA163: 0 | CB163: 0 | CC163: =SUM((AND(CC$100>$F163,CC$100<$F163+$F$100))*1,OR($F163=CC$100,$F163+$F$100=CC$100)*0.5) -> 0 | CD163: 0 | CE163: 0 | CF163: 0 | CG163: 0 | CH163: 0 | CI163: 0 | CJ163: 0 | CK163: 0 | CL163: 0 | CM163: 0
F164: 2009 | G164: 0 | H164: 0 | I164: 0 | J164: 0 | K164: 0 | L164: 0 | M164: 0 | N164: 0 | O164: 0 | P164: 0 | Q164: 0 | R164: 0 | S164: 0 | T164: 0 | U164: 0 | V164: 0 | W164: 0 | X164: 0 | Y164: 0 | Z164: 0 | AA164: 0 | AB164: 0 | AC164: 0 | AD164: 0 | AE164: 0 | AF164: 0 | AG164: 0 | AH164: 0 | AI164: 0 | AJ164: 0 | AK164: 0 | AL164: 0 | AM164: 0 | AN164: 0 | AO164: 0 | AP164: 0 | AQ164: 0 | AR164: 0 | AS164: 0 | AT164: 0 | AU164: 0 | AV164: 0 | AW164: 0 | AX164: 0 | AY164: 0 | AZ164: 0 | BA164: 0 | BB164: 0 | BC164: 0 | BD164: 0 | BE164: 0 | BF164: 0 | BG164: 0 | BH164: 0 | BI164: 0 | BJ164: 0 | BK164: 0 | BL164: 0 | BM164: 0 | BN164: 0 | BO164: 0 | BP164: 0 | BQ164: 0 | BR164: =SUM((AND(BR$100>$F164,BR$100<$F164+$F$100))*1,OR($F164=BR$100,$F164+$F$100=BR$100)*0.5) -> 0.5 | BS164: 1 | BT164: 1 | BU164: 1 | BV164: 1 | BW164: 0.5 | BX164: 0 | BY164: 0 | BZ164: 0 | CA164: 0 | CB164: 0 | CC164: 0 | CD164: 0 | CE164: 0 | CF164: 0 | CG164: 0 | CH164: 0 | CI164: 0 | CJ164: 0 | CK164: 0 | CL164: 0 | CM164: 0
F165: 2010 | G165: 0 | H165: 0 | I165: 0 | J165: 0 | K165: 0 | L165: 0 | M165: 0 | N165: 0 | O165: 0 | P165: 0 | Q165: 0 | R165: 0 | S165: 0 | T165: 0 | U165: 0 | V165: 0 | W165: 0 | X165: 0 | Y165: 0 | Z165: 0 | AA165: 0 | AB165: 0 | AC165: 0 | AD165: 0 | AE165: 0 | AF165: 0 | AG165: 0 | AH165: 0 | AI165: 0 | AJ165: 0 | AK165: 0 | AL165: 0 | AM165: 0 | AN165: 0 | AO165: 0 | AP165: 0 | AQ165: 0 | AR165: 0 | AS165: 0 | AT165: 0 | AU165: 0 | AV165: 0 | AW165: 0 | AX165: 0 | AY165: 0 | AZ165: 0 | BA165: 0 | BB165: 0 | BC165: 0 | BD165: 0 | BE165: 0 | BF165: 0 | BG165: 0 | BH165: 0 | BI165: 0 | BJ165: 0 | BK165: 0 | BL165: 0 | BM165: 0 | BN165: 0 | BO165: 0 | BP165: 0 | BQ165: 0 | BR165: 0 | BS165: 0.5 | BT165: 1 | BU165: 1 | BV165: 1 | BW165: 1 | BX165: 0.5 | BY165: 0 | BZ165: 0 | CA165: 0 | CB165: 0 | CC165: 0 | CD165: 0 | CE165: 0 | CF165: 0 | CG165: 0 | CH165: 0 | CI165: 0 | CJ165: 0 | CK165: 0 | CL165: 0 | CM165: 0
F166: 2011 | G166: 0 | H166: 0 | I166: 0 | J166: 0 | K166: 0 | L166: 0 | M166: 0 | N166: 0 | O166: 0 | P166: 0 | Q166: 0 | R166: 0 | S166: 0 | T166: 0 | U166: 0 | V166: 0 | W166: 0 | X166: 0 | Y166: 0 | Z166: 0 | AA166: 0 | AB166: 0 | AC166: 0 | AD166: 0 | AE166: 0 | AF166: 0 | AG166: 0 | AH166: 0 | AI166: 0 | AJ166: 0 | AK166: 0 | AL166: 0 | AM166: 0 | AN166: 0 | AO166: 0 | AP166: 0 | AQ166: 0 | AR166: 0 | AS166: 0 | AT166: 0 | AU166: 0 | AV166: 0 | AW166: 0 | AX166: 0 | AY166: 0 | AZ166: 0 | BA166: 0 | BB166: 0 | BC166: 0 | BD166: 0 | BE166: 0 | BF166: 0 | BG166: 0 | BH166: 0 | BI166: 0 | BJ166: 0 | BK166: 0 | BL166: 0 | BM166: 0 | BN166: 0 | BO166: 0 | BP166: 0 | BQ166: 0 | BR166: 0 | BS166: 0 | BT166: 0.5 | BU166: 1 | BV166: 1 | BW166: 1 | BX166: 1 | BY166: 0.5 | BZ166: 0 | CA166: 0 | CB166: 0 | CC166: 0 | CD166: 0 | CE166: 0 | CF166: 0 | CG166: 0 | CH166: 0 | CI166: 0 | CJ166: 0 | CK166: 0 | CL166: 0 | CM166: 0
F167: 2012 | G167: 0 | H167: 0 | I167: 0 | J167: 0 | K167: 0 | L167: 0 | M167: 0 | N167: 0 | O167: 0 | P167: 0 | Q167: 0 | R167: 0 | S167: 0 | T167: 0 | U167: 0 | V167: 0 | W167: 0 | X167: 0 | Y167: 0 | Z167: 0 | AA167: 0 | AB167: 0 | AC167: 0 | AD167: 0 | AE167: 0 | AF167: 0 | AG167: 0 | AH167: 0 | AI167: 0 | AJ167: 0 | AK167: 0 | AL167: 0 | AM167: 0 | AN167: 0 | AO167: 0 | AP167: 0 | AQ167: 0 | AR167: 0 | AS167: 0 | AT167: 0 | AU167: 0 | AV167: 0 | AW167: 0 | AX167: 0 | AY167: 0 | AZ167: 0 | BA167: 0 | BB167: 0 | BC167: 0 | BD167: 0 | BE167: 0 | BF167: 0 | BG167: 0 | BH167: 0 | BI167: 0 | BJ167: 0 | BK167: 0 | BL167: 0 | BM167: 0 | BN167: 0 | BO167: 0 | BP167: 0 | BQ167: 0 | BR167: 0 | BS167: 0 | BT167: 0 | BU167: 0.5 | BV167: 1 | BW167: 1 | BX167: 1 | BY167: 1 | BZ167: 0.5 | CA167: 0 | CB167: 0 | CC167: 0 | CD167: 0 | CE167: 0 | CF167: 0 | CG167: 0 | CH167: 0 | CI167: 0 | CJ167: 0 | CK167: 0 | CL167: 0 | CM167: 0
F168: 2013 | G168: 0 | H168: 0 | I168: 0 | J168: 0 | K168: 0 | L168: 0 | M168: 0 | N168: 0 | O168: 0 | P168: 0 | Q168: 0 | R168: 0 | S168: 0 | T168: 0 | U168: 0 | V168: 0 | W168: 0 | X168: 0 | Y168: 0 | Z168: 0 | AA168: 0 | AB168: 0 | AC168: 0 | AD168: 0 | AE168: 0 | AF168: 0 | AG168: 0 | AH168: 0 | AI168: 0 | AJ168: 0 | AK168: 0 | AL168: 0 | AM168: 0 | AN168: 0 | AO168: 0 | AP168: 0 | AQ168: 0 | AR168: 0 | AS168: 0 | AT168: 0 | AU168: 0 | AV168: 0 | AW168: 0 | AX168: 0 | AY168: 0 | AZ168: 0 | BA168: 0 | BB168: 0 | BC168: 0 | BD168: 0 | BE168: 0 | BF168: 0 | BG168: 0 | BH168: 0 | BI168: 0 | BJ168: 0 | BK168: 0 | BL168: 0 | BM168: 0 | BN168: 0 | BO168: 0 | BP168: 0 | BQ168: 0 | BR168: 0 | BS168: 0 | BT168: 0 | BU168: 0 | BV168: 0.5 | BW168: 1 | BX168: 1 | BY168: 1 | BZ168: 1 | CA168: 0.5 | CB168: 0 | CC168: 0 | CD168: 0 | CE168: 0 | CF168: 0 | CG168: 0 | CH168: 0 | CI168: 0 | CJ168: 0 | CK168: 0 | CL168: 0 | CM168: 0
F169: 2014 | G169: 0 | H169: 0 | I169: 0 | J169: 0 | K169: 0 | L169: 0 | M169: 0 | N169: 0 | O169: 0 | P169: 0 | Q169: 0 | R169: 0 | S169: 0 | T169: 0 | U169: 0 | V169: 0 | W169: 0 | X169: 0 | Y169: 0 | Z169: 0 | AA169: 0 | AB169: 0 | AC169: 0 | AD169: 0 | AE169: 0 | AF169: 0 | AG169: 0 | AH169: 0 | AI169: 0 | AJ169: 0 | AK169: 0 | AL169: 0 | AM169: 0 | AN169: 0 | AO169: 0 | AP169: 0 | AQ169: 0 | AR169: 0 | AS169: 0 | AT169: 0 | AU169: 0 | AV169: 0 | AW169: 0 | AX169: 0 | AY169: 0 | AZ169: 0 | BA169: 0 | BB169: 0 | BC169: 0 | BD169: 0 | BE169: 0 | BF169: 0 | BG169: 0 | BH169: 0 | BI169: 0 | BJ169: 0 | BK169: 0 | BL169: 0 | BM169: 0 | BN169: 0 | BO169: 0 | BP169: 0 | BQ169: 0 | BR169: 0 | BS169: 0 | BT169: 0 | BU169: 0 | BV169: 0 | BW169: 0.5 | BX169: 1 | BY169: 1 | BZ169: 1 | CA169: 1 | CB169: 0.5 | CC169: 0 | CD169: 0 | CE169: 0 | CF169: 0 | CG169: 0 | CH169: 0 | CI169: 0 | CJ169: 0 | CK169: 0 | CL169: 0 | CM169: 0
F170: 2015 | G170: 0 | H170: 0 | I170: 0 | J170: 0 | K170: 0 | L170: 0 | M170: 0 | N170: 0 | O170: 0 | P170: 0 | Q170: 0 | R170: 0 | S170: 0 | T170: 0 | U170: 0 | V170: 0 | W170: 0 | X170: 0 | Y170: 0 | Z170: 0 | AA170: 0 | AB170: 0 | AC170: 0 | AD170: 0 | AE170: 0 | AF170: 0 | AG170: 0 | AH170: 0 | AI170: 0 | AJ170: 0 | AK170: 0 | AL170: 0 | AM170: 0 | AN170: 0 | AO170: 0 | AP170: 0 | AQ170: 0 | AR170: 0 | AS170: 0 | AT170: 0 | AU170: 0 | AV170: 0 | AW170: 0 | AX170: 0 | AY170: 0 | AZ170: 0 | BA170: 0 | BB170: 0 | BC170: 0 | BD170: 0 | BE170: 0 | BF170: 0 | BG170: 0 | BH170: 0 | BI170: 0 | BJ170: 0 | BK170: 0 | BL170: 0 | BM170: 0 | BN170: 0 | BO170: 0 | BP170: 0 | BQ170: 0 | BR170: 0 | BS170: 0 | BT170: 0 | BU170: 0 | BV170: 0 | BW170: 0 | BX170: 0.5 | BY170: 1 | BZ170: 1 | CA170: 1 | CB170: 1 | CC170: 0.5 | CD170: 0 | CE170: 0 | CF170: 0 | CG170: 0 | CH170: 0 | CI170: 0 | CJ170: 0 | CK170: 0 | CL170: 0 | CM170: 0
F171: 2016 | G171: 0 | H171: 0 | I171: 0 | J171: 0 | K171: 0 | L171: 0 | M171: 0 | N171: 0 | O171: 0 | P171: 0 | Q171: 0 | R171: 0 | S171: 0 | T171: 0 | U171: 0 | V171: 0 | W171: 0 | X171: 0 | Y171: 0 | Z171: 0 | AA171: 0 | AB171: 0 | AC171: 0 | AD171: 0 | AE171: 0 | AF171: 0 | AG171: 0 | AH171: 0 | AI171: 0 | AJ171: 0 | AK171: 0 | AL171: 0 | AM171: 0 | AN171: 0 | AO171: 0 | AP171: 0 | AQ171: 0 | AR171: 0 | AS171: 0 | AT171: 0 | AU171: 0 | AV171: 0 | AW171: 0 | AX171: 0 | AY171: 0 | AZ171: 0 | BA171: 0 | BB171: 0 | BC171: 0 | BD171: 0 | BE171: 0 | BF171: 0 | BG171: 0 | BH171: 0 | BI171: 0 | BJ171: 0 | BK171: 0 | BL171: 0 | BM171: 0 | BN171: 0 | BO171: 0 | BP171: 0 | BQ171: =SUM((AND(BQ$100>$F171,BQ$100<$F171+$F$100))*1,OR($F171=BQ$100,$F171+$F$100=BQ$100)*0.5) -> 0 | BR171: 0 | BS171: 0 | BT171: 0 | BU171: 0 | BV171: 0 | BW171: 0 | BX171: 0 | BY171: 0.5 | BZ171: 1 | CA171: 1 | CB171: 1 | CC171: 1 | CD171: 0.5 | CE171: 0 | CF171: 0 | CG171: 0 | CH171: 0 | CI171: 0 | CJ171: 0 | CK171: 0 | CL171: 0 | CM171: 0
F172: 2017
F173: 2018
F174: 2019
F175: 2020
F176: 2021
F177: 2022
F178: 2023
F179: 2024
F180: 2025
F181: 2026
F182: 2027
F183: 2028
F184: 2029
F185: 2030
F187: CPI
G188: 1946 | H188: 1947 | I188: 1948 | J188: 1949 | K188: 1950 | L188: 1951 | M188: 1952 | N188: 1953 | O188: 1954 | P188: 1955 | Q188: 1956 | R188: 1957 | S188: 1958 | T188: 1959 | U188: 1960 | V188: 1961 | W188: 1962 | X188: 1963 | Y188: 1964 | Z188: 1965 | AA188: 1966 | AB188: 1967 | AC188: 1968 | AD188: 1969 | AE188: 1970 | AF188: 1971 | AG188: 1972 | AH188: 1973 | AI188: 1974 | AJ188: 1975 | AK188: 1976 | AL188: 1977 | AM188: 1978 | AN188: 1979 | AO188: 1980 | AP188: 1981 | AQ188: 1982 | AR188: 1983 | AS188: 1984 | AT188: 1985 | AU188: 1986 | AV188: 1987 | AW188: 1988 | AX188: 1989 | AY188: 1990 | AZ188: 1991 | BA188: 1992 | BB188: 1993 | BC188: 1994 | BD188: 1995 | BE188: 1996 | BF188: 1997 | BG188: 1998 | BH188: 1999 | BI188: 2000 | BJ188: 2001 | BK188: 2002 | BL188: 2003 | BM188: 2004 | BN188: 2005 | BO188: 2006 | BP188: 2007 | BQ188: 2008 | BR188: 2009 | BS188: 2010 | BT188: 2011 | BU188: 2012 | BV188: 2013 | BW188: 2014 | BX188: 2015 | BY188: 2016 | BZ188: 2017 | CA188: 2018 | CB188: 2019 | CC188: 2020 | CD188: 2021 | CE188: 2022 | CF188: 2023 | CG188: 2024 | CH188: 2025 | CI188: 2026 | CJ188: 2027 | CK188: 2028 | CL188: 2029 | CM188: 2030
